Workbook

Sheet READ ME
D11: Read Me Sheet
D16: IRRIGATE – Soil Tool
D18: Introduction
D19: This tool serves to determine your soil profile and to find an irrigation schedule for a selected crop. It complements the SAFEGUARD WATER – Water Requirement Tool. An complimentary tool is available under:
D23: http://www.fao.org/nr/water/aquastat/climateinfotool/index.stm
D25: Tips & Tricks
D31: Overview
D32: This tool comprises the following sheets:
D34: 1. Geographic Data | G34: for adding basic site information and entering rainfall and temperature data
D36: 2. Crop Water Requirement | G36: for selecting a crop and planting period; for automatic calculation of water requirement for a single crop; for calculation of an irrigation schedule
D40: 3. Texture Calculator | G40: for calculation of your soil type
D42: 4. How this tool works | G42: for understanding the way the Soil & Irrigation tool works
D45: Hidden and password protected. Only for experts:
D47: Crop Information | G47: for adjusting and adding crops and their respective water requirements
D49: Soil Information | G49: soil calculation
D51: General Calculation | G51: general calculation
D53: Calculation Sheet Crop 1 | G53: crop calculation
D55: Calculations | G55: calculation for the texture calculator
D58: About
D59: Published by: | F59: GIZ & FAO
D60: Resposible: | F60: GIZ project Sustainable Energy for Food – Powering Agriculture
D62: Contact: | F62: Powering.Agriculture@giz.de
D63: Download link: | F63: https://energypedia.info/wiki/Toolbox_on_SPIS
D64: About: | F64: Powering Agriculture: An Energy Grand Challenge for Development. Available at:
F66: https://poweringag.org
D67: Version: | F67: 0.3 (November 2017)
D69: The Toolbox on Solar Powered Irrigation Systems is made possible through the global initiative Powering Agriculture: An Energy Grand Challenge for Development (PAEGC). In 2012, the United States Agency for International Development (USAID), the Swedish International Development Cooperation Agency (Sida), the German Federal Ministry for Economic Cooperation and Development (BMZ), Duke Energy, and the Overseas Private Investment Cooperation (OPIC) combined resources to create the PAEGC initiative. The objective of PAEGC is to support new and sustainable approaches to accelerate the development and deployment of clean energy solutions for increasing agriculture productivity and/or value for farmers and agribusinesses in developing countries and emerging regions that lack access to reliable, affordable clean energy.
D82: The designations employed and the presentation of material in this information product do not imply the expression of any opinion whatsoever on the part of Deutsche Gesellschaft für Internationale Zusammenarbeit (GIZ) GmbH, Food and Agriculture Organization of the United Nations (FAO) or any of the PAEGC Founding Partners concerning the legal or development status of any country, territory, city or area or of its authorities, or concerning the delimitation of its frontiers or boundaries. The mention of specific companies or products of manufacturers, whether or not these have been patented, does not imply that these have been endorsed or recommended by GIZ, FAO, or any of the PAEGC Founding Partners in preference to others of a similar nature that are not mentioned. The views expressed in this information product are those of the author and do not necessarily reflect the views or policies of GIZ, FAO, or any of the PAEGC Founding Partners.
D97: GIZ, FAO and the PAEGC Founding Partners encourage the use, reproduction and dissemination of material in this information product. Except where otherwise indicated, material may be copied, downloaded and printed for private study, research and teaching purposes, or for use in non-commercial products or services, provided that appropriate acknowledgement of GIZ and FAO as the source and copyright holder is given.
D105: © GIZ and FAO, 2017

Sheet 1 Geographic Data
A1: IRRIGATE – Soil Tool
A2: Enter basic rainfall and climatic data for you location.
A4: 1 GENERAL GEOGRAPHIC INFORMATION
A7: Country | F7: Region
A8: Farm code | F8: Date
A10: Name of the farm
A11: Village
A12: Division
A13: District
B15: January | C15: February | D15: March | E15: April | F15: May | G15: June | H15: July | I15: August | J15: September | K15: October | L15: November | M15: December
A16: Mean daily temperature [°C]: | B16: 25.5 | C16: 25 | D16: 24.6 | E16: 23.8 | F16: 23.9 | G16: 23.5 | H16: 23 | I16: 23 | J16: 23.6 | K16: 23.9 | L16: 23.6 | M16: 23.8
A17: Rainfall [mm/month]: | B17: 45 | C17: 33 | D17: 69.3 | E17: 142.8 | F17: 109.8 | G17: 38.1 | H17: 27 | I17: 21.6 | J17: 18.3 | K17: 48.3 | L17: 97.2 | M17: 86.1
B20: Hemisphere: | C20: ='General Calculation'!S105 -> South | I20: Notes:
B22: Latitude: | C22: ='General Calculation'!S106 -> 5°
A40: Use to identify exact coordinates of the site: | C40: https://www.google.de/maps

Sheet 2 Crop Water Requirement
A1: IRRIGATE – Soil Tool
A2: Select crop intended for planting at your location, for automatic indication of water requirements
A4: 2 CROP WATER REQUIREMENT
R6: Farm code: | S6: ='1 Geographic Data'!B8 -> 0
E7: Conversion factor to 1 ha:
B8: Area measurement unit: | C8: ha | E8: 1 | F8: =C8&" = 1 hectar" -> ha = 1 hectar
D11: January | E11: February | F11: March | G11: April | H11: May | I11: June | J11: July | K11: August | L11: September | M11: October | N11: November | O11: December
B12: ='1 Geographic Data'!A16 -> Mean daily temperature [°C]: | D12: ='1 Geographic Data'!B16 -> 25.5 | E12: ='1 Geographic Data'!C16 -> 25 | F12: ='1 Geographic Data'!D16 -> 24.6 | G12: ='1 Geographic Data'!E16 -> 23.8 | H12: ='1 Geographic Data'!F16 -> 23.9 | I12: ='1 Geographic Data'!G16 -> 23.5 | J12: ='1 Geographic Data'!H16 -> 23 | K12: ='1 Geographic Data'!I16 -> 23 | L12: ='1 Geographic Data'!J16 -> 23.6 | M12: ='1 Geographic Data'!K16 -> 23.9 | N12: ='1 Geographic Data'!L16 -> 23.6 | O12: ='1 Geographic Data'!M16 -> 23.8 | P12: ° C | Q12: Summer months
B13: ='1 Geographic Data'!A17 -> Rainfall [mm/month]: | D13: ='1 Geographic Data'!B17 -> 45 | E13: ='1 Geographic Data'!C17 -> 33 | F13: ='1 Geographic Data'!D17 -> 69.3 | G13: ='1 Geographic Data'!E17 -> 142.8 | H13: ='1 Geographic Data'!F17 -> 109.8 | I13: ='1 Geographic Data'!G17 -> 38.1 | J13: ='1 Geographic Data'!H17 -> 27 | K13: ='1 Geographic Data'!I17 -> 21.6 | L13: ='1 Geographic Data'!J17 -> 18.3 | M13: ='1 Geographic Data'!K17 -> 48.3 | N13: ='1 Geographic Data'!L17 -> 97.2 | O13: ='1 Geographic Data'!M17 -> 86.1 | P13: mm/month | Q13: Rainy season
B14: =B19 & " Crop Water Need [mm/month]:" -> Bean/dry Crop Water Need [mm/month]: | D14: ='General Calculation'!E43 -> 0 | E14: ='General Calculation'!F43 -> 0 | F14: ='General Calculation'!G43 -> 0 | G14: ='General Calculation'!H43 -> 0 | H14: ='General Calculation'!I43 -> 104.9058408 | I14: ='General Calculation'!J43 -> 136.929 | J14: ='General Calculation'!K43 -> 12.425736 | K14: ='General Calculation'!L43 -> 0 | L14: ='General Calculation'!M43 -> 0 | M14: ='General Calculation'!N43 -> 0 | N14: ='General Calculation'!O43 -> 0 | O14: ='General Calculation'!P43 -> 0 | P14: mm/month
A16: Estimation of crop uptake
B17: Crop to be irrigated | D17: ="Area in "&C8 -> Area in ha | F17: Planting | I17: Crop growing time | K17: Irrigation scheme | N17: Irrigation Efficiency
B19: =IF('Calculation Sheet Crop 1'!B1=0,"",'Calculation Sheet Crop 1'!B1) -> Bean/dry | D19: 0.5 | G19: 2017-03-27 | I19: ='Calculation Sheet Crop 1'!J2 -> Average | K19: =IF('General Calculation'!S36=0,"",'General Calculation'!S36) -> Micro Sprinkler | N19: =IF('General Calculation'!B36=0,"",'General Calculation'!B36*100&" %") -> 80 %
A23: Estimation of soil reservoir
B24: Soil: | C24: =INDEX('Soil Information'!J4:J7,'Soil Information'!I3) -> Sandy soil | F24: Definition: | G24: =IF('Soil Information'!I3=1,"",IF('Soil Information'!I3=2,'Soil Information'!R15,IF('Soil Information'!I3=3,'Soil Information'!R17,'Soil Information'!R19))) -> Sandy soils have a low water-holding capacity. Irrigation has to be scheduled more frequently with smaller amounts of water.
B26: Root depth: | C26: =INDEX('Soil Information'!J10:J13,'Soil Information'!I10) -> Shallow rooting crops (30 - 60 cm) | F26: Examples: | G26: =IF('Soil Information'!I10=1,"",IF('Soil Information'!I10=2,'Soil Information'!R5,IF('Soil Information'!I10=3,'Soil Information'!R7,'Soil Information'!R9))) -> Crucifers (cabbage, Cauliflower, etc.), celery, lettuce, onions, pineapple, potatoes, spinach, other vegetables excepts beets, carrots and cucumber
B28: Net irrigation depth: | C28: =IFERROR(INDEX('Soil Information'!K24:M26,'Soil Information'!I2,'Soil Information'!I9),"") -> 15
A32: ="Irrigation Schedule for " & B19 & " in a " &C24 -> Irrigation Schedule for Bean/dry in a Sandy soil
D34: January | E34: February | F34: March | G34: April | H34: May | I34: June | J34: July | K34: August | L34: September | M34: October | N34: November | O34: December
B36: Irrigation Interval [frequency days]: | D36: ='Soil Information'!D50 ->  | E36: ='Soil Information'!E50 ->  | F36: ='Soil Information'!F50 ->  | G36: ='Soil Information'!G50 ->  | H36: ='Soil Information'!H50 -> 4 | I36: ='Soil Information'!I50 -> 3 | J36: ='Soil Information'!J50 -> 6 | K36: ='Soil Information'!K50 ->  | L36: ='Soil Information'!L50 ->  | M36: ='Soil Information'!M50 ->  | N36: ='Soil Information'!N50 ->  | O36: ='Soil Information'!O50 -> 
B37: Irrigation water per application [m³]: | D37: ='Soil Information'!D52 ->  | E37: ='Soil Information'!E52 ->  | F37: ='Soil Information'!F52 ->  | G37: ='Soil Information'!G52 ->  | H37: ='Soil Information'!H52 -> 68 | I37: ='Soil Information'!I52 -> 68 | J37: ='Soil Information'!J52 -> 34 | K37: ='Soil Information'!K52 ->  | L37: ='Soil Information'!L52 ->  | M37: ='Soil Information'!M52 ->  | N37: ='Soil Information'!N52 ->  | O37: ='Soil Information'!O52 -> 
A38: Minimum water storage tank capacity when irrigating daily [m³]: | D38: =IFERROR(D37/D36,"") ->  | H38: 17 | I38: =IFERROR(I37/I36,"") -> 22.66666667 | J38: =IFERROR(J37/J36,"") -> 5.666666667

Sheet Crop Information (hidden)
C5: Minimum Crop Growing Period | H5: Maximum Crop Growing Period | M5: Average Crop Growing Period | R5: Crop Factor of the development stages
B7: Crop | C7: Total | D7: Initial stage | E7: Crop Development stage | F7: Mid season stage | G7: Late season stage | H7: Total | I7: Initial stage | J7: Crop Development stage | K7: Mid season stage | L7: Late season stage | M7: Total | N7: Initial stage | O7: Crop Development stage | P7: Mid season stage | Q7: Late season stage | R7: Initial stage | S7: Crop Development stage | T7: Mid season stage | U7: Late season stage
B9: Barley/Oats/Wheat | C9: 120 | D9: 15 | E9: 25 | F9: 50 | G9: 30 | H9: 150 | I9: 15 | J9: 30 | K9: 65 | L9: 40 | M9: =SUM(N9:Q9) -> 135 | N9: =(D9+I9)/2 -> 15 | O9: =(E9+J9)/2 -> 27.5 | P9: =(F9+K9)/2 -> 57.5 | Q9: =(G9+L9)/2 -> 35 | R9: 0.35 | S9: 0.75 | T9: 1.15 | U9: 0.45
B10: Bean/green | C10: 75 | D10: 15 | E10: 25 | F10: 25 | G10: 10 | H10: 90 | I10: 20 | J10: 30 | K10: 30 | L10: 10 | M10: =SUM(N10:Q10) -> 82.5 | N10: =(D10+I10)/2 -> 17.5 | O10: =(E10+J10)/2 -> 27.5 | P10: =(F10+K10)/2 -> 27.5 | Q10: =(G10+L10)/2 -> 10 | R10: 0.35 | S10: 0.7 | T10: 1.1 | U10: 0.9
B11: Bean/dry | C11: 95 | D11: 15 | E11: 25 | F11: 35 | G11: 20 | H11: 110 | I11: 20 | J11: 30 | K11: 40 | L11: 20 | M11: 102.5 | N11: 17.5 | O11: 27.5 | P11: 37.5 | Q11: 20 | R11: 0.35 | S11: 0.7 | T11: 1.1 | U11: 0.3
B12: Cabbage | C12: 120 | D12: 20 | E12: 25 | F12: 60 | G12: 15 | H12: 140 | I12: 25 | J12: 30 | K12: 65 | L12: 20 | M12: 130 | N12: 22.5 | O12: 27.5 | P12: 62.5 | Q12: 17.5 | R12: 0.45 | S12: 0.75 | T12: 1.05 | U12: 0.9
B13: Carrot | C13: 100 | D13: 20 | E13: 30 | F13: 30 | G13: 20 | H13: 150 | I13: 25 | J13: 35 | K13: 70 | L13: 20 | M13: 125 | N13: 22.5 | O13: 32.5 | P13: 50 | Q13: 20 | R13: 0.45 | S13: 0.75 | T13: 1.05 | U13: 0.9
B14: Clover (Humid Light/medium wind) | C14: 365 | D14: 0 | E14: 0 | F14: 365 | G14: 0 | H14: 365 | I14: 0 | J14: 0 | K14: 365 | L14: 0 | M14: =SUM(N14:Q14) -> 365 | N14: =(D14+I14)/2 -> 0 | O14: 0 | P14: 365 | Q14: 0 | R14: 0 | S14: 0 | T14: 1,0 | U14: 0
B15: Clover (Dry Light/medium wind) | C15: 365 | D15: 0 | E15: 0 | F15: 365 | G15: 0 | H15: 365 | I15: 0 | J15: 0 | K15: 365 | L15: 0 | M15: =SUM(N15:Q15) -> 365 | N15: 0 | O15: 0 | P15: 365 | Q15: 0 | R15: 0 | S15: 0 | T15: 1,05 | U15: 0
B16: Clover (Humid or Dry Strong wind) | C16: 365 | D16: 0 | E16: 0 | F16: 365 | G16: 0 | H16: 365 | I16: 0 | J16: 0 | K16: 365 | L16: 0 | M16: =SUM(N16:Q16) -> 365 | N16: 0 | O16: 0 | P16: 365 | Q16: 0 | R16: 0 | S16: 0 | T16: 1,05 | U16: 0
B17: Cotton/Flax | C17: 180 | D17: 30 | E17: 50 | F17: 55 | G17: 45 | H17: 195 | I17: 30 | J17: 50 | K17: 65 | L17: 50 | M17: 187.5 | N17: 30 | O17: 50 | P17: 60 | Q17: 47.5 | R17: 0.45 | S17: 0.75 | T17: 1.15 | U17: 0.75
B18: Cucumber | C18: 105 | D18: 20 | E18: 30 | F18: 40 | G18: 15 | H18: 130 | I18: 25 | J18: 35 | K18: 50 | L18: 20 | M18: 117.5 | N18: 22.5 | O18: 32.5 | P18: 45 | Q18: 17.5 | R18: 0.45 | S18: 0.7 | T18: 0.9 | U18: 0.75
B19: Eggplant | C19: 130 | D19: 30 | E19: 40 | F19: 40 | G19: 20 | H19: 140 | I19: 30 | J19: 40 | K19: 45 | L19: 25 | M19: 135 | N19: 30 | O19: 40 | P19: 42.5 | Q19: 22.5 | R19: 0.45 | S19: 0.75 | T19: 1.15 | U19: 0.8
B20: Fruit Tree - High water demand | C20: 365 | D20: 0 | E20: 0 | F20: 365 | G20: 0 | H20: 365 | I20: 0 | J20: 0 | K20: 365 | L20: 0 | M20: =SUM(N20:Q20) -> 365 | N20: =(D20+I20)/2 -> 0 | O20: 0 | P20: 365 | Q20: 0 | R20: 0 | S20: 0 | T20: 1.1 | U20: 0
B21: Fruit Tree - Middle water demand | C21: 365 | D21: 0 | E21: 0 | F21: 365 | G21: 0 | H21: 365 | I21: 0 | J21: 0 | K21: 365 | L21: 0 | M21: =SUM(N21:Q21) -> 365 | N21: 0 | O21: 0 | P21: 365 | Q21: 0 | R21: 0 | S21: 0 | T21: 0.85 | U21: 0
B22: Fruit Tree - Low water demand | C22: 365 | D22: 0 | E22: 0 | F22: 365 | G22: 0 | H22: 365 | I22: 0 | J22: 0 | K22: 365 | L22: 0 | M22: =SUM(N22:Q22) -> 365 | N22: 0 | O22: 0 | P22: 365 | Q22: 0 | R22: 0 | S22: 0 | T22: 0.6 | U22: 0
B23: Grain/small | C23: 150 | D23: 20 | E23: 30 | F23: 60 | G23: 40 | H23: 165 | I23: 25 | J23: 35 | K23: 65 | L23: 40 | M23: 157.5 | N23: 22.5 | O23: 32.5 | P23: 62.5 | Q23: 40 | R23: 0.35 | S23: 0.75 | T23: 1.1 | U23: 0.65
B24: Lentil | C24: 150 | D24: 20 | E24: 30 | F24: 60 | G24: 40 | H24: 170 | I24: 25 | J24: 35 | K24: 70 | L24: 40 | M24: 160 | N24: 22.5 | O24: 32.5 | P24: 65 | Q24: 40 | R24: 0.45 | S24: 0.75 | T24: 1.1 | U24: 0.5
B25: Lucerne (Humid Light/medium wind) | C25: 365 | D25: 0 | E25: 0 | F25: 365 | G25: 0 | H25: 365 | I25: 0 | J25: 0 | K25: 365 | L25: 0 | M25: =SUM(N25:Q25) -> 365 | N25: =(D25+I25)/2 -> 0 | O25: 0 | P25: 365 | Q25: 0 | R25: 0 | S25: 0 | T25: 0,85 | U25: 0
B26: Lucerne (Dry Light/medium wind) | C26: 365 | D26: 0 | E26: 0 | F26: 365 | G26: 0 | H26: 365 | I26: 0 | J26: 0 | K26: 365 | L26: 0 | M26: =SUM(N26:Q26) -> 365 | N26: 0 | O26: 0 | P26: 365 | Q26: 0 | R26: 0 | S26: 0 | T26: 0,95 | U26: 0
B27: Lucerne (Humid or Dry Strong wind) | C27: 365 | D27: 0 | E27: 0 | F27: 365 | G27: 0 | H27: 365 | I27: 0 | J27: 0 | K27: 365 | L27: 0 | M27: =SUM(N27:Q27) -> 365 | N27: 0 | O27: 0 | P27: 365 | Q27: 0 | R27: 0 | S27: 0 | T27: 1,05 | U27: 0
B28: Lettuce | C28: 75 | D28: 20 | E28: 30 | F28: 15 | G28: 10 | H28: 140 | I28: 35 | J28: 50 | K28: 45 | L28: 10 | M28: 107.5 | N28: 27.5 | O28: 40 | P28: 30 | Q28: 10 | R28: 0.45 | S28: 0.6 | T28: 1 | U28: 0.9
B29: Maize, sweet | C29: 80 | D29: 20 | E29: 25 | F29: 25 | G29: 10 | H29: 110 | I29: 20 | J29: 30 | K29: 50 | L29: 10 | M29: 95 | N29: 20 | O29: 27.5 | P29: 37.5 | Q29: 10 | R29: 0.4 | S29: 0.8 | T29: 1.15 | U29: 1
B30: Maize, grain | C30: 125 | D30: 20 | E30: 35 | F30: 40 | G30: 30 | H30: 180 | I30: 30 | J30: 50 | K30: 60 | L30: 40 | M30: 152.5 | N30: 25 | O30: 42.5 | P30: 50 | Q30: 35 | R30: 0.4 | S30: 0.8 | T30: 1.15 | U30: 0.7
B31: Melon | C31: 120 | D31: 25 | E31: 35 | F31: 40 | G31: 20 | H31: 160 | I31: 30 | J31: 45 | K31: 65 | L31: 20 | M31: 140 | N31: 27.5 | O31: 40 | P31: 52.5 | Q31: 20 | R31: 0.45 | S31: 0.75 | T31: 1 | U31: 0.75
B32: Millet | C32: 105 | D32: 15 | E32: 25 | F32: 40 | G32: 25 | H32: 140 | I32: 20 | J32: 30 | K32: 55 | L32: 35 | M32: 122.5 | N32: 17.5 | O32: 27.5 | P32: 47.5 | Q32: 30 | R32: 0.35 | S32: 0.7 | T32: 1.1 | U32: 0.65
B33: Onion/green | C33: 70 | D33: 25 | E33: 30 | F33: 10 | G33: 5 | H33: 95 | I33: 25 | J33: 40 | K33: 20 | L33: 10 | M33: 82.5 | N33: 25 | O33: 35 | P33: 15 | Q33: 7.5 | R33: 0.5 | S33: 0.7 | T33: 1 | U33: 1
B34: Onion/dry | C34: 150 | D34: 15 | E34: 25 | F34: 70 | G34: 40 | H34: 210 | I34: 20 | J34: 35 | K34: 110 | L34: 45 | M34: 180 | N34: 17.5 | O34: 30 | P34: 90 | Q34: 42.5 | R34: 0.5 | S34: 0.75 | T34: 1.05 | U34: 0.85
B35: Pasture (Humid Light/medium wind) | C35: 365 | D35: 0 | E35: 0 | F35: 365 | G35: 0 | H35: 365 | I35: 0 | J35: 0 | K35: 365 | L35: 0 | M35: =SUM(N35:Q35) -> 365 | N35: =(D35+I35)/2 -> 0 | O35: 0 | P35: 365 | Q35: 0 | R35: 0 | S35: 0 | T35: 0,95 | U35: 0
B36: Pasture (Dry Light/medium wind) | C36: 365 | D36: 0 | E36: 0 | F36: 365 | G36: 0 | H36: 365 | I36: 0 | J36: 0 | K36: 365 | L36: 0 | M36: =SUM(N36:Q36) -> 365 | N36: 0 | O36: 0 | P36: 365 | Q36: 0 | R36: 0 | S36: 0 | T36: 1,0 | U36: 0
B37: Pasture (Humid or Dry Strong wind) | C37: 365 | D37: 0 | E37: 0 | F37: 365 | G37: 0 | H37: 365 | I37: 0 | J37: 0 | K37: 365 | L37: 0 | M37: =SUM(N37:Q37) -> 365 | N37: 0 | O37: 0 | P37: 365 | Q37: 0 | R37: 0 | S37: 0 | T37: 1,05 | U37: 0
B38: Peanut/Groundnut | C38: 130 | D38: 25 | E38: 35 | F38: 45 | G38: 25 | H38: 140 | I38: 30 | J38: 40 | K38: 45 | L38: 25 | M38: 135 | N38: 27.5 | O38: 37.5 | P38: 45 | Q38: 25 | R38: 0.45 | S38: 0.75 | T38: 1.05 | U38: 0.7
B39: Pea | C39: 90 | D39: 15 | E39: 25 | F39: 35 | G39: 15 | H39: 100 | I39: 20 | J39: 30 | K39: 35 | L39: 15 | M39: 95 | N39: 17.5 | O39: 27.5 | P39: 35 | Q39: 15 | R39: 0.45 | S39: 0.8 | T39: 1.15 | U39: 1.05
B40: Pepper | C40: 120 | D40: 25 | E40: 35 | F40: 40 | G40: 20 | H40: 210 | I40: 30 | J40: 40 | K40: 110 | L40: 30 | M40: 165 | N40: 27.5 | O40: 37.5 | P40: 75 | Q40: 25 | R40: 0.35 | S40: 0.7 | T40: 1.05 | U40: 0.9
B41: Potato | C41: 105 | D41: 25 | E41: 30 | F41: 30 | G41: 20 | H41: 145 | I41: 30 | J41: 35 | K41: 50 | L41: 30 | M41: 125 | N41: 27.5 | O41: 32.5 | P41: 40 | Q41: 25 | R41: 0.45 | S41: 0.75 | T41: 1.15 | U41: 0.85
B42: Radish | C42: 35 | D42: 5 | E42: 10 | F42: 15 | G42: 5 | H42: 40 | I42: 10 | J42: 10 | K42: 15 | L42: 5 | M42: 37.5 | N42: 7.5 | O42: 10 | P42: 15 | Q42: 5 | R42: 0.45 | S42: 0.6 | T42: 0.9 | U42: 0.9
B43: Sorghum | C43: 120 | D43: 20 | E43: 30 | F43: 40 | G43: 30 | H43: 130 | I43: 20 | J43: 35 | K43: 45 | L43: 30 | M43: 125 | N43: 20 | O43: 32.5 | P43: 42.5 | Q43: 30 | R43: 0.35 | S43: 0.75 | T43: 1.1 | U43: 0.65
B44: Soybean | C44: 135 | D44: 20 | E44: 30 | F44: 60 | G44: 25 | H44: 150 | I44: 20 | J44: 30 | K44: 70 | L44: 30 | M44: 142.5 | N44: 20 | O44: 30 | P44: 65 | Q44: 27.5 | R44: 0.35 | S44: 0.75 | T44: 1.1 | U44: 0.6
B45: Spinach | C45: 60 | D45: 20 | E45: 20 | F45: 15 | G45: 5 | H45: 100 | I45: 20 | J45: 30 | K45: 40 | L45: 10 | M45: 80 | N45: 20 | O45: 25 | P45: 27.5 | Q45: 7.5 | R45: 0.45 | S45: 0.6 | T45: 1 | U45: 0.9
B46: Squash | C46: 95 | D46: 20 | E46: 30 | F46: 30 | G46: 15 | H46: 120 | I46: 25 | J46: 35 | K46: 35 | L46: 25 | M46: 107.5 | N46: 22.5 | O46: 32.5 | P46: 32.5 | Q46: 20 | R46: 0.45 | S46: 0.7 | T46: 0.9 | U46: 0.75
B47: Sugarbeet | C47: 160 | D47: 25 | E47: 35 | F47: 60 | G47: 40 | H47: 230 | I47: 45 | J47: 65 | K47: 80 | L47: 40 | M47: 195 | N47: 35 | O47: 50 | P47: 70 | Q47: 40 | R47: 0.45 | S47: 0.8 | T47: 1.15 | U47: 0.8
B48: Sunflower | C48: 125 | D48: 20 | E48: 35 | F48: 45 | G48: 25 | H48: 130 | I48: 25 | J48: 35 | K48: 45 | L48: 25 | M48: 127.5 | N48: 22.5 | O48: 35 | P48: 45 | Q48: 25 | R48: 0.35 | S48: 0.75 | T48: 1.15 | U48: 0.55
B49: Tomato | C49: 135 | D49: 30 | E49: 40 | F49: 40 | G49: 25 | H49: 180 | I49: 35 | J49: 45 | K49: 70 | L49: 30 | M49: 157.5 | N49: 32.5 | O49: 42.5 | P49: 55 | Q49: 27.5 | R49: 0.45 | S49: 0.75 | T49: 1.15 | U49: 0.8
B50: *new crop* | C50: *insert value* | D50: *insert value* | E50: *insert value* | F50: *insert value* | G50: *insert value* | H50: *insert value* | I50: *insert value* | J50: *insert value* | K50: *insert value* | L50: *insert value* | R50: *insert value* | S50: *insert value* | T50: *insert value* | U50: *insert value*
B51: *new crop* | C51: *insert value* | D51: *insert value* | E51: *insert value* | F51: *insert value* | G51: *insert value* | H51: *insert value* | I51: *insert value* | J51: *insert value* | K51: *insert value* | L51: *insert value* | R51: *insert value* | S51: *insert value* | T51: *insert value* | U51: *insert value*
B52: *new crop* | C52: *insert value* | D52: *insert value* | E52: *insert value* | F52: *insert value* | G52: *insert value* | H52: *insert value* | I52: *insert value* | J52: *insert value* | K52: *insert value* | L52: *insert value* | R52: *insert value* | S52: *insert value* | T52: *insert value* | U52: *insert value*
B53: *new crop* | C53: *insert value* | D53: *insert value* | E53: *insert value* | F53: *insert value* | G53: *insert value* | H53: *insert value* | I53: *insert value* | J53: *insert value* | K53: *insert value* | L53: *insert value* | M53: =SUM(N53:Q53) ->  | N53: =(D53+I53)/2 ->  | O53: =(E53+J53)/2 ->  | P53: =(F53+K53)/2 ->  | Q53: =(G53+L53)/2 ->  | R53: *insert value* | S53: *insert value* | T53: *insert value* | U53: *insert value*
B54: *new crop* | C54: *insert value* | D54: *insert value* | E54: *insert value* | F54: *insert value* | G54: *insert value* | H54: *insert value* | I54: *insert value* | J54: *insert value* | K54: *insert value* | L54: *insert value* | R54: *insert value* | S54: *insert value* | T54: *insert value* | U54: *insert value*
B55: *new crop* | C55: *insert value* | D55: *insert value* | E55: *insert value* | F55: *insert value* | G55: *insert value* | H55: *insert value* | I55: *insert value* | J55: *insert value* | K55: *insert value* | L55: *insert value* | R55: *insert value* | S55: *insert value* | T55: *insert value* | U55: *insert value*
B56: *new crop* | C56: *insert value* | D56: *insert value* | E56: *insert value* | F56: *insert value* | G56: *insert value* | H56: *insert value* | I56: *insert value* | J56: *insert value* | K56: *insert value* | L56: *insert value* | R56: *insert value* | S56: *insert value* | T56: *insert value* | U56: *insert value*
B57: *new crop* | C57: *insert value* | D57: *insert value* | E57: *insert value* | F57: *insert value* | G57: *insert value* | H57: *insert value* | I57: *insert value* | J57: *insert value* | K57: *insert value* | L57: *insert value* | R57: *insert value* | S57: *insert value* | T57: *insert value* | U57: *insert value*
B58: *new crop* | C58: *insert value* | D58: *insert value* | E58: *insert value* | F58: *insert value* | G58: *insert value* | H58: *insert value* | I58: *insert value* | J58: *insert value* | K58: *insert value* | L58: *insert value* | R58: *insert value* | S58: *insert value* | T58: *insert value* | U58: *insert value*
B59: *new crop* | C59: *insert value* | D59: *insert value* | E59: *insert value* | F59: *insert value* | G59: *insert value* | H59: *insert value* | I59: *insert value* | J59: *insert value* | K59: *insert value* | L59: *insert value* | R59: *insert value* | S59: *insert value* | T59: *insert value* | U59: *insert value*
B60: Appletree | C60: *insert value* | D60: *insert value* | E60: *insert value* | F60: *insert value* | G60: *insert value* | H60: *insert value* | I60: *insert value* | J60: *insert value* | K60: *insert value* | L60: *insert value* | R60: *insert value* | S60: *insert value* | T60: *insert value* | U60: *insert value*

Sheet Soil Information (hidden)
I2: 1
F3: 7 | I3: =I2+1 -> 2
B4: Texture | C4: FC (v%) | D4: PWP (v%) | F4: =F3+1 -> 8 | G4: Month | J4: -
B5: - | C5: - | D5: - | G5: January | J5: Sandy soil | R5: Crucifers (cabbage, Cauliflower, etc.), celery, lettuce, onions, pineapple, potatoes, spinach, other vegetables excepts beets, carrots and cucumber
B6: Sand | C6: 10 | D6: 5 | G6: February | J6: Silty soil
B7: Loamy sand | C7: 12 | D7: 5 | G7: March | J7: Clayey soil | R7: Bananas, beans, beets, carrots, clover, cacao, cucumber, groundnuts, palm trees peas, pepper, sisal, soybeans, sugarbeet, sunflower, tobacco, tomatoes
B8: Sandy loam | C8: 18 | D8: 8 | G8: April
B9: Sandy clay loam | C9: 27 | D9: 17 | G9: May | I9: 1 | R9: Alfalfa, barley, citrus cotton, daes, deciduous orchards, flax, grapes, maize, melons, oats, olives, safflower, sorghum, sugarcane, sweet potatoes, wheat
B10: Loam | C10: 28 | D10: 14 | G10: June | I10: =I9+1 -> 2 | J10: -
B11: Sandy clay | C11: 36 | D11: 25 | G11: July | J11: Shallow rooting crops (30 - 60 cm)
B12: Silt loam | C12: 31 | D12: 11 | G12: August | J12: Medium rooting crops (50 - 100 cm)
B13: Silt | C13: 30 | D13: 6 | G13: September | J13: Deep rooting crops (90 - 150 cm)
B14: Clay loam | C14: 36 | D14: 22 | G14: October
B15: Silty clay loam | C15: 38 | D15: 22 | G15: November | R15: Sandy soils have a low water-holding capacity. Irrigation has to be scheduled more frequently with smaller amounts of water.
B16: Silty clay | C16: 41 | D16: 27 | G16: December
B17: Clay | C17: 42 | D17: 30 | R17: Silty soils have a medium to high water-holding capacity. Irrigation can be scheduled less frequent with higher amounts of water.
R19: Clayey soils have a high water-holding capacity. Irrigation can be scheduled less frequent with high amounts of water.
K23: Shallow rooting crops | L23: Medium rooting crops | M23: Deep rooting crops
J24: Shallow and/or sandy soil | K24: 15 | L24: 30 | M24: 40
J25: Loamy soil | K25: 20 | L25: 40 | M25: 60
J26: Clayey soil | K26: 30 | L26: 50 | M26: 70
J37: Total crop growing days: | L37: ='Calculation Sheet Crop 1'!J10 -> 102.5
B38: Net Irrigation water depth (depending on soil & root profile): | F38: ='2 Crop Water Requirement'!C28 -> 15 | G38: mm | J38: Total water need [mm]: | L38: ='General Calculation'!R43 -> 254.2605768
B40: Total irrigation days required during crop growing period: | F40: =L38/F38 -> 16.95070512 | G40: days
B42: Interval: | F42: =ROUNDDOWN(L37/F40,0) -> 6 | G42: days
D45: January | E45: February | F45: March | G45: April | H45: May | I45: June | J45: July | K45: August | L45: September | M45: October | N45: November | O45: December
B46: Days under cropping: | D46: ='General Calculation'!E11 -> 0 | E46: ='General Calculation'!F11 -> 0 | F46: ='General Calculation'!G11 -> 5 | G46: ='General Calculation'!H11 -> 30 | H46: ='General Calculation'!I11 -> 31 | I46: ='General Calculation'!J11 -> 30 | J46: ='General Calculation'!K11 -> 11 | K46: ='General Calculation'!L11 -> 0 | L46: ='General Calculation'!M11 -> 0 | M46: ='General Calculation'!N11 -> 0 | N46: ='General Calculation'!O11 -> 0 | O46: ='General Calculation'!P11 -> 0
B47: Water need per month [mm]: | D47: ='General Calculation'!E43 -> 0 | E47: ='General Calculation'!F43 -> 0 | F47: ='General Calculation'!G43 -> 0 | G47: ='General Calculation'!H43 -> 0 | H47: ='General Calculation'!I43 -> 104.9058408 | I47: ='General Calculation'!J43 -> 136.929 | J47: ='General Calculation'!K43 -> 12.425736 | K47: ='General Calculation'!L43 -> 0 | L47: ='General Calculation'!M43 -> 0 | M47: ='General Calculation'!N43 -> 0 | N47: ='General Calculation'!O43 -> 0 | O47: ='General Calculation'!P43 -> 0
A48: Total irrigation days: | B48: Water need / Net irrigation depth | D48: =D47/$F$38 -> 0 | E48: =E47/$F$38 -> 0 | F48: =F47/$F$38 -> 0 | G48: 0 | H48: 6.99372272 | I48: =I47/$F$38 -> 9.1286 | J48: 0.8283824 | K48: 0 | L48: 0 | M48: 0 | N48: 0 | O48: 0
B49: Interval ( Days under cropping / Total irrigation days) | D49: =IFERROR(ROUNDDOWN(D46/D48,0),"") ->  | E49: =IFERROR(ROUNDDOWN(E46/E48,0),"") ->  | F49: =IFERROR(ROUNDDOWN(F46/F48,0),"") ->  | H49: 4 | I49: =IFERROR(ROUNDDOWN(I46/I48,0),"") -> 3 | J49: 13
B50: Interval ( improved without peaks) | D50: =IF(D49="","",IF(D49>$F$42,$F$42,D49)) ->  | E50: =IF(E49="","",IF(E49>$F$42,$F$42,E49)) ->  | G50: =IF(G49="","",IF(G49>$F$42,$F$42,G49)) ->  | H50: =IF(H49="","",IF(H49>$F$42,$F$42,H49)) -> 4 | I50: =IF(I49="","",IF(I49>$F$42,$F$42,I49)) -> 3 | J50: 6
B51: Irrigation water need per month [m³] | D51: ='General Calculation'!E45 -> 0 | E51: ='General Calculation'!F45 -> 0 | F51: ='General Calculation'!G45 -> 0 | G51: ='General Calculation'!H45 -> 0 | H51: ='General Calculation'!I45 -> 524.529204 | I51: ='General Calculation'!J45 -> 684.645 | J51: ='General Calculation'!K45 -> 62.12868 | K51: ='General Calculation'!L45 -> 0 | L51: ='General Calculation'!M45 -> 0 | M51: ='General Calculation'!N45 -> 0 | N51: ='General Calculation'!O45 -> 0 | O51: ='General Calculation'!P45 -> 0
B52: Irrigation water per application: | D52: =IFERROR(ROUND(D51/(D46/D50),0),"") ->  | E52: =IFERROR(ROUND(E51/(E46/E50),0),"") ->  | H52: 68 | I52: =IFERROR(ROUND(I51/(I46/I50),0),"") -> 68 | J52: 34
D58: Clay_Deep | E58: Clay_Medium | F58: Clay_No | G58: Clay_Shallow | H58: Sand_Deep | I58: Sand_Medium | J58: Sand_No | K58: Sand_Shallow | L58: Silt_Deep | M58: Silt_Medium | N58: Silt_No | O58: Silt_Shallow
D59: =IF(AND($I$3=4,$I$10=4),1,0) -> 0 | E59: =IF(AND($I$3=4,$I$10=3),1,0) -> 0 | F59: =IF(AND($I$3=4,$I$10=1),1,0) -> 0 | G59: =IF(AND($I$3=4,$I$10=2),1,0) -> 0 | H59: =IF(AND($I$3=2,$I$10=4),1,0) -> 0 | I59: =IF(AND($I$3=2,$I$10=3),1,0) -> 0 | J59: =IF(AND($I$3=2,$I$10=1),1,0) -> 0 | K59: =IF(AND($I$3=2,$I$10=2),1,0) -> 1 | L59: =IF(AND($I$3=3,$I$10=4),1,0) -> 0 | M59: =IF(AND($I$3=3,$I$10=3),1,0) -> 0 | N59: =IF(AND($I$3=3,$I$10=1),1,0) -> 0 | O59: =IF(AND($I$3=3,$I$10=2),1,0) -> 0

Sheet General Calculation (hidden)
B2: TRUE | C2: Crop 1 | D2: =IF('Calculation Sheet Crop 1'!B1=0,"",'Calculation Sheet Crop 1'!B1) -> Bean/dry | E2: =IF($B$2=TRUE,'Calculation Sheet Crop 1'!P6,NA()) -> 0 | F2: =IF($B$2=TRUE,'Calculation Sheet Crop 1'!Q6,NA()) -> 0 | G2: =IF($B$2=TRUE,'Calculation Sheet Crop 1'!R6,NA()) -> 9.46484 | H2: =IF($B$2=TRUE,'Calculation Sheet Crop 1'!S6,NA()) -> 84.157542 | I2: =IF($B$2=TRUE,'Calculation Sheet Crop 1'!T6,NA()) -> 150.261534 | J2: =IF($B$2=TRUE,'Calculation Sheet Crop 1'!U6,NA()) -> 126.9675 | K2: =IF($B$2=TRUE,'Calculation Sheet Crop 1'!V6,NA()) -> 16.55478 | L2: =IF($B$2=TRUE,'Calculation Sheet Crop 1'!W6,NA()) -> 0 | M2: =IF($B$2=TRUE,'Calculation Sheet Crop 1'!X6,NA()) -> 0 | N2: =IF($B$2=TRUE,'Calculation Sheet Crop 1'!Y6,NA()) -> 0 | O2: =IF($B$2=TRUE,'Calculation Sheet Crop 1'!Z6,NA()) -> 0 | P2: =IF($B$2=TRUE,'Calculation Sheet Crop 1'!AA6,NA()) -> 0 | Q2: =IF(B2=TRUE,IF(D2<>"",("1 - "&$A$80&D2&$A$81),""),"") -> 1 - Evapotranspiration Bean/dry [mm/month]
A7: Effective Rainfall | B7: TRUE | E7: =IF($B$7=TRUE,E23,NA()) -> 17 | F7: 9.8 | G7: 31.58 | H7: 89.24 | I7: 62.84 | J7: 12.86 | K7: 6.2 | L7: 2.96 | M7: 0.98 | N7: 18.98 | O7: 52.76 | P7: 43.88 | Q7: =IF(B7=TRUE,"Effective Rainfall [mm/month]","") -> Effective Rainfall [mm/month]
E9: January | F9: February | G9: March | H9: April | I9: May | J9: June | K9: July | L9: August | M9: September | N9: October | O9: November | P9: December
D10: Days/month | E10: 31 | F10: 28 | G10: 31 | H10: 30 | I10: 31 | J10: 30 | K10: 31 | L10: 31 | M10: 30 | N10: 31 | O10: 30 | P10: 31
D11: Days with crops: | E11: ='Calculation Sheet Crop 1'!P3296 -> 0 | F11: ='Calculation Sheet Crop 1'!Q3296 -> 0 | G11: ='Calculation Sheet Crop 1'!R3296 -> 5 | H11: ='Calculation Sheet Crop 1'!S3296 -> 30 | I11: ='Calculation Sheet Crop 1'!T3296 -> 31 | J11: ='Calculation Sheet Crop 1'!U3296 -> 30 | K11: ='Calculation Sheet Crop 1'!V3296 -> 11 | L11: ='Calculation Sheet Crop 1'!W3296 -> 0 | M11: ='Calculation Sheet Crop 1'!X3296 -> 0 | N11: ='Calculation Sheet Crop 1'!Y3296 -> 0 | O11: ='Calculation Sheet Crop 1'!Z3296 -> 0 | P11: ='Calculation Sheet Crop 1'!AA3296 -> 0
D12: ='1 Geographic Data'!A16 -> Mean daily temperature [°C]: | E12: ='1 Geographic Data'!B16 -> 25.5 | F12: ='1 Geographic Data'!C16 -> 25 | G12: ='1 Geographic Data'!D16 -> 24.6 | H12: ='1 Geographic Data'!E16 -> 23.8 | I12: ='1 Geographic Data'!F16 -> 23.9 | J12: ='1 Geographic Data'!G16 -> 23.5 | K12: ='1 Geographic Data'!H16 -> 23 | L12: ='1 Geographic Data'!I16 -> 23 | M12: ='1 Geographic Data'!J16 -> 23.6 | N12: ='1 Geographic Data'!K16 -> 23.9 | O12: ='1 Geographic Data'!L16 -> 23.6 | P12: ='1 Geographic Data'!M16 -> 23.8
D13: ='1 Geographic Data'!A17 -> Rainfall [mm/month]: | E13: ='1 Geographic Data'!B17 -> 45 | F13: ='1 Geographic Data'!C17 -> 33 | G13: ='1 Geographic Data'!D17 -> 69.3 | H13: ='1 Geographic Data'!E17 -> 142.8 | I13: ='1 Geographic Data'!F17 -> 109.8 | J13: ='1 Geographic Data'!G17 -> 38.1 | K13: ='1 Geographic Data'!H17 -> 27 | L13: ='1 Geographic Data'!I17 -> 21.6 | M13: ='1 Geographic Data'!J17 -> 18.3 | N13: ='1 Geographic Data'!K17 -> 48.3 | O13: ='1 Geographic Data'!L17 -> 97.2 | P13: ='1 Geographic Data'!M17 -> 86.1
A14: Evapotranspiration | C14: Crop 1 | D14: ='Calculation Sheet Crop 1'!B1 -> Bean/dry | E14: ='Calculation Sheet Crop 1'!P6 -> 0 | F14: ='Calculation Sheet Crop 1'!Q6 -> 0 | G14: ='Calculation Sheet Crop 1'!R6 -> 9.46484 | H14: ='Calculation Sheet Crop 1'!S6 -> 84.157542 | I14: ='Calculation Sheet Crop 1'!T6 -> 150.261534 | J14: ='Calculation Sheet Crop 1'!U6 -> 126.9675 | K14: ='Calculation Sheet Crop 1'!V6 -> 16.55478 | L14: ='Calculation Sheet Crop 1'!W6 -> 0 | M14: ='Calculation Sheet Crop 1'!X6 -> 0 | N14: ='Calculation Sheet Crop 1'!Y6 -> 0 | O14: ='Calculation Sheet Crop 1'!Z6 -> 0 | P14: ='Calculation Sheet Crop 1'!AA6 -> 0
D21: Daytime hours: | E21: =IF($Q$105=1,INDEX(E91:E103,$A$91),INDEX(E113:E125,$A$91)) -> 0.28 | F21: =IF($Q$105=1,INDEX(F91:F103,$A$91),INDEX(F113:F125,$A$91)) -> 0.28 | G21: 0.28 | H21: 0.27 | I21: 0.27 | J21: 0.27 | K21: 0.27 | L21: 0.27 | M21: 0.27 | N21: 0.28 | O21: 0.28 | P21: 0.28
D22: Reference Evapotranspiration | E22: =E21*(0.46*E12+8) -> 5.5244 | F22: =F21*(0.46*F12+8) -> 5.46 | G22: =G21*(0.46*G12+8) -> 5.40848 | H22: =H21*(0.46*H12+8) -> 5.11596 | I22: 5.12838 | J22: 5.0787 | K22: 5.0166 | L22: 5.0166 | M22: 5.09112 | N22: 5.31832 | O22: 5.27968 | P22: 5.30544
D23: Effective rainfall [mm/month]: | E23: =IF(IF(E13>75,(0.8*E13-25),(0.6*E13-10))<0,0,IF(E13>75,(0.8*E13-25),(0.6*E13-10))) -> 17 | F23: =IF(IF(F13>75,(0.8*F13-25),(0.6*F13-10))<0,0,IF(F13>75,(0.8*F13-25),(0.6*F13-10))) -> 9.8 | G23: =IF(IF(G13>75,(0.8*G13-25),(0.6*G13-10))<0,0,IF(G13>75,(0.8*G13-25),(0.6*G13-10))) -> 31.58 | H23: =IF(IF(H13>75,(0.8*H13-25),(0.6*H13-10))<0,0,IF(H13>75,(0.8*H13-25),(0.6*H13-10))) -> 89.24 | I23: =IF(IF(I13>75,(0.8*I13-25),(0.6*I13-10))<0,0,IF(I13>75,(0.8*I13-25),(0.6*I13-10))) -> 62.84 | J23: 12.86 | K23: 6.2 | L23: 2.96 | M23: 0.98 | N23: 18.98 | O23: 52.76 | P23: 43.88
A27: Water need [mm/month] | C27: Crop 1 | D27: ='Calculation Sheet Crop 1'!B1 -> Bean/dry | E27: =IF(E14-E$23<0,0,E14-E$23) -> 0 | F27: =IF(F14-F$23<0,0,F14-F$23) -> 0 | G27: 0 | H27: 0 | I27: 87.421534 | J27: 114.1075 | K27: 10.35478 | L27: 0 | M27: 0 | N27: 0 | O27: 0 | P27: 0
Q35: Area in ha | R35: Irrigation Method
A36: Water need [mm/day] | B36: =INDEX($C$60:$C$70,(R36+1)) -> 0.8 | C36: Crop 1 | D36: ='Calculation Sheet Crop 1'!B1 -> Bean/dry | E36: =E$27*(1+(1-$B36))/E$10 -> 0 | F36: 0 | G36: 0 | H36: 0 | I36: 3.384059381 | J36: 4.5643 | K36: 0.4008301935 | L36: 0 | M36: 0 | N36: 0 | O36: 0 | P36: 0 | Q36: ='2 Crop Water Requirement'!D19/'2 Crop Water Requirement'!E8 -> 0.5 | R36: 2 | S36: =INDEX($A$60:$A$70,(R36+1)) -> Micro Sprinkler
A42: Total irrigation water need [mm/day] | E42: =IFERROR(E36,0) -> 0 | F42: =IFERROR(F36,0) -> 0 | G42: 0 | H42: 0 | I42: 3.384059381 | J42: 4.5643 | K42: 0.4008301935 | L42: 0 | M42: 0 | N42: 0 | O42: 0 | P42: 0
A43: Total irrigation water need [mm/month] | E43: =E42*E10 -> 0 | F43: =F42*F10 -> 0 | G43: 0 | H43: 0 | I43: 104.9058408 | J43: 136.929 | K43: 12.425736 | L43: 0 | M43: 0 | N43: 0 | O43: 0 | P43: 0 | R43: =SUM(E43:P43) -> 254.2605768
A45: Total irrigation water need [m³/month] | E45: =E43*10*$Q$36 -> 0 | F45: =F43*10*$Q$36 -> 0 | G45: =G43*10*$Q$36 -> 0 | H45: =H43*10*$Q$36 -> 0 | I45: 524.529204 | J45: 684.645 | K45: 62.12868 | L45: 0 | M45: 0 | N45: 0 | O45: 0 | P45: 0
A58: Irrigation Methods
C60: 0
A61: Drip | C61: 0.9
A62: Micro Sprinkler | C62: 0.8
A63: Centre Pivot, Linear move | C63: 0.8
A64: Centre Pivot LEPA | C64: 0.85
A65: Flood: Piped supply | C65: 0.8
A66: Flood: Lined canal supplied | C66: 0.7
A67: Flood: Earth canal supplied | C67: 0.6
A68: Sprinkler (permanent) | C68: 0.75
A69: Sprinkler (movable) | C69: 0.7
A70: Traveling gun | C70: 0.65
A73: Crop Growing Periods: | C73: Efficiency of
A75: Minimum
A76: Maximum
A77: Average
A80: Evapotranspiration
A81: [mm/month]
D88: North
C89: Latitude | E89: Jan | F89: Feb | G89: Mar | H89: Apr | I89: May | J89: June | K89: July | L89: Aug | M89: Sept | N89: Oct | O89: Nov | P89: Dec
A91: =A92+1 -> 12 | C91: 60° | E91: 0.15 | F91: 0.2 | G91: 0.26 | H91: 0.32 | I91: 0.38 | J91: 0.41 | K91: 0.4 | L91: 0.34 | M91: 0.28 | N91: 0.22 | O91: 0.17 | P91: 0.13
A92: 11 | C92: 55° | E92: 0.17 | F92: 0.21 | G92: 0.26 | H92: 0.32 | I92: 0.36 | J92: 0.39 | K92: 0.38 | L92: 0.33 | M92: 0.28 | N92: 0.23 | O92: 0.18 | P92: 0.16
C93: 50° | E93: 0.19 | F93: 0.23 | G93: 0.27 | H93: 0.31 | I93: 0.34 | J93: 0.36 | K93: 0.35 | L93: 0.32 | M93: 0.28 | N93: 0.24 | O93: 0.2 | P93: 0.18
C94: 45° | E94: 0.2 | F94: 0.23 | G94: 0.27 | H94: 0.3 | I94: 0.34 | J94: 0.35 | K94: 0.34 | L94: 0.32 | M94: 0.28 | N94: 0.24 | O94: 0.21 | P94: 0.2
C95: 40° | E95: 0.22 | F95: 0.24 | G95: 0.27 | H95: 0.3 | I95: 0.32 | J95: 0.34 | K95: 0.33 | L95: 0.31 | M95: 0.28 | N95: 0.25 | O95: 0.22 | P95: 0.21
C96: 35° | E96: 0.23 | F96: 0.25 | G96: 0.27 | H96: 0.29 | I96: 0.31 | J96: 0.32 | K96: 0.32 | L96: 0.3 | M96: 0.28 | N96: 0.25 | O96: 0.23 | P96: 0.22
C97: 30° | E97: 0.24 | F97: 0.25 | G97: 0.27 | H97: 0.29 | I97: 0.31 | J97: 0.32 | K97: 0.31 | L97: 0.3 | M97: 0.28 | N97: 0.26 | O97: 0.24 | P97: 0.23
C98: 25° | E98: 0.24 | F98: 0.26 | G98: 0.27 | H98: 0.29 | I98: 0.3 | J98: 0.31 | K98: 0.31 | L98: 0.29 | M98: 0.28 | N98: 0.26 | O98: 0.25 | P98: 0.24
C99: 20° | E99: 0.25 | F99: 0.26 | G99: 0.27 | H99: 0.28 | I99: 0.29 | J99: 0.3 | K99: 0.3 | L99: 0.29 | M99: 0.28 | N99: 0.26 | O99: 0.25 | P99: 0.25
C100: 15° | E100: 0.26 | F100: 0.26 | G100: 0.27 | H100: 0.28 | I100: 0.29 | J100: 0.29 | K100: 0.29 | L100: 0.28 | M100: 0.28 | N100: 0.27 | O100: 0.26 | P100: 0.25
C101: 10° | E101: 0.26 | F101: 0.27 | G101: 0.27 | H101: 0.28 | I101: 0.28 | J101: 0.29 | K101: 0.29 | L101: 0.28 | M101: 0.28 | N101: 0.27 | O101: 0.26 | P101: 0.26
C102: 5° | E102: 0.27 | F102: 0.27 | G102: 0.27 | H102: 0.28 | I102: 0.28 | J102: 0.28 | K102: 0.28 | L102: 0.28 | M102: 0.28 | N102: 0.27 | O102: 0.27 | P102: 0.27
C103: 0° | E103: 0.27 | F103: 0.27 | G103: 0.27 | H103: 0.27 | I103: 0.27 | J103: 0.27 | K103: 0.27 | L103: 0.27 | M103: 0.27 | N103: 0.27 | O103: 0.27 | P103: 0.27
Q105: =Q106+1 -> 2 | R105: North | S105: =INDEX(R105:R106,Q105) -> South
Q106: 1 | R106: South | S106: =INDEX(C91:C103,A91) -> 5°
D110: South
C111: Latitude | E111: Jan | F111: Feb | G111: Mar | H111: Apr | I111: May | J111: June | K111: July | L111: Aug | M111: Sept | N111: Oct | O111: Nov | P111: Dec
C113: 60° | E113: 0.4 | F113: 0.34 | G113: 0.28 | H113: 0.22 | I113: 0.17 | J113: 0.13 | K113: 0.15 | L113: 0.2 | M113: 0.26 | N113: 0.32 | O113: 0.38 | P113: 0.41
C114: 55 | E114: 0.38 | F114: 0.33 | G114: 0.28 | H114: 0.23 | I114: 0.18 | J114: 0.16 | K114: 0.17 | L114: 0.21 | M114: 0.26 | N114: 0.32 | O114: 0.36 | P114: 0.39
C115: 50 | E115: 0.35 | F115: 0.32 | G115: 0.28 | H115: 0.24 | I115: 0.2 | J115: 0.18 | K115: 0.19 | L115: 0.23 | M115: 0.27 | N115: 0.31 | O115: 0.34 | P115: 0.36
C116: 45 | E116: 0.34 | F116: 0.32 | G116: 0.28 | H116: 0.24 | I116: 0.21 | J116: 0.2 | K116: 0.2 | L116: 0.23 | M116: 0.27 | N116: 0.3 | O116: 0.34 | P116: 0.35
C117: 40 | E117: 0.33 | F117: 0.31 | G117: 0.28 | H117: 0.25 | I117: 0.22 | J117: 0.21 | K117: 0.22 | L117: 0.24 | M117: 0.27 | N117: 0.3 | O117: 0.32 | P117: 0.34
C118: 35 | E118: 0.32 | F118: 0.3 | G118: 0.28 | H118: 0.25 | I118: 0.23 | J118: 0.22 | K118: 0.23 | L118: 0.25 | M118: 0.27 | N118: 0.29 | O118: 0.31 | P118: 0.32
C119: 30 | E119: 0.31 | F119: 0.3 | G119: 0.28 | H119: 0.26 | I119: 0.24 | J119: 0.23 | K119: 0.24 | L119: 0.25 | M119: 0.27 | N119: 0.29 | O119: 0.31 | P119: 0.32
C120: 25 | E120: 0.31 | F120: 0.29 | G120: 0.28 | H120: 0.26 | I120: 0.25 | J120: 0.24 | K120: 0.24 | L120: 0.26 | M120: 0.27 | N120: 0.29 | O120: 0.3 | P120: 0.31
C121: 20 | E121: 0.3 | F121: 0.29 | G121: 0.28 | H121: 0.26 | I121: 0.25 | J121: 0.25 | K121: 0.25 | L121: 0.26 | M121: 0.27 | N121: 0.28 | O121: 0.29 | P121: 0.3
C122: 15 | E122: 0.29 | F122: 0.28 | G122: 0.28 | H122: 0.27 | I122: 0.26 | J122: 0.25 | K122: 0.26 | L122: 0.26 | M122: 0.27 | N122: 0.28 | O122: 0.29 | P122: 0.29
C123: 10 | E123: 0.29 | F123: 0.28 | G123: 0.28 | H123: 0.27 | I123: 0.26 | J123: 0.26 | K123: 0.26 | L123: 0.27 | M123: 0.27 | N123: 0.28 | O123: 0.28 | P123: 0.29
C124: 5 | E124: 0.28 | F124: 0.28 | G124: 0.28 | H124: 0.27 | I124: 0.27 | J124: 0.27 | K124: 0.27 | L124: 0.27 | M124: 0.27 | N124: 0.28 | O124: 0.28 | P124: 0.28
C125: 0 | E125: 0.27 | F125: 0.27 | G125: 0.27 | H125: 0.27 | I125: 0.27 | J125: 0.27 | K125: 0.27 | L125: 0.27 | M125: 0.27 | N125: 0.27 | O125: 0.27 | P125: 0.27
R277: 1

Sheet Calculation Sheet Crop 1 (hidden)
A1: =A2+1 -> 4 | B1: =INDEX('Crop Information'!B8:B60,A1) -> Bean/dry | I1: 3 | J1: =(I1-1)*5 -> 10
A2: 3 | J2: =IFERROR(INDEX('General Calculation'!A75:A77,I1),"") -> Average
B5: Date | C5: Stage: | D5: ETo | E5: ='Calculation Sheet Crop 1'!M5 -> Crop Factor | F5: ETo x Kc | I5: =INDEX('Crop Information'!B8:B60,'Calculation Sheet Crop 1'!A1) &" [mm/month]" -> Bean/dry [mm/month] | J5: Days | K5: From | L5: To | M5: Crop Factor | P5: January | Q5: February | R5: March | S5: April | T5: May | U5: June | V5: July | W5: August | X5: September | Y5: October | Z5: November | AA5: December
I6: Initial stage: | J6: =INDEX('Crop Information'!$C$8:$U$49,$A$1,(2+$J$1)) -> 17.5 | K6: ='2 Crop Water Requirement'!G19 -> 2017-03-27 | L6: =K6+J6 -> 2017-04-13T12:00:00 | M6: =INDEX('Crop Information'!R8:R60,'Calculation Sheet Crop 1'!A1) -> 0.35 | O6: Sum: | P6: =SUM(P7:P3293) -> 0 | Q6: =SUM(Q7:Q3293) -> 0 | R6: 9.46484 | S6: 84.157542 | T6: 150.261534 | U6: 126.9675 | V6: 16.55478 | W6: 0 | X6: 0 | Y6: 0 | Z6: 0 | AA6: 0
B7: 2017-01-01 | C7: =IF(AND(B7>='Calculation Sheet Crop 1'!$K$6,B7<='Calculation Sheet Crop 1'!$L$6),"Initial Stage",IF(AND(B7+1>'Calculation Sheet Crop 1'!$K$7,B7<='Calculation Sheet Crop 1'!$L$7),"Crop Development Phase",IF(AND(B7+1>'Calculation Sheet Crop 1'!$K$8,B7<'Calculation Sheet Crop 1'!$L$8+1),"Mid Season",IF(AND(B7+1>'Calculation Sheet Crop 1'!$K$9,B7-1<'Calculation Sheet Crop 1'!$L$9),"Late Season Stage","")))) ->  | D7: =IF(MONTH(B7)=1,'General Calculation'!$E$22,IF(MONTH(B7)=2,'General Calculation'!$F$22,IF(MONTH(B7)=3,'General Calculation'!$G$22,IF(MONTH(B7)=4,'General Calculation'!$H$22,IF(MONTH(B7)=5,'General Calculation'!$I$22,IF(MONTH(B7)=6,'General Calculation'!$J$22,IF(MONTH(B7)=7,'General Calculation'!$K$22,IF(MONTH(B7)=8,'General Calculation'!$L$22,IF(MONTH(B7)=9,'General Calculation'!$M$22,IF(MONTH(B7)=10,'General Calculation'!$N$22,IF(MONTH(B7)=11,'General Calculation'!$O$22,IF(MONTH(B7)=12,'General Calculation'!$P$22,"")))))))))))) -> 5.5244 | E7: =IF(C7="Initial Stage",'Calculation Sheet Crop 1'!$M$6,IF(C7="Crop Development Phase",'Calculation Sheet Crop 1'!$M$7,IF(C7="Mid Season",'Calculation Sheet Crop 1'!$M$8,IF(C7="Late Season Stage",'Calculation Sheet Crop 1'!$M$9,"")))) ->  | F7: =IFERROR((D7*E7),0) -> 0 | I7: Crop development stage: | J7: =INDEX('Crop Information'!$C$8:$U$49,$A$1,(3+$J$1)) -> 27.5 | K7: =L6+1 -> 2017-04-14T12:00:00 | L7: =K7+J7 -> 2017-05-12 | M7: =INDEX('Crop Information'!S8:S60,'Calculation Sheet Crop 1'!A1) -> 0.7 | P7: =IF(MONTH($B7)=1,$F7,0) -> 0 | Q7: =IF(MONTH($B7)=2,$F7,0) -> 0 | R7: =IF(MONTH($B7)=3,$F7,0) -> 0 | S7: =IF(MONTH($B7)=4,$F7,0) -> 0 | T7: =IF(MONTH($B7)=5,$F7,0) -> 0 | U7: =IF(MONTH($B7)=6,$F7,0) -> 0 | V7: =IF(MONTH($B7)=7,$F7,0) -> 0 | W7: =IF(MONTH($B7)=8,$F7,0) -> 0 | X7: =IF(MONTH($B7)=9,$F7,0) -> 0 | Y7: =IF(MONTH($B7)=10,$F7,0) -> 0 | Z7: =IF(MONTH($B7)=11,$F7,0) -> 0 | AA7: =IF(MONTH($B7)=12,$F7,0) -> 0
B8: 2017-01-02 | C8: =IF(AND(B8>='Calculation Sheet Crop 1'!$K$6,B8<='Calculation Sheet Crop 1'!$L$6),"Initial Stage",IF(AND(B8+1>'Calculation Sheet Crop 1'!$K$7,B8<='Calculation Sheet Crop 1'!$L$7),"Crop Development Phase",IF(AND(B8+1>'Calculation Sheet Crop 1'!$K$8,B8<'Calculation Sheet Crop 1'!$L$8+1),"Mid Season",IF(AND(B8+1>'Calculation Sheet Crop 1'!$K$9,B8-1<'Calculation Sheet Crop 1'!$L$9),"Late Season Stage","")))) ->  | D8: =IF(MONTH(B8)=1,'General Calculation'!$E$22,IF(MONTH(B8)=2,'General Calculation'!$F$22,IF(MONTH(B8)=3,'General Calculation'!$G$22,IF(MONTH(B8)=4,'General Calculation'!$H$22,IF(MONTH(B8)=5,'General Calculation'!$I$22,IF(MONTH(B8)=6,'General Calculation'!$J$22,IF(MONTH(B8)=7,'General Calculation'!$K$22,IF(MONTH(B8)=8,'General Calculation'!$L$22,IF(MONTH(B8)=9,'General Calculation'!$M$22,IF(MONTH(B8)=10,'General Calculation'!$N$22,IF(MONTH(B8)=11,'General Calculation'!$O$22,IF(MONTH(B8)=12,'General Calculation'!$P$22,"")))))))))))) -> 5.5244 | E8: =IF(C8="Initial Stage",'Calculation Sheet Crop 1'!$M$6,IF(C8="Crop Development Phase",'Calculation Sheet Crop 1'!$M$7,IF(C8="Mid Season",'Calculation Sheet Crop 1'!$M$8,IF(C8="Late Season Stage",'Calculation Sheet Crop 1'!$M$9,"")))) ->  | F8: =IFERROR((D8*E8),0) -> 0 | I8: Mid season: | J8: =INDEX('Crop Information'!$C$8:$U$49,$A$1,(4+$J$1)) -> 37.5 | K8: =L7+1 -> 2017-05-13 | L8: =K8+J8 -> 2017-06-19T12:00:00 | M8: =INDEX('Crop Information'!T8:T60,'Calculation Sheet Crop 1'!A1) -> 1.1 | P8: =IF(MONTH($B8)=1,$F8,0) -> 0 | Q8: =IF(MONTH($B8)=2,$F8,0) -> 0 | R8: =IF(MONTH($B8)=3,$F8,0) -> 0 | S8: =IF(MONTH($B8)=4,$F8,0) -> 0 | T8: =IF(MONTH($B8)=5,$F8,0) -> 0 | U8: =IF(MONTH($B8)=6,$F8,0) -> 0 | V8: =IF(MONTH($B8)=7,$F8,0) -> 0 | W8: =IF(MONTH($B8)=8,$F8,0) -> 0 | X8: =IF(MONTH($B8)=9,$F8,0) -> 0 | Y8: =IF(MONTH($B8)=10,$F8,0) -> 0 | Z8: =IF(MONTH($B8)=11,$F8,0) -> 0 | AA8: =IF(MONTH($B8)=12,$F8,0) -> 0
B9: 2017-01-03 | C9: =IF(AND(B9>='Calculation Sheet Crop 1'!$K$6,B9<='Calculation Sheet Crop 1'!$L$6),"Initial Stage",IF(AND(B9+1>'Calculation Sheet Crop 1'!$K$7,B9<='Calculation Sheet Crop 1'!$L$7),"Crop Development Phase",IF(AND(B9+1>'Calculation Sheet Crop 1'!$K$8,B9<'Calculation Sheet Crop 1'!$L$8+1),"Mid Season",IF(AND(B9+1>'Calculation Sheet Crop 1'!$K$9,B9-1<'Calculation Sheet Crop 1'!$L$9),"Late Season Stage","")))) ->  | D9: =IF(MONTH(B9)=1,'General Calculation'!$E$22,IF(MONTH(B9)=2,'General Calculation'!$F$22,IF(MONTH(B9)=3,'General Calculation'!$G$22,IF(MONTH(B9)=4,'General Calculation'!$H$22,IF(MONTH(B9)=5,'General Calculation'!$I$22,IF(MONTH(B9)=6,'General Calculation'!$J$22,IF(MONTH(B9)=7,'General Calculation'!$K$22,IF(MONTH(B9)=8,'General Calculation'!$L$22,IF(MONTH(B9)=9,'General Calculation'!$M$22,IF(MONTH(B9)=10,'General Calculation'!$N$22,IF(MONTH(B9)=11,'General Calculation'!$O$22,IF(MONTH(B9)=12,'General Calculation'!$P$22,"")))))))))))) -> 5.5244 | E9: =IF(C9="Initial Stage",'Calculation Sheet Crop 1'!$M$6,IF(C9="Crop Development Phase",'Calculation Sheet Crop 1'!$M$7,IF(C9="Mid Season",'Calculation Sheet Crop 1'!$M$8,IF(C9="Late Season Stage",'Calculation Sheet Crop 1'!$M$9,"")))) ->  | F9: 0 | I9: Late season stage: | J9: =INDEX('Crop Information'!$C$8:$U$49,$A$1,(5+$J$1)) -> 20 | K9: =L8+1 -> 2017-06-20T12:00:00 | L9: =K9+J9 -> 2017-07-10T12:00:00 | M9: =INDEX('Crop Information'!U8:U60,'Calculation Sheet Crop 1'!A1) -> 0.3 | P9: 0 | Q9: 0 | R9: 0 | S9: 0 | T9: 0 | U9: 0 | V9: 0 | W9: 0 | X9: 0 | Y9: 0 | Z9: 0 | AA9: 0
B10: 2017-01-04 | C10: =IF(AND(B10>='Calculation Sheet Crop 1'!$K$6,B10<='Calculation Sheet Crop 1'!$L$6),"Initial Stage",IF(AND(B10+1>'Calculation Sheet Crop 1'!$K$7,B10<='Calculation Sheet Crop 1'!$L$7),"Crop Development Phase",IF(AND(B10+1>'Calculation Sheet Crop 1'!$K$8,B10<'Calculation Sheet Crop 1'!$L$8+1),"Mid Season",IF(AND(B10+1>'Calculation Sheet Crop 1'!$K$9,B10-1<'Calculation Sheet Crop 1'!$L$9),"Late Season Stage","")))) ->  | D10: =IF(MONTH(B10)=1,'General Calculation'!$E$22,IF(MONTH(B10)=2,'General Calculation'!$F$22,IF(MONTH(B10)=3,'General Calculation'!$G$22,IF(MONTH(B10)=4,'General Calculation'!$H$22,IF(MONTH(B10)=5,'General Calculation'!$I$22,IF(MONTH(B10)=6,'General Calculation'!$J$22,IF(MONTH(B10)=7,'General Calculation'!$K$22,IF(MONTH(B10)=8,'General Calculation'!$L$22,IF(MONTH(B10)=9,'General Calculation'!$M$22,IF(MONTH(B10)=10,'General Calculation'!$N$22,IF(MONTH(B10)=11,'General Calculation'!$O$22,IF(MONTH(B10)=12,'General Calculation'!$P$22,"")))))))))))) -> 5.5244 | E10: =IF(C10="Initial Stage",'Calculation Sheet Crop 1'!$M$6,IF(C10="Crop Development Phase",'Calculation Sheet Crop 1'!$M$7,IF(C10="Mid Season",'Calculation Sheet Crop 1'!$M$8,IF(C10="Late Season Stage",'Calculation Sheet Crop 1'!$M$9,"")))) ->  | F10: 0 | I10: Total growing days: | J10: =INDEX('Crop Information'!$C$8:$U$49,$A$1,(1+$J$1)) -> 102.5 | P10: 0 | Q10: 0 | R10: 0 | S10: 0 | T10: 0 | U10: 0 | V10: 0 | W10: 0 | X10: 0 | Y10: 0 | Z10: 0 | AA10: 0
B11: 2017-01-05 | C11: =IF(AND(B11>='Calculation Sheet Crop 1'!$K$6,B11<='Calculation Sheet Crop 1'!$L$6),"Initial Stage",IF(AND(B11+1>'Calculation Sheet Crop 1'!$K$7,B11<='Calculation Sheet Crop 1'!$L$7),"Crop Development Phase",IF(AND(B11+1>'Calculation Sheet Crop 1'!$K$8,B11<'Calculation Sheet Crop 1'!$L$8+1),"Mid Season",IF(AND(B11+1>'Calculation Sheet Crop 1'!$K$9,B11-1<'Calculation Sheet Crop 1'!$L$9),"Late Season Stage","")))) ->  | D11: =IF(MONTH(B11)=1,'General Calculation'!$E$22,IF(MONTH(B11)=2,'General Calculation'!$F$22,IF(MONTH(B11)=3,'General Calculation'!$G$22,IF(MONTH(B11)=4,'General Calculation'!$H$22,IF(MONTH(B11)=5,'General Calculation'!$I$22,IF(MONTH(B11)=6,'General Calculation'!$J$22,IF(MONTH(B11)=7,'General Calculation'!$K$22,IF(MONTH(B11)=8,'General Calculation'!$L$22,IF(MONTH(B11)=9,'General Calculation'!$M$22,IF(MONTH(B11)=10,'General Calculation'!$N$22,IF(MONTH(B11)=11,'General Calculation'!$O$22,IF(MONTH(B11)=12,'General Calculation'!$P$22,"")))))))))))) -> 5.5244 | E11: =IF(C11="Initial Stage",'Calculation Sheet Crop 1'!$M$6,IF(C11="Crop Development Phase",'Calculation Sheet Crop 1'!$M$7,IF(C11="Mid Season",'Calculation Sheet Crop 1'!$M$8,IF(C11="Late Season Stage",'Calculation Sheet Crop 1'!$M$9,"")))) ->  | F11: 0 | P11: 0 | Q11: 0 | R11: 0 | S11: 0 | T11: 0 | U11: 0 | V11: 0 | W11: 0 | X11: 0 | Y11: 0 | Z11: 0 | AA11: 0
B12: 2017-01-06 | C12: =IF(AND(B12>='Calculation Sheet Crop 1'!$K$6,B12<='Calculation Sheet Crop 1'!$L$6),"Initial Stage",IF(AND(B12+1>'Calculation Sheet Crop 1'!$K$7,B12<='Calculation Sheet Crop 1'!$L$7),"Crop Development Phase",IF(AND(B12+1>'Calculation Sheet Crop 1'!$K$8,B12<'Calculation Sheet Crop 1'!$L$8+1),"Mid Season",IF(AND(B12+1>'Calculation Sheet Crop 1'!$K$9,B12-1<'Calculation Sheet Crop 1'!$L$9),"Late Season Stage","")))) ->  | D12: =IF(MONTH(B12)=1,'General Calculation'!$E$22,IF(MONTH(B12)=2,'General Calculation'!$F$22,IF(MONTH(B12)=3,'General Calculation'!$G$22,IF(MONTH(B12)=4,'General Calculation'!$H$22,IF(MONTH(B12)=5,'General Calculation'!$I$22,IF(MONTH(B12)=6,'General Calculation'!$J$22,IF(MONTH(B12)=7,'General Calculation'!$K$22,IF(MONTH(B12)=8,'General Calculation'!$L$22,IF(MONTH(B12)=9,'General Calculation'!$M$22,IF(MONTH(B12)=10,'General Calculation'!$N$22,IF(MONTH(B12)=11,'General Calculation'!$O$22,IF(MONTH(B12)=12,'General Calculation'!$P$22,"")))))))))))) -> 5.5244 | E12: =IF(C12="Initial Stage",'Calculation Sheet Crop 1'!$M$6,IF(C12="Crop Development Phase",'Calculation Sheet Crop 1'!$M$7,IF(C12="Mid Season",'Calculation Sheet Crop 1'!$M$8,IF(C12="Late Season Stage",'Calculation Sheet Crop 1'!$M$9,"")))) ->  | F12: 0 | P12: 0 | Q12: 0 | R12: 0 | S12: 0 | T12: 0 | U12: 0 | V12: 0 | W12: 0 | X12: 0 | Y12: 0 | Z12: 0 | AA12: 0
B13: 2017-01-07 | C13: =IF(AND(B13>='Calculation Sheet Crop 1'!$K$6,B13<='Calculation Sheet Crop 1'!$L$6),"Initial Stage",IF(AND(B13+1>'Calculation Sheet Crop 1'!$K$7,B13<='Calculation Sheet Crop 1'!$L$7),"Crop Development Phase",IF(AND(B13+1>'Calculation Sheet Crop 1'!$K$8,B13<'Calculation Sheet Crop 1'!$L$8+1),"Mid Season",IF(AND(B13+1>'Calculation Sheet Crop 1'!$K$9,B13-1<'Calculation Sheet Crop 1'!$L$9),"Late Season Stage","")))) ->  | D13: =IF(MONTH(B13)=1,'General Calculation'!$E$22,IF(MONTH(B13)=2,'General Calculation'!$F$22,IF(MONTH(B13)=3,'General Calculation'!$G$22,IF(MONTH(B13)=4,'General Calculation'!$H$22,IF(MONTH(B13)=5,'General Calculation'!$I$22,IF(MONTH(B13)=6,'General Calculation'!$J$22,IF(MONTH(B13)=7,'General Calculation'!$K$22,IF(MONTH(B13)=8,'General Calculation'!$L$22,IF(MONTH(B13)=9,'General Calculation'!$M$22,IF(MONTH(B13)=10,'General Calculation'!$N$22,IF(MONTH(B13)=11,'General Calculation'!$O$22,IF(MONTH(B13)=12,'General Calculation'!$P$22,"")))))))))))) -> 5.5244 | E13: =IF(C13="Initial Stage",'Calculation Sheet Crop 1'!$M$6,IF(C13="Crop Development Phase",'Calculation Sheet Crop 1'!$M$7,IF(C13="Mid Season",'Calculation Sheet Crop 1'!$M$8,IF(C13="Late Season Stage",'Calculation Sheet Crop 1'!$M$9,"")))) ->  | F13: 0 | P13: 0 | Q13: 0 | R13: 0 | S13: 0 | T13: 0 | U13: 0 | V13: 0 | W13: 0 | X13: 0 | Y13: 0 | Z13: 0 | AA13: 0
B14: 2017-01-08 | C14: =IF(AND(B14>='Calculation Sheet Crop 1'!$K$6,B14<='Calculation Sheet Crop 1'!$L$6),"Initial Stage",IF(AND(B14+1>'Calculation Sheet Crop 1'!$K$7,B14<='Calculation Sheet Crop 1'!$L$7),"Crop Development Phase",IF(AND(B14+1>'Calculation Sheet Crop 1'!$K$8,B14<'Calculation Sheet Crop 1'!$L$8+1),"Mid Season",IF(AND(B14+1>'Calculation Sheet Crop 1'!$K$9,B14-1<'Calculation Sheet Crop 1'!$L$9),"Late Season Stage","")))) ->  | D14: =IF(MONTH(B14)=1,'General Calculation'!$E$22,IF(MONTH(B14)=2,'General Calculation'!$F$22,IF(MONTH(B14)=3,'General Calculation'!$G$22,IF(MONTH(B14)=4,'General Calculation'!$H$22,IF(MONTH(B14)=5,'General Calculation'!$I$22,IF(MONTH(B14)=6,'General Calculation'!$J$22,IF(MONTH(B14)=7,'General Calculation'!$K$22,IF(MONTH(B14)=8,'General Calculation'!$L$22,IF(MONTH(B14)=9,'General Calculation'!$M$22,IF(MONTH(B14)=10,'General Calculation'!$N$22,IF(MONTH(B14)=11,'General Calculation'!$O$22,IF(MONTH(B14)=12,'General Calculation'!$P$22,"")))))))))))) -> 5.5244 | E14: =IF(C14="Initial Stage",'Calculation Sheet Crop 1'!$M$6,IF(C14="Crop Development Phase",'Calculation Sheet Crop 1'!$M$7,IF(C14="Mid Season",'Calculation Sheet Crop 1'!$M$8,IF(C14="Late Season Stage",'Calculation Sheet Crop 1'!$M$9,"")))) ->  | F14: 0 | P14: 0 | Q14: 0 | R14: 0 | S14: 0 | T14: 0 | U14: 0 | V14: 0 | W14: 0 | X14: 0 | Y14: 0 | Z14: 0 | AA14: 0
B15: 2017-01-09 | C15: =IF(AND(B15>='Calculation Sheet Crop 1'!$K$6,B15<='Calculation Sheet Crop 1'!$L$6),"Initial Stage",IF(AND(B15+1>'Calculation Sheet Crop 1'!$K$7,B15<='Calculation Sheet Crop 1'!$L$7),"Crop Development Phase",IF(AND(B15+1>'Calculation Sheet Crop 1'!$K$8,B15<'Calculation Sheet Crop 1'!$L$8+1),"Mid Season",IF(AND(B15+1>'Calculation Sheet Crop 1'!$K$9,B15-1<'Calculation Sheet Crop 1'!$L$9),"Late Season Stage","")))) ->  | D15: =IF(MONTH(B15)=1,'General Calculation'!$E$22,IF(MONTH(B15)=2,'General Calculation'!$F$22,IF(MONTH(B15)=3,'General Calculation'!$G$22,IF(MONTH(B15)=4,'General Calculation'!$H$22,IF(MONTH(B15)=5,'General Calculation'!$I$22,IF(MONTH(B15)=6,'General Calculation'!$J$22,IF(MONTH(B15)=7,'General Calculation'!$K$22,IF(MONTH(B15)=8,'General Calculation'!$L$22,IF(MONTH(B15)=9,'General Calculation'!$M$22,IF(MONTH(B15)=10,'General Calculation'!$N$22,IF(MONTH(B15)=11,'General Calculation'!$O$22,IF(MONTH(B15)=12,'General Calculation'!$P$22,"")))))))))))) -> 5.5244 | E15: =IF(C15="Initial Stage",'Calculation Sheet Crop 1'!$M$6,IF(C15="Crop Development Phase",'Calculation Sheet Crop 1'!$M$7,IF(C15="Mid Season",'Calculation Sheet Crop 1'!$M$8,IF(C15="Late Season Stage",'Calculation Sheet Crop 1'!$M$9,"")))) ->  | F15: 0 | P15: 0 | Q15: 0 | R15: 0 | S15: 0 | T15: 0 | U15: 0 | V15: 0 | W15: 0 | X15: 0 | Y15: 0 | Z15: 0 | AA15: 0
B16: 2017-01-10 | C16: =IF(AND(B16>='Calculation Sheet Crop 1'!$K$6,B16<='Calculation Sheet Crop 1'!$L$6),"Initial Stage",IF(AND(B16+1>'Calculation Sheet Crop 1'!$K$7,B16<='Calculation Sheet Crop 1'!$L$7),"Crop Development Phase",IF(AND(B16+1>'Calculation Sheet Crop 1'!$K$8,B16<'Calculation Sheet Crop 1'!$L$8+1),"Mid Season",IF(AND(B16+1>'Calculation Sheet Crop 1'!$K$9,B16-1<'Calculation Sheet Crop 1'!$L$9),"Late Season Stage","")))) ->  | D16: =IF(MONTH(B16)=1,'General Calculation'!$E$22,IF(MONTH(B16)=2,'General Calculation'!$F$22,IF(MONTH(B16)=3,'General Calculation'!$G$22,IF(MONTH(B16)=4,'General Calculation'!$H$22,IF(MONTH(B16)=5,'General Calculation'!$I$22,IF(MONTH(B16)=6,'General Calculation'!$J$22,IF(MONTH(B16)=7,'General Calculation'!$K$22,IF(MONTH(B16)=8,'General Calculation'!$L$22,IF(MONTH(B16)=9,'General Calculation'!$M$22,IF(MONTH(B16)=10,'General Calculation'!$N$22,IF(MONTH(B16)=11,'General Calculation'!$O$22,IF(MONTH(B16)=12,'General Calculation'!$P$22,"")))))))))))) -> 5.5244 | E16: =IF(C16="Initial Stage",'Calculation Sheet Crop 1'!$M$6,IF(C16="Crop Development Phase",'Calculation Sheet Crop 1'!$M$7,IF(C16="Mid Season",'Calculation Sheet Crop 1'!$M$8,IF(C16="Late Season Stage",'Calculation Sheet Crop 1'!$M$9,"")))) ->  | F16: 0 | P16: 0 | Q16: 0 | R16: 0 | S16: 0 | T16: 0 | U16: 0 | V16: 0 | W16: 0 | X16: 0 | Y16: 0 | Z16: 0 | AA16: 0
B17: 2017-01-11 | C17: =IF(AND(B17>='Calculation Sheet Crop 1'!$K$6,B17<='Calculation Sheet Crop 1'!$L$6),"Initial Stage",IF(AND(B17+1>'Calculation Sheet Crop 1'!$K$7,B17<='Calculation Sheet Crop 1'!$L$7),"Crop Development Phase",IF(AND(B17+1>'Calculation Sheet Crop 1'!$K$8,B17<'Calculation Sheet Crop 1'!$L$8+1),"Mid Season",IF(AND(B17+1>'Calculation Sheet Crop 1'!$K$9,B17-1<'Calculation Sheet Crop 1'!$L$9),"Late Season Stage","")))) ->  | D17: =IF(MONTH(B17)=1,'General Calculation'!$E$22,IF(MONTH(B17)=2,'General Calculation'!$F$22,IF(MONTH(B17)=3,'General Calculation'!$G$22,IF(MONTH(B17)=4,'General Calculation'!$H$22,IF(MONTH(B17)=5,'General Calculation'!$I$22,IF(MONTH(B17)=6,'General Calculation'!$J$22,IF(MONTH(B17)=7,'General Calculation'!$K$22,IF(MONTH(B17)=8,'General Calculation'!$L$22,IF(MONTH(B17)=9,'General Calculation'!$M$22,IF(MONTH(B17)=10,'General Calculation'!$N$22,IF(MONTH(B17)=11,'General Calculation'!$O$22,IF(MONTH(B17)=12,'General Calculation'!$P$22,"")))))))))))) -> 5.5244 | E17: =IF(C17="Initial Stage",'Calculation Sheet Crop 1'!$M$6,IF(C17="Crop Development Phase",'Calculation Sheet Crop 1'!$M$7,IF(C17="Mid Season",'Calculation Sheet Crop 1'!$M$8,IF(C17="Late Season Stage",'Calculation Sheet Crop 1'!$M$9,"")))) ->  | F17: 0 | P17: 0 | Q17: 0 | R17: 0 | S17: 0 | T17: 0 | U17: 0 | V17: 0 | W17: 0 | X17: 0 | Y17: 0 | Z17: 0 | AA17: 0
B18: 2017-01-12 | C18: =IF(AND(B18>='Calculation Sheet Crop 1'!$K$6,B18<='Calculation Sheet Crop 1'!$L$6),"Initial Stage",IF(AND(B18+1>'Calculation Sheet Crop 1'!$K$7,B18<='Calculation Sheet Crop 1'!$L$7),"Crop Development Phase",IF(AND(B18+1>'Calculation Sheet Crop 1'!$K$8,B18<'Calculation Sheet Crop 1'!$L$8+1),"Mid Season",IF(AND(B18+1>'Calculation Sheet Crop 1'!$K$9,B18-1<'Calculation Sheet Crop 1'!$L$9),"Late Season Stage","")))) ->  | D18: =IF(MONTH(B18)=1,'General Calculation'!$E$22,IF(MONTH(B18)=2,'General Calculation'!$F$22,IF(MONTH(B18)=3,'General Calculation'!$G$22,IF(MONTH(B18)=4,'General Calculation'!$H$22,IF(MONTH(B18)=5,'General Calculation'!$I$22,IF(MONTH(B18)=6,'General Calculation'!$J$22,IF(MONTH(B18)=7,'General Calculation'!$K$22,IF(MONTH(B18)=8,'General Calculation'!$L$22,IF(MONTH(B18)=9,'General Calculation'!$M$22,IF(MONTH(B18)=10,'General Calculation'!$N$22,IF(MONTH(B18)=11,'General Calculation'!$O$22,IF(MONTH(B18)=12,'General Calculation'!$P$22,"")))))))))))) -> 5.5244 | E18: =IF(C18="Initial Stage",'Calculation Sheet Crop 1'!$M$6,IF(C18="Crop Development Phase",'Calculation Sheet Crop 1'!$M$7,IF(C18="Mid Season",'Calculation Sheet Crop 1'!$M$8,IF(C18="Late Season Stage",'Calculation Sheet Crop 1'!$M$9,"")))) ->  | F18: 0 | P18: 0 | Q18: 0 | R18: 0 | S18: 0 | T18: 0 | U18: 0 | V18: 0 | W18: 0 | X18: 0 | Y18: 0 | Z18: 0 | AA18: 0
B19: 2017-01-13 | C19: =IF(AND(B19>='Calculation Sheet Crop 1'!$K$6,B19<='Calculation Sheet Crop 1'!$L$6),"Initial Stage",IF(AND(B19+1>'Calculation Sheet Crop 1'!$K$7,B19<='Calculation Sheet Crop 1'!$L$7),"Crop Development Phase",IF(AND(B19+1>'Calculation Sheet Crop 1'!$K$8,B19<'Calculation Sheet Crop 1'!$L$8+1),"Mid Season",IF(AND(B19+1>'Calculation Sheet Crop 1'!$K$9,B19-1<'Calculation Sheet Crop 1'!$L$9),"Late Season Stage","")))) ->  | D19: =IF(MONTH(B19)=1,'General Calculation'!$E$22,IF(MONTH(B19)=2,'General Calculation'!$F$22,IF(MONTH(B19)=3,'General Calculation'!$G$22,IF(MONTH(B19)=4,'General Calculation'!$H$22,IF(MONTH(B19)=5,'General Calculation'!$I$22,IF(MONTH(B19)=6,'General Calculation'!$J$22,IF(MONTH(B19)=7,'General Calculation'!$K$22,IF(MONTH(B19)=8,'General Calculation'!$L$22,IF(MONTH(B19)=9,'General Calculation'!$M$22,IF(MONTH(B19)=10,'General Calculation'!$N$22,IF(MONTH(B19)=11,'General Calculation'!$O$22,IF(MONTH(B19)=12,'General Calculation'!$P$22,"")))))))))))) -> 5.5244 | E19: =IF(C19="Initial Stage",'Calculation Sheet Crop 1'!$M$6,IF(C19="Crop Development Phase",'Calculation Sheet Crop 1'!$M$7,IF(C19="Mid Season",'Calculation Sheet Crop 1'!$M$8,IF(C19="Late Season Stage",'Calculation Sheet Crop 1'!$M$9,"")))) ->  | F19: 0 | P19: 0 | Q19: 0 | R19: 0 | S19: 0 | T19: 0 | U19: 0 | V19: 0 | W19: 0 | X19: 0 | Y19: 0 | Z19: 0 | AA19: 0
B20: 2017-01-14 | C20: =IF(AND(B20>='Calculation Sheet Crop 1'!$K$6,B20<='Calculation Sheet Crop 1'!$L$6),"Initial Stage",IF(AND(B20+1>'Calculation Sheet Crop 1'!$K$7,B20<='Calculation Sheet Crop 1'!$L$7),"Crop Development Phase",IF(AND(B20+1>'Calculation Sheet Crop 1'!$K$8,B20<'Calculation Sheet Crop 1'!$L$8+1),"Mid Season",IF(AND(B20+1>'Calculation Sheet Crop 1'!$K$9,B20-1<'Calculation Sheet Crop 1'!$L$9),"Late Season Stage","")))) ->  | D20: =IF(MONTH(B20)=1,'General Calculation'!$E$22,IF(MONTH(B20)=2,'General Calculation'!$F$22,IF(MONTH(B20)=3,'General Calculation'!$G$22,IF(MONTH(B20)=4,'General Calculation'!$H$22,IF(MONTH(B20)=5,'General Calculation'!$I$22,IF(MONTH(B20)=6,'General Calculation'!$J$22,IF(MONTH(B20)=7,'General Calculation'!$K$22,IF(MONTH(B20)=8,'General Calculation'!$L$22,IF(MONTH(B20)=9,'General Calculation'!$M$22,IF(MONTH(B20)=10,'General Calculation'!$N$22,IF(MONTH(B20)=11,'General Calculation'!$O$22,IF(MONTH(B20)=12,'General Calculation'!$P$22,"")))))))))))) -> 5.5244 | E20: =IF(C20="Initial Stage",'Calculation Sheet Crop 1'!$M$6,IF(C20="Crop Development Phase",'Calculation Sheet Crop 1'!$M$7,IF(C20="Mid Season",'Calculation Sheet Crop 1'!$M$8,IF(C20="Late Season Stage",'Calculation Sheet Crop 1'!$M$9,"")))) ->  | F20: 0 | P20: 0 | Q20: 0 | R20: 0 | S20: 0 | T20: 0 | U20: 0 | V20: 0 | W20: 0 | X20: 0 | Y20: 0 | Z20: 0 | AA20: 0
B21: 2017-01-15 | C21: =IF(AND(B21>='Calculation Sheet Crop 1'!$K$6,B21<='Calculation Sheet Crop 1'!$L$6),"Initial Stage",IF(AND(B21+1>'Calculation Sheet Crop 1'!$K$7,B21<='Calculation Sheet Crop 1'!$L$7),"Crop Development Phase",IF(AND(B21+1>'Calculation Sheet Crop 1'!$K$8,B21<'Calculation Sheet Crop 1'!$L$8+1),"Mid Season",IF(AND(B21+1>'Calculation Sheet Crop 1'!$K$9,B21-1<'Calculation Sheet Crop 1'!$L$9),"Late Season Stage","")))) ->  | D21: =IF(MONTH(B21)=1,'General Calculation'!$E$22,IF(MONTH(B21)=2,'General Calculation'!$F$22,IF(MONTH(B21)=3,'General Calculation'!$G$22,IF(MONTH(B21)=4,'General Calculation'!$H$22,IF(MONTH(B21)=5,'General Calculation'!$I$22,IF(MONTH(B21)=6,'General Calculation'!$J$22,IF(MONTH(B21)=7,'General Calculation'!$K$22,IF(MONTH(B21)=8,'General Calculation'!$L$22,IF(MONTH(B21)=9,'General Calculation'!$M$22,IF(MONTH(B21)=10,'General Calculation'!$N$22,IF(MONTH(B21)=11,'General Calculation'!$O$22,IF(MONTH(B21)=12,'General Calculation'!$P$22,"")))))))))))) -> 5.5244 | E21: =IF(C21="Initial Stage",'Calculation Sheet Crop 1'!$M$6,IF(C21="Crop Development Phase",'Calculation Sheet Crop 1'!$M$7,IF(C21="Mid Season",'Calculation Sheet Crop 1'!$M$8,IF(C21="Late Season Stage",'Calculation Sheet Crop 1'!$M$9,"")))) ->  | F21: 0 | P21: 0 | Q21: 0 | R21: 0 | S21: 0 | T21: 0 | U21: 0 | V21: 0 | W21: 0 | X21: 0 | Y21: 0 | Z21: 0 | AA21: 0
B22: 2017-01-16 | C22: =IF(AND(B22>='Calculation Sheet Crop 1'!$K$6,B22<='Calculation Sheet Crop 1'!$L$6),"Initial Stage",IF(AND(B22+1>'Calculation Sheet Crop 1'!$K$7,B22<='Calculation Sheet Crop 1'!$L$7),"Crop Development Phase",IF(AND(B22+1>'Calculation Sheet Crop 1'!$K$8,B22<'Calculation Sheet Crop 1'!$L$8+1),"Mid Season",IF(AND(B22+1>'Calculation Sheet Crop 1'!$K$9,B22-1<'Calculation Sheet Crop 1'!$L$9),"Late Season Stage","")))) ->  | D22: =IF(MONTH(B22)=1,'General Calculation'!$E$22,IF(MONTH(B22)=2,'General Calculation'!$F$22,IF(MONTH(B22)=3,'General Calculation'!$G$22,IF(MONTH(B22)=4,'General Calculation'!$H$22,IF(MONTH(B22)=5,'General Calculation'!$I$22,IF(MONTH(B22)=6,'General Calculation'!$J$22,IF(MONTH(B22)=7,'General Calculation'!$K$22,IF(MONTH(B22)=8,'General Calculation'!$L$22,IF(MONTH(B22)=9,'General Calculation'!$M$22,IF(MONTH(B22)=10,'General Calculation'!$N$22,IF(MONTH(B22)=11,'General Calculation'!$O$22,IF(MONTH(B22)=12,'General Calculation'!$P$22,"")))))))))))) -> 5.5244 | E22: =IF(C22="Initial Stage",'Calculation Sheet Crop 1'!$M$6,IF(C22="Crop Development Phase",'Calculation Sheet Crop 1'!$M$7,IF(C22="Mid Season",'Calculation Sheet Crop 1'!$M$8,IF(C22="Late Season Stage",'Calculation Sheet Crop 1'!$M$9,"")))) ->  | F22: 0 | P22: 0 | Q22: 0 | R22: 0 | S22: 0 | T22: 0 | U22: 0 | V22: 0 | W22: 0 | X22: 0 | Y22: 0 | Z22: 0 | AA22: 0
B23: 2017-01-17 | C23: =IF(AND(B23>='Calculation Sheet Crop 1'!$K$6,B23<='Calculation Sheet Crop 1'!$L$6),"Initial Stage",IF(AND(B23+1>'Calculation Sheet Crop 1'!$K$7,B23<='Calculation Sheet Crop 1'!$L$7),"Crop Development Phase",IF(AND(B23+1>'Calculation Sheet Crop 1'!$K$8,B23<'Calculation Sheet Crop 1'!$L$8+1),"Mid Season",IF(AND(B23+1>'Calculation Sheet Crop 1'!$K$9,B23-1<'Calculation Sheet Crop 1'!$L$9),"Late Season Stage","")))) ->  | D23: =IF(MONTH(B23)=1,'General Calculation'!$E$22,IF(MONTH(B23)=2,'General Calculation'!$F$22,IF(MONTH(B23)=3,'General Calculation'!$G$22,IF(MONTH(B23)=4,'General Calculation'!$H$22,IF(MONTH(B23)=5,'General Calculation'!$I$22,IF(MONTH(B23)=6,'General Calculation'!$J$22,IF(MONTH(B23)=7,'General Calculation'!$K$22,IF(MONTH(B23)=8,'General Calculation'!$L$22,IF(MONTH(B23)=9,'General Calculation'!$M$22,IF(MONTH(B23)=10,'General Calculation'!$N$22,IF(MONTH(B23)=11,'General Calculation'!$O$22,IF(MONTH(B23)=12,'General Calculation'!$P$22,"")))))))))))) -> 5.5244 | E23: =IF(C23="Initial Stage",'Calculation Sheet Crop 1'!$M$6,IF(C23="Crop Development Phase",'Calculation Sheet Crop 1'!$M$7,IF(C23="Mid Season",'Calculation Sheet Crop 1'!$M$8,IF(C23="Late Season Stage",'Calculation Sheet Crop 1'!$M$9,"")))) ->  | F23: 0 | P23: 0 | Q23: 0 | R23: 0 | S23: 0 | T23: 0 | U23: 0 | V23: 0 | W23: 0 | X23: 0 | Y23: 0 | Z23: 0 | AA23: 0
B24: 2017-01-18 | C24: =IF(AND(B24>='Calculation Sheet Crop 1'!$K$6,B24<='Calculation Sheet Crop 1'!$L$6),"Initial Stage",IF(AND(B24+1>'Calculation Sheet Crop 1'!$K$7,B24<='Calculation Sheet Crop 1'!$L$7),"Crop Development Phase",IF(AND(B24+1>'Calculation Sheet Crop 1'!$K$8,B24<'Calculation Sheet Crop 1'!$L$8+1),"Mid Season",IF(AND(B24+1>'Calculation Sheet Crop 1'!$K$9,B24-1<'Calculation Sheet Crop 1'!$L$9),"Late Season Stage","")))) ->  | D24: =IF(MONTH(B24)=1,'General Calculation'!$E$22,IF(MONTH(B24)=2,'General Calculation'!$F$22,IF(MONTH(B24)=3,'General Calculation'!$G$22,IF(MONTH(B24)=4,'General Calculation'!$H$22,IF(MONTH(B24)=5,'General Calculation'!$I$22,IF(MONTH(B24)=6,'General Calculation'!$J$22,IF(MONTH(B24)=7,'General Calculation'!$K$22,IF(MONTH(B24)=8,'General Calculation'!$L$22,IF(MONTH(B24)=9,'General Calculation'!$M$22,IF(MONTH(B24)=10,'General Calculation'!$N$22,IF(MONTH(B24)=11,'General Calculation'!$O$22,IF(MONTH(B24)=12,'General Calculation'!$P$22,"")))))))))))) -> 5.5244 | E24: =IF(C24="Initial Stage",'Calculation Sheet Crop 1'!$M$6,IF(C24="Crop Development Phase",'Calculation Sheet Crop 1'!$M$7,IF(C24="Mid Season",'Calculation Sheet Crop 1'!$M$8,IF(C24="Late Season Stage",'Calculation Sheet Crop 1'!$M$9,"")))) ->  | F24: 0 | P24: 0 | Q24: 0 | R24: 0 | S24: 0 | T24: 0 | U24: 0 | V24: 0 | W24: 0 | X24: 0 | Y24: 0 | Z24: 0 | AA24: 0
B25: 2017-01-19 | C25: =IF(AND(B25>='Calculation Sheet Crop 1'!$K$6,B25<='Calculation Sheet Crop 1'!$L$6),"Initial Stage",IF(AND(B25+1>'Calculation Sheet Crop 1'!$K$7,B25<='Calculation Sheet Crop 1'!$L$7),"Crop Development Phase",IF(AND(B25+1>'Calculation Sheet Crop 1'!$K$8,B25<'Calculation Sheet Crop 1'!$L$8+1),"Mid Season",IF(AND(B25+1>'Calculation Sheet Crop 1'!$K$9,B25-1<'Calculation Sheet Crop 1'!$L$9),"Late Season Stage","")))) ->  | D25: =IF(MONTH(B25)=1,'General Calculation'!$E$22,IF(MONTH(B25)=2,'General Calculation'!$F$22,IF(MONTH(B25)=3,'General Calculation'!$G$22,IF(MONTH(B25)=4,'General Calculation'!$H$22,IF(MONTH(B25)=5,'General Calculation'!$I$22,IF(MONTH(B25)=6,'General Calculation'!$J$22,IF(MONTH(B25)=7,'General Calculation'!$K$22,IF(MONTH(B25)=8,'General Calculation'!$L$22,IF(MONTH(B25)=9,'General Calculation'!$M$22,IF(MONTH(B25)=10,'General Calculation'!$N$22,IF(MONTH(B25)=11,'General Calculation'!$O$22,IF(MONTH(B25)=12,'General Calculation'!$P$22,"")))))))))))) -> 5.5244 | E25: =IF(C25="Initial Stage",'Calculation Sheet Crop 1'!$M$6,IF(C25="Crop Development Phase",'Calculation Sheet Crop 1'!$M$7,IF(C25="Mid Season",'Calculation Sheet Crop 1'!$M$8,IF(C25="Late Season Stage",'Calculation Sheet Crop 1'!$M$9,"")))) ->  | F25: 0 | P25: 0 | Q25: 0 | R25: 0 | S25: 0 | T25: 0 | U25: 0 | V25: 0 | W25: 0 | X25: 0 | Y25: 0 | Z25: 0 | AA25: 0
B26: 2017-01-20 | C26: =IF(AND(B26>='Calculation Sheet Crop 1'!$K$6,B26<='Calculation Sheet Crop 1'!$L$6),"Initial Stage",IF(AND(B26+1>'Calculation Sheet Crop 1'!$K$7,B26<='Calculation Sheet Crop 1'!$L$7),"Crop Development Phase",IF(AND(B26+1>'Calculation Sheet Crop 1'!$K$8,B26<'Calculation Sheet Crop 1'!$L$8+1),"Mid Season",IF(AND(B26+1>'Calculation Sheet Crop 1'!$K$9,B26-1<'Calculation Sheet Crop 1'!$L$9),"Late Season Stage","")))) ->  | D26: =IF(MONTH(B26)=1,'General Calculation'!$E$22,IF(MONTH(B26)=2,'General Calculation'!$F$22,IF(MONTH(B26)=3,'General Calculation'!$G$22,IF(MONTH(B26)=4,'General Calculation'!$H$22,IF(MONTH(B26)=5,'General Calculation'!$I$22,IF(MONTH(B26)=6,'General Calculation'!$J$22,IF(MONTH(B26)=7,'General Calculation'!$K$22,IF(MONTH(B26)=8,'General Calculation'!$L$22,IF(MONTH(B26)=9,'General Calculation'!$M$22,IF(MONTH(B26)=10,'General Calculation'!$N$22,IF(MONTH(B26)=11,'General Calculation'!$O$22,IF(MONTH(B26)=12,'General Calculation'!$P$22,"")))))))))))) -> 5.5244 | E26: =IF(C26="Initial Stage",'Calculation Sheet Crop 1'!$M$6,IF(C26="Crop Development Phase",'Calculation Sheet Crop 1'!$M$7,IF(C26="Mid Season",'Calculation Sheet Crop 1'!$M$8,IF(C26="Late Season Stage",'Calculation Sheet Crop 1'!$M$9,"")))) ->  | F26: 0 | P26: 0 | Q26: 0 | R26: 0 | S26: 0 | T26: 0 | U26: 0 | V26: 0 | W26: 0 | X26: 0 | Y26: 0 | Z26: 0 | AA26: 0
B27: 2017-01-21 | C27: =IF(AND(B27>='Calculation Sheet Crop 1'!$K$6,B27<='Calculation Sheet Crop 1'!$L$6),"Initial Stage",IF(AND(B27+1>'Calculation Sheet Crop 1'!$K$7,B27<='Calculation Sheet Crop 1'!$L$7),"Crop Development Phase",IF(AND(B27+1>'Calculation Sheet Crop 1'!$K$8,B27<'Calculation Sheet Crop 1'!$L$8+1),"Mid Season",IF(AND(B27+1>'Calculation Sheet Crop 1'!$K$9,B27-1<'Calculation Sheet Crop 1'!$L$9),"Late Season Stage","")))) ->  | D27: =IF(MONTH(B27)=1,'General Calculation'!$E$22,IF(MONTH(B27)=2,'General Calculation'!$F$22,IF(MONTH(B27)=3,'General Calculation'!$G$22,IF(MONTH(B27)=4,'General Calculation'!$H$22,IF(MONTH(B27)=5,'General Calculation'!$I$22,IF(MONTH(B27)=6,'General Calculation'!$J$22,IF(MONTH(B27)=7,'General Calculation'!$K$22,IF(MONTH(B27)=8,'General Calculation'!$L$22,IF(MONTH(B27)=9,'General Calculation'!$M$22,IF(MONTH(B27)=10,'General Calculation'!$N$22,IF(MONTH(B27)=11,'General Calculation'!$O$22,IF(MONTH(B27)=12,'General Calculation'!$P$22,"")))))))))))) -> 5.5244 | E27: =IF(C27="Initial Stage",'Calculation Sheet Crop 1'!$M$6,IF(C27="Crop Development Phase",'Calculation Sheet Crop 1'!$M$7,IF(C27="Mid Season",'Calculation Sheet Crop 1'!$M$8,IF(C27="Late Season Stage",'Calculation Sheet Crop 1'!$M$9,"")))) ->  | F27: 0 | P27: 0 | Q27: 0 | R27: 0 | S27: 0 | T27: 0 | U27: 0 | V27: 0 | W27: 0 | X27: 0 | Y27: 0 | Z27: 0 | AA27: 0
B28: 2017-01-22 | C28: =IF(AND(B28>='Calculation Sheet Crop 1'!$K$6,B28<='Calculation Sheet Crop 1'!$L$6),"Initial Stage",IF(AND(B28+1>'Calculation Sheet Crop 1'!$K$7,B28<='Calculation Sheet Crop 1'!$L$7),"Crop Development Phase",IF(AND(B28+1>'Calculation Sheet Crop 1'!$K$8,B28<'Calculation Sheet Crop 1'!$L$8+1),"Mid Season",IF(AND(B28+1>'Calculation Sheet Crop 1'!$K$9,B28-1<'Calculation Sheet Crop 1'!$L$9),"Late Season Stage","")))) ->  | D28: =IF(MONTH(B28)=1,'General Calculation'!$E$22,IF(MONTH(B28)=2,'General Calculation'!$F$22,IF(MONTH(B28)=3,'General Calculation'!$G$22,IF(MONTH(B28)=4,'General Calculation'!$H$22,IF(MONTH(B28)=5,'General Calculation'!$I$22,IF(MONTH(B28)=6,'General Calculation'!$J$22,IF(MONTH(B28)=7,'General Calculation'!$K$22,IF(MONTH(B28)=8,'General Calculation'!$L$22,IF(MONTH(B28)=9,'General Calculation'!$M$22,IF(MONTH(B28)=10,'General Calculation'!$N$22,IF(MONTH(B28)=11,'General Calculation'!$O$22,IF(MONTH(B28)=12,'General Calculation'!$P$22,"")))))))))))) -> 5.5244 | E28: =IF(C28="Initial Stage",'Calculation Sheet Crop 1'!$M$6,IF(C28="Crop Development Phase",'Calculation Sheet Crop 1'!$M$7,IF(C28="Mid Season",'Calculation Sheet Crop 1'!$M$8,IF(C28="Late Season Stage",'Calculation Sheet Crop 1'!$M$9,"")))) ->  | F28: 0 | P28: 0 | Q28: 0 | R28: 0 | S28: 0 | T28: 0 | U28: 0 | V28: 0 | W28: 0 | X28: 0 | Y28: 0 | Z28: 0 | AA28: 0
B29: 2017-01-23 | C29: =IF(AND(B29>='Calculation Sheet Crop 1'!$K$6,B29<='Calculation Sheet Crop 1'!$L$6),"Initial Stage",IF(AND(B29+1>'Calculation Sheet Crop 1'!$K$7,B29<='Calculation Sheet Crop 1'!$L$7),"Crop Development Phase",IF(AND(B29+1>'Calculation Sheet Crop 1'!$K$8,B29<'Calculation Sheet Crop 1'!$L$8+1),"Mid Season",IF(AND(B29+1>'Calculation Sheet Crop 1'!$K$9,B29-1<'Calculation Sheet Crop 1'!$L$9),"Late Season Stage","")))) ->  | D29: =IF(MONTH(B29)=1,'General Calculation'!$E$22,IF(MONTH(B29)=2,'General Calculation'!$F$22,IF(MONTH(B29)=3,'General Calculation'!$G$22,IF(MONTH(B29)=4,'General Calculation'!$H$22,IF(MONTH(B29)=5,'General Calculation'!$I$22,IF(MONTH(B29)=6,'General Calculation'!$J$22,IF(MONTH(B29)=7,'General Calculation'!$K$22,IF(MONTH(B29)=8,'General Calculation'!$L$22,IF(MONTH(B29)=9,'General Calculation'!$M$22,IF(MONTH(B29)=10,'General Calculation'!$N$22,IF(MONTH(B29)=11,'General Calculation'!$O$22,IF(MONTH(B29)=12,'General Calculation'!$P$22,"")))))))))))) -> 5.5244 | E29: =IF(C29="Initial Stage",'Calculation Sheet Crop 1'!$M$6,IF(C29="Crop Development Phase",'Calculation Sheet Crop 1'!$M$7,IF(C29="Mid Season",'Calculation Sheet Crop 1'!$M$8,IF(C29="Late Season Stage",'Calculation Sheet Crop 1'!$M$9,"")))) ->  | F29: 0 | P29: 0 | Q29: 0 | R29: 0 | S29: 0 | T29: 0 | U29: 0 | V29: 0 | W29: 0 | X29: 0 | Y29: 0 | Z29: 0 | AA29: 0
B30: 2017-01-24 | C30: =IF(AND(B30>='Calculation Sheet Crop 1'!$K$6,B30<='Calculation Sheet Crop 1'!$L$6),"Initial Stage",IF(AND(B30+1>'Calculation Sheet Crop 1'!$K$7,B30<='Calculation Sheet Crop 1'!$L$7),"Crop Development Phase",IF(AND(B30+1>'Calculation Sheet Crop 1'!$K$8,B30<'Calculation Sheet Crop 1'!$L$8+1),"Mid Season",IF(AND(B30+1>'Calculation Sheet Crop 1'!$K$9,B30-1<'Calculation Sheet Crop 1'!$L$9),"Late Season Stage","")))) ->  | D30: =IF(MONTH(B30)=1,'General Calculation'!$E$22,IF(MONTH(B30)=2,'General Calculation'!$F$22,IF(MONTH(B30)=3,'General Calculation'!$G$22,IF(MONTH(B30)=4,'General Calculation'!$H$22,IF(MONTH(B30)=5,'General Calculation'!$I$22,IF(MONTH(B30)=6,'General Calculation'!$J$22,IF(MONTH(B30)=7,'General Calculation'!$K$22,IF(MONTH(B30)=8,'General Calculation'!$L$22,IF(MONTH(B30)=9,'General Calculation'!$M$22,IF(MONTH(B30)=10,'General Calculation'!$N$22,IF(MONTH(B30)=11,'General Calculation'!$O$22,IF(MONTH(B30)=12,'General Calculation'!$P$22,"")))))))))))) -> 5.5244 | E30: =IF(C30="Initial Stage",'Calculation Sheet Crop 1'!$M$6,IF(C30="Crop Development Phase",'Calculation Sheet Crop 1'!$M$7,IF(C30="Mid Season",'Calculation Sheet Crop 1'!$M$8,IF(C30="Late Season Stage",'Calculation Sheet Crop 1'!$M$9,"")))) ->  | F30: 0 | P30: 0 | Q30: 0 | R30: 0 | S30: 0 | T30: 0 | U30: 0 | V30: 0 | W30: 0 | X30: 0 | Y30: 0 | Z30: 0 | AA30: 0
B31: 2017-01-25 | C31: =IF(AND(B31>='Calculation Sheet Crop 1'!$K$6,B31<='Calculation Sheet Crop 1'!$L$6),"Initial Stage",IF(AND(B31+1>'Calculation Sheet Crop 1'!$K$7,B31<='Calculation Sheet Crop 1'!$L$7),"Crop Development Phase",IF(AND(B31+1>'Calculation Sheet Crop 1'!$K$8,B31<'Calculation Sheet Crop 1'!$L$8+1),"Mid Season",IF(AND(B31+1>'Calculation Sheet Crop 1'!$K$9,B31-1<'Calculation Sheet Crop 1'!$L$9),"Late Season Stage","")))) ->  | D31: =IF(MONTH(B31)=1,'General Calculation'!$E$22,IF(MONTH(B31)=2,'General Calculation'!$F$22,IF(MONTH(B31)=3,'General Calculation'!$G$22,IF(MONTH(B31)=4,'General Calculation'!$H$22,IF(MONTH(B31)=5,'General Calculation'!$I$22,IF(MONTH(B31)=6,'General Calculation'!$J$22,IF(MONTH(B31)=7,'General Calculation'!$K$22,IF(MONTH(B31)=8,'General Calculation'!$L$22,IF(MONTH(B31)=9,'General Calculation'!$M$22,IF(MONTH(B31)=10,'General Calculation'!$N$22,IF(MONTH(B31)=11,'General Calculation'!$O$22,IF(MONTH(B31)=12,'General Calculation'!$P$22,"")))))))))))) -> 5.5244 | E31: =IF(C31="Initial Stage",'Calculation Sheet Crop 1'!$M$6,IF(C31="Crop Development Phase",'Calculation Sheet Crop 1'!$M$7,IF(C31="Mid Season",'Calculation Sheet Crop 1'!$M$8,IF(C31="Late Season Stage",'Calculation Sheet Crop 1'!$M$9,"")))) ->  | F31: 0 | P31: 0 | Q31: 0 | R31: 0 | S31: 0 | T31: 0 | U31: 0 | V31: 0 | W31: 0 | X31: 0 | Y31: 0 | Z31: 0 | AA31: 0
B32: 2017-01-26 | C32: =IF(AND(B32>='Calculation Sheet Crop 1'!$K$6,B32<='Calculation Sheet Crop 1'!$L$6),"Initial Stage",IF(AND(B32+1>'Calculation Sheet Crop 1'!$K$7,B32<='Calculation Sheet Crop 1'!$L$7),"Crop Development Phase",IF(AND(B32+1>'Calculation Sheet Crop 1'!$K$8,B32<'Calculation Sheet Crop 1'!$L$8+1),"Mid Season",IF(AND(B32+1>'Calculation Sheet Crop 1'!$K$9,B32-1<'Calculation Sheet Crop 1'!$L$9),"Late Season Stage","")))) ->  | D32: =IF(MONTH(B32)=1,'General Calculation'!$E$22,IF(MONTH(B32)=2,'General Calculation'!$F$22,IF(MONTH(B32)=3,'General Calculation'!$G$22,IF(MONTH(B32)=4,'General Calculation'!$H$22,IF(MONTH(B32)=5,'General Calculation'!$I$22,IF(MONTH(B32)=6,'General Calculation'!$J$22,IF(MONTH(B32)=7,'General Calculation'!$K$22,IF(MONTH(B32)=8,'General Calculation'!$L$22,IF(MONTH(B32)=9,'General Calculation'!$M$22,IF(MONTH(B32)=10,'General Calculation'!$N$22,IF(MONTH(B32)=11,'General Calculation'!$O$22,IF(MONTH(B32)=12,'General Calculation'!$P$22,"")))))))))))) -> 5.5244 | E32: =IF(C32="Initial Stage",'Calculation Sheet Crop 1'!$M$6,IF(C32="Crop Development Phase",'Calculation Sheet Crop 1'!$M$7,IF(C32="Mid Season",'Calculation Sheet Crop 1'!$M$8,IF(C32="Late Season Stage",'Calculation Sheet Crop 1'!$M$9,"")))) ->  | F32: 0 | P32: 0 | Q32: 0 | R32: 0 | S32: 0 | T32: 0 | U32: 0 | V32: 0 | W32: 0 | X32: 0 | Y32: 0 | Z32: 0 | AA32: 0
B33: 2017-01-27 | C33: =IF(AND(B33>='Calculation Sheet Crop 1'!$K$6,B33<='Calculation Sheet Crop 1'!$L$6),"Initial Stage",IF(AND(B33+1>'Calculation Sheet Crop 1'!$K$7,B33<='Calculation Sheet Crop 1'!$L$7),"Crop Development Phase",IF(AND(B33+1>'Calculation Sheet Crop 1'!$K$8,B33<'Calculation Sheet Crop 1'!$L$8+1),"Mid Season",IF(AND(B33+1>'Calculation Sheet Crop 1'!$K$9,B33-1<'Calculation Sheet Crop 1'!$L$9),"Late Season Stage","")))) ->  | D33: =IF(MONTH(B33)=1,'General Calculation'!$E$22,IF(MONTH(B33)=2,'General Calculation'!$F$22,IF(MONTH(B33)=3,'General Calculation'!$G$22,IF(MONTH(B33)=4,'General Calculation'!$H$22,IF(MONTH(B33)=5,'General Calculation'!$I$22,IF(MONTH(B33)=6,'General Calculation'!$J$22,IF(MONTH(B33)=7,'General Calculation'!$K$22,IF(MONTH(B33)=8,'General Calculation'!$L$22,IF(MONTH(B33)=9,'General Calculation'!$M$22,IF(MONTH(B33)=10,'General Calculation'!$N$22,IF(MONTH(B33)=11,'General Calculation'!$O$22,IF(MONTH(B33)=12,'General Calculation'!$P$22,"")))))))))))) -> 5.5244 | E33: =IF(C33="Initial Stage",'Calculation Sheet Crop 1'!$M$6,IF(C33="Crop Development Phase",'Calculation Sheet Crop 1'!$M$7,IF(C33="Mid Season",'Calculation Sheet Crop 1'!$M$8,IF(C33="Late Season Stage",'Calculation Sheet Crop 1'!$M$9,"")))) ->  | F33: 0 | P33: 0 | Q33: 0 | R33: 0 | S33: 0 | T33: 0 | U33: 0 | V33: 0 | W33: 0 | X33: 0 | Y33: 0 | Z33: 0 | AA33: 0
B34: 2017-01-28 | C34: =IF(AND(B34>='Calculation Sheet Crop 1'!$K$6,B34<='Calculation Sheet Crop 1'!$L$6),"Initial Stage",IF(AND(B34+1>'Calculation Sheet Crop 1'!$K$7,B34<='Calculation Sheet Crop 1'!$L$7),"Crop Development Phase",IF(AND(B34+1>'Calculation Sheet Crop 1'!$K$8,B34<'Calculation Sheet Crop 1'!$L$8+1),"Mid Season",IF(AND(B34+1>'Calculation Sheet Crop 1'!$K$9,B34-1<'Calculation Sheet Crop 1'!$L$9),"Late Season Stage","")))) ->  | D34: =IF(MONTH(B34)=1,'General Calculation'!$E$22,IF(MONTH(B34)=2,'General Calculation'!$F$22,IF(MONTH(B34)=3,'General Calculation'!$G$22,IF(MONTH(B34)=4,'General Calculation'!$H$22,IF(MONTH(B34)=5,'General Calculation'!$I$22,IF(MONTH(B34)=6,'General Calculation'!$J$22,IF(MONTH(B34)=7,'General Calculation'!$K$22,IF(MONTH(B34)=8,'General Calculation'!$L$22,IF(MONTH(B34)=9,'General Calculation'!$M$22,IF(MONTH(B34)=10,'General Calculation'!$N$22,IF(MONTH(B34)=11,'General Calculation'!$O$22,IF(MONTH(B34)=12,'General Calculation'!$P$22,"")))))))))))) -> 5.5244 | E34: =IF(C34="Initial Stage",'Calculation Sheet Crop 1'!$M$6,IF(C34="Crop Development Phase",'Calculation Sheet Crop 1'!$M$7,IF(C34="Mid Season",'Calculation Sheet Crop 1'!$M$8,IF(C34="Late Season Stage",'Calculation Sheet Crop 1'!$M$9,"")))) ->  | F34: 0 | P34: 0 | Q34: 0 | R34: 0 | S34: 0 | T34: 0 | U34: 0 | V34: 0 | W34: 0 | X34: 0 | Y34: 0 | Z34: 0 | AA34: 0
B35: 2017-01-29 | C35: =IF(AND(B35>='Calculation Sheet Crop 1'!$K$6,B35<='Calculation Sheet Crop 1'!$L$6),"Initial Stage",IF(AND(B35+1>'Calculation Sheet Crop 1'!$K$7,B35<='Calculation Sheet Crop 1'!$L$7),"Crop Development Phase",IF(AND(B35+1>'Calculation Sheet Crop 1'!$K$8,B35<'Calculation Sheet Crop 1'!$L$8+1),"Mid Season",IF(AND(B35+1>'Calculation Sheet Crop 1'!$K$9,B35-1<'Calculation Sheet Crop 1'!$L$9),"Late Season Stage","")))) ->  | D35: =IF(MONTH(B35)=1,'General Calculation'!$E$22,IF(MONTH(B35)=2,'General Calculation'!$F$22,IF(MONTH(B35)=3,'General Calculation'!$G$22,IF(MONTH(B35)=4,'General Calculation'!$H$22,IF(MONTH(B35)=5,'General Calculation'!$I$22,IF(MONTH(B35)=6,'General Calculation'!$J$22,IF(MONTH(B35)=7,'General Calculation'!$K$22,IF(MONTH(B35)=8,'General Calculation'!$L$22,IF(MONTH(B35)=9,'General Calculation'!$M$22,IF(MONTH(B35)=10,'General Calculation'!$N$22,IF(MONTH(B35)=11,'General Calculation'!$O$22,IF(MONTH(B35)=12,'General Calculation'!$P$22,"")))))))))))) -> 5.5244 | E35: =IF(C35="Initial Stage",'Calculation Sheet Crop 1'!$M$6,IF(C35="Crop Development Phase",'Calculation Sheet Crop 1'!$M$7,IF(C35="Mid Season",'Calculation Sheet Crop 1'!$M$8,IF(C35="Late Season Stage",'Calculation Sheet Crop 1'!$M$9,"")))) ->  | F35: 0 | P35: 0 | Q35: 0 | R35: 0 | S35: 0 | T35: 0 | U35: 0 | V35: 0 | W35: 0 | X35: 0 | Y35: 0 | Z35: 0 | AA35: 0
B36: 2017-01-30 | C36: =IF(AND(B36>='Calculation Sheet Crop 1'!$K$6,B36<='Calculation Sheet Crop 1'!$L$6),"Initial Stage",IF(AND(B36+1>'Calculation Sheet Crop 1'!$K$7,B36<='Calculation Sheet Crop 1'!$L$7),"Crop Development Phase",IF(AND(B36+1>'Calculation Sheet Crop 1'!$K$8,B36<'Calculation Sheet Crop 1'!$L$8+1),"Mid Season",IF(AND(B36+1>'Calculation Sheet Crop 1'!$K$9,B36-1<'Calculation Sheet Crop 1'!$L$9),"Late Season Stage","")))) ->  | D36: =IF(MONTH(B36)=1,'General Calculation'!$E$22,IF(MONTH(B36)=2,'General Calculation'!$F$22,IF(MONTH(B36)=3,'General Calculation'!$G$22,IF(MONTH(B36)=4,'General Calculation'!$H$22,IF(MONTH(B36)=5,'General Calculation'!$I$22,IF(MONTH(B36)=6,'General Calculation'!$J$22,IF(MONTH(B36)=7,'General Calculation'!$K$22,IF(MONTH(B36)=8,'General Calculation'!$L$22,IF(MONTH(B36)=9,'General Calculation'!$M$22,IF(MONTH(B36)=10,'General Calculation'!$N$22,IF(MONTH(B36)=11,'General Calculation'!$O$22,IF(MONTH(B36)=12,'General Calculation'!$P$22,"")))))))))))) -> 5.5244 | E36: =IF(C36="Initial Stage",'Calculation Sheet Crop 1'!$M$6,IF(C36="Crop Development Phase",'Calculation Sheet Crop 1'!$M$7,IF(C36="Mid Season",'Calculation Sheet Crop 1'!$M$8,IF(C36="Late Season Stage",'Calculation Sheet Crop 1'!$M$9,"")))) ->  | F36: 0 | P36: 0 | Q36: 0 | R36: 0 | S36: 0 | T36: 0 | U36: 0 | V36: 0 | W36: 0 | X36: 0 | Y36: 0 | Z36: 0 | AA36: 0
B37: 2017-01-31 | C37: =IF(AND(B37>='Calculation Sheet Crop 1'!$K$6,B37<='Calculation Sheet Crop 1'!$L$6),"Initial Stage",IF(AND(B37+1>'Calculation Sheet Crop 1'!$K$7,B37<='Calculation Sheet Crop 1'!$L$7),"Crop Development Phase",IF(AND(B37+1>'Calculation Sheet Crop 1'!$K$8,B37<'Calculation Sheet Crop 1'!$L$8+1),"Mid Season",IF(AND(B37+1>'Calculation Sheet Crop 1'!$K$9,B37-1<'Calculation Sheet Crop 1'!$L$9),"Late Season Stage","")))) ->  | D37: =IF(MONTH(B37)=1,'General Calculation'!$E$22,IF(MONTH(B37)=2,'General Calculation'!$F$22,IF(MONTH(B37)=3,'General Calculation'!$G$22,IF(MONTH(B37)=4,'General Calculation'!$H$22,IF(MONTH(B37)=5,'General Calculation'!$I$22,IF(MONTH(B37)=6,'General Calculation'!$J$22,IF(MONTH(B37)=7,'General Calculation'!$K$22,IF(MONTH(B37)=8,'General Calculation'!$L$22,IF(MONTH(B37)=9,'General Calculation'!$M$22,IF(MONTH(B37)=10,'General Calculation'!$N$22,IF(MONTH(B37)=11,'General Calculation'!$O$22,IF(MONTH(B37)=12,'General Calculation'!$P$22,"")))))))))))) -> 5.5244 | E37: =IF(C37="Initial Stage",'Calculation Sheet Crop 1'!$M$6,IF(C37="Crop Development Phase",'Calculation Sheet Crop 1'!$M$7,IF(C37="Mid Season",'Calculation Sheet Crop 1'!$M$8,IF(C37="Late Season Stage",'Calculation Sheet Crop 1'!$M$9,"")))) ->  | F37: 0 | P37: 0 | Q37: 0 | R37: 0 | S37: 0 | T37: 0 | U37: 0 | V37: 0 | W37: 0 | X37: 0 | Y37: 0 | Z37: 0 | AA37: 0
B38: 2017-02-01 | C38: =IF(AND(B38>='Calculation Sheet Crop 1'!$K$6,B38<='Calculation Sheet Crop 1'!$L$6),"Initial Stage",IF(AND(B38+1>'Calculation Sheet Crop 1'!$K$7,B38<='Calculation Sheet Crop 1'!$L$7),"Crop Development Phase",IF(AND(B38+1>'Calculation Sheet Crop 1'!$K$8,B38<'Calculation Sheet Crop 1'!$L$8+1),"Mid Season",IF(AND(B38+1>'Calculation Sheet Crop 1'!$K$9,B38-1<'Calculation Sheet Crop 1'!$L$9),"Late Season Stage","")))) ->  | D38: =IF(MONTH(B38)=1,'General Calculation'!$E$22,IF(MONTH(B38)=2,'General Calculation'!$F$22,IF(MONTH(B38)=3,'General Calculation'!$G$22,IF(MONTH(B38)=4,'General Calculation'!$H$22,IF(MONTH(B38)=5,'General Calculation'!$I$22,IF(MONTH(B38)=6,'General Calculation'!$J$22,IF(MONTH(B38)=7,'General Calculation'!$K$22,IF(MONTH(B38)=8,'General Calculation'!$L$22,IF(MONTH(B38)=9,'General Calculation'!$M$22,IF(MONTH(B38)=10,'General Calculation'!$N$22,IF(MONTH(B38)=11,'General Calculation'!$O$22,IF(MONTH(B38)=12,'General Calculation'!$P$22,"")))))))))))) -> 5.46 | E38: =IF(C38="Initial Stage",'Calculation Sheet Crop 1'!$M$6,IF(C38="Crop Development Phase",'Calculation Sheet Crop 1'!$M$7,IF(C38="Mid Season",'Calculation Sheet Crop 1'!$M$8,IF(C38="Late Season Stage",'Calculation Sheet Crop 1'!$M$9,"")))) ->  | F38: 0 | P38: 0 | Q38: 0 | R38: 0 | S38: 0 | T38: 0 | U38: 0 | V38: 0 | W38: 0 | X38: 0 | Y38: 0 | Z38: 0 | AA38: 0
B39: 2017-02-02 | C39: =IF(AND(B39>='Calculation Sheet Crop 1'!$K$6,B39<='Calculation Sheet Crop 1'!$L$6),"Initial Stage",IF(AND(B39+1>'Calculation Sheet Crop 1'!$K$7,B39<='Calculation Sheet Crop 1'!$L$7),"Crop Development Phase",IF(AND(B39+1>'Calculation Sheet Crop 1'!$K$8,B39<'Calculation Sheet Crop 1'!$L$8+1),"Mid Season",IF(AND(B39+1>'Calculation Sheet Crop 1'!$K$9,B39-1<'Calculation Sheet Crop 1'!$L$9),"Late Season Stage","")))) ->  | D39: =IF(MONTH(B39)=1,'General Calculation'!$E$22,IF(MONTH(B39)=2,'General Calculation'!$F$22,IF(MONTH(B39)=3,'General Calculation'!$G$22,IF(MONTH(B39)=4,'General Calculation'!$H$22,IF(MONTH(B39)=5,'General Calculation'!$I$22,IF(MONTH(B39)=6,'General Calculation'!$J$22,IF(MONTH(B39)=7,'General Calculation'!$K$22,IF(MONTH(B39)=8,'General Calculation'!$L$22,IF(MONTH(B39)=9,'General Calculation'!$M$22,IF(MONTH(B39)=10,'General Calculation'!$N$22,IF(MONTH(B39)=11,'General Calculation'!$O$22,IF(MONTH(B39)=12,'General Calculation'!$P$22,"")))))))))))) -> 5.46 | E39: =IF(C39="Initial Stage",'Calculation Sheet Crop 1'!$M$6,IF(C39="Crop Development Phase",'Calculation Sheet Crop 1'!$M$7,IF(C39="Mid Season",'Calculation Sheet Crop 1'!$M$8,IF(C39="Late Season Stage",'Calculation Sheet Crop 1'!$M$9,"")))) ->  | F39: 0 | P39: 0 | Q39: 0 | R39: 0 | S39: 0 | T39: 0 | U39: 0 | V39: 0 | W39: 0 | X39: 0 | Y39: 0 | Z39: 0 | AA39: 0
B40: 2017-02-03 | C40: =IF(AND(B40>='Calculation Sheet Crop 1'!$K$6,B40<='Calculation Sheet Crop 1'!$L$6),"Initial Stage",IF(AND(B40+1>'Calculation Sheet Crop 1'!$K$7,B40<='Calculation Sheet Crop 1'!$L$7),"Crop Development Phase",IF(AND(B40+1>'Calculation Sheet Crop 1'!$K$8,B40<'Calculation Sheet Crop 1'!$L$8+1),"Mid Season",IF(AND(B40+1>'Calculation Sheet Crop 1'!$K$9,B40-1<'Calculation Sheet Crop 1'!$L$9),"Late Season Stage","")))) ->  | D40: =IF(MONTH(B40)=1,'General Calculation'!$E$22,IF(MONTH(B40)=2,'General Calculation'!$F$22,IF(MONTH(B40)=3,'General Calculation'!$G$22,IF(MONTH(B40)=4,'General Calculation'!$H$22,IF(MONTH(B40)=5,'General Calculation'!$I$22,IF(MONTH(B40)=6,'General Calculation'!$J$22,IF(MONTH(B40)=7,'General Calculation'!$K$22,IF(MONTH(B40)=8,'General Calculation'!$L$22,IF(MONTH(B40)=9,'General Calculation'!$M$22,IF(MONTH(B40)=10,'General Calculation'!$N$22,IF(MONTH(B40)=11,'General Calculation'!$O$22,IF(MONTH(B40)=12,'General Calculation'!$P$22,"")))))))))))) -> 5.46 | E40: =IF(C40="Initial Stage",'Calculation Sheet Crop 1'!$M$6,IF(C40="Crop Development Phase",'Calculation Sheet Crop 1'!$M$7,IF(C40="Mid Season",'Calculation Sheet Crop 1'!$M$8,IF(C40="Late Season Stage",'Calculation Sheet Crop 1'!$M$9,"")))) ->  | F40: 0 | P40: 0 | Q40: 0 | R40: 0 | S40: 0 | T40: 0 | U40: 0 | V40: 0 | W40: 0 | X40: 0 | Y40: 0 | Z40: 0 | AA40: 0
B41: 2017-02-04 | C41: =IF(AND(B41>='Calculation Sheet Crop 1'!$K$6,B41<='Calculation Sheet Crop 1'!$L$6),"Initial Stage",IF(AND(B41+1>'Calculation Sheet Crop 1'!$K$7,B41<='Calculation Sheet Crop 1'!$L$7),"Crop Development Phase",IF(AND(B41+1>'Calculation Sheet Crop 1'!$K$8,B41<'Calculation Sheet Crop 1'!$L$8+1),"Mid Season",IF(AND(B41+1>'Calculation Sheet Crop 1'!$K$9,B41-1<'Calculation Sheet Crop 1'!$L$9),"Late Season Stage","")))) ->  | D41: =IF(MONTH(B41)=1,'General Calculation'!$E$22,IF(MONTH(B41)=2,'General Calculation'!$F$22,IF(MONTH(B41)=3,'General Calculation'!$G$22,IF(MONTH(B41)=4,'General Calculation'!$H$22,IF(MONTH(B41)=5,'General Calculation'!$I$22,IF(MONTH(B41)=6,'General Calculation'!$J$22,IF(MONTH(B41)=7,'General Calculation'!$K$22,IF(MONTH(B41)=8,'General Calculation'!$L$22,IF(MONTH(B41)=9,'General Calculation'!$M$22,IF(MONTH(B41)=10,'General Calculation'!$N$22,IF(MONTH(B41)=11,'General Calculation'!$O$22,IF(MONTH(B41)=12,'General Calculation'!$P$22,"")))))))))))) -> 5.46 | E41: =IF(C41="Initial Stage",'Calculation Sheet Crop 1'!$M$6,IF(C41="Crop Development Phase",'Calculation Sheet Crop 1'!$M$7,IF(C41="Mid Season",'Calculation Sheet Crop 1'!$M$8,IF(C41="Late Season Stage",'Calculation Sheet Crop 1'!$M$9,"")))) ->  | F41: 0 | P41: 0 | Q41: 0 | R41: 0 | S41: 0 | T41: 0 | U41: 0 | V41: 0 | W41: 0 | X41: 0 | Y41: 0 | Z41: 0 | AA41: 0
B42: 2017-02-05 | C42: =IF(AND(B42>='Calculation Sheet Crop 1'!$K$6,B42<='Calculation Sheet Crop 1'!$L$6),"Initial Stage",IF(AND(B42+1>'Calculation Sheet Crop 1'!$K$7,B42<='Calculation Sheet Crop 1'!$L$7),"Crop Development Phase",IF(AND(B42+1>'Calculation Sheet Crop 1'!$K$8,B42<'Calculation Sheet Crop 1'!$L$8+1),"Mid Season",IF(AND(B42+1>'Calculation Sheet Crop 1'!$K$9,B42-1<'Calculation Sheet Crop 1'!$L$9),"Late Season Stage","")))) ->  | D42: =IF(MONTH(B42)=1,'General Calculation'!$E$22,IF(MONTH(B42)=2,'General Calculation'!$F$22,IF(MONTH(B42)=3,'General Calculation'!$G$22,IF(MONTH(B42)=4,'General Calculation'!$H$22,IF(MONTH(B42)=5,'General Calculation'!$I$22,IF(MONTH(B42)=6,'General Calculation'!$J$22,IF(MONTH(B42)=7,'General Calculation'!$K$22,IF(MONTH(B42)=8,'General Calculation'!$L$22,IF(MONTH(B42)=9,'General Calculation'!$M$22,IF(MONTH(B42)=10,'General Calculation'!$N$22,IF(MONTH(B42)=11,'General Calculation'!$O$22,IF(MONTH(B42)=12,'General Calculation'!$P$22,"")))))))))))) -> 5.46 | E42: =IF(C42="Initial Stage",'Calculation Sheet Crop 1'!$M$6,IF(C42="Crop Development Phase",'Calculation Sheet Crop 1'!$M$7,IF(C42="Mid Season",'Calculation Sheet Crop 1'!$M$8,IF(C42="Late Season Stage",'Calculation Sheet Crop 1'!$M$9,"")))) ->  | F42: 0 | P42: 0 | Q42: 0 | R42: 0 | S42: 0 | T42: 0 | U42: 0 | V42: 0 | W42: 0 | X42: 0 | Y42: 0 | Z42: 0 | AA42: 0
B43: 2017-02-06 | C43: =IF(AND(B43>='Calculation Sheet Crop 1'!$K$6,B43<='Calculation Sheet Crop 1'!$L$6),"Initial Stage",IF(AND(B43+1>'Calculation Sheet Crop 1'!$K$7,B43<='Calculation Sheet Crop 1'!$L$7),"Crop Development Phase",IF(AND(B43+1>'Calculation Sheet Crop 1'!$K$8,B43<'Calculation Sheet Crop 1'!$L$8+1),"Mid Season",IF(AND(B43+1>'Calculation Sheet Crop 1'!$K$9,B43-1<'Calculation Sheet Crop 1'!$L$9),"Late Season Stage","")))) ->  | D43: =IF(MONTH(B43)=1,'General Calculation'!$E$22,IF(MONTH(B43)=2,'General Calculation'!$F$22,IF(MONTH(B43)=3,'General Calculation'!$G$22,IF(MONTH(B43)=4,'General Calculation'!$H$22,IF(MONTH(B43)=5,'General Calculation'!$I$22,IF(MONTH(B43)=6,'General Calculation'!$J$22,IF(MONTH(B43)=7,'General Calculation'!$K$22,IF(MONTH(B43)=8,'General Calculation'!$L$22,IF(MONTH(B43)=9,'General Calculation'!$M$22,IF(MONTH(B43)=10,'General Calculation'!$N$22,IF(MONTH(B43)=11,'General Calculation'!$O$22,IF(MONTH(B43)=12,'General Calculation'!$P$22,"")))))))))))) -> 5.46 | E43: =IF(C43="Initial Stage",'Calculation Sheet Crop 1'!$M$6,IF(C43="Crop Development Phase",'Calculation Sheet Crop 1'!$M$7,IF(C43="Mid Season",'Calculation Sheet Crop 1'!$M$8,IF(C43="Late Season Stage",'Calculation Sheet Crop 1'!$M$9,"")))) ->  | F43: 0 | P43: 0 | Q43: 0 | R43: 0 | S43: 0 | T43: 0 | U43: 0 | V43: 0 | W43: 0 | X43: 0 | Y43: 0 | Z43: 0 | AA43: 0
B44: 2017-02-07 | C44: =IF(AND(B44>='Calculation Sheet Crop 1'!$K$6,B44<='Calculation Sheet Crop 1'!$L$6),"Initial Stage",IF(AND(B44+1>'Calculation Sheet Crop 1'!$K$7,B44<='Calculation Sheet Crop 1'!$L$7),"Crop Development Phase",IF(AND(B44+1>'Calculation Sheet Crop 1'!$K$8,B44<'Calculation Sheet Crop 1'!$L$8+1),"Mid Season",IF(AND(B44+1>'Calculation Sheet Crop 1'!$K$9,B44-1<'Calculation Sheet Crop 1'!$L$9),"Late Season Stage","")))) ->  | D44: =IF(MONTH(B44)=1,'General Calculation'!$E$22,IF(MONTH(B44)=2,'General Calculation'!$F$22,IF(MONTH(B44)=3,'General Calculation'!$G$22,IF(MONTH(B44)=4,'General Calculation'!$H$22,IF(MONTH(B44)=5,'General Calculation'!$I$22,IF(MONTH(B44)=6,'General Calculation'!$J$22,IF(MONTH(B44)=7,'General Calculation'!$K$22,IF(MONTH(B44)=8,'General Calculation'!$L$22,IF(MONTH(B44)=9,'General Calculation'!$M$22,IF(MONTH(B44)=10,'General Calculation'!$N$22,IF(MONTH(B44)=11,'General Calculation'!$O$22,IF(MONTH(B44)=12,'General Calculation'!$P$22,"")))))))))))) -> 5.46 | E44: =IF(C44="Initial Stage",'Calculation Sheet Crop 1'!$M$6,IF(C44="Crop Development Phase",'Calculation Sheet Crop 1'!$M$7,IF(C44="Mid Season",'Calculation Sheet Crop 1'!$M$8,IF(C44="Late Season Stage",'Calculation Sheet Crop 1'!$M$9,"")))) ->  | F44: 0 | P44: 0 | Q44: 0 | R44: 0 | S44: 0 | T44: 0 | U44: 0 | V44: 0 | W44: 0 | X44: 0 | Y44: 0 | Z44: 0 | AA44: 0
B45: 2017-02-08 | C45: =IF(AND(B45>='Calculation Sheet Crop 1'!$K$6,B45<='Calculation Sheet Crop 1'!$L$6),"Initial Stage",IF(AND(B45+1>'Calculation Sheet Crop 1'!$K$7,B45<='Calculation Sheet Crop 1'!$L$7),"Crop Development Phase",IF(AND(B45+1>'Calculation Sheet Crop 1'!$K$8,B45<'Calculation Sheet Crop 1'!$L$8+1),"Mid Season",IF(AND(B45+1>'Calculation Sheet Crop 1'!$K$9,B45-1<'Calculation Sheet Crop 1'!$L$9),"Late Season Stage","")))) ->  | D45: =IF(MONTH(B45)=1,'General Calculation'!$E$22,IF(MONTH(B45)=2,'General Calculation'!$F$22,IF(MONTH(B45)=3,'General Calculation'!$G$22,IF(MONTH(B45)=4,'General Calculation'!$H$22,IF(MONTH(B45)=5,'General Calculation'!$I$22,IF(MONTH(B45)=6,'General Calculation'!$J$22,IF(MONTH(B45)=7,'General Calculation'!$K$22,IF(MONTH(B45)=8,'General Calculation'!$L$22,IF(MONTH(B45)=9,'General Calculation'!$M$22,IF(MONTH(B45)=10,'General Calculation'!$N$22,IF(MONTH(B45)=11,'General Calculation'!$O$22,IF(MONTH(B45)=12,'General Calculation'!$P$22,"")))))))))))) -> 5.46 | E45: =IF(C45="Initial Stage",'Calculation Sheet Crop 1'!$M$6,IF(C45="Crop Development Phase",'Calculation Sheet Crop 1'!$M$7,IF(C45="Mid Season",'Calculation Sheet Crop 1'!$M$8,IF(C45="Late Season Stage",'Calculation Sheet Crop 1'!$M$9,"")))) ->  | F45: 0 | P45: 0 | Q45: 0 | R45: 0 | S45: 0 | T45: 0 | U45: 0 | V45: 0 | W45: 0 | X45: 0 | Y45: 0 | Z45: 0 | AA45: 0
B46: 2017-02-09 | C46: =IF(AND(B46>='Calculation Sheet Crop 1'!$K$6,B46<='Calculation Sheet Crop 1'!$L$6),"Initial Stage",IF(AND(B46+1>'Calculation Sheet Crop 1'!$K$7,B46<='Calculation Sheet Crop 1'!$L$7),"Crop Development Phase",IF(AND(B46+1>'Calculation Sheet Crop 1'!$K$8,B46<'Calculation Sheet Crop 1'!$L$8+1),"Mid Season",IF(AND(B46+1>'Calculation Sheet Crop 1'!$K$9,B46-1<'Calculation Sheet Crop 1'!$L$9),"Late Season Stage","")))) ->  | D46: =IF(MONTH(B46)=1,'General Calculation'!$E$22,IF(MONTH(B46)=2,'General Calculation'!$F$22,IF(MONTH(B46)=3,'General Calculation'!$G$22,IF(MONTH(B46)=4,'General Calculation'!$H$22,IF(MONTH(B46)=5,'General Calculation'!$I$22,IF(MONTH(B46)=6,'General Calculation'!$J$22,IF(MONTH(B46)=7,'General Calculation'!$K$22,IF(MONTH(B46)=8,'General Calculation'!$L$22,IF(MONTH(B46)=9,'General Calculation'!$M$22,IF(MONTH(B46)=10,'General Calculation'!$N$22,IF(MONTH(B46)=11,'General Calculation'!$O$22,IF(MONTH(B46)=12,'General Calculation'!$P$22,"")))))))))))) -> 5.46 | E46: =IF(C46="Initial Stage",'Calculation Sheet Crop 1'!$M$6,IF(C46="Crop Development Phase",'Calculation Sheet Crop 1'!$M$7,IF(C46="Mid Season",'Calculation Sheet Crop 1'!$M$8,IF(C46="Late Season Stage",'Calculation Sheet Crop 1'!$M$9,"")))) ->  | F46: 0 | P46: 0 | Q46: 0 | R46: 0 | S46: 0 | T46: 0 | U46: 0 | V46: 0 | W46: 0 | X46: 0 | Y46: 0 | Z46: 0 | AA46: 0
B47: 2017-02-10 | C47: =IF(AND(B47>='Calculation Sheet Crop 1'!$K$6,B47<='Calculation Sheet Crop 1'!$L$6),"Initial Stage",IF(AND(B47+1>'Calculation Sheet Crop 1'!$K$7,B47<='Calculation Sheet Crop 1'!$L$7),"Crop Development Phase",IF(AND(B47+1>'Calculation Sheet Crop 1'!$K$8,B47<'Calculation Sheet Crop 1'!$L$8+1),"Mid Season",IF(AND(B47+1>'Calculation Sheet Crop 1'!$K$9,B47-1<'Calculation Sheet Crop 1'!$L$9),"Late Season Stage","")))) ->  | D47: =IF(MONTH(B47)=1,'General Calculation'!$E$22,IF(MONTH(B47)=2,'General Calculation'!$F$22,IF(MONTH(B47)=3,'General Calculation'!$G$22,IF(MONTH(B47)=4,'General Calculation'!$H$22,IF(MONTH(B47)=5,'General Calculation'!$I$22,IF(MONTH(B47)=6,'General Calculation'!$J$22,IF(MONTH(B47)=7,'General Calculation'!$K$22,IF(MONTH(B47)=8,'General Calculation'!$L$22,IF(MONTH(B47)=9,'General Calculation'!$M$22,IF(MONTH(B47)=10,'General Calculation'!$N$22,IF(MONTH(B47)=11,'General Calculation'!$O$22,IF(MONTH(B47)=12,'General Calculation'!$P$22,"")))))))))))) -> 5.46 | E47: =IF(C47="Initial Stage",'Calculation Sheet Crop 1'!$M$6,IF(C47="Crop Development Phase",'Calculation Sheet Crop 1'!$M$7,IF(C47="Mid Season",'Calculation Sheet Crop 1'!$M$8,IF(C47="Late Season Stage",'Calculation Sheet Crop 1'!$M$9,"")))) ->  | F47: 0 | P47: 0 | Q47: 0 | R47: 0 | S47: 0 | T47: 0 | U47: 0 | V47: 0 | W47: 0 | X47: 0 | Y47: 0 | Z47: 0 | AA47: 0
B48: 2017-02-11 | C48: =IF(AND(B48>='Calculation Sheet Crop 1'!$K$6,B48<='Calculation Sheet Crop 1'!$L$6),"Initial Stage",IF(AND(B48+1>'Calculation Sheet Crop 1'!$K$7,B48<='Calculation Sheet Crop 1'!$L$7),"Crop Development Phase",IF(AND(B48+1>'Calculation Sheet Crop 1'!$K$8,B48<'Calculation Sheet Crop 1'!$L$8+1),"Mid Season",IF(AND(B48+1>'Calculation Sheet Crop 1'!$K$9,B48-1<'Calculation Sheet Crop 1'!$L$9),"Late Season Stage","")))) ->  | D48: =IF(MONTH(B48)=1,'General Calculation'!$E$22,IF(MONTH(B48)=2,'General Calculation'!$F$22,IF(MONTH(B48)=3,'General Calculation'!$G$22,IF(MONTH(B48)=4,'General Calculation'!$H$22,IF(MONTH(B48)=5,'General Calculation'!$I$22,IF(MONTH(B48)=6,'General Calculation'!$J$22,IF(MONTH(B48)=7,'General Calculation'!$K$22,IF(MONTH(B48)=8,'General Calculation'!$L$22,IF(MONTH(B48)=9,'General Calculation'!$M$22,IF(MONTH(B48)=10,'General Calculation'!$N$22,IF(MONTH(B48)=11,'General Calculation'!$O$22,IF(MONTH(B48)=12,'General Calculation'!$P$22,"")))))))))))) -> 5.46 | E48: =IF(C48="Initial Stage",'Calculation Sheet Crop 1'!$M$6,IF(C48="Crop Development Phase",'Calculation Sheet Crop 1'!$M$7,IF(C48="Mid Season",'Calculation Sheet Crop 1'!$M$8,IF(C48="Late Season Stage",'Calculation Sheet Crop 1'!$M$9,"")))) ->  | F48: 0 | P48: 0 | Q48: 0 | R48: 0 | S48: 0 | T48: 0 | U48: 0 | V48: 0 | W48: 0 | X48: 0 | Y48: 0 | Z48: 0 | AA48: 0
B49: 2017-02-12 | C49: =IF(AND(B49>='Calculation Sheet Crop 1'!$K$6,B49<='Calculation Sheet Crop 1'!$L$6),"Initial Stage",IF(AND(B49+1>'Calculation Sheet Crop 1'!$K$7,B49<='Calculation Sheet Crop 1'!$L$7),"Crop Development Phase",IF(AND(B49+1>'Calculation Sheet Crop 1'!$K$8,B49<'Calculation Sheet Crop 1'!$L$8+1),"Mid Season",IF(AND(B49+1>'Calculation Sheet Crop 1'!$K$9,B49-1<'Calculation Sheet Crop 1'!$L$9),"Late Season Stage","")))) ->  | D49: =IF(MONTH(B49)=1,'General Calculation'!$E$22,IF(MONTH(B49)=2,'General Calculation'!$F$22,IF(MONTH(B49)=3,'General Calculation'!$G$22,IF(MONTH(B49)=4,'General Calculation'!$H$22,IF(MONTH(B49)=5,'General Calculation'!$I$22,IF(MONTH(B49)=6,'General Calculation'!$J$22,IF(MONTH(B49)=7,'General Calculation'!$K$22,IF(MONTH(B49)=8,'General Calculation'!$L$22,IF(MONTH(B49)=9,'General Calculation'!$M$22,IF(MONTH(B49)=10,'General Calculation'!$N$22,IF(MONTH(B49)=11,'General Calculation'!$O$22,IF(MONTH(B49)=12,'General Calculation'!$P$22,"")))))))))))) -> 5.46 | E49: =IF(C49="Initial Stage",'Calculation Sheet Crop 1'!$M$6,IF(C49="Crop Development Phase",'Calculation Sheet Crop 1'!$M$7,IF(C49="Mid Season",'Calculation Sheet Crop 1'!$M$8,IF(C49="Late Season Stage",'Calculation Sheet Crop 1'!$M$9,"")))) ->  | F49: 0 | P49: 0 | Q49: 0 | R49: 0 | S49: 0 | T49: 0 | U49: 0 | V49: 0 | W49: 0 | X49: 0 | Y49: 0 | Z49: 0 | AA49: 0
B50: 2017-02-13 | C50: =IF(AND(B50>='Calculation Sheet Crop 1'!$K$6,B50<='Calculation Sheet Crop 1'!$L$6),"Initial Stage",IF(AND(B50+1>'Calculation Sheet Crop 1'!$K$7,B50<='Calculation Sheet Crop 1'!$L$7),"Crop Development Phase",IF(AND(B50+1>'Calculation Sheet Crop 1'!$K$8,B50<'Calculation Sheet Crop 1'!$L$8+1),"Mid Season",IF(AND(B50+1>'Calculation Sheet Crop 1'!$K$9,B50-1<'Calculation Sheet Crop 1'!$L$9),"Late Season Stage","")))) ->  | D50: =IF(MONTH(B50)=1,'General Calculation'!$E$22,IF(MONTH(B50)=2,'General Calculation'!$F$22,IF(MONTH(B50)=3,'General Calculation'!$G$22,IF(MONTH(B50)=4,'General Calculation'!$H$22,IF(MONTH(B50)=5,'General Calculation'!$I$22,IF(MONTH(B50)=6,'General Calculation'!$J$22,IF(MONTH(B50)=7,'General Calculation'!$K$22,IF(MONTH(B50)=8,'General Calculation'!$L$22,IF(MONTH(B50)=9,'General Calculation'!$M$22,IF(MONTH(B50)=10,'General Calculation'!$N$22,IF(MONTH(B50)=11,'General Calculation'!$O$22,IF(MONTH(B50)=12,'General Calculation'!$P$22,"")))))))))))) -> 5.46 | E50: =IF(C50="Initial Stage",'Calculation Sheet Crop 1'!$M$6,IF(C50="Crop Development Phase",'Calculation Sheet Crop 1'!$M$7,IF(C50="Mid Season",'Calculation Sheet Crop 1'!$M$8,IF(C50="Late Season Stage",'Calculation Sheet Crop 1'!$M$9,"")))) ->  | F50: 0 | P50: 0 | Q50: 0 | R50: 0 | S50: 0 | T50: 0 | U50: 0 | V50: 0 | W50: 0 | X50: 0 | Y50: 0 | Z50: 0 | AA50: 0
B51: 2017-02-14 | C51: =IF(AND(B51>='Calculation Sheet Crop 1'!$K$6,B51<='Calculation Sheet Crop 1'!$L$6),"Initial Stage",IF(AND(B51+1>'Calculation Sheet Crop 1'!$K$7,B51<='Calculation Sheet Crop 1'!$L$7),"Crop Development Phase",IF(AND(B51+1>'Calculation Sheet Crop 1'!$K$8,B51<'Calculation Sheet Crop 1'!$L$8+1),"Mid Season",IF(AND(B51+1>'Calculation Sheet Crop 1'!$K$9,B51-1<'Calculation Sheet Crop 1'!$L$9),"Late Season Stage","")))) ->  | D51: =IF(MONTH(B51)=1,'General Calculation'!$E$22,IF(MONTH(B51)=2,'General Calculation'!$F$22,IF(MONTH(B51)=3,'General Calculation'!$G$22,IF(MONTH(B51)=4,'General Calculation'!$H$22,IF(MONTH(B51)=5,'General Calculation'!$I$22,IF(MONTH(B51)=6,'General Calculation'!$J$22,IF(MONTH(B51)=7,'General Calculation'!$K$22,IF(MONTH(B51)=8,'General Calculation'!$L$22,IF(MONTH(B51)=9,'General Calculation'!$M$22,IF(MONTH(B51)=10,'General Calculation'!$N$22,IF(MONTH(B51)=11,'General Calculation'!$O$22,IF(MONTH(B51)=12,'General Calculation'!$P$22,"")))))))))))) -> 5.46 | E51: =IF(C51="Initial Stage",'Calculation Sheet Crop 1'!$M$6,IF(C51="Crop Development Phase",'Calculation Sheet Crop 1'!$M$7,IF(C51="Mid Season",'Calculation Sheet Crop 1'!$M$8,IF(C51="Late Season Stage",'Calculation Sheet Crop 1'!$M$9,"")))) ->  | F51: 0 | P51: 0 | Q51: 0 | R51: 0 | S51: 0 | T51: 0 | U51: 0 | V51: 0 | W51: 0 | X51: 0 | Y51: 0 | Z51: 0 | AA51: 0
B52: 2017-02-15 | C52: =IF(AND(B52>='Calculation Sheet Crop 1'!$K$6,B52<='Calculation Sheet Crop 1'!$L$6),"Initial Stage",IF(AND(B52+1>'Calculation Sheet Crop 1'!$K$7,B52<='Calculation Sheet Crop 1'!$L$7),"Crop Development Phase",IF(AND(B52+1>'Calculation Sheet Crop 1'!$K$8,B52<'Calculation Sheet Crop 1'!$L$8+1),"Mid Season",IF(AND(B52+1>'Calculation Sheet Crop 1'!$K$9,B52-1<'Calculation Sheet Crop 1'!$L$9),"Late Season Stage","")))) ->  | D52: =IF(MONTH(B52)=1,'General Calculation'!$E$22,IF(MONTH(B52)=2,'General Calculation'!$F$22,IF(MONTH(B52)=3,'General Calculation'!$G$22,IF(MONTH(B52)=4,'General Calculation'!$H$22,IF(MONTH(B52)=5,'General Calculation'!$I$22,IF(MONTH(B52)=6,'General Calculation'!$J$22,IF(MONTH(B52)=7,'General Calculation'!$K$22,IF(MONTH(B52)=8,'General Calculation'!$L$22,IF(MONTH(B52)=9,'General Calculation'!$M$22,IF(MONTH(B52)=10,'General Calculation'!$N$22,IF(MONTH(B52)=11,'General Calculation'!$O$22,IF(MONTH(B52)=12,'General Calculation'!$P$22,"")))))))))))) -> 5.46 | E52: =IF(C52="Initial Stage",'Calculation Sheet Crop 1'!$M$6,IF(C52="Crop Development Phase",'Calculation Sheet Crop 1'!$M$7,IF(C52="Mid Season",'Calculation Sheet Crop 1'!$M$8,IF(C52="Late Season Stage",'Calculation Sheet Crop 1'!$M$9,"")))) ->  | F52: 0 | P52: 0 | Q52: 0 | R52: 0 | S52: 0 | T52: 0 | U52: 0 | V52: 0 | W52: 0 | X52: 0 | Y52: 0 | Z52: 0 | AA52: 0
B53: 2017-02-16 | C53: =IF(AND(B53>='Calculation Sheet Crop 1'!$K$6,B53<='Calculation Sheet Crop 1'!$L$6),"Initial Stage",IF(AND(B53+1>'Calculation Sheet Crop 1'!$K$7,B53<='Calculation Sheet Crop 1'!$L$7),"Crop Development Phase",IF(AND(B53+1>'Calculation Sheet Crop 1'!$K$8,B53<'Calculation Sheet Crop 1'!$L$8+1),"Mid Season",IF(AND(B53+1>'Calculation Sheet Crop 1'!$K$9,B53-1<'Calculation Sheet Crop 1'!$L$9),"Late Season Stage","")))) ->  | D53: =IF(MONTH(B53)=1,'General Calculation'!$E$22,IF(MONTH(B53)=2,'General Calculation'!$F$22,IF(MONTH(B53)=3,'General Calculation'!$G$22,IF(MONTH(B53)=4,'General Calculation'!$H$22,IF(MONTH(B53)=5,'General Calculation'!$I$22,IF(MONTH(B53)=6,'General Calculation'!$J$22,IF(MONTH(B53)=7,'General Calculation'!$K$22,IF(MONTH(B53)=8,'General Calculation'!$L$22,IF(MONTH(B53)=9,'General Calculation'!$M$22,IF(MONTH(B53)=10,'General Calculation'!$N$22,IF(MONTH(B53)=11,'General Calculation'!$O$22,IF(MONTH(B53)=12,'General Calculation'!$P$22,"")))))))))))) -> 5.46 | E53: =IF(C53="Initial Stage",'Calculation Sheet Crop 1'!$M$6,IF(C53="Crop Development Phase",'Calculation Sheet Crop 1'!$M$7,IF(C53="Mid Season",'Calculation Sheet Crop 1'!$M$8,IF(C53="Late Season Stage",'Calculation Sheet Crop 1'!$M$9,"")))) ->  | F53: 0 | P53: 0 | Q53: 0 | R53: 0 | S53: 0 | T53: 0 | U53: 0 | V53: 0 | W53: 0 | X53: 0 | Y53: 0 | Z53: 0 | AA53: 0
B54: 2017-02-17 | C54: =IF(AND(B54>='Calculation Sheet Crop 1'!$K$6,B54<='Calculation Sheet Crop 1'!$L$6),"Initial Stage",IF(AND(B54+1>'Calculation Sheet Crop 1'!$K$7,B54<='Calculation Sheet Crop 1'!$L$7),"Crop Development Phase",IF(AND(B54+1>'Calculation Sheet Crop 1'!$K$8,B54<'Calculation Sheet Crop 1'!$L$8+1),"Mid Season",IF(AND(B54+1>'Calculation Sheet Crop 1'!$K$9,B54-1<'Calculation Sheet Crop 1'!$L$9),"Late Season Stage","")))) ->  | D54: =IF(MONTH(B54)=1,'General Calculation'!$E$22,IF(MONTH(B54)=2,'General Calculation'!$F$22,IF(MONTH(B54)=3,'General Calculation'!$G$22,IF(MONTH(B54)=4,'General Calculation'!$H$22,IF(MONTH(B54)=5,'General Calculation'!$I$22,IF(MONTH(B54)=6,'General Calculation'!$J$22,IF(MONTH(B54)=7,'General Calculation'!$K$22,IF(MONTH(B54)=8,'General Calculation'!$L$22,IF(MONTH(B54)=9,'General Calculation'!$M$22,IF(MONTH(B54)=10,'General Calculation'!$N$22,IF(MONTH(B54)=11,'General Calculation'!$O$22,IF(MONTH(B54)=12,'General Calculation'!$P$22,"")))))))))))) -> 5.46 | E54: =IF(C54="Initial Stage",'Calculation Sheet Crop 1'!$M$6,IF(C54="Crop Development Phase",'Calculation Sheet Crop 1'!$M$7,IF(C54="Mid Season",'Calculation Sheet Crop 1'!$M$8,IF(C54="Late Season Stage",'Calculation Sheet Crop 1'!$M$9,"")))) ->  | F54: 0 | P54: 0 | Q54: 0 | R54: 0 | S54: 0 | T54: 0 | U54: 0 | V54: 0 | W54: 0 | X54: 0 | Y54: 0 | Z54: 0 | AA54: 0
B55: 2017-02-18 | C55: =IF(AND(B55>='Calculation Sheet Crop 1'!$K$6,B55<='Calculation Sheet Crop 1'!$L$6),"Initial Stage",IF(AND(B55+1>'Calculation Sheet Crop 1'!$K$7,B55<='Calculation Sheet Crop 1'!$L$7),"Crop Development Phase",IF(AND(B55+1>'Calculation Sheet Crop 1'!$K$8,B55<'Calculation Sheet Crop 1'!$L$8+1),"Mid Season",IF(AND(B55+1>'Calculation Sheet Crop 1'!$K$9,B55-1<'Calculation Sheet Crop 1'!$L$9),"Late Season Stage","")))) ->  | D55: =IF(MONTH(B55)=1,'General Calculation'!$E$22,IF(MONTH(B55)=2,'General Calculation'!$F$22,IF(MONTH(B55)=3,'General Calculation'!$G$22,IF(MONTH(B55)=4,'General Calculation'!$H$22,IF(MONTH(B55)=5,'General Calculation'!$I$22,IF(MONTH(B55)=6,'General Calculation'!$J$22,IF(MONTH(B55)=7,'General Calculation'!$K$22,IF(MONTH(B55)=8,'General Calculation'!$L$22,IF(MONTH(B55)=9,'General Calculation'!$M$22,IF(MONTH(B55)=10,'General Calculation'!$N$22,IF(MONTH(B55)=11,'General Calculation'!$O$22,IF(MONTH(B55)=12,'General Calculation'!$P$22,"")))))))))))) -> 5.46 | E55: =IF(C55="Initial Stage",'Calculation Sheet Crop 1'!$M$6,IF(C55="Crop Development Phase",'Calculation Sheet Crop 1'!$M$7,IF(C55="Mid Season",'Calculation Sheet Crop 1'!$M$8,IF(C55="Late Season Stage",'Calculation Sheet Crop 1'!$M$9,"")))) ->  | F55: 0 | P55: 0 | Q55: 0 | R55: 0 | S55: 0 | T55: 0 | U55: 0 | V55: 0 | W55: 0 | X55: 0 | Y55: 0 | Z55: 0 | AA55: 0
B56: 2017-02-19 | C56: =IF(AND(B56>='Calculation Sheet Crop 1'!$K$6,B56<='Calculation Sheet Crop 1'!$L$6),"Initial Stage",IF(AND(B56+1>'Calculation Sheet Crop 1'!$K$7,B56<='Calculation Sheet Crop 1'!$L$7),"Crop Development Phase",IF(AND(B56+1>'Calculation Sheet Crop 1'!$K$8,B56<'Calculation Sheet Crop 1'!$L$8+1),"Mid Season",IF(AND(B56+1>'Calculation Sheet Crop 1'!$K$9,B56-1<'Calculation Sheet Crop 1'!$L$9),"Late Season Stage","")))) ->  | D56: =IF(MONTH(B56)=1,'General Calculation'!$E$22,IF(MONTH(B56)=2,'General Calculation'!$F$22,IF(MONTH(B56)=3,'General Calculation'!$G$22,IF(MONTH(B56)=4,'General Calculation'!$H$22,IF(MONTH(B56)=5,'General Calculation'!$I$22,IF(MONTH(B56)=6,'General Calculation'!$J$22,IF(MONTH(B56)=7,'General Calculation'!$K$22,IF(MONTH(B56)=8,'General Calculation'!$L$22,IF(MONTH(B56)=9,'General Calculation'!$M$22,IF(MONTH(B56)=10,'General Calculation'!$N$22,IF(MONTH(B56)=11,'General Calculation'!$O$22,IF(MONTH(B56)=12,'General Calculation'!$P$22,"")))))))))))) -> 5.46 | E56: =IF(C56="Initial Stage",'Calculation Sheet Crop 1'!$M$6,IF(C56="Crop Development Phase",'Calculation Sheet Crop 1'!$M$7,IF(C56="Mid Season",'Calculation Sheet Crop 1'!$M$8,IF(C56="Late Season Stage",'Calculation Sheet Crop 1'!$M$9,"")))) ->  | F56: 0 | P56: 0 | Q56: 0 | R56: 0 | S56: 0 | T56: 0 | U56: 0 | V56: 0 | W56: 0 | X56: 0 | Y56: 0 | Z56: 0 | AA56: 0
B57: 2017-02-20 | C57: =IF(AND(B57>='Calculation Sheet Crop 1'!$K$6,B57<='Calculation Sheet Crop 1'!$L$6),"Initial Stage",IF(AND(B57+1>'Calculation Sheet Crop 1'!$K$7,B57<='Calculation Sheet Crop 1'!$L$7),"Crop Development Phase",IF(AND(B57+1>'Calculation Sheet Crop 1'!$K$8,B57<'Calculation Sheet Crop 1'!$L$8+1),"Mid Season",IF(AND(B57+1>'Calculation Sheet Crop 1'!$K$9,B57-1<'Calculation Sheet Crop 1'!$L$9),"Late Season Stage","")))) ->  | D57: =IF(MONTH(B57)=1,'General Calculation'!$E$22,IF(MONTH(B57)=2,'General Calculation'!$F$22,IF(MONTH(B57)=3,'General Calculation'!$G$22,IF(MONTH(B57)=4,'General Calculation'!$H$22,IF(MONTH(B57)=5,'General Calculation'!$I$22,IF(MONTH(B57)=6,'General Calculation'!$J$22,IF(MONTH(B57)=7,'General Calculation'!$K$22,IF(MONTH(B57)=8,'General Calculation'!$L$22,IF(MONTH(B57)=9,'General Calculation'!$M$22,IF(MONTH(B57)=10,'General Calculation'!$N$22,IF(MONTH(B57)=11,'General Calculation'!$O$22,IF(MONTH(B57)=12,'General Calculation'!$P$22,"")))))))))))) -> 5.46 | E57: =IF(C57="Initial Stage",'Calculation Sheet Crop 1'!$M$6,IF(C57="Crop Development Phase",'Calculation Sheet Crop 1'!$M$7,IF(C57="Mid Season",'Calculation Sheet Crop 1'!$M$8,IF(C57="Late Season Stage",'Calculation Sheet Crop 1'!$M$9,"")))) ->  | F57: 0 | P57: 0 | Q57: 0 | R57: 0 | S57: 0 | T57: 0 | U57: 0 | V57: 0 | W57: 0 | X57: 0 | Y57: 0 | Z57: 0 | AA57: 0
B58: 2017-02-21 | C58: =IF(AND(B58>='Calculation Sheet Crop 1'!$K$6,B58<='Calculation Sheet Crop 1'!$L$6),"Initial Stage",IF(AND(B58+1>'Calculation Sheet Crop 1'!$K$7,B58<='Calculation Sheet Crop 1'!$L$7),"Crop Development Phase",IF(AND(B58+1>'Calculation Sheet Crop 1'!$K$8,B58<'Calculation Sheet Crop 1'!$L$8+1),"Mid Season",IF(AND(B58+1>'Calculation Sheet Crop 1'!$K$9,B58-1<'Calculation Sheet Crop 1'!$L$9),"Late Season Stage","")))) ->  | D58: =IF(MONTH(B58)=1,'General Calculation'!$E$22,IF(MONTH(B58)=2,'General Calculation'!$F$22,IF(MONTH(B58)=3,'General Calculation'!$G$22,IF(MONTH(B58)=4,'General Calculation'!$H$22,IF(MONTH(B58)=5,'General Calculation'!$I$22,IF(MONTH(B58)=6,'General Calculation'!$J$22,IF(MONTH(B58)=7,'General Calculation'!$K$22,IF(MONTH(B58)=8,'General Calculation'!$L$22,IF(MONTH(B58)=9,'General Calculation'!$M$22,IF(MONTH(B58)=10,'General Calculation'!$N$22,IF(MONTH(B58)=11,'General Calculation'!$O$22,IF(MONTH(B58)=12,'General Calculation'!$P$22,"")))))))))))) -> 5.46 | E58: =IF(C58="Initial Stage",'Calculation Sheet Crop 1'!$M$6,IF(C58="Crop Development Phase",'Calculation Sheet Crop 1'!$M$7,IF(C58="Mid Season",'Calculation Sheet Crop 1'!$M$8,IF(C58="Late Season Stage",'Calculation Sheet Crop 1'!$M$9,"")))) ->  | F58: 0 | P58: 0 | Q58: 0 | R58: 0 | S58: 0 | T58: 0 | U58: 0 | V58: 0 | W58: 0 | X58: 0 | Y58: 0 | Z58: 0 | AA58: 0
B59: 2017-02-22 | C59: =IF(AND(B59>='Calculation Sheet Crop 1'!$K$6,B59<='Calculation Sheet Crop 1'!$L$6),"Initial Stage",IF(AND(B59+1>'Calculation Sheet Crop 1'!$K$7,B59<='Calculation Sheet Crop 1'!$L$7),"Crop Development Phase",IF(AND(B59+1>'Calculation Sheet Crop 1'!$K$8,B59<'Calculation Sheet Crop 1'!$L$8+1),"Mid Season",IF(AND(B59+1>'Calculation Sheet Crop 1'!$K$9,B59-1<'Calculation Sheet Crop 1'!$L$9),"Late Season Stage","")))) ->  | D59: =IF(MONTH(B59)=1,'General Calculation'!$E$22,IF(MONTH(B59)=2,'General Calculation'!$F$22,IF(MONTH(B59)=3,'General Calculation'!$G$22,IF(MONTH(B59)=4,'General Calculation'!$H$22,IF(MONTH(B59)=5,'General Calculation'!$I$22,IF(MONTH(B59)=6,'General Calculation'!$J$22,IF(MONTH(B59)=7,'General Calculation'!$K$22,IF(MONTH(B59)=8,'General Calculation'!$L$22,IF(MONTH(B59)=9,'General Calculation'!$M$22,IF(MONTH(B59)=10,'General Calculation'!$N$22,IF(MONTH(B59)=11,'General Calculation'!$O$22,IF(MONTH(B59)=12,'General Calculation'!$P$22,"")))))))))))) -> 5.46 | E59: =IF(C59="Initial Stage",'Calculation Sheet Crop 1'!$M$6,IF(C59="Crop Development Phase",'Calculation Sheet Crop 1'!$M$7,IF(C59="Mid Season",'Calculation Sheet Crop 1'!$M$8,IF(C59="Late Season Stage",'Calculation Sheet Crop 1'!$M$9,"")))) ->  | F59: 0 | P59: 0 | Q59: 0 | R59: 0 | S59: 0 | T59: 0 | U59: 0 | V59: 0 | W59: 0 | X59: 0 | Y59: 0 | Z59: 0 | AA59: 0
B60: 2017-02-23 | C60: =IF(AND(B60>='Calculation Sheet Crop 1'!$K$6,B60<='Calculation Sheet Crop 1'!$L$6),"Initial Stage",IF(AND(B60+1>'Calculation Sheet Crop 1'!$K$7,B60<='Calculation Sheet Crop 1'!$L$7),"Crop Development Phase",IF(AND(B60+1>'Calculation Sheet Crop 1'!$K$8,B60<'Calculation Sheet Crop 1'!$L$8+1),"Mid Season",IF(AND(B60+1>'Calculation Sheet Crop 1'!$K$9,B60-1<'Calculation Sheet Crop 1'!$L$9),"Late Season Stage","")))) ->  | D60: =IF(MONTH(B60)=1,'General Calculation'!$E$22,IF(MONTH(B60)=2,'General Calculation'!$F$22,IF(MONTH(B60)=3,'General Calculation'!$G$22,IF(MONTH(B60)=4,'General Calculation'!$H$22,IF(MONTH(B60)=5,'General Calculation'!$I$22,IF(MONTH(B60)=6,'General Calculation'!$J$22,IF(MONTH(B60)=7,'General Calculation'!$K$22,IF(MONTH(B60)=8,'General Calculation'!$L$22,IF(MONTH(B60)=9,'General Calculation'!$M$22,IF(MONTH(B60)=10,'General Calculation'!$N$22,IF(MONTH(B60)=11,'General Calculation'!$O$22,IF(MONTH(B60)=12,'General Calculation'!$P$22,"")))))))))))) -> 5.46 | E60: =IF(C60="Initial Stage",'Calculation Sheet Crop 1'!$M$6,IF(C60="Crop Development Phase",'Calculation Sheet Crop 1'!$M$7,IF(C60="Mid Season",'Calculation Sheet Crop 1'!$M$8,IF(C60="Late Season Stage",'Calculation Sheet Crop 1'!$M$9,"")))) ->  | F60: 0 | P60: 0 | Q60: 0 | R60: 0 | S60: 0 | T60: 0 | U60: 0 | V60: 0 | W60: 0 | X60: 0 | Y60: 0 | Z60: 0 | AA60: 0
B61: 2017-02-24 | C61: =IF(AND(B61>='Calculation Sheet Crop 1'!$K$6,B61<='Calculation Sheet Crop 1'!$L$6),"Initial Stage",IF(AND(B61+1>'Calculation Sheet Crop 1'!$K$7,B61<='Calculation Sheet Crop 1'!$L$7),"Crop Development Phase",IF(AND(B61+1>'Calculation Sheet Crop 1'!$K$8,B61<'Calculation Sheet Crop 1'!$L$8+1),"Mid Season",IF(AND(B61+1>'Calculation Sheet Crop 1'!$K$9,B61-1<'Calculation Sheet Crop 1'!$L$9),"Late Season Stage","")))) ->  | D61: =IF(MONTH(B61)=1,'General Calculation'!$E$22,IF(MONTH(B61)=2,'General Calculation'!$F$22,IF(MONTH(B61)=3,'General Calculation'!$G$22,IF(MONTH(B61)=4,'General Calculation'!$H$22,IF(MONTH(B61)=5,'General Calculation'!$I$22,IF(MONTH(B61)=6,'General Calculation'!$J$22,IF(MONTH(B61)=7,'General Calculation'!$K$22,IF(MONTH(B61)=8,'General Calculation'!$L$22,IF(MONTH(B61)=9,'General Calculation'!$M$22,IF(MONTH(B61)=10,'General Calculation'!$N$22,IF(MONTH(B61)=11,'General Calculation'!$O$22,IF(MONTH(B61)=12,'General Calculation'!$P$22,"")))))))))))) -> 5.46 | E61: =IF(C61="Initial Stage",'Calculation Sheet Crop 1'!$M$6,IF(C61="Crop Development Phase",'Calculation Sheet Crop 1'!$M$7,IF(C61="Mid Season",'Calculation Sheet Crop 1'!$M$8,IF(C61="Late Season Stage",'Calculation Sheet Crop 1'!$M$9,"")))) ->  | F61: 0 | P61: 0 | Q61: 0 | R61: 0 | S61: 0 | T61: 0 | U61: 0 | V61: 0 | W61: 0 | X61: 0 | Y61: 0 | Z61: 0 | AA61: 0
B62: 2017-02-25 | C62: =IF(AND(B62>='Calculation Sheet Crop 1'!$K$6,B62<='Calculation Sheet Crop 1'!$L$6),"Initial Stage",IF(AND(B62+1>'Calculation Sheet Crop 1'!$K$7,B62<='Calculation Sheet Crop 1'!$L$7),"Crop Development Phase",IF(AND(B62+1>'Calculation Sheet Crop 1'!$K$8,B62<'Calculation Sheet Crop 1'!$L$8+1),"Mid Season",IF(AND(B62+1>'Calculation Sheet Crop 1'!$K$9,B62-1<'Calculation Sheet Crop 1'!$L$9),"Late Season Stage","")))) ->  | D62: =IF(MONTH(B62)=1,'General Calculation'!$E$22,IF(MONTH(B62)=2,'General Calculation'!$F$22,IF(MONTH(B62)=3,'General Calculation'!$G$22,IF(MONTH(B62)=4,'General Calculation'!$H$22,IF(MONTH(B62)=5,'General Calculation'!$I$22,IF(MONTH(B62)=6,'General Calculation'!$J$22,IF(MONTH(B62)=7,'General Calculation'!$K$22,IF(MONTH(B62)=8,'General Calculation'!$L$22,IF(MONTH(B62)=9,'General Calculation'!$M$22,IF(MONTH(B62)=10,'General Calculation'!$N$22,IF(MONTH(B62)=11,'General Calculation'!$O$22,IF(MONTH(B62)=12,'General Calculation'!$P$22,"")))))))))))) -> 5.46 | E62: =IF(C62="Initial Stage",'Calculation Sheet Crop 1'!$M$6,IF(C62="Crop Development Phase",'Calculation Sheet Crop 1'!$M$7,IF(C62="Mid Season",'Calculation Sheet Crop 1'!$M$8,IF(C62="Late Season Stage",'Calculation Sheet Crop 1'!$M$9,"")))) ->  | F62: 0 | P62: 0 | Q62: 0 | R62: 0 | S62: 0 | T62: 0 | U62: 0 | V62: 0 | W62: 0 | X62: 0 | Y62: 0 | Z62: 0 | AA62: 0
B63: 2017-02-26 | C63: =IF(AND(B63>='Calculation Sheet Crop 1'!$K$6,B63<='Calculation Sheet Crop 1'!$L$6),"Initial Stage",IF(AND(B63+1>'Calculation Sheet Crop 1'!$K$7,B63<='Calculation Sheet Crop 1'!$L$7),"Crop Development Phase",IF(AND(B63+1>'Calculation Sheet Crop 1'!$K$8,B63<'Calculation Sheet Crop 1'!$L$8+1),"Mid Season",IF(AND(B63+1>'Calculation Sheet Crop 1'!$K$9,B63-1<'Calculation Sheet Crop 1'!$L$9),"Late Season Stage","")))) ->  | D63: =IF(MONTH(B63)=1,'General Calculation'!$E$22,IF(MONTH(B63)=2,'General Calculation'!$F$22,IF(MONTH(B63)=3,'General Calculation'!$G$22,IF(MONTH(B63)=4,'General Calculation'!$H$22,IF(MONTH(B63)=5,'General Calculation'!$I$22,IF(MONTH(B63)=6,'General Calculation'!$J$22,IF(MONTH(B63)=7,'General Calculation'!$K$22,IF(MONTH(B63)=8,'General Calculation'!$L$22,IF(MONTH(B63)=9,'General Calculation'!$M$22,IF(MONTH(B63)=10,'General Calculation'!$N$22,IF(MONTH(B63)=11,'General Calculation'!$O$22,IF(MONTH(B63)=12,'General Calculation'!$P$22,"")))))))))))) -> 5.46 | E63: =IF(C63="Initial Stage",'Calculation Sheet Crop 1'!$M$6,IF(C63="Crop Development Phase",'Calculation Sheet Crop 1'!$M$7,IF(C63="Mid Season",'Calculation Sheet Crop 1'!$M$8,IF(C63="Late Season Stage",'Calculation Sheet Crop 1'!$M$9,"")))) ->  | F63: 0 | P63: 0 | Q63: 0 | R63: 0 | S63: 0 | T63: 0 | U63: 0 | V63: 0 | W63: 0 | X63: 0 | Y63: 0 | Z63: 0 | AA63: 0
B64: 2017-02-27 | C64: =IF(AND(B64>='Calculation Sheet Crop 1'!$K$6,B64<='Calculation Sheet Crop 1'!$L$6),"Initial Stage",IF(AND(B64+1>'Calculation Sheet Crop 1'!$K$7,B64<='Calculation Sheet Crop 1'!$L$7),"Crop Development Phase",IF(AND(B64+1>'Calculation Sheet Crop 1'!$K$8,B64<'Calculation Sheet Crop 1'!$L$8+1),"Mid Season",IF(AND(B64+1>'Calculation Sheet Crop 1'!$K$9,B64-1<'Calculation Sheet Crop 1'!$L$9),"Late Season Stage","")))) ->  | D64: =IF(MONTH(B64)=1,'General Calculation'!$E$22,IF(MONTH(B64)=2,'General Calculation'!$F$22,IF(MONTH(B64)=3,'General Calculation'!$G$22,IF(MONTH(B64)=4,'General Calculation'!$H$22,IF(MONTH(B64)=5,'General Calculation'!$I$22,IF(MONTH(B64)=6,'General Calculation'!$J$22,IF(MONTH(B64)=7,'General Calculation'!$K$22,IF(MONTH(B64)=8,'General Calculation'!$L$22,IF(MONTH(B64)=9,'General Calculation'!$M$22,IF(MONTH(B64)=10,'General Calculation'!$N$22,IF(MONTH(B64)=11,'General Calculation'!$O$22,IF(MONTH(B64)=12,'General Calculation'!$P$22,"")))))))))))) -> 5.46 | E64: =IF(C64="Initial Stage",'Calculation Sheet Crop 1'!$M$6,IF(C64="Crop Development Phase",'Calculation Sheet Crop 1'!$M$7,IF(C64="Mid Season",'Calculation Sheet Crop 1'!$M$8,IF(C64="Late Season Stage",'Calculation Sheet Crop 1'!$M$9,"")))) ->  | F64: 0 | P64: 0 | Q64: 0 | R64: 0 | S64: 0 | T64: 0 | U64: 0 | V64: 0 | W64: 0 | X64: 0 | Y64: 0 | Z64: 0 | AA64: 0
B65: 2017-02-28 | C65: =IF(AND(B65>='Calculation Sheet Crop 1'!$K$6,B65<='Calculation Sheet Crop 1'!$L$6),"Initial Stage",IF(AND(B65+1>'Calculation Sheet Crop 1'!$K$7,B65<='Calculation Sheet Crop 1'!$L$7),"Crop Development Phase",IF(AND(B65+1>'Calculation Sheet Crop 1'!$K$8,B65<'Calculation Sheet Crop 1'!$L$8+1),"Mid Season",IF(AND(B65+1>'Calculation Sheet Crop 1'!$K$9,B65-1<'Calculation Sheet Crop 1'!$L$9),"Late Season Stage","")))) ->  | D65: =IF(MONTH(B65)=1,'General Calculation'!$E$22,IF(MONTH(B65)=2,'General Calculation'!$F$22,IF(MONTH(B65)=3,'General Calculation'!$G$22,IF(MONTH(B65)=4,'General Calculation'!$H$22,IF(MONTH(B65)=5,'General Calculation'!$I$22,IF(MONTH(B65)=6,'General Calculation'!$J$22,IF(MONTH(B65)=7,'General Calculation'!$K$22,IF(MONTH(B65)=8,'General Calculation'!$L$22,IF(MONTH(B65)=9,'General Calculation'!$M$22,IF(MONTH(B65)=10,'General Calculation'!$N$22,IF(MONTH(B65)=11,'General Calculation'!$O$22,IF(MONTH(B65)=12,'General Calculation'!$P$22,"")))))))))))) -> 5.46 | E65: =IF(C65="Initial Stage",'Calculation Sheet Crop 1'!$M$6,IF(C65="Crop Development Phase",'Calculation Sheet Crop 1'!$M$7,IF(C65="Mid Season",'Calculation Sheet Crop 1'!$M$8,IF(C65="Late Season Stage",'Calculation Sheet Crop 1'!$M$9,"")))) ->  | F65: 0 | P65: 0 | Q65: 0 | R65: 0 | S65: 0 | T65: 0 | U65: 0 | V65: 0 | W65: 0 | X65: 0 | Y65: 0 | Z65: 0 | AA65: 0
B66: 2017-03-01 | C66: =IF(AND(B66>='Calculation Sheet Crop 1'!$K$6,B66<='Calculation Sheet Crop 1'!$L$6),"Initial Stage",IF(AND(B66+1>'Calculation Sheet Crop 1'!$K$7,B66<='Calculation Sheet Crop 1'!$L$7),"Crop Development Phase",IF(AND(B66+1>'Calculation Sheet Crop 1'!$K$8,B66<'Calculation Sheet Crop 1'!$L$8+1),"Mid Season",IF(AND(B66+1>'Calculation Sheet Crop 1'!$K$9,B66-1<'Calculation Sheet Crop 1'!$L$9),"Late Season Stage","")))) ->  | D66: =IF(MONTH(B66)=1,'General Calculation'!$E$22,IF(MONTH(B66)=2,'General Calculation'!$F$22,IF(MONTH(B66)=3,'General Calculation'!$G$22,IF(MONTH(B66)=4,'General Calculation'!$H$22,IF(MONTH(B66)=5,'General Calculation'!$I$22,IF(MONTH(B66)=6,'General Calculation'!$J$22,IF(MONTH(B66)=7,'General Calculation'!$K$22,IF(MONTH(B66)=8,'General Calculation'!$L$22,IF(MONTH(B66)=9,'General Calculation'!$M$22,IF(MONTH(B66)=10,'General Calculation'!$N$22,IF(MONTH(B66)=11,'General Calculation'!$O$22,IF(MONTH(B66)=12,'General Calculation'!$P$22,"")))))))))))) -> 5.40848 | E66: =IF(C66="Initial Stage",'Calculation Sheet Crop 1'!$M$6,IF(C66="Crop Development Phase",'Calculation Sheet Crop 1'!$M$7,IF(C66="Mid Season",'Calculation Sheet Crop 1'!$M$8,IF(C66="Late Season Stage",'Calculation Sheet Crop 1'!$M$9,"")))) ->  | F66: 0 | P66: 0 | Q66: 0 | R66: 0 | S66: 0 | T66: 0 | U66: 0 | V66: 0 | W66: 0 | X66: 0 | Y66: 0 | Z66: 0 | AA66: 0
B67: 2017-03-02 | C67: =IF(AND(B67>='Calculation Sheet Crop 1'!$K$6,B67<='Calculation Sheet Crop 1'!$L$6),"Initial Stage",IF(AND(B67+1>'Calculation Sheet Crop 1'!$K$7,B67<='Calculation Sheet Crop 1'!$L$7),"Crop Development Phase",IF(AND(B67+1>'Calculation Sheet Crop 1'!$K$8,B67<'Calculation Sheet Crop 1'!$L$8+1),"Mid Season",IF(AND(B67+1>'Calculation Sheet Crop 1'!$K$9,B67-1<'Calculation Sheet Crop 1'!$L$9),"Late Season Stage","")))) ->  | D67: =IF(MONTH(B67)=1,'General Calculation'!$E$22,IF(MONTH(B67)=2,'General Calculation'!$F$22,IF(MONTH(B67)=3,'General Calculation'!$G$22,IF(MONTH(B67)=4,'General Calculation'!$H$22,IF(MONTH(B67)=5,'General Calculation'!$I$22,IF(MONTH(B67)=6,'General Calculation'!$J$22,IF(MONTH(B67)=7,'General Calculation'!$K$22,IF(MONTH(B67)=8,'General Calculation'!$L$22,IF(MONTH(B67)=9,'General Calculation'!$M$22,IF(MONTH(B67)=10,'General Calculation'!$N$22,IF(MONTH(B67)=11,'General Calculation'!$O$22,IF(MONTH(B67)=12,'General Calculation'!$P$22,"")))))))))))) -> 5.40848 | E67: =IF(C67="Initial Stage",'Calculation Sheet Crop 1'!$M$6,IF(C67="Crop Development Phase",'Calculation Sheet Crop 1'!$M$7,IF(C67="Mid Season",'Calculation Sheet Crop 1'!$M$8,IF(C67="Late Season Stage",'Calculation Sheet Crop 1'!$M$9,"")))) ->  | F67: 0 | P67: 0 | Q67: 0 | R67: 0 | S67: 0 | T67: 0 | U67: 0 | V67: 0 | W67: 0 | X67: 0 | Y67: 0 | Z67: 0 | AA67: 0
B68: 2017-03-03 | C68: =IF(AND(B68>='Calculation Sheet Crop 1'!$K$6,B68<='Calculation Sheet Crop 1'!$L$6),"Initial Stage",IF(AND(B68+1>'Calculation Sheet Crop 1'!$K$7,B68<='Calculation Sheet Crop 1'!$L$7),"Crop Development Phase",IF(AND(B68+1>'Calculation Sheet Crop 1'!$K$8,B68<'Calculation Sheet Crop 1'!$L$8+1),"Mid Season",IF(AND(B68+1>'Calculation Sheet Crop 1'!$K$9,B68-1<'Calculation Sheet Crop 1'!$L$9),"Late Season Stage","")))) ->  | D68: =IF(MONTH(B68)=1,'General Calculation'!$E$22,IF(MONTH(B68)=2,'General Calculation'!$F$22,IF(MONTH(B68)=3,'General Calculation'!$G$22,IF(MONTH(B68)=4,'General Calculation'!$H$22,IF(MONTH(B68)=5,'General Calculation'!$I$22,IF(MONTH(B68)=6,'General Calculation'!$J$22,IF(MONTH(B68)=7,'General Calculation'!$K$22,IF(MONTH(B68)=8,'General Calculation'!$L$22,IF(MONTH(B68)=9,'General Calculation'!$M$22,IF(MONTH(B68)=10,'General Calculation'!$N$22,IF(MONTH(B68)=11,'General Calculation'!$O$22,IF(MONTH(B68)=12,'General Calculation'!$P$22,"")))))))))))) -> 5.40848 | E68: =IF(C68="Initial Stage",'Calculation Sheet Crop 1'!$M$6,IF(C68="Crop Development Phase",'Calculation Sheet Crop 1'!$M$7,IF(C68="Mid Season",'Calculation Sheet Crop 1'!$M$8,IF(C68="Late Season Stage",'Calculation Sheet Crop 1'!$M$9,"")))) ->  | F68: 0 | P68: 0 | Q68: 0 | R68: 0 | S68: 0 | T68: 0 | U68: 0 | V68: 0 | W68: 0 | X68: 0 | Y68: 0 | Z68: 0 | AA68: 0
B69: 2017-03-04 | C69: =IF(AND(B69>='Calculation Sheet Crop 1'!$K$6,B69<='Calculation Sheet Crop 1'!$L$6),"Initial Stage",IF(AND(B69+1>'Calculation Sheet Crop 1'!$K$7,B69<='Calculation Sheet Crop 1'!$L$7),"Crop Development Phase",IF(AND(B69+1>'Calculation Sheet Crop 1'!$K$8,B69<'Calculation Sheet Crop 1'!$L$8+1),"Mid Season",IF(AND(B69+1>'Calculation Sheet Crop 1'!$K$9,B69-1<'Calculation Sheet Crop 1'!$L$9),"Late Season Stage","")))) ->  | D69: =IF(MONTH(B69)=1,'General Calculation'!$E$22,IF(MONTH(B69)=2,'General Calculation'!$F$22,IF(MONTH(B69)=3,'General Calculation'!$G$22,IF(MONTH(B69)=4,'General Calculation'!$H$22,IF(MONTH(B69)=5,'General Calculation'!$I$22,IF(MONTH(B69)=6,'General Calculation'!$J$22,IF(MONTH(B69)=7,'General Calculation'!$K$22,IF(MONTH(B69)=8,'General Calculation'!$L$22,IF(MONTH(B69)=9,'General Calculation'!$M$22,IF(MONTH(B69)=10,'General Calculation'!$N$22,IF(MONTH(B69)=11,'General Calculation'!$O$22,IF(MONTH(B69)=12,'General Calculation'!$P$22,"")))))))))))) -> 5.40848 | E69: =IF(C69="Initial Stage",'Calculation Sheet Crop 1'!$M$6,IF(C69="Crop Development Phase",'Calculation Sheet Crop 1'!$M$7,IF(C69="Mid Season",'Calculation Sheet Crop 1'!$M$8,IF(C69="Late Season Stage",'Calculation Sheet Crop 1'!$M$9,"")))) ->  | F69: 0 | P69: 0 | Q69: 0 | R69: 0 | S69: 0 | T69: 0 | U69: 0 | V69: 0 | W69: 0 | X69: 0 | Y69: 0 | Z69: 0 | AA69: 0
B70: 2017-03-05 | C70: =IF(AND(B70>='Calculation Sheet Crop 1'!$K$6,B70<='Calculation Sheet Crop 1'!$L$6),"Initial Stage",IF(AND(B70+1>'Calculation Sheet Crop 1'!$K$7,B70<='Calculation Sheet Crop 1'!$L$7),"Crop Development Phase",IF(AND(B70+1>'Calculation Sheet Crop 1'!$K$8,B70<'Calculation Sheet Crop 1'!$L$8+1),"Mid Season",IF(AND(B70+1>'Calculation Sheet Crop 1'!$K$9,B70-1<'Calculation Sheet Crop 1'!$L$9),"Late Season Stage","")))) ->  | D70: =IF(MONTH(B70)=1,'General Calculation'!$E$22,IF(MONTH(B70)=2,'General Calculation'!$F$22,IF(MONTH(B70)=3,'General Calculation'!$G$22,IF(MONTH(B70)=4,'General Calculation'!$H$22,IF(MONTH(B70)=5,'General Calculation'!$I$22,IF(MONTH(B70)=6,'General Calculation'!$J$22,IF(MONTH(B70)=7,'General Calculation'!$K$22,IF(MONTH(B70)=8,'General Calculation'!$L$22,IF(MONTH(B70)=9,'General Calculation'!$M$22,IF(MONTH(B70)=10,'General Calculation'!$N$22,IF(MONTH(B70)=11,'General Calculation'!$O$22,IF(MONTH(B70)=12,'General Calculation'!$P$22,"")))))))))))) -> 5.40848 | E70: =IF(C70="Initial Stage",'Calculation Sheet Crop 1'!$M$6,IF(C70="Crop Development Phase",'Calculation Sheet Crop 1'!$M$7,IF(C70="Mid Season",'Calculation Sheet Crop 1'!$M$8,IF(C70="Late Season Stage",'Calculation Sheet Crop 1'!$M$9,"")))) ->  | F70: 0 | P70: 0 | Q70: 0 | R70: 0 | S70: 0 | T70: 0 | U70: 0 | V70: 0 | W70: 0 | X70: 0 | Y70: 0 | Z70: 0 | AA70: 0
B71: 2017-03-06 | C71: =IF(AND(B71>='Calculation Sheet Crop 1'!$K$6,B71<='Calculation Sheet Crop 1'!$L$6),"Initial Stage",IF(AND(B71+1>'Calculation Sheet Crop 1'!$K$7,B71<='Calculation Sheet Crop 1'!$L$7),"Crop Development Phase",IF(AND(B71+1>'Calculation Sheet Crop 1'!$K$8,B71<'Calculation Sheet Crop 1'!$L$8+1),"Mid Season",IF(AND(B71+1>'Calculation Sheet Crop 1'!$K$9,B71-1<'Calculation Sheet Crop 1'!$L$9),"Late Season Stage","")))) ->  | D71: =IF(MONTH(B71)=1,'General Calculation'!$E$22,IF(MONTH(B71)=2,'General Calculation'!$F$22,IF(MONTH(B71)=3,'General Calculation'!$G$22,IF(MONTH(B71)=4,'General Calculation'!$H$22,IF(MONTH(B71)=5,'General Calculation'!$I$22,IF(MONTH(B71)=6,'General Calculation'!$J$22,IF(MONTH(B71)=7,'General Calculation'!$K$22,IF(MONTH(B71)=8,'General Calculation'!$L$22,IF(MONTH(B71)=9,'General Calculation'!$M$22,IF(MONTH(B71)=10,'General Calculation'!$N$22,IF(MONTH(B71)=11,'General Calculation'!$O$22,IF(MONTH(B71)=12,'General Calculation'!$P$22,"")))))))))))) -> 5.40848 | E71: =IF(C71="Initial Stage",'Calculation Sheet Crop 1'!$M$6,IF(C71="Crop Development Phase",'Calculation Sheet Crop 1'!$M$7,IF(C71="Mid Season",'Calculation Sheet Crop 1'!$M$8,IF(C71="Late Season Stage",'Calculation Sheet Crop 1'!$M$9,"")))) ->  | F71: 0 | P71: 0 | Q71: 0 | R71: 0 | S71: 0 | T71: 0 | U71: 0 | V71: 0 | W71: 0 | X71: 0 | Y71: 0 | Z71: 0 | AA71: 0
B72: 2017-03-07 | C72: =IF(AND(B72>='Calculation Sheet Crop 1'!$K$6,B72<='Calculation Sheet Crop 1'!$L$6),"Initial Stage",IF(AND(B72+1>'Calculation Sheet Crop 1'!$K$7,B72<='Calculation Sheet Crop 1'!$L$7),"Crop Development Phase",IF(AND(B72+1>'Calculation Sheet Crop 1'!$K$8,B72<'Calculation Sheet Crop 1'!$L$8+1),"Mid Season",IF(AND(B72+1>'Calculation Sheet Crop 1'!$K$9,B72-1<'Calculation Sheet Crop 1'!$L$9),"Late Season Stage","")))) ->  | D72: =IF(MONTH(B72)=1,'General Calculation'!$E$22,IF(MONTH(B72)=2,'General Calculation'!$F$22,IF(MONTH(B72)=3,'General Calculation'!$G$22,IF(MONTH(B72)=4,'General Calculation'!$H$22,IF(MONTH(B72)=5,'General Calculation'!$I$22,IF(MONTH(B72)=6,'General Calculation'!$J$22,IF(MONTH(B72)=7,'General Calculation'!$K$22,IF(MONTH(B72)=8,'General Calculation'!$L$22,IF(MONTH(B72)=9,'General Calculation'!$M$22,IF(MONTH(B72)=10,'General Calculation'!$N$22,IF(MONTH(B72)=11,'General Calculation'!$O$22,IF(MONTH(B72)=12,'General Calculation'!$P$22,"")))))))))))) -> 5.40848 | E72: =IF(C72="Initial Stage",'Calculation Sheet Crop 1'!$M$6,IF(C72="Crop Development Phase",'Calculation Sheet Crop 1'!$M$7,IF(C72="Mid Season",'Calculation Sheet Crop 1'!$M$8,IF(C72="Late Season Stage",'Calculation Sheet Crop 1'!$M$9,"")))) ->  | F72: =IFERROR((D72*E72),0) -> 0 | P72: =IF(MONTH($B72)=1,$F72,0) -> 0 | Q72: =IF(MONTH($B72)=2,$F72,0) -> 0 | R72: =IF(MONTH($B72)=3,$F72,0) -> 0 | S72: =IF(MONTH($B72)=4,$F72,0) -> 0 | T72: =IF(MONTH($B72)=5,$F72,0) -> 0 | U72: =IF(MONTH($B72)=6,$F72,0) -> 0 | V72: =IF(MONTH($B72)=7,$F72,0) -> 0 | W72: =IF(MONTH($B72)=8,$F72,0) -> 0 | X72: =IF(MONTH($B72)=9,$F72,0) -> 0 | Y72: =IF(MONTH($B72)=10,$F72,0) -> 0 | Z72: =IF(MONTH($B72)=11,$F72,0) -> 0 | AA72: =IF(MONTH($B72)=12,$F72,0) -> 0
B73: 2017-03-08 | C73: =IF(AND(B73>='Calculation Sheet Crop 1'!$K$6,B73<='Calculation Sheet Crop 1'!$L$6),"Initial Stage",IF(AND(B73+1>'Calculation Sheet Crop 1'!$K$7,B73<='Calculation Sheet Crop 1'!$L$7),"Crop Development Phase",IF(AND(B73+1>'Calculation Sheet Crop 1'!$K$8,B73<'Calculation Sheet Crop 1'!$L$8+1),"Mid Season",IF(AND(B73+1>'Calculation Sheet Crop 1'!$K$9,B73-1<'Calculation Sheet Crop 1'!$L$9),"Late Season Stage","")))) ->  | D73: =IF(MONTH(B73)=1,'General Calculation'!$E$22,IF(MONTH(B73)=2,'General Calculation'!$F$22,IF(MONTH(B73)=3,'General Calculation'!$G$22,IF(MONTH(B73)=4,'General Calculation'!$H$22,IF(MONTH(B73)=5,'General Calculation'!$I$22,IF(MONTH(B73)=6,'General Calculation'!$J$22,IF(MONTH(B73)=7,'General Calculation'!$K$22,IF(MONTH(B73)=8,'General Calculation'!$L$22,IF(MONTH(B73)=9,'General Calculation'!$M$22,IF(MONTH(B73)=10,'General Calculation'!$N$22,IF(MONTH(B73)=11,'General Calculation'!$O$22,IF(MONTH(B73)=12,'General Calculation'!$P$22,"")))))))))))) -> 5.40848 | E73: =IF(C73="Initial Stage",'Calculation Sheet Crop 1'!$M$6,IF(C73="Crop Development Phase",'Calculation Sheet Crop 1'!$M$7,IF(C73="Mid Season",'Calculation Sheet Crop 1'!$M$8,IF(C73="Late Season Stage",'Calculation Sheet Crop 1'!$M$9,"")))) ->  | F73: 0 | P73: 0 | Q73: 0 | R73: 0 | S73: 0 | T73: 0 | U73: 0 | V73: 0 | W73: 0 | X73: 0 | Y73: 0 | Z73: 0 | AA73: 0
B74: 2017-03-09 | C74: =IF(AND(B74>='Calculation Sheet Crop 1'!$K$6,B74<='Calculation Sheet Crop 1'!$L$6),"Initial Stage",IF(AND(B74+1>'Calculation Sheet Crop 1'!$K$7,B74<='Calculation Sheet Crop 1'!$L$7),"Crop Development Phase",IF(AND(B74+1>'Calculation Sheet Crop 1'!$K$8,B74<'Calculation Sheet Crop 1'!$L$8+1),"Mid Season",IF(AND(B74+1>'Calculation Sheet Crop 1'!$K$9,B74-1<'Calculation Sheet Crop 1'!$L$9),"Late Season Stage","")))) ->  | D74: =IF(MONTH(B74)=1,'General Calculation'!$E$22,IF(MONTH(B74)=2,'General Calculation'!$F$22,IF(MONTH(B74)=3,'General Calculation'!$G$22,IF(MONTH(B74)=4,'General Calculation'!$H$22,IF(MONTH(B74)=5,'General Calculation'!$I$22,IF(MONTH(B74)=6,'General Calculation'!$J$22,IF(MONTH(B74)=7,'General Calculation'!$K$22,IF(MONTH(B74)=8,'General Calculation'!$L$22,IF(MONTH(B74)=9,'General Calculation'!$M$22,IF(MONTH(B74)=10,'General Calculation'!$N$22,IF(MONTH(B74)=11,'General Calculation'!$O$22,IF(MONTH(B74)=12,'General Calculation'!$P$22,"")))))))))))) -> 5.40848 | E74: =IF(C74="Initial Stage",'Calculation Sheet Crop 1'!$M$6,IF(C74="Crop Development Phase",'Calculation Sheet Crop 1'!$M$7,IF(C74="Mid Season",'Calculation Sheet Crop 1'!$M$8,IF(C74="Late Season Stage",'Calculation Sheet Crop 1'!$M$9,"")))) ->  | F74: 0 | P74: 0 | Q74: 0 | R74: 0 | S74: 0 | T74: 0 | U74: 0 | V74: 0 | W74: 0 | X74: 0 | Y74: 0 | Z74: 0 | AA74: 0
B75: 2017-03-10 | C75: =IF(AND(B75>='Calculation Sheet Crop 1'!$K$6,B75<='Calculation Sheet Crop 1'!$L$6),"Initial Stage",IF(AND(B75+1>'Calculation Sheet Crop 1'!$K$7,B75<='Calculation Sheet Crop 1'!$L$7),"Crop Development Phase",IF(AND(B75+1>'Calculation Sheet Crop 1'!$K$8,B75<'Calculation Sheet Crop 1'!$L$8+1),"Mid Season",IF(AND(B75+1>'Calculation Sheet Crop 1'!$K$9,B75-1<'Calculation Sheet Crop 1'!$L$9),"Late Season Stage","")))) ->  | D75: =IF(MONTH(B75)=1,'General Calculation'!$E$22,IF(MONTH(B75)=2,'General Calculation'!$F$22,IF(MONTH(B75)=3,'General Calculation'!$G$22,IF(MONTH(B75)=4,'General Calculation'!$H$22,IF(MONTH(B75)=5,'General Calculation'!$I$22,IF(MONTH(B75)=6,'General Calculation'!$J$22,IF(MONTH(B75)=7,'General Calculation'!$K$22,IF(MONTH(B75)=8,'General Calculation'!$L$22,IF(MONTH(B75)=9,'General Calculation'!$M$22,IF(MONTH(B75)=10,'General Calculation'!$N$22,IF(MONTH(B75)=11,'General Calculation'!$O$22,IF(MONTH(B75)=12,'General Calculation'!$P$22,"")))))))))))) -> 5.40848 | E75: =IF(C75="Initial Stage",'Calculation Sheet Crop 1'!$M$6,IF(C75="Crop Development Phase",'Calculation Sheet Crop 1'!$M$7,IF(C75="Mid Season",'Calculation Sheet Crop 1'!$M$8,IF(C75="Late Season Stage",'Calculation Sheet Crop 1'!$M$9,"")))) ->  | F75: 0 | P75: 0 | Q75: 0 | R75: 0 | S75: 0 | T75: 0 | U75: 0 | V75: 0 | W75: 0 | X75: 0 | Y75: 0 | Z75: 0 | AA75: 0
B76: 2017-03-11 | C76: =IF(AND(B76>='Calculation Sheet Crop 1'!$K$6,B76<='Calculation Sheet Crop 1'!$L$6),"Initial Stage",IF(AND(B76+1>'Calculation Sheet Crop 1'!$K$7,B76<='Calculation Sheet Crop 1'!$L$7),"Crop Development Phase",IF(AND(B76+1>'Calculation Sheet Crop 1'!$K$8,B76<'Calculation Sheet Crop 1'!$L$8+1),"Mid Season",IF(AND(B76+1>'Calculation Sheet Crop 1'!$K$9,B76-1<'Calculation Sheet Crop 1'!$L$9),"Late Season Stage","")))) ->  | D76: =IF(MONTH(B76)=1,'General Calculation'!$E$22,IF(MONTH(B76)=2,'General Calculation'!$F$22,IF(MONTH(B76)=3,'General Calculation'!$G$22,IF(MONTH(B76)=4,'General Calculation'!$H$22,IF(MONTH(B76)=5,'General Calculation'!$I$22,IF(MONTH(B76)=6,'General Calculation'!$J$22,IF(MONTH(B76)=7,'General Calculation'!$K$22,IF(MONTH(B76)=8,'General Calculation'!$L$22,IF(MONTH(B76)=9,'General Calculation'!$M$22,IF(MONTH(B76)=10,'General Calculation'!$N$22,IF(MONTH(B76)=11,'General Calculation'!$O$22,IF(MONTH(B76)=12,'General Calculation'!$P$22,"")))))))))))) -> 5.40848 | E76: =IF(C76="Initial Stage",'Calculation Sheet Crop 1'!$M$6,IF(C76="Crop Development Phase",'Calculation Sheet Crop 1'!$M$7,IF(C76="Mid Season",'Calculation Sheet Crop 1'!$M$8,IF(C76="Late Season Stage",'Calculation Sheet Crop 1'!$M$9,"")))) ->  | F76: 0 | P76: 0 | Q76: 0 | R76: 0 | S76: 0 | T76: 0 | U76: 0 | V76: 0 | W76: 0 | X76: 0 | Y76: 0 | Z76: 0 | AA76: 0
B77: 2017-03-12 | C77: =IF(AND(B77>='Calculation Sheet Crop 1'!$K$6,B77<='Calculation Sheet Crop 1'!$L$6),"Initial Stage",IF(AND(B77+1>'Calculation Sheet Crop 1'!$K$7,B77<='Calculation Sheet Crop 1'!$L$7),"Crop Development Phase",IF(AND(B77+1>'Calculation Sheet Crop 1'!$K$8,B77<'Calculation Sheet Crop 1'!$L$8+1),"Mid Season",IF(AND(B77+1>'Calculation Sheet Crop 1'!$K$9,B77-1<'Calculation Sheet Crop 1'!$L$9),"Late Season Stage","")))) ->  | D77: =IF(MONTH(B77)=1,'General Calculation'!$E$22,IF(MONTH(B77)=2,'General Calculation'!$F$22,IF(MONTH(B77)=3,'General Calculation'!$G$22,IF(MONTH(B77)=4,'General Calculation'!$H$22,IF(MONTH(B77)=5,'General Calculation'!$I$22,IF(MONTH(B77)=6,'General Calculation'!$J$22,IF(MONTH(B77)=7,'General Calculation'!$K$22,IF(MONTH(B77)=8,'General Calculation'!$L$22,IF(MONTH(B77)=9,'General Calculation'!$M$22,IF(MONTH(B77)=10,'General Calculation'!$N$22,IF(MONTH(B77)=11,'General Calculation'!$O$22,IF(MONTH(B77)=12,'General Calculation'!$P$22,"")))))))))))) -> 5.40848 | E77: =IF(C77="Initial Stage",'Calculation Sheet Crop 1'!$M$6,IF(C77="Crop Development Phase",'Calculation Sheet Crop 1'!$M$7,IF(C77="Mid Season",'Calculation Sheet Crop 1'!$M$8,IF(C77="Late Season Stage",'Calculation Sheet Crop 1'!$M$9,"")))) ->  | F77: 0 | P77: 0 | Q77: 0 | R77: 0 | S77: 0 | T77: 0 | U77: 0 | V77: 0 | W77: 0 | X77: 0 | Y77: 0 | Z77: 0 | AA77: 0
B78: 2017-03-13 | C78: =IF(AND(B78>='Calculation Sheet Crop 1'!$K$6,B78<='Calculation Sheet Crop 1'!$L$6),"Initial Stage",IF(AND(B78+1>'Calculation Sheet Crop 1'!$K$7,B78<='Calculation Sheet Crop 1'!$L$7),"Crop Development Phase",IF(AND(B78+1>'Calculation Sheet Crop 1'!$K$8,B78<'Calculation Sheet Crop 1'!$L$8+1),"Mid Season",IF(AND(B78+1>'Calculation Sheet Crop 1'!$K$9,B78-1<'Calculation Sheet Crop 1'!$L$9),"Late Season Stage","")))) ->  | D78: =IF(MONTH(B78)=1,'General Calculation'!$E$22,IF(MONTH(B78)=2,'General Calculation'!$F$22,IF(MONTH(B78)=3,'General Calculation'!$G$22,IF(MONTH(B78)=4,'General Calculation'!$H$22,IF(MONTH(B78)=5,'General Calculation'!$I$22,IF(MONTH(B78)=6,'General Calculation'!$J$22,IF(MONTH(B78)=7,'General Calculation'!$K$22,IF(MONTH(B78)=8,'General Calculation'!$L$22,IF(MONTH(B78)=9,'General Calculation'!$M$22,IF(MONTH(B78)=10,'General Calculation'!$N$22,IF(MONTH(B78)=11,'General Calculation'!$O$22,IF(MONTH(B78)=12,'General Calculation'!$P$22,"")))))))))))) -> 5.40848 | E78: =IF(C78="Initial Stage",'Calculation Sheet Crop 1'!$M$6,IF(C78="Crop Development Phase",'Calculation Sheet Crop 1'!$M$7,IF(C78="Mid Season",'Calculation Sheet Crop 1'!$M$8,IF(C78="Late Season Stage",'Calculation Sheet Crop 1'!$M$9,"")))) ->  | F78: 0 | P78: 0 | Q78: 0 | R78: 0 | S78: 0 | T78: 0 | U78: 0 | V78: 0 | W78: 0 | X78: 0 | Y78: 0 | Z78: 0 | AA78: 0
B79: 2017-03-14 | C79: =IF(AND(B79>='Calculation Sheet Crop 1'!$K$6,B79<='Calculation Sheet Crop 1'!$L$6),"Initial Stage",IF(AND(B79+1>'Calculation Sheet Crop 1'!$K$7,B79<='Calculation Sheet Crop 1'!$L$7),"Crop Development Phase",IF(AND(B79+1>'Calculation Sheet Crop 1'!$K$8,B79<'Calculation Sheet Crop 1'!$L$8+1),"Mid Season",IF(AND(B79+1>'Calculation Sheet Crop 1'!$K$9,B79-1<'Calculation Sheet Crop 1'!$L$9),"Late Season Stage","")))) ->  | D79: =IF(MONTH(B79)=1,'General Calculation'!$E$22,IF(MONTH(B79)=2,'General Calculation'!$F$22,IF(MONTH(B79)=3,'General Calculation'!$G$22,IF(MONTH(B79)=4,'General Calculation'!$H$22,IF(MONTH(B79)=5,'General Calculation'!$I$22,IF(MONTH(B79)=6,'General Calculation'!$J$22,IF(MONTH(B79)=7,'General Calculation'!$K$22,IF(MONTH(B79)=8,'General Calculation'!$L$22,IF(MONTH(B79)=9,'General Calculation'!$M$22,IF(MONTH(B79)=10,'General Calculation'!$N$22,IF(MONTH(B79)=11,'General Calculation'!$O$22,IF(MONTH(B79)=12,'General Calculation'!$P$22,"")))))))))))) -> 5.40848 | E79: =IF(C79="Initial Stage",'Calculation Sheet Crop 1'!$M$6,IF(C79="Crop Development Phase",'Calculation Sheet Crop 1'!$M$7,IF(C79="Mid Season",'Calculation Sheet Crop 1'!$M$8,IF(C79="Late Season Stage",'Calculation Sheet Crop 1'!$M$9,"")))) ->  | F79: 0 | P79: 0 | Q79: 0 | R79: 0 | S79: 0 | T79: 0 | U79: 0 | V79: 0 | W79: 0 | X79: 0 | Y79: 0 | Z79: 0 | AA79: 0
B80: 2017-03-15 | C80: =IF(AND(B80>='Calculation Sheet Crop 1'!$K$6,B80<='Calculation Sheet Crop 1'!$L$6),"Initial Stage",IF(AND(B80+1>'Calculation Sheet Crop 1'!$K$7,B80<='Calculation Sheet Crop 1'!$L$7),"Crop Development Phase",IF(AND(B80+1>'Calculation Sheet Crop 1'!$K$8,B80<'Calculation Sheet Crop 1'!$L$8+1),"Mid Season",IF(AND(B80+1>'Calculation Sheet Crop 1'!$K$9,B80-1<'Calculation Sheet Crop 1'!$L$9),"Late Season Stage","")))) ->  | D80: =IF(MONTH(B80)=1,'General Calculation'!$E$22,IF(MONTH(B80)=2,'General Calculation'!$F$22,IF(MONTH(B80)=3,'General Calculation'!$G$22,IF(MONTH(B80)=4,'General Calculation'!$H$22,IF(MONTH(B80)=5,'General Calculation'!$I$22,IF(MONTH(B80)=6,'General Calculation'!$J$22,IF(MONTH(B80)=7,'General Calculation'!$K$22,IF(MONTH(B80)=8,'General Calculation'!$L$22,IF(MONTH(B80)=9,'General Calculation'!$M$22,IF(MONTH(B80)=10,'General Calculation'!$N$22,IF(MONTH(B80)=11,'General Calculation'!$O$22,IF(MONTH(B80)=12,'General Calculation'!$P$22,"")))))))))))) -> 5.40848 | E80: =IF(C80="Initial Stage",'Calculation Sheet Crop 1'!$M$6,IF(C80="Crop Development Phase",'Calculation Sheet Crop 1'!$M$7,IF(C80="Mid Season",'Calculation Sheet Crop 1'!$M$8,IF(C80="Late Season Stage",'Calculation Sheet Crop 1'!$M$9,"")))) ->  | F80: 0 | P80: 0 | Q80: 0 | R80: 0 | S80: 0 | T80: 0 | U80: 0 | V80: 0 | W80: 0 | X80: 0 | Y80: 0 | Z80: 0 | AA80: 0
B81: 2017-03-16 | C81: =IF(AND(B81>='Calculation Sheet Crop 1'!$K$6,B81<='Calculation Sheet Crop 1'!$L$6),"Initial Stage",IF(AND(B81+1>'Calculation Sheet Crop 1'!$K$7,B81<='Calculation Sheet Crop 1'!$L$7),"Crop Development Phase",IF(AND(B81+1>'Calculation Sheet Crop 1'!$K$8,B81<'Calculation Sheet Crop 1'!$L$8+1),"Mid Season",IF(AND(B81+1>'Calculation Sheet Crop 1'!$K$9,B81-1<'Calculation Sheet Crop 1'!$L$9),"Late Season Stage","")))) ->  | D81: =IF(MONTH(B81)=1,'General Calculation'!$E$22,IF(MONTH(B81)=2,'General Calculation'!$F$22,IF(MONTH(B81)=3,'General Calculation'!$G$22,IF(MONTH(B81)=4,'General Calculation'!$H$22,IF(MONTH(B81)=5,'General Calculation'!$I$22,IF(MONTH(B81)=6,'General Calculation'!$J$22,IF(MONTH(B81)=7,'General Calculation'!$K$22,IF(MONTH(B81)=8,'General Calculation'!$L$22,IF(MONTH(B81)=9,'General Calculation'!$M$22,IF(MONTH(B81)=10,'General Calculation'!$N$22,IF(MONTH(B81)=11,'General Calculation'!$O$22,IF(MONTH(B81)=12,'General Calculation'!$P$22,"")))))))))))) -> 5.40848 | E81: =IF(C81="Initial Stage",'Calculation Sheet Crop 1'!$M$6,IF(C81="Crop Development Phase",'Calculation Sheet Crop 1'!$M$7,IF(C81="Mid Season",'Calculation Sheet Crop 1'!$M$8,IF(C81="Late Season Stage",'Calculation Sheet Crop 1'!$M$9,"")))) ->  | F81: 0 | P81: 0 | Q81: 0 | R81: 0 | S81: 0 | T81: 0 | U81: 0 | V81: 0 | W81: 0 | X81: 0 | Y81: 0 | Z81: 0 | AA81: 0
B82: 2017-03-17 | C82: =IF(AND(B82>='Calculation Sheet Crop 1'!$K$6,B82<='Calculation Sheet Crop 1'!$L$6),"Initial Stage",IF(AND(B82+1>'Calculation Sheet Crop 1'!$K$7,B82<='Calculation Sheet Crop 1'!$L$7),"Crop Development Phase",IF(AND(B82+1>'Calculation Sheet Crop 1'!$K$8,B82<'Calculation Sheet Crop 1'!$L$8+1),"Mid Season",IF(AND(B82+1>'Calculation Sheet Crop 1'!$K$9,B82-1<'Calculation Sheet Crop 1'!$L$9),"Late Season Stage","")))) ->  | D82: =IF(MONTH(B82)=1,'General Calculation'!$E$22,IF(MONTH(B82)=2,'General Calculation'!$F$22,IF(MONTH(B82)=3,'General Calculation'!$G$22,IF(MONTH(B82)=4,'General Calculation'!$H$22,IF(MONTH(B82)=5,'General Calculation'!$I$22,IF(MONTH(B82)=6,'General Calculation'!$J$22,IF(MONTH(B82)=7,'General Calculation'!$K$22,IF(MONTH(B82)=8,'General Calculation'!$L$22,IF(MONTH(B82)=9,'General Calculation'!$M$22,IF(MONTH(B82)=10,'General Calculation'!$N$22,IF(MONTH(B82)=11,'General Calculation'!$O$22,IF(MONTH(B82)=12,'General Calculation'!$P$22,"")))))))))))) -> 5.40848 | E82: =IF(C82="Initial Stage",'Calculation Sheet Crop 1'!$M$6,IF(C82="Crop Development Phase",'Calculation Sheet Crop 1'!$M$7,IF(C82="Mid Season",'Calculation Sheet Crop 1'!$M$8,IF(C82="Late Season Stage",'Calculation Sheet Crop 1'!$M$9,"")))) ->  | F82: 0 | P82: 0 | Q82: 0 | R82: 0 | S82: 0 | T82: 0 | U82: 0 | V82: 0 | W82: 0 | X82: 0 | Y82: 0 | Z82: 0 | AA82: 0
B83: 2017-03-18 | C83: =IF(AND(B83>='Calculation Sheet Crop 1'!$K$6,B83<='Calculation Sheet Crop 1'!$L$6),"Initial Stage",IF(AND(B83+1>'Calculation Sheet Crop 1'!$K$7,B83<='Calculation Sheet Crop 1'!$L$7),"Crop Development Phase",IF(AND(B83+1>'Calculation Sheet Crop 1'!$K$8,B83<'Calculation Sheet Crop 1'!$L$8+1),"Mid Season",IF(AND(B83+1>'Calculation Sheet Crop 1'!$K$9,B83-1<'Calculation Sheet Crop 1'!$L$9),"Late Season Stage","")))) ->  | D83: =IF(MONTH(B83)=1,'General Calculation'!$E$22,IF(MONTH(B83)=2,'General Calculation'!$F$22,IF(MONTH(B83)=3,'General Calculation'!$G$22,IF(MONTH(B83)=4,'General Calculation'!$H$22,IF(MONTH(B83)=5,'General Calculation'!$I$22,IF(MONTH(B83)=6,'General Calculation'!$J$22,IF(MONTH(B83)=7,'General Calculation'!$K$22,IF(MONTH(B83)=8,'General Calculation'!$L$22,IF(MONTH(B83)=9,'General Calculation'!$M$22,IF(MONTH(B83)=10,'General Calculation'!$N$22,IF(MONTH(B83)=11,'General Calculation'!$O$22,IF(MONTH(B83)=12,'General Calculation'!$P$22,"")))))))))))) -> 5.40848 | E83: =IF(C83="Initial Stage",'Calculation Sheet Crop 1'!$M$6,IF(C83="Crop Development Phase",'Calculation Sheet Crop 1'!$M$7,IF(C83="Mid Season",'Calculation Sheet Crop 1'!$M$8,IF(C83="Late Season Stage",'Calculation Sheet Crop 1'!$M$9,"")))) ->  | F83: 0 | P83: 0 | Q83: 0 | R83: 0 | S83: 0 | T83: 0 | U83: 0 | V83: 0 | W83: 0 | X83: 0 | Y83: 0 | Z83: 0 | AA83: 0
B84: 2017-03-19 | C84: =IF(AND(B84>='Calculation Sheet Crop 1'!$K$6,B84<='Calculation Sheet Crop 1'!$L$6),"Initial Stage",IF(AND(B84+1>'Calculation Sheet Crop 1'!$K$7,B84<='Calculation Sheet Crop 1'!$L$7),"Crop Development Phase",IF(AND(B84+1>'Calculation Sheet Crop 1'!$K$8,B84<'Calculation Sheet Crop 1'!$L$8+1),"Mid Season",IF(AND(B84+1>'Calculation Sheet Crop 1'!$K$9,B84-1<'Calculation Sheet Crop 1'!$L$9),"Late Season Stage","")))) ->  | D84: =IF(MONTH(B84)=1,'General Calculation'!$E$22,IF(MONTH(B84)=2,'General Calculation'!$F$22,IF(MONTH(B84)=3,'General Calculation'!$G$22,IF(MONTH(B84)=4,'General Calculation'!$H$22,IF(MONTH(B84)=5,'General Calculation'!$I$22,IF(MONTH(B84)=6,'General Calculation'!$J$22,IF(MONTH(B84)=7,'General Calculation'!$K$22,IF(MONTH(B84)=8,'General Calculation'!$L$22,IF(MONTH(B84)=9,'General Calculation'!$M$22,IF(MONTH(B84)=10,'General Calculation'!$N$22,IF(MONTH(B84)=11,'General Calculation'!$O$22,IF(MONTH(B84)=12,'General Calculation'!$P$22,"")))))))))))) -> 5.40848 | E84: =IF(C84="Initial Stage",'Calculation Sheet Crop 1'!$M$6,IF(C84="Crop Development Phase",'Calculation Sheet Crop 1'!$M$7,IF(C84="Mid Season",'Calculation Sheet Crop 1'!$M$8,IF(C84="Late Season Stage",'Calculation Sheet Crop 1'!$M$9,"")))) ->  | F84: 0 | P84: 0 | Q84: 0 | R84: 0 | S84: 0 | T84: 0 | U84: 0 | V84: 0 | W84: 0 | X84: 0 | Y84: 0 | Z84: 0 | AA84: 0
B85: 2017-03-20 | C85: =IF(AND(B85>='Calculation Sheet Crop 1'!$K$6,B85<='Calculation Sheet Crop 1'!$L$6),"Initial Stage",IF(AND(B85+1>'Calculation Sheet Crop 1'!$K$7,B85<='Calculation Sheet Crop 1'!$L$7),"Crop Development Phase",IF(AND(B85+1>'Calculation Sheet Crop 1'!$K$8,B85<'Calculation Sheet Crop 1'!$L$8+1),"Mid Season",IF(AND(B85+1>'Calculation Sheet Crop 1'!$K$9,B85-1<'Calculation Sheet Crop 1'!$L$9),"Late Season Stage","")))) ->  | D85: =IF(MONTH(B85)=1,'General Calculation'!$E$22,IF(MONTH(B85)=2,'General Calculation'!$F$22,IF(MONTH(B85)=3,'General Calculation'!$G$22,IF(MONTH(B85)=4,'General Calculation'!$H$22,IF(MONTH(B85)=5,'General Calculation'!$I$22,IF(MONTH(B85)=6,'General Calculation'!$J$22,IF(MONTH(B85)=7,'General Calculation'!$K$22,IF(MONTH(B85)=8,'General Calculation'!$L$22,IF(MONTH(B85)=9,'General Calculation'!$M$22,IF(MONTH(B85)=10,'General Calculation'!$N$22,IF(MONTH(B85)=11,'General Calculation'!$O$22,IF(MONTH(B85)=12,'General Calculation'!$P$22,"")))))))))))) -> 5.40848 | E85: =IF(C85="Initial Stage",'Calculation Sheet Crop 1'!$M$6,IF(C85="Crop Development Phase",'Calculation Sheet Crop 1'!$M$7,IF(C85="Mid Season",'Calculation Sheet Crop 1'!$M$8,IF(C85="Late Season Stage",'Calculation Sheet Crop 1'!$M$9,"")))) ->  | F85: 0 | P85: 0 | Q85: 0 | R85: 0 | S85: 0 | T85: 0 | U85: 0 | V85: 0 | W85: 0 | X85: 0 | Y85: 0 | Z85: 0 | AA85: 0
B86: 2017-03-21 | C86: =IF(AND(B86>='Calculation Sheet Crop 1'!$K$6,B86<='Calculation Sheet Crop 1'!$L$6),"Initial Stage",IF(AND(B86+1>'Calculation Sheet Crop 1'!$K$7,B86<='Calculation Sheet Crop 1'!$L$7),"Crop Development Phase",IF(AND(B86+1>'Calculation Sheet Crop 1'!$K$8,B86<'Calculation Sheet Crop 1'!$L$8+1),"Mid Season",IF(AND(B86+1>'Calculation Sheet Crop 1'!$K$9,B86-1<'Calculation Sheet Crop 1'!$L$9),"Late Season Stage","")))) ->  | D86: =IF(MONTH(B86)=1,'General Calculation'!$E$22,IF(MONTH(B86)=2,'General Calculation'!$F$22,IF(MONTH(B86)=3,'General Calculation'!$G$22,IF(MONTH(B86)=4,'General Calculation'!$H$22,IF(MONTH(B86)=5,'General Calculation'!$I$22,IF(MONTH(B86)=6,'General Calculation'!$J$22,IF(MONTH(B86)=7,'General Calculation'!$K$22,IF(MONTH(B86)=8,'General Calculation'!$L$22,IF(MONTH(B86)=9,'General Calculation'!$M$22,IF(MONTH(B86)=10,'General Calculation'!$N$22,IF(MONTH(B86)=11,'General Calculation'!$O$22,IF(MONTH(B86)=12,'General Calculation'!$P$22,"")))))))))))) -> 5.40848 | E86: =IF(C86="Initial Stage",'Calculation Sheet Crop 1'!$M$6,IF(C86="Crop Development Phase",'Calculation Sheet Crop 1'!$M$7,IF(C86="Mid Season",'Calculation Sheet Crop 1'!$M$8,IF(C86="Late Season Stage",'Calculation Sheet Crop 1'!$M$9,"")))) ->  | F86: 0 | P86: 0 | Q86: 0 | R86: 0 | S86: 0 | T86: 0 | U86: 0 | V86: 0 | W86: 0 | X86: 0 | Y86: 0 | Z86: 0 | AA86: 0
B87: 2017-03-22 | C87: =IF(AND(B87>='Calculation Sheet Crop 1'!$K$6,B87<='Calculation Sheet Crop 1'!$L$6),"Initial Stage",IF(AND(B87+1>'Calculation Sheet Crop 1'!$K$7,B87<='Calculation Sheet Crop 1'!$L$7),"Crop Development Phase",IF(AND(B87+1>'Calculation Sheet Crop 1'!$K$8,B87<'Calculation Sheet Crop 1'!$L$8+1),"Mid Season",IF(AND(B87+1>'Calculation Sheet Crop 1'!$K$9,B87-1<'Calculation Sheet Crop 1'!$L$9),"Late Season Stage","")))) ->  | D87: =IF(MONTH(B87)=1,'General Calculation'!$E$22,IF(MONTH(B87)=2,'General Calculation'!$F$22,IF(MONTH(B87)=3,'General Calculation'!$G$22,IF(MONTH(B87)=4,'General Calculation'!$H$22,IF(MONTH(B87)=5,'General Calculation'!$I$22,IF(MONTH(B87)=6,'General Calculation'!$J$22,IF(MONTH(B87)=7,'General Calculation'!$K$22,IF(MONTH(B87)=8,'General Calculation'!$L$22,IF(MONTH(B87)=9,'General Calculation'!$M$22,IF(MONTH(B87)=10,'General Calculation'!$N$22,IF(MONTH(B87)=11,'General Calculation'!$O$22,IF(MONTH(B87)=12,'General Calculation'!$P$22,"")))))))))))) -> 5.40848 | E87: =IF(C87="Initial Stage",'Calculation Sheet Crop 1'!$M$6,IF(C87="Crop Development Phase",'Calculation Sheet Crop 1'!$M$7,IF(C87="Mid Season",'Calculation Sheet Crop 1'!$M$8,IF(C87="Late Season Stage",'Calculation Sheet Crop 1'!$M$9,"")))) ->  | F87: 0 | P87: 0 | Q87: 0 | R87: 0 | S87: 0 | T87: 0 | U87: 0 | V87: 0 | W87: 0 | X87: 0 | Y87: 0 | Z87: 0 | AA87: 0
B88: 2017-03-23 | C88: =IF(AND(B88>='Calculation Sheet Crop 1'!$K$6,B88<='Calculation Sheet Crop 1'!$L$6),"Initial Stage",IF(AND(B88+1>'Calculation Sheet Crop 1'!$K$7,B88<='Calculation Sheet Crop 1'!$L$7),"Crop Development Phase",IF(AND(B88+1>'Calculation Sheet Crop 1'!$K$8,B88<'Calculation Sheet Crop 1'!$L$8+1),"Mid Season",IF(AND(B88+1>'Calculation Sheet Crop 1'!$K$9,B88-1<'Calculation Sheet Crop 1'!$L$9),"Late Season Stage","")))) ->  | D88: =IF(MONTH(B88)=1,'General Calculation'!$E$22,IF(MONTH(B88)=2,'General Calculation'!$F$22,IF(MONTH(B88)=3,'General Calculation'!$G$22,IF(MONTH(B88)=4,'General Calculation'!$H$22,IF(MONTH(B88)=5,'General Calculation'!$I$22,IF(MONTH(B88)=6,'General Calculation'!$J$22,IF(MONTH(B88)=7,'General Calculation'!$K$22,IF(MONTH(B88)=8,'General Calculation'!$L$22,IF(MONTH(B88)=9,'General Calculation'!$M$22,IF(MONTH(B88)=10,'General Calculation'!$N$22,IF(MONTH(B88)=11,'General Calculation'!$O$22,IF(MONTH(B88)=12,'General Calculation'!$P$22,"")))))))))))) -> 5.40848 | E88: =IF(C88="Initial Stage",'Calculation Sheet Crop 1'!$M$6,IF(C88="Crop Development Phase",'Calculation Sheet Crop 1'!$M$7,IF(C88="Mid Season",'Calculation Sheet Crop 1'!$M$8,IF(C88="Late Season Stage",'Calculation Sheet Crop 1'!$M$9,"")))) ->  | F88: 0 | P88: 0 | Q88: 0 | R88: 0 | S88: 0 | T88: 0 | U88: 0 | V88: 0 | W88: 0 | X88: 0 | Y88: 0 | Z88: 0 | AA88: 0
B89: 2017-03-24 | C89: =IF(AND(B89>='Calculation Sheet Crop 1'!$K$6,B89<='Calculation Sheet Crop 1'!$L$6),"Initial Stage",IF(AND(B89+1>'Calculation Sheet Crop 1'!$K$7,B89<='Calculation Sheet Crop 1'!$L$7),"Crop Development Phase",IF(AND(B89+1>'Calculation Sheet Crop 1'!$K$8,B89<'Calculation Sheet Crop 1'!$L$8+1),"Mid Season",IF(AND(B89+1>'Calculation Sheet Crop 1'!$K$9,B89-1<'Calculation Sheet Crop 1'!$L$9),"Late Season Stage","")))) ->  | D89: =IF(MONTH(B89)=1,'General Calculation'!$E$22,IF(MONTH(B89)=2,'General Calculation'!$F$22,IF(MONTH(B89)=3,'General Calculation'!$G$22,IF(MONTH(B89)=4,'General Calculation'!$H$22,IF(MONTH(B89)=5,'General Calculation'!$I$22,IF(MONTH(B89)=6,'General Calculation'!$J$22,IF(MONTH(B89)=7,'General Calculation'!$K$22,IF(MONTH(B89)=8,'General Calculation'!$L$22,IF(MONTH(B89)=9,'General Calculation'!$M$22,IF(MONTH(B89)=10,'General Calculation'!$N$22,IF(MONTH(B89)=11,'General Calculation'!$O$22,IF(MONTH(B89)=12,'General Calculation'!$P$22,"")))))))))))) -> 5.40848 | E89: =IF(C89="Initial Stage",'Calculation Sheet Crop 1'!$M$6,IF(C89="Crop Development Phase",'Calculation Sheet Crop 1'!$M$7,IF(C89="Mid Season",'Calculation Sheet Crop 1'!$M$8,IF(C89="Late Season Stage",'Calculation Sheet Crop 1'!$M$9,"")))) ->  | F89: 0 | P89: 0 | Q89: 0 | R89: 0 | S89: 0 | T89: 0 | U89: 0 | V89: 0 | W89: 0 | X89: 0 | Y89: 0 | Z89: 0 | AA89: 0
B90: 2017-03-25 | C90: =IF(AND(B90>='Calculation Sheet Crop 1'!$K$6,B90<='Calculation Sheet Crop 1'!$L$6),"Initial Stage",IF(AND(B90+1>'Calculation Sheet Crop 1'!$K$7,B90<='Calculation Sheet Crop 1'!$L$7),"Crop Development Phase",IF(AND(B90+1>'Calculation Sheet Crop 1'!$K$8,B90<'Calculation Sheet Crop 1'!$L$8+1),"Mid Season",IF(AND(B90+1>'Calculation Sheet Crop 1'!$K$9,B90-1<'Calculation Sheet Crop 1'!$L$9),"Late Season Stage","")))) ->  | D90: =IF(MONTH(B90)=1,'General Calculation'!$E$22,IF(MONTH(B90)=2,'General Calculation'!$F$22,IF(MONTH(B90)=3,'General Calculation'!$G$22,IF(MONTH(B90)=4,'General Calculation'!$H$22,IF(MONTH(B90)=5,'General Calculation'!$I$22,IF(MONTH(B90)=6,'General Calculation'!$J$22,IF(MONTH(B90)=7,'General Calculation'!$K$22,IF(MONTH(B90)=8,'General Calculation'!$L$22,IF(MONTH(B90)=9,'General Calculation'!$M$22,IF(MONTH(B90)=10,'General Calculation'!$N$22,IF(MONTH(B90)=11,'General Calculation'!$O$22,IF(MONTH(B90)=12,'General Calculation'!$P$22,"")))))))))))) -> 5.40848 | E90: =IF(C90="Initial Stage",'Calculation Sheet Crop 1'!$M$6,IF(C90="Crop Development Phase",'Calculation Sheet Crop 1'!$M$7,IF(C90="Mid Season",'Calculation Sheet Crop 1'!$M$8,IF(C90="Late Season Stage",'Calculation Sheet Crop 1'!$M$9,"")))) ->  | F90: 0 | P90: 0 | Q90: 0 | R90: 0 | S90: 0 | T90: 0 | U90: 0 | V90: 0 | W90: 0 | X90: 0 | Y90: 0 | Z90: 0 | AA90: 0
B91: 2017-03-26 | C91: =IF(AND(B91>='Calculation Sheet Crop 1'!$K$6,B91<='Calculation Sheet Crop 1'!$L$6),"Initial Stage",IF(AND(B91+1>'Calculation Sheet Crop 1'!$K$7,B91<='Calculation Sheet Crop 1'!$L$7),"Crop Development Phase",IF(AND(B91+1>'Calculation Sheet Crop 1'!$K$8,B91<'Calculation Sheet Crop 1'!$L$8+1),"Mid Season",IF(AND(B91+1>'Calculation Sheet Crop 1'!$K$9,B91-1<'Calculation Sheet Crop 1'!$L$9),"Late Season Stage","")))) ->  | D91: =IF(MONTH(B91)=1,'General Calculation'!$E$22,IF(MONTH(B91)=2,'General Calculation'!$F$22,IF(MONTH(B91)=3,'General Calculation'!$G$22,IF(MONTH(B91)=4,'General Calculation'!$H$22,IF(MONTH(B91)=5,'General Calculation'!$I$22,IF(MONTH(B91)=6,'General Calculation'!$J$22,IF(MONTH(B91)=7,'General Calculation'!$K$22,IF(MONTH(B91)=8,'General Calculation'!$L$22,IF(MONTH(B91)=9,'General Calculation'!$M$22,IF(MONTH(B91)=10,'General Calculation'!$N$22,IF(MONTH(B91)=11,'General Calculation'!$O$22,IF(MONTH(B91)=12,'General Calculation'!$P$22,"")))))))))))) -> 5.40848 | E91: =IF(C91="Initial Stage",'Calculation Sheet Crop 1'!$M$6,IF(C91="Crop Development Phase",'Calculation Sheet Crop 1'!$M$7,IF(C91="Mid Season",'Calculation Sheet Crop 1'!$M$8,IF(C91="Late Season Stage",'Calculation Sheet Crop 1'!$M$9,"")))) ->  | F91: 0 | P91: 0 | Q91: 0 | R91: 0 | S91: 0 | T91: 0 | U91: 0 | V91: 0 | W91: 0 | X91: 0 | Y91: 0 | Z91: 0 | AA91: 0
B92: 2017-03-27 | C92: =IF(AND(B92>='Calculation Sheet Crop 1'!$K$6,B92<='Calculation Sheet Crop 1'!$L$6),"Initial Stage",IF(AND(B92+1>'Calculation Sheet Crop 1'!$K$7,B92<='Calculation Sheet Crop 1'!$L$7),"Crop Development Phase",IF(AND(B92+1>'Calculation Sheet Crop 1'!$K$8,B92<'Calculation Sheet Crop 1'!$L$8+1),"Mid Season",IF(AND(B92+1>'Calculation Sheet Crop 1'!$K$9,B92-1<'Calculation Sheet Crop 1'!$L$9),"Late Season Stage","")))) -> Initial Stage | D92: =IF(MONTH(B92)=1,'General Calculation'!$E$22,IF(MONTH(B92)=2,'General Calculation'!$F$22,IF(MONTH(B92)=3,'General Calculation'!$G$22,IF(MONTH(B92)=4,'General Calculation'!$H$22,IF(MONTH(B92)=5,'General Calculation'!$I$22,IF(MONTH(B92)=6,'General Calculation'!$J$22,IF(MONTH(B92)=7,'General Calculation'!$K$22,IF(MONTH(B92)=8,'General Calculation'!$L$22,IF(MONTH(B92)=9,'General Calculation'!$M$22,IF(MONTH(B92)=10,'General Calculation'!$N$22,IF(MONTH(B92)=11,'General Calculation'!$O$22,IF(MONTH(B92)=12,'General Calculation'!$P$22,"")))))))))))) -> 5.40848 | E92: =IF(C92="Initial Stage",'Calculation Sheet Crop 1'!$M$6,IF(C92="Crop Development Phase",'Calculation Sheet Crop 1'!$M$7,IF(C92="Mid Season",'Calculation Sheet Crop 1'!$M$8,IF(C92="Late Season Stage",'Calculation Sheet Crop 1'!$M$9,"")))) -> 0.35 | F92: 1.892968 | P92: 0 | Q92: 0 | R92: 1.892968 | S92: 0 | T92: 0 | U92: 0 | V92: 0 | W92: 0 | X92: 0 | Y92: 0 | Z92: 0 | AA92: 0
B93: 2017-03-28 | C93: =IF(AND(B93>='Calculation Sheet Crop 1'!$K$6,B93<='Calculation Sheet Crop 1'!$L$6),"Initial Stage",IF(AND(B93+1>'Calculation Sheet Crop 1'!$K$7,B93<='Calculation Sheet Crop 1'!$L$7),"Crop Development Phase",IF(AND(B93+1>'Calculation Sheet Crop 1'!$K$8,B93<'Calculation Sheet Crop 1'!$L$8+1),"Mid Season",IF(AND(B93+1>'Calculation Sheet Crop 1'!$K$9,B93-1<'Calculation Sheet Crop 1'!$L$9),"Late Season Stage","")))) -> Initial Stage | D93: =IF(MONTH(B93)=1,'General Calculation'!$E$22,IF(MONTH(B93)=2,'General Calculation'!$F$22,IF(MONTH(B93)=3,'General Calculation'!$G$22,IF(MONTH(B93)=4,'General Calculation'!$H$22,IF(MONTH(B93)=5,'General Calculation'!$I$22,IF(MONTH(B93)=6,'General Calculation'!$J$22,IF(MONTH(B93)=7,'General Calculation'!$K$22,IF(MONTH(B93)=8,'General Calculation'!$L$22,IF(MONTH(B93)=9,'General Calculation'!$M$22,IF(MONTH(B93)=10,'General Calculation'!$N$22,IF(MONTH(B93)=11,'General Calculation'!$O$22,IF(MONTH(B93)=12,'General Calculation'!$P$22,"")))))))))))) -> 5.40848 | E93: =IF(C93="Initial Stage",'Calculation Sheet Crop 1'!$M$6,IF(C93="Crop Development Phase",'Calculation Sheet Crop 1'!$M$7,IF(C93="Mid Season",'Calculation Sheet Crop 1'!$M$8,IF(C93="Late Season Stage",'Calculation Sheet Crop 1'!$M$9,"")))) -> 0.35 | F93: 1.892968 | P93: 0 | Q93: 0 | R93: 1.892968 | S93: 0 | T93: 0 | U93: 0 | V93: 0 | W93: 0 | X93: 0 | Y93: 0 | Z93: 0 | AA93: 0
B94: 2017-03-29 | C94: =IF(AND(B94>='Calculation Sheet Crop 1'!$K$6,B94<='Calculation Sheet Crop 1'!$L$6),"Initial Stage",IF(AND(B94+1>'Calculation Sheet Crop 1'!$K$7,B94<='Calculation Sheet Crop 1'!$L$7),"Crop Development Phase",IF(AND(B94+1>'Calculation Sheet Crop 1'!$K$8,B94<'Calculation Sheet Crop 1'!$L$8+1),"Mid Season",IF(AND(B94+1>'Calculation Sheet Crop 1'!$K$9,B94-1<'Calculation Sheet Crop 1'!$L$9),"Late Season Stage","")))) -> Initial Stage | D94: =IF(MONTH(B94)=1,'General Calculation'!$E$22,IF(MONTH(B94)=2,'General Calculation'!$F$22,IF(MONTH(B94)=3,'General Calculation'!$G$22,IF(MONTH(B94)=4,'General Calculation'!$H$22,IF(MONTH(B94)=5,'General Calculation'!$I$22,IF(MONTH(B94)=6,'General Calculation'!$J$22,IF(MONTH(B94)=7,'General Calculation'!$K$22,IF(MONTH(B94)=8,'General Calculation'!$L$22,IF(MONTH(B94)=9,'General Calculation'!$M$22,IF(MONTH(B94)=10,'General Calculation'!$N$22,IF(MONTH(B94)=11,'General Calculation'!$O$22,IF(MONTH(B94)=12,'General Calculation'!$P$22,"")))))))))))) -> 5.40848 | E94: =IF(C94="Initial Stage",'Calculation Sheet Crop 1'!$M$6,IF(C94="Crop Development Phase",'Calculation Sheet Crop 1'!$M$7,IF(C94="Mid Season",'Calculation Sheet Crop 1'!$M$8,IF(C94="Late Season Stage",'Calculation Sheet Crop 1'!$M$9,"")))) -> 0.35 | F94: 1.892968 | P94: 0 | Q94: 0 | R94: 1.892968 | S94: 0 | T94: 0 | U94: 0 | V94: 0 | W94: 0 | X94: 0 | Y94: 0 | Z94: 0 | AA94: 0
B95: 2017-03-30 | C95: =IF(AND(B95>='Calculation Sheet Crop 1'!$K$6,B95<='Calculation Sheet Crop 1'!$L$6),"Initial Stage",IF(AND(B95+1>'Calculation Sheet Crop 1'!$K$7,B95<='Calculation Sheet Crop 1'!$L$7),"Crop Development Phase",IF(AND(B95+1>'Calculation Sheet Crop 1'!$K$8,B95<'Calculation Sheet Crop 1'!$L$8+1),"Mid Season",IF(AND(B95+1>'Calculation Sheet Crop 1'!$K$9,B95-1<'Calculation Sheet Crop 1'!$L$9),"Late Season Stage","")))) -> Initial Stage | D95: =IF(MONTH(B95)=1,'General Calculation'!$E$22,IF(MONTH(B95)=2,'General Calculation'!$F$22,IF(MONTH(B95)=3,'General Calculation'!$G$22,IF(MONTH(B95)=4,'General Calculation'!$H$22,IF(MONTH(B95)=5,'General Calculation'!$I$22,IF(MONTH(B95)=6,'General Calculation'!$J$22,IF(MONTH(B95)=7,'General Calculation'!$K$22,IF(MONTH(B95)=8,'General Calculation'!$L$22,IF(MONTH(B95)=9,'General Calculation'!$M$22,IF(MONTH(B95)=10,'General Calculation'!$N$22,IF(MONTH(B95)=11,'General Calculation'!$O$22,IF(MONTH(B95)=12,'General Calculation'!$P$22,"")))))))))))) -> 5.40848 | E95: =IF(C95="Initial Stage",'Calculation Sheet Crop 1'!$M$6,IF(C95="Crop Development Phase",'Calculation Sheet Crop 1'!$M$7,IF(C95="Mid Season",'Calculation Sheet Crop 1'!$M$8,IF(C95="Late Season Stage",'Calculation Sheet Crop 1'!$M$9,"")))) -> 0.35 | F95: 1.892968 | P95: 0 | Q95: 0 | R95: 1.892968 | S95: 0 | T95: 0 | U95: 0 | V95: 0 | W95: 0 | X95: 0 | Y95: 0 | Z95: 0 | AA95: 0
B96: 2017-03-31 | C96: =IF(AND(B96>='Calculation Sheet Crop 1'!$K$6,B96<='Calculation Sheet Crop 1'!$L$6),"Initial Stage",IF(AND(B96+1>'Calculation Sheet Crop 1'!$K$7,B96<='Calculation Sheet Crop 1'!$L$7),"Crop Development Phase",IF(AND(B96+1>'Calculation Sheet Crop 1'!$K$8,B96<'Calculation Sheet Crop 1'!$L$8+1),"Mid Season",IF(AND(B96+1>'Calculation Sheet Crop 1'!$K$9,B96-1<'Calculation Sheet Crop 1'!$L$9),"Late Season Stage","")))) -> Initial Stage | D96: =IF(MONTH(B96)=1,'General Calculation'!$E$22,IF(MONTH(B96)=2,'General Calculation'!$F$22,IF(MONTH(B96)=3,'General Calculation'!$G$22,IF(MONTH(B96)=4,'General Calculation'!$H$22,IF(MONTH(B96)=5,'General Calculation'!$I$22,IF(MONTH(B96)=6,'General Calculation'!$J$22,IF(MONTH(B96)=7,'General Calculation'!$K$22,IF(MONTH(B96)=8,'General Calculation'!$L$22,IF(MONTH(B96)=9,'General Calculation'!$M$22,IF(MONTH(B96)=10,'General Calculation'!$N$22,IF(MONTH(B96)=11,'General Calculation'!$O$22,IF(MONTH(B96)=12,'General Calculation'!$P$22,"")))))))))))) -> 5.40848 | E96: =IF(C96="Initial Stage",'Calculation Sheet Crop 1'!$M$6,IF(C96="Crop Development Phase",'Calculation Sheet Crop 1'!$M$7,IF(C96="Mid Season",'Calculation Sheet Crop 1'!$M$8,IF(C96="Late Season Stage",'Calculation Sheet Crop 1'!$M$9,"")))) -> 0.35 | F96: 1.892968 | P96: 0 | Q96: 0 | R96: 1.892968 | S96: 0 | T96: 0 | U96: 0 | V96: 0 | W96: 0 | X96: 0 | Y96: 0 | Z96: 0 | AA96: 0
B97: 2017-04-01 | C97: =IF(AND(B97>='Calculation Sheet Crop 1'!$K$6,B97<='Calculation Sheet Crop 1'!$L$6),"Initial Stage",IF(AND(B97+1>'Calculation Sheet Crop 1'!$K$7,B97<='Calculation Sheet Crop 1'!$L$7),"Crop Development Phase",IF(AND(B97+1>'Calculation Sheet Crop 1'!$K$8,B97<'Calculation Sheet Crop 1'!$L$8+1),"Mid Season",IF(AND(B97+1>'Calculation Sheet Crop 1'!$K$9,B97-1<'Calculation Sheet Crop 1'!$L$9),"Late Season Stage","")))) -> Initial Stage | D97: =IF(MONTH(B97)=1,'General Calculation'!$E$22,IF(MONTH(B97)=2,'General Calculation'!$F$22,IF(MONTH(B97)=3,'General Calculation'!$G$22,IF(MONTH(B97)=4,'General Calculation'!$H$22,IF(MONTH(B97)=5,'General Calculation'!$I$22,IF(MONTH(B97)=6,'General Calculation'!$J$22,IF(MONTH(B97)=7,'General Calculation'!$K$22,IF(MONTH(B97)=8,'General Calculation'!$L$22,IF(MONTH(B97)=9,'General Calculation'!$M$22,IF(MONTH(B97)=10,'General Calculation'!$N$22,IF(MONTH(B97)=11,'General Calculation'!$O$22,IF(MONTH(B97)=12,'General Calculation'!$P$22,"")))))))))))) -> 5.11596 | E97: =IF(C97="Initial Stage",'Calculation Sheet Crop 1'!$M$6,IF(C97="Crop Development Phase",'Calculation Sheet Crop 1'!$M$7,IF(C97="Mid Season",'Calculation Sheet Crop 1'!$M$8,IF(C97="Late Season Stage",'Calculation Sheet Crop 1'!$M$9,"")))) -> 0.35 | F97: 1.790586 | P97: 0 | Q97: 0 | R97: 0 | S97: 1.790586 | T97: 0 | U97: 0 | V97: 0 | W97: 0 | X97: 0 | Y97: 0 | Z97: 0 | AA97: 0
B98: 2017-04-02 | C98: =IF(AND(B98>='Calculation Sheet Crop 1'!$K$6,B98<='Calculation Sheet Crop 1'!$L$6),"Initial Stage",IF(AND(B98+1>'Calculation Sheet Crop 1'!$K$7,B98<='Calculation Sheet Crop 1'!$L$7),"Crop Development Phase",IF(AND(B98+1>'Calculation Sheet Crop 1'!$K$8,B98<'Calculation Sheet Crop 1'!$L$8+1),"Mid Season",IF(AND(B98+1>'Calculation Sheet Crop 1'!$K$9,B98-1<'Calculation Sheet Crop 1'!$L$9),"Late Season Stage","")))) -> Initial Stage | D98: =IF(MONTH(B98)=1,'General Calculation'!$E$22,IF(MONTH(B98)=2,'General Calculation'!$F$22,IF(MONTH(B98)=3,'General Calculation'!$G$22,IF(MONTH(B98)=4,'General Calculation'!$H$22,IF(MONTH(B98)=5,'General Calculation'!$I$22,IF(MONTH(B98)=6,'General Calculation'!$J$22,IF(MONTH(B98)=7,'General Calculation'!$K$22,IF(MONTH(B98)=8,'General Calculation'!$L$22,IF(MONTH(B98)=9,'General Calculation'!$M$22,IF(MONTH(B98)=10,'General Calculation'!$N$22,IF(MONTH(B98)=11,'General Calculation'!$O$22,IF(MONTH(B98)=12,'General Calculation'!$P$22,"")))))))))))) -> 5.11596 | E98: =IF(C98="Initial Stage",'Calculation Sheet Crop 1'!$M$6,IF(C98="Crop Development Phase",'Calculation Sheet Crop 1'!$M$7,IF(C98="Mid Season",'Calculation Sheet Crop 1'!$M$8,IF(C98="Late Season Stage",'Calculation Sheet Crop 1'!$M$9,"")))) -> 0.35 | F98: 1.790586 | P98: 0 | Q98: 0 | R98: 0 | S98: 1.790586 | T98: 0 | U98: 0 | V98: 0 | W98: 0 | X98: 0 | Y98: 0 | Z98: 0 | AA98: 0
B99: 2017-04-03 | C99: =IF(AND(B99>='Calculation Sheet Crop 1'!$K$6,B99<='Calculation Sheet Crop 1'!$L$6),"Initial Stage",IF(AND(B99+1>'Calculation Sheet Crop 1'!$K$7,B99<='Calculation Sheet Crop 1'!$L$7),"Crop Development Phase",IF(AND(B99+1>'Calculation Sheet Crop 1'!$K$8,B99<'Calculation Sheet Crop 1'!$L$8+1),"Mid Season",IF(AND(B99+1>'Calculation Sheet Crop 1'!$K$9,B99-1<'Calculation Sheet Crop 1'!$L$9),"Late Season Stage","")))) -> Initial Stage | D99: =IF(MONTH(B99)=1,'General Calculation'!$E$22,IF(MONTH(B99)=2,'General Calculation'!$F$22,IF(MONTH(B99)=3,'General Calculation'!$G$22,IF(MONTH(B99)=4,'General Calculation'!$H$22,IF(MONTH(B99)=5,'General Calculation'!$I$22,IF(MONTH(B99)=6,'General Calculation'!$J$22,IF(MONTH(B99)=7,'General Calculation'!$K$22,IF(MONTH(B99)=8,'General Calculation'!$L$22,IF(MONTH(B99)=9,'General Calculation'!$M$22,IF(MONTH(B99)=10,'General Calculation'!$N$22,IF(MONTH(B99)=11,'General Calculation'!$O$22,IF(MONTH(B99)=12,'General Calculation'!$P$22,"")))))))))))) -> 5.11596 | E99: =IF(C99="Initial Stage",'Calculation Sheet Crop 1'!$M$6,IF(C99="Crop Development Phase",'Calculation Sheet Crop 1'!$M$7,IF(C99="Mid Season",'Calculation Sheet Crop 1'!$M$8,IF(C99="Late Season Stage",'Calculation Sheet Crop 1'!$M$9,"")))) -> 0.35 | F99: 1.790586 | P99: 0 | Q99: 0 | R99: 0 | S99: 1.790586 | T99: 0 | U99: 0 | V99: 0 | W99: 0 | X99: 0 | Y99: 0 | Z99: 0 | AA99: 0
B100: 2017-04-04 | C100: =IF(AND(B100>='Calculation Sheet Crop 1'!$K$6,B100<='Calculation Sheet Crop 1'!$L$6),"Initial Stage",IF(AND(B100+1>'Calculation Sheet Crop 1'!$K$7,B100<='Calculation Sheet Crop 1'!$L$7),"Crop Development Phase",IF(AND(B100+1>'Calculation Sheet Crop 1'!$K$8,B100<'Calculation Sheet Crop 1'!$L$8+1),"Mid Season",IF(AND(B100+1>'Calculation Sheet Crop 1'!$K$9,B100-1<'Calculation Sheet Crop 1'!$L$9),"Late Season Stage","")))) -> Initial Stage | D100: =IF(MONTH(B100)=1,'General Calculation'!$E$22,IF(MONTH(B100)=2,'General Calculation'!$F$22,IF(MONTH(B100)=3,'General Calculation'!$G$22,IF(MONTH(B100)=4,'General Calculation'!$H$22,IF(MONTH(B100)=5,'General Calculation'!$I$22,IF(MONTH(B100)=6,'General Calculation'!$J$22,IF(MONTH(B100)=7,'General Calculation'!$K$22,IF(MONTH(B100)=8,'General Calculation'!$L$22,IF(MONTH(B100)=9,'General Calculation'!$M$22,IF(MONTH(B100)=10,'General Calculation'!$N$22,IF(MONTH(B100)=11,'General Calculation'!$O$22,IF(MONTH(B100)=12,'General Calculation'!$P$22,"")))))))))))) -> 5.11596 | E100: =IF(C100="Initial Stage",'Calculation Sheet Crop 1'!$M$6,IF(C100="Crop Development Phase",'Calculation Sheet Crop 1'!$M$7,IF(C100="Mid Season",'Calculation Sheet Crop 1'!$M$8,IF(C100="Late Season Stage",'Calculation Sheet Crop 1'!$M$9,"")))) -> 0.35 | F100: 1.790586 | P100: 0 | Q100: 0 | R100: 0 | S100: 1.790586 | T100: 0 | U100: 0 | V100: 0 | W100: 0 | X100: 0 | Y100: 0 | Z100: 0 | AA100: 0
B101: 2017-04-05 | C101: =IF(AND(B101>='Calculation Sheet Crop 1'!$K$6,B101<='Calculation Sheet Crop 1'!$L$6),"Initial Stage",IF(AND(B101+1>'Calculation Sheet Crop 1'!$K$7,B101<='Calculation Sheet Crop 1'!$L$7),"Crop Development Phase",IF(AND(B101+1>'Calculation Sheet Crop 1'!$K$8,B101<'Calculation Sheet Crop 1'!$L$8+1),"Mid Season",IF(AND(B101+1>'Calculation Sheet Crop 1'!$K$9,B101-1<'Calculation Sheet Crop 1'!$L$9),"Late Season Stage","")))) -> Initial Stage | D101: =IF(MONTH(B101)=1,'General Calculation'!$E$22,IF(MONTH(B101)=2,'General Calculation'!$F$22,IF(MONTH(B101)=3,'General Calculation'!$G$22,IF(MONTH(B101)=4,'General Calculation'!$H$22,IF(MONTH(B101)=5,'General Calculation'!$I$22,IF(MONTH(B101)=6,'General Calculation'!$J$22,IF(MONTH(B101)=7,'General Calculation'!$K$22,IF(MONTH(B101)=8,'General Calculation'!$L$22,IF(MONTH(B101)=9,'General Calculation'!$M$22,IF(MONTH(B101)=10,'General Calculation'!$N$22,IF(MONTH(B101)=11,'General Calculation'!$O$22,IF(MONTH(B101)=12,'General Calculation'!$P$22,"")))))))))))) -> 5.11596 | E101: =IF(C101="Initial Stage",'Calculation Sheet Crop 1'!$M$6,IF(C101="Crop Development Phase",'Calculation Sheet Crop 1'!$M$7,IF(C101="Mid Season",'Calculation Sheet Crop 1'!$M$8,IF(C101="Late Season Stage",'Calculation Sheet Crop 1'!$M$9,"")))) -> 0.35 | F101: 1.790586 | P101: 0 | Q101: 0 | R101: 0 | S101: 1.790586 | T101: 0 | U101: 0 | V101: 0 | W101: 0 | X101: 0 | Y101: 0 | Z101: 0 | AA101: 0
B102: 2017-04-06 | C102: =IF(AND(B102>='Calculation Sheet Crop 1'!$K$6,B102<='Calculation Sheet Crop 1'!$L$6),"Initial Stage",IF(AND(B102+1>'Calculation Sheet Crop 1'!$K$7,B102<='Calculation Sheet Crop 1'!$L$7),"Crop Development Phase",IF(AND(B102+1>'Calculation Sheet Crop 1'!$K$8,B102<'Calculation Sheet Crop 1'!$L$8+1),"Mid Season",IF(AND(B102+1>'Calculation Sheet Crop 1'!$K$9,B102-1<'Calculation Sheet Crop 1'!$L$9),"Late Season Stage","")))) -> Initial Stage | D102: =IF(MONTH(B102)=1,'General Calculation'!$E$22,IF(MONTH(B102)=2,'General Calculation'!$F$22,IF(MONTH(B102)=3,'General Calculation'!$G$22,IF(MONTH(B102)=4,'General Calculation'!$H$22,IF(MONTH(B102)=5,'General Calculation'!$I$22,IF(MONTH(B102)=6,'General Calculation'!$J$22,IF(MONTH(B102)=7,'General Calculation'!$K$22,IF(MONTH(B102)=8,'General Calculation'!$L$22,IF(MONTH(B102)=9,'General Calculation'!$M$22,IF(MONTH(B102)=10,'General Calculation'!$N$22,IF(MONTH(B102)=11,'General Calculation'!$O$22,IF(MONTH(B102)=12,'General Calculation'!$P$22,"")))))))))))) -> 5.11596 | E102: =IF(C102="Initial Stage",'Calculation Sheet Crop 1'!$M$6,IF(C102="Crop Development Phase",'Calculation Sheet Crop 1'!$M$7,IF(C102="Mid Season",'Calculation Sheet Crop 1'!$M$8,IF(C102="Late Season Stage",'Calculation Sheet Crop 1'!$M$9,"")))) -> 0.35 | F102: 1.790586 | P102: 0 | Q102: 0 | R102: 0 | S102: 1.790586 | T102: 0 | U102: 0 | V102: 0 | W102: 0 | X102: 0 | Y102: 0 | Z102: 0 | AA102: 0
B103: 2017-04-07 | C103: =IF(AND(B103>='Calculation Sheet Crop 1'!$K$6,B103<='Calculation Sheet Crop 1'!$L$6),"Initial Stage",IF(AND(B103+1>'Calculation Sheet Crop 1'!$K$7,B103<='Calculation Sheet Crop 1'!$L$7),"Crop Development Phase",IF(AND(B103+1>'Calculation Sheet Crop 1'!$K$8,B103<'Calculation Sheet Crop 1'!$L$8+1),"Mid Season",IF(AND(B103+1>'Calculation Sheet Crop 1'!$K$9,B103-1<'Calculation Sheet Crop 1'!$L$9),"Late Season Stage","")))) -> Initial Stage | D103: =IF(MONTH(B103)=1,'General Calculation'!$E$22,IF(MONTH(B103)=2,'General Calculation'!$F$22,IF(MONTH(B103)=3,'General Calculation'!$G$22,IF(MONTH(B103)=4,'General Calculation'!$H$22,IF(MONTH(B103)=5,'General Calculation'!$I$22,IF(MONTH(B103)=6,'General Calculation'!$J$22,IF(MONTH(B103)=7,'General Calculation'!$K$22,IF(MONTH(B103)=8,'General Calculation'!$L$22,IF(MONTH(B103)=9,'General Calculation'!$M$22,IF(MONTH(B103)=10,'General Calculation'!$N$22,IF(MONTH(B103)=11,'General Calculation'!$O$22,IF(MONTH(B103)=12,'General Calculation'!$P$22,"")))))))))))) -> 5.11596 | E103: =IF(C103="Initial Stage",'Calculation Sheet Crop 1'!$M$6,IF(C103="Crop Development Phase",'Calculation Sheet Crop 1'!$M$7,IF(C103="Mid Season",'Calculation Sheet Crop 1'!$M$8,IF(C103="Late Season Stage",'Calculation Sheet Crop 1'!$M$9,"")))) -> 0.35 | F103: 1.790586 | P103: 0 | Q103: 0 | R103: 0 | S103: 1.790586 | T103: 0 | U103: 0 | V103: 0 | W103: 0 | X103: 0 | Y103: 0 | Z103: 0 | AA103: 0
B104: 2017-04-08 | C104: =IF(AND(B104>='Calculation Sheet Crop 1'!$K$6,B104<='Calculation Sheet Crop 1'!$L$6),"Initial Stage",IF(AND(B104+1>'Calculation Sheet Crop 1'!$K$7,B104<='Calculation Sheet Crop 1'!$L$7),"Crop Development Phase",IF(AND(B104+1>'Calculation Sheet Crop 1'!$K$8,B104<'Calculation Sheet Crop 1'!$L$8+1),"Mid Season",IF(AND(B104+1>'Calculation Sheet Crop 1'!$K$9,B104-1<'Calculation Sheet Crop 1'!$L$9),"Late Season Stage","")))) -> Initial Stage | D104: =IF(MONTH(B104)=1,'General Calculation'!$E$22,IF(MONTH(B104)=2,'General Calculation'!$F$22,IF(MONTH(B104)=3,'General Calculation'!$G$22,IF(MONTH(B104)=4,'General Calculation'!$H$22,IF(MONTH(B104)=5,'General Calculation'!$I$22,IF(MONTH(B104)=6,'General Calculation'!$J$22,IF(MONTH(B104)=7,'General Calculation'!$K$22,IF(MONTH(B104)=8,'General Calculation'!$L$22,IF(MONTH(B104)=9,'General Calculation'!$M$22,IF(MONTH(B104)=10,'General Calculation'!$N$22,IF(MONTH(B104)=11,'General Calculation'!$O$22,IF(MONTH(B104)=12,'General Calculation'!$P$22,"")))))))))))) -> 5.11596 | E104: =IF(C104="Initial Stage",'Calculation Sheet Crop 1'!$M$6,IF(C104="Crop Development Phase",'Calculation Sheet Crop 1'!$M$7,IF(C104="Mid Season",'Calculation Sheet Crop 1'!$M$8,IF(C104="Late Season Stage",'Calculation Sheet Crop 1'!$M$9,"")))) -> 0.35 | F104: 1.790586 | P104: 0 | Q104: 0 | R104: 0 | S104: 1.790586 | T104: 0 | U104: 0 | V104: 0 | W104: 0 | X104: 0 | Y104: 0 | Z104: 0 | AA104: 0
B105: 2017-04-09 | C105: =IF(AND(B105>='Calculation Sheet Crop 1'!$K$6,B105<='Calculation Sheet Crop 1'!$L$6),"Initial Stage",IF(AND(B105+1>'Calculation Sheet Crop 1'!$K$7,B105<='Calculation Sheet Crop 1'!$L$7),"Crop Development Phase",IF(AND(B105+1>'Calculation Sheet Crop 1'!$K$8,B105<'Calculation Sheet Crop 1'!$L$8+1),"Mid Season",IF(AND(B105+1>'Calculation Sheet Crop 1'!$K$9,B105-1<'Calculation Sheet Crop 1'!$L$9),"Late Season Stage","")))) -> Initial Stage | D105: =IF(MONTH(B105)=1,'General Calculation'!$E$22,IF(MONTH(B105)=2,'General Calculation'!$F$22,IF(MONTH(B105)=3,'General Calculation'!$G$22,IF(MONTH(B105)=4,'General Calculation'!$H$22,IF(MONTH(B105)=5,'General Calculation'!$I$22,IF(MONTH(B105)=6,'General Calculation'!$J$22,IF(MONTH(B105)=7,'General Calculation'!$K$22,IF(MONTH(B105)=8,'General Calculation'!$L$22,IF(MONTH(B105)=9,'General Calculation'!$M$22,IF(MONTH(B105)=10,'General Calculation'!$N$22,IF(MONTH(B105)=11,'General Calculation'!$O$22,IF(MONTH(B105)=12,'General Calculation'!$P$22,"")))))))))))) -> 5.11596 | E105: =IF(C105="Initial Stage",'Calculation Sheet Crop 1'!$M$6,IF(C105="Crop Development Phase",'Calculation Sheet Crop 1'!$M$7,IF(C105="Mid Season",'Calculation Sheet Crop 1'!$M$8,IF(C105="Late Season Stage",'Calculation Sheet Crop 1'!$M$9,"")))) -> 0.35 | F105: 1.790586 | P105: 0 | Q105: 0 | R105: 0 | S105: 1.790586 | T105: 0 | U105: 0 | V105: 0 | W105: 0 | X105: 0 | Y105: 0 | Z105: 0 | AA105: 0
B106: 2017-04-10 | C106: =IF(AND(B106>='Calculation Sheet Crop 1'!$K$6,B106<='Calculation Sheet Crop 1'!$L$6),"Initial Stage",IF(AND(B106+1>'Calculation Sheet Crop 1'!$K$7,B106<='Calculation Sheet Crop 1'!$L$7),"Crop Development Phase",IF(AND(B106+1>'Calculation Sheet Crop 1'!$K$8,B106<'Calculation Sheet Crop 1'!$L$8+1),"Mid Season",IF(AND(B106+1>'Calculation Sheet Crop 1'!$K$9,B106-1<'Calculation Sheet Crop 1'!$L$9),"Late Season Stage","")))) -> Initial Stage | D106: =IF(MONTH(B106)=1,'General Calculation'!$E$22,IF(MONTH(B106)=2,'General Calculation'!$F$22,IF(MONTH(B106)=3,'General Calculation'!$G$22,IF(MONTH(B106)=4,'General Calculation'!$H$22,IF(MONTH(B106)=5,'General Calculation'!$I$22,IF(MONTH(B106)=6,'General Calculation'!$J$22,IF(MONTH(B106)=7,'General Calculation'!$K$22,IF(MONTH(B106)=8,'General Calculation'!$L$22,IF(MONTH(B106)=9,'General Calculation'!$M$22,IF(MONTH(B106)=10,'General Calculation'!$N$22,IF(MONTH(B106)=11,'General Calculation'!$O$22,IF(MONTH(B106)=12,'General Calculation'!$P$22,"")))))))))))) -> 5.11596 | E106: =IF(C106="Initial Stage",'Calculation Sheet Crop 1'!$M$6,IF(C106="Crop Development Phase",'Calculation Sheet Crop 1'!$M$7,IF(C106="Mid Season",'Calculation Sheet Crop 1'!$M$8,IF(C106="Late Season Stage",'Calculation Sheet Crop 1'!$M$9,"")))) -> 0.35 | F106: 1.790586 | P106: 0 | Q106: 0 | R106: 0 | S106: 1.790586 | T106: 0 | U106: 0 | V106: 0 | W106: 0 | X106: 0 | Y106: 0 | Z106: 0 | AA106: 0
B107: 2017-04-11 | C107: =IF(AND(B107>='Calculation Sheet Crop 1'!$K$6,B107<='Calculation Sheet Crop 1'!$L$6),"Initial Stage",IF(AND(B107+1>'Calculation Sheet Crop 1'!$K$7,B107<='Calculation Sheet Crop 1'!$L$7),"Crop Development Phase",IF(AND(B107+1>'Calculation Sheet Crop 1'!$K$8,B107<'Calculation Sheet Crop 1'!$L$8+1),"Mid Season",IF(AND(B107+1>'Calculation Sheet Crop 1'!$K$9,B107-1<'Calculation Sheet Crop 1'!$L$9),"Late Season Stage","")))) -> Initial Stage | D107: =IF(MONTH(B107)=1,'General Calculation'!$E$22,IF(MONTH(B107)=2,'General Calculation'!$F$22,IF(MONTH(B107)=3,'General Calculation'!$G$22,IF(MONTH(B107)=4,'General Calculation'!$H$22,IF(MONTH(B107)=5,'General Calculation'!$I$22,IF(MONTH(B107)=6,'General Calculation'!$J$22,IF(MONTH(B107)=7,'General Calculation'!$K$22,IF(MONTH(B107)=8,'General Calculation'!$L$22,IF(MONTH(B107)=9,'General Calculation'!$M$22,IF(MONTH(B107)=10,'General Calculation'!$N$22,IF(MONTH(B107)=11,'General Calculation'!$O$22,IF(MONTH(B107)=12,'General Calculation'!$P$22,"")))))))))))) -> 5.11596 | E107: =IF(C107="Initial Stage",'Calculation Sheet Crop 1'!$M$6,IF(C107="Crop Development Phase",'Calculation Sheet Crop 1'!$M$7,IF(C107="Mid Season",'Calculation Sheet Crop 1'!$M$8,IF(C107="Late Season Stage",'Calculation Sheet Crop 1'!$M$9,"")))) -> 0.35 | F107: 1.790586 | P107: 0 | Q107: 0 | R107: 0 | S107: 1.790586 | T107: 0 | U107: 0 | V107: 0 | W107: 0 | X107: 0 | Y107: 0 | Z107: 0 | AA107: 0
B108: 2017-04-12 | C108: =IF(AND(B108>='Calculation Sheet Crop 1'!$K$6,B108<='Calculation Sheet Crop 1'!$L$6),"Initial Stage",IF(AND(B108+1>'Calculation Sheet Crop 1'!$K$7,B108<='Calculation Sheet Crop 1'!$L$7),"Crop Development Phase",IF(AND(B108+1>'Calculation Sheet Crop 1'!$K$8,B108<'Calculation Sheet Crop 1'!$L$8+1),"Mid Season",IF(AND(B108+1>'Calculation Sheet Crop 1'!$K$9,B108-1<'Calculation Sheet Crop 1'!$L$9),"Late Season Stage","")))) -> Initial Stage | D108: =IF(MONTH(B108)=1,'General Calculation'!$E$22,IF(MONTH(B108)=2,'General Calculation'!$F$22,IF(MONTH(B108)=3,'General Calculation'!$G$22,IF(MONTH(B108)=4,'General Calculation'!$H$22,IF(MONTH(B108)=5,'General Calculation'!$I$22,IF(MONTH(B108)=6,'General Calculation'!$J$22,IF(MONTH(B108)=7,'General Calculation'!$K$22,IF(MONTH(B108)=8,'General Calculation'!$L$22,IF(MONTH(B108)=9,'General Calculation'!$M$22,IF(MONTH(B108)=10,'General Calculation'!$N$22,IF(MONTH(B108)=11,'General Calculation'!$O$22,IF(MONTH(B108)=12,'General Calculation'!$P$22,"")))))))))))) -> 5.11596 | E108: =IF(C108="Initial Stage",'Calculation Sheet Crop 1'!$M$6,IF(C108="Crop Development Phase",'Calculation Sheet Crop 1'!$M$7,IF(C108="Mid Season",'Calculation Sheet Crop 1'!$M$8,IF(C108="Late Season Stage",'Calculation Sheet Crop 1'!$M$9,"")))) -> 0.35 | F108: 1.790586 | P108: 0 | Q108: 0 | R108: 0 | S108: 1.790586 | T108: 0 | U108: 0 | V108: 0 | W108: 0 | X108: 0 | Y108: 0 | Z108: 0 | AA108: 0
B109: 2017-04-13 | C109: =IF(AND(B109>='Calculation Sheet Crop 1'!$K$6,B109<='Calculation Sheet Crop 1'!$L$6),"Initial Stage",IF(AND(B109+1>'Calculation Sheet Crop 1'!$K$7,B109<='Calculation Sheet Crop 1'!$L$7),"Crop Development Phase",IF(AND(B109+1>'Calculation Sheet Crop 1'!$K$8,B109<'Calculation Sheet Crop 1'!$L$8+1),"Mid Season",IF(AND(B109+1>'Calculation Sheet Crop 1'!$K$9,B109-1<'Calculation Sheet Crop 1'!$L$9),"Late Season Stage","")))) -> Initial Stage | D109: =IF(MONTH(B109)=1,'General Calculation'!$E$22,IF(MONTH(B109)=2,'General Calculation'!$F$22,IF(MONTH(B109)=3,'General Calculation'!$G$22,IF(MONTH(B109)=4,'General Calculation'!$H$22,IF(MONTH(B109)=5,'General Calculation'!$I$22,IF(MONTH(B109)=6,'General Calculation'!$J$22,IF(MONTH(B109)=7,'General Calculation'!$K$22,IF(MONTH(B109)=8,'General Calculation'!$L$22,IF(MONTH(B109)=9,'General Calculation'!$M$22,IF(MONTH(B109)=10,'General Calculation'!$N$22,IF(MONTH(B109)=11,'General Calculation'!$O$22,IF(MONTH(B109)=12,'General Calculation'!$P$22,"")))))))))))) -> 5.11596 | E109: =IF(C109="Initial Stage",'Calculation Sheet Crop 1'!$M$6,IF(C109="Crop Development Phase",'Calculation Sheet Crop 1'!$M$7,IF(C109="Mid Season",'Calculation Sheet Crop 1'!$M$8,IF(C109="Late Season Stage",'Calculation Sheet Crop 1'!$M$9,"")))) -> 0.35 | F109: 1.790586 | P109: 0 | Q109: 0 | R109: 0 | S109: 1.790586 | T109: 0 | U109: 0 | V109: 0 | W109: 0 | X109: 0 | Y109: 0 | Z109: 0 | AA109: 0
B110: 2017-04-14 | C110: =IF(AND(B110>='Calculation Sheet Crop 1'!$K$6,B110<='Calculation Sheet Crop 1'!$L$6),"Initial Stage",IF(AND(B110+1>'Calculation Sheet Crop 1'!$K$7,B110<='Calculation Sheet Crop 1'!$L$7),"Crop Development Phase",IF(AND(B110+1>'Calculation Sheet Crop 1'!$K$8,B110<'Calculation Sheet Crop 1'!$L$8+1),"Mid Season",IF(AND(B110+1>'Calculation Sheet Crop 1'!$K$9,B110-1<'Calculation Sheet Crop 1'!$L$9),"Late Season Stage","")))) -> Crop Development Phase | D110: =IF(MONTH(B110)=1,'General Calculation'!$E$22,IF(MONTH(B110)=2,'General Calculation'!$F$22,IF(MONTH(B110)=3,'General Calculation'!$G$22,IF(MONTH(B110)=4,'General Calculation'!$H$22,IF(MONTH(B110)=5,'General Calculation'!$I$22,IF(MONTH(B110)=6,'General Calculation'!$J$22,IF(MONTH(B110)=7,'General Calculation'!$K$22,IF(MONTH(B110)=8,'General Calculation'!$L$22,IF(MONTH(B110)=9,'General Calculation'!$M$22,IF(MONTH(B110)=10,'General Calculation'!$N$22,IF(MONTH(B110)=11,'General Calculation'!$O$22,IF(MONTH(B110)=12,'General Calculation'!$P$22,"")))))))))))) -> 5.11596 | E110: =IF(C110="Initial Stage",'Calculation Sheet Crop 1'!$M$6,IF(C110="Crop Development Phase",'Calculation Sheet Crop 1'!$M$7,IF(C110="Mid Season",'Calculation Sheet Crop 1'!$M$8,IF(C110="Late Season Stage",'Calculation Sheet Crop 1'!$M$9,"")))) -> 0.7 | F110: 3.581172 | P110: 0 | Q110: 0 | R110: 0 | S110: 3.581172 | T110: 0 | U110: 0 | V110: 0 | W110: 0 | X110: 0 | Y110: 0 | Z110: 0 | AA110: 0
B111: 2017-04-15 | C111: =IF(AND(B111>='Calculation Sheet Crop 1'!$K$6,B111<='Calculation Sheet Crop 1'!$L$6),"Initial Stage",IF(AND(B111+1>'Calculation Sheet Crop 1'!$K$7,B111<='Calculation Sheet Crop 1'!$L$7),"Crop Development Phase",IF(AND(B111+1>'Calculation Sheet Crop 1'!$K$8,B111<'Calculation Sheet Crop 1'!$L$8+1),"Mid Season",IF(AND(B111+1>'Calculation Sheet Crop 1'!$K$9,B111-1<'Calculation Sheet Crop 1'!$L$9),"Late Season Stage","")))) -> Crop Development Phase | D111: =IF(MONTH(B111)=1,'General Calculation'!$E$22,IF(MONTH(B111)=2,'General Calculation'!$F$22,IF(MONTH(B111)=3,'General Calculation'!$G$22,IF(MONTH(B111)=4,'General Calculation'!$H$22,IF(MONTH(B111)=5,'General Calculation'!$I$22,IF(MONTH(B111)=6,'General Calculation'!$J$22,IF(MONTH(B111)=7,'General Calculation'!$K$22,IF(MONTH(B111)=8,'General Calculation'!$L$22,IF(MONTH(B111)=9,'General Calculation'!$M$22,IF(MONTH(B111)=10,'General Calculation'!$N$22,IF(MONTH(B111)=11,'General Calculation'!$O$22,IF(MONTH(B111)=12,'General Calculation'!$P$22,"")))))))))))) -> 5.11596 | E111: =IF(C111="Initial Stage",'Calculation Sheet Crop 1'!$M$6,IF(C111="Crop Development Phase",'Calculation Sheet Crop 1'!$M$7,IF(C111="Mid Season",'Calculation Sheet Crop 1'!$M$8,IF(C111="Late Season Stage",'Calculation Sheet Crop 1'!$M$9,"")))) -> 0.7 | F111: 3.581172 | P111: 0 | Q111: 0 | R111: 0 | S111: 3.581172 | T111: 0 | U111: 0 | V111: 0 | W111: 0 | X111: 0 | Y111: 0 | Z111: 0 | AA111: 0
B112: 2017-04-16 | C112: =IF(AND(B112>='Calculation Sheet Crop 1'!$K$6,B112<='Calculation Sheet Crop 1'!$L$6),"Initial Stage",IF(AND(B112+1>'Calculation Sheet Crop 1'!$K$7,B112<='Calculation Sheet Crop 1'!$L$7),"Crop Development Phase",IF(AND(B112+1>'Calculation Sheet Crop 1'!$K$8,B112<'Calculation Sheet Crop 1'!$L$8+1),"Mid Season",IF(AND(B112+1>'Calculation Sheet Crop 1'!$K$9,B112-1<'Calculation Sheet Crop 1'!$L$9),"Late Season Stage","")))) -> Crop Development Phase | D112: =IF(MONTH(B112)=1,'General Calculation'!$E$22,IF(MONTH(B112)=2,'General Calculation'!$F$22,IF(MONTH(B112)=3,'General Calculation'!$G$22,IF(MONTH(B112)=4,'General Calculation'!$H$22,IF(MONTH(B112)=5,'General Calculation'!$I$22,IF(MONTH(B112)=6,'General Calculation'!$J$22,IF(MONTH(B112)=7,'General Calculation'!$K$22,IF(MONTH(B112)=8,'General Calculation'!$L$22,IF(MONTH(B112)=9,'General Calculation'!$M$22,IF(MONTH(B112)=10,'General Calculation'!$N$22,IF(MONTH(B112)=11,'General Calculation'!$O$22,IF(MONTH(B112)=12,'General Calculation'!$P$22,"")))))))))))) -> 5.11596 | E112: =IF(C112="Initial Stage",'Calculation Sheet Crop 1'!$M$6,IF(C112="Crop Development Phase",'Calculation Sheet Crop 1'!$M$7,IF(C112="Mid Season",'Calculation Sheet Crop 1'!$M$8,IF(C112="Late Season Stage",'Calculation Sheet Crop 1'!$M$9,"")))) -> 0.7 | F112: 3.581172 | P112: 0 | Q112: 0 | R112: 0 | S112: 3.581172 | T112: 0 | U112: 0 | V112: 0 | W112: 0 | X112: 0 | Y112: 0 | Z112: 0 | AA112: 0
B113: 2017-04-17 | C113: =IF(AND(B113>='Calculation Sheet Crop 1'!$K$6,B113<='Calculation Sheet Crop 1'!$L$6),"Initial Stage",IF(AND(B113+1>'Calculation Sheet Crop 1'!$K$7,B113<='Calculation Sheet Crop 1'!$L$7),"Crop Development Phase",IF(AND(B113+1>'Calculation Sheet Crop 1'!$K$8,B113<'Calculation Sheet Crop 1'!$L$8+1),"Mid Season",IF(AND(B113+1>'Calculation Sheet Crop 1'!$K$9,B113-1<'Calculation Sheet Crop 1'!$L$9),"Late Season Stage","")))) -> Crop Development Phase | D113: =IF(MONTH(B113)=1,'General Calculation'!$E$22,IF(MONTH(B113)=2,'General Calculation'!$F$22,IF(MONTH(B113)=3,'General Calculation'!$G$22,IF(MONTH(B113)=4,'General Calculation'!$H$22,IF(MONTH(B113)=5,'General Calculation'!$I$22,IF(MONTH(B113)=6,'General Calculation'!$J$22,IF(MONTH(B113)=7,'General Calculation'!$K$22,IF(MONTH(B113)=8,'General Calculation'!$L$22,IF(MONTH(B113)=9,'General Calculation'!$M$22,IF(MONTH(B113)=10,'General Calculation'!$N$22,IF(MONTH(B113)=11,'General Calculation'!$O$22,IF(MONTH(B113)=12,'General Calculation'!$P$22,"")))))))))))) -> 5.11596 | E113: =IF(C113="Initial Stage",'Calculation Sheet Crop 1'!$M$6,IF(C113="Crop Development Phase",'Calculation Sheet Crop 1'!$M$7,IF(C113="Mid Season",'Calculation Sheet Crop 1'!$M$8,IF(C113="Late Season Stage",'Calculation Sheet Crop 1'!$M$9,"")))) -> 0.7 | F113: 3.581172 | P113: 0 | Q113: 0 | R113: 0 | S113: 3.581172 | T113: 0 | U113: 0 | V113: 0 | W113: 0 | X113: 0 | Y113: 0 | Z113: 0 | AA113: 0
B114: 2017-04-18 | C114: =IF(AND(B114>='Calculation Sheet Crop 1'!$K$6,B114<='Calculation Sheet Crop 1'!$L$6),"Initial Stage",IF(AND(B114+1>'Calculation Sheet Crop 1'!$K$7,B114<='Calculation Sheet Crop 1'!$L$7),"Crop Development Phase",IF(AND(B114+1>'Calculation Sheet Crop 1'!$K$8,B114<'Calculation Sheet Crop 1'!$L$8+1),"Mid Season",IF(AND(B114+1>'Calculation Sheet Crop 1'!$K$9,B114-1<'Calculation Sheet Crop 1'!$L$9),"Late Season Stage","")))) -> Crop Development Phase | D114: =IF(MONTH(B114)=1,'General Calculation'!$E$22,IF(MONTH(B114)=2,'General Calculation'!$F$22,IF(MONTH(B114)=3,'General Calculation'!$G$22,IF(MONTH(B114)=4,'General Calculation'!$H$22,IF(MONTH(B114)=5,'General Calculation'!$I$22,IF(MONTH(B114)=6,'General Calculation'!$J$22,IF(MONTH(B114)=7,'General Calculation'!$K$22,IF(MONTH(B114)=8,'General Calculation'!$L$22,IF(MONTH(B114)=9,'General Calculation'!$M$22,IF(MONTH(B114)=10,'General Calculation'!$N$22,IF(MONTH(B114)=11,'General Calculation'!$O$22,IF(MONTH(B114)=12,'General Calculation'!$P$22,"")))))))))))) -> 5.11596 | E114: =IF(C114="Initial Stage",'Calculation Sheet Crop 1'!$M$6,IF(C114="Crop Development Phase",'Calculation Sheet Crop 1'!$M$7,IF(C114="Mid Season",'Calculation Sheet Crop 1'!$M$8,IF(C114="Late Season Stage",'Calculation Sheet Crop 1'!$M$9,"")))) -> 0.7 | F114: 3.581172 | P114: 0 | Q114: 0 | R114: 0 | S114: 3.581172 | T114: 0 | U114: 0 | V114: 0 | W114: 0 | X114: 0 | Y114: 0 | Z114: 0 | AA114: 0
B115: 2017-04-19 | C115: =IF(AND(B115>='Calculation Sheet Crop 1'!$K$6,B115<='Calculation Sheet Crop 1'!$L$6),"Initial Stage",IF(AND(B115+1>'Calculation Sheet Crop 1'!$K$7,B115<='Calculation Sheet Crop 1'!$L$7),"Crop Development Phase",IF(AND(B115+1>'Calculation Sheet Crop 1'!$K$8,B115<'Calculation Sheet Crop 1'!$L$8+1),"Mid Season",IF(AND(B115+1>'Calculation Sheet Crop 1'!$K$9,B115-1<'Calculation Sheet Crop 1'!$L$9),"Late Season Stage","")))) -> Crop Development Phase | D115: =IF(MONTH(B115)=1,'General Calculation'!$E$22,IF(MONTH(B115)=2,'General Calculation'!$F$22,IF(MONTH(B115)=3,'General Calculation'!$G$22,IF(MONTH(B115)=4,'General Calculation'!$H$22,IF(MONTH(B115)=5,'General Calculation'!$I$22,IF(MONTH(B115)=6,'General Calculation'!$J$22,IF(MONTH(B115)=7,'General Calculation'!$K$22,IF(MONTH(B115)=8,'General Calculation'!$L$22,IF(MONTH(B115)=9,'General Calculation'!$M$22,IF(MONTH(B115)=10,'General Calculation'!$N$22,IF(MONTH(B115)=11,'General Calculation'!$O$22,IF(MONTH(B115)=12,'General Calculation'!$P$22,"")))))))))))) -> 5.11596 | E115: =IF(C115="Initial Stage",'Calculation Sheet Crop 1'!$M$6,IF(C115="Crop Development Phase",'Calculation Sheet Crop 1'!$M$7,IF(C115="Mid Season",'Calculation Sheet Crop 1'!$M$8,IF(C115="Late Season Stage",'Calculation Sheet Crop 1'!$M$9,"")))) -> 0.7 | F115: 3.581172 | P115: 0 | Q115: 0 | R115: 0 | S115: 3.581172 | T115: 0 | U115: 0 | V115: 0 | W115: 0 | X115: 0 | Y115: 0 | Z115: 0 | AA115: 0
B116: 2017-04-20 | C116: =IF(AND(B116>='Calculation Sheet Crop 1'!$K$6,B116<='Calculation Sheet Crop 1'!$L$6),"Initial Stage",IF(AND(B116+1>'Calculation Sheet Crop 1'!$K$7,B116<='Calculation Sheet Crop 1'!$L$7),"Crop Development Phase",IF(AND(B116+1>'Calculation Sheet Crop 1'!$K$8,B116<'Calculation Sheet Crop 1'!$L$8+1),"Mid Season",IF(AND(B116+1>'Calculation Sheet Crop 1'!$K$9,B116-1<'Calculation Sheet Crop 1'!$L$9),"Late Season Stage","")))) -> Crop Development Phase | D116: =IF(MONTH(B116)=1,'General Calculation'!$E$22,IF(MONTH(B116)=2,'General Calculation'!$F$22,IF(MONTH(B116)=3,'General Calculation'!$G$22,IF(MONTH(B116)=4,'General Calculation'!$H$22,IF(MONTH(B116)=5,'General Calculation'!$I$22,IF(MONTH(B116)=6,'General Calculation'!$J$22,IF(MONTH(B116)=7,'General Calculation'!$K$22,IF(MONTH(B116)=8,'General Calculation'!$L$22,IF(MONTH(B116)=9,'General Calculation'!$M$22,IF(MONTH(B116)=10,'General Calculation'!$N$22,IF(MONTH(B116)=11,'General Calculation'!$O$22,IF(MONTH(B116)=12,'General Calculation'!$P$22,"")))))))))))) -> 5.11596 | E116: =IF(C116="Initial Stage",'Calculation Sheet Crop 1'!$M$6,IF(C116="Crop Development Phase",'Calculation Sheet Crop 1'!$M$7,IF(C116="Mid Season",'Calculation Sheet Crop 1'!$M$8,IF(C116="Late Season Stage",'Calculation Sheet Crop 1'!$M$9,"")))) -> 0.7 | F116: 3.581172 | P116: 0 | Q116: 0 | R116: 0 | S116: 3.581172 | T116: 0 | U116: 0 | V116: 0 | W116: 0 | X116: 0 | Y116: 0 | Z116: 0 | AA116: 0
B117: 2017-04-21 | C117: =IF(AND(B117>='Calculation Sheet Crop 1'!$K$6,B117<='Calculation Sheet Crop 1'!$L$6),"Initial Stage",IF(AND(B117+1>'Calculation Sheet Crop 1'!$K$7,B117<='Calculation Sheet Crop 1'!$L$7),"Crop Development Phase",IF(AND(B117+1>'Calculation Sheet Crop 1'!$K$8,B117<'Calculation Sheet Crop 1'!$L$8+1),"Mid Season",IF(AND(B117+1>'Calculation Sheet Crop 1'!$K$9,B117-1<'Calculation Sheet Crop 1'!$L$9),"Late Season Stage","")))) -> Crop Development Phase | D117: =IF(MONTH(B117)=1,'General Calculation'!$E$22,IF(MONTH(B117)=2,'General Calculation'!$F$22,IF(MONTH(B117)=3,'General Calculation'!$G$22,IF(MONTH(B117)=4,'General Calculation'!$H$22,IF(MONTH(B117)=5,'General Calculation'!$I$22,IF(MONTH(B117)=6,'General Calculation'!$J$22,IF(MONTH(B117)=7,'General Calculation'!$K$22,IF(MONTH(B117)=8,'General Calculation'!$L$22,IF(MONTH(B117)=9,'General Calculation'!$M$22,IF(MONTH(B117)=10,'General Calculation'!$N$22,IF(MONTH(B117)=11,'General Calculation'!$O$22,IF(MONTH(B117)=12,'General Calculation'!$P$22,"")))))))))))) -> 5.11596 | E117: =IF(C117="Initial Stage",'Calculation Sheet Crop 1'!$M$6,IF(C117="Crop Development Phase",'Calculation Sheet Crop 1'!$M$7,IF(C117="Mid Season",'Calculation Sheet Crop 1'!$M$8,IF(C117="Late Season Stage",'Calculation Sheet Crop 1'!$M$9,"")))) -> 0.7 | F117: 3.581172 | P117: 0 | Q117: 0 | R117: 0 | S117: 3.581172 | T117: 0 | U117: 0 | V117: 0 | W117: 0 | X117: 0 | Y117: 0 | Z117: 0 | AA117: 0
B118: 2017-04-22 | C118: =IF(AND(B118>='Calculation Sheet Crop 1'!$K$6,B118<='Calculation Sheet Crop 1'!$L$6),"Initial Stage",IF(AND(B118+1>'Calculation Sheet Crop 1'!$K$7,B118<='Calculation Sheet Crop 1'!$L$7),"Crop Development Phase",IF(AND(B118+1>'Calculation Sheet Crop 1'!$K$8,B118<'Calculation Sheet Crop 1'!$L$8+1),"Mid Season",IF(AND(B118+1>'Calculation Sheet Crop 1'!$K$9,B118-1<'Calculation Sheet Crop 1'!$L$9),"Late Season Stage","")))) -> Crop Development Phase | D118: =IF(MONTH(B118)=1,'General Calculation'!$E$22,IF(MONTH(B118)=2,'General Calculation'!$F$22,IF(MONTH(B118)=3,'General Calculation'!$G$22,IF(MONTH(B118)=4,'General Calculation'!$H$22,IF(MONTH(B118)=5,'General Calculation'!$I$22,IF(MONTH(B118)=6,'General Calculation'!$J$22,IF(MONTH(B118)=7,'General Calculation'!$K$22,IF(MONTH(B118)=8,'General Calculation'!$L$22,IF(MONTH(B118)=9,'General Calculation'!$M$22,IF(MONTH(B118)=10,'General Calculation'!$N$22,IF(MONTH(B118)=11,'General Calculation'!$O$22,IF(MONTH(B118)=12,'General Calculation'!$P$22,"")))))))))))) -> 5.11596 | E118: =IF(C118="Initial Stage",'Calculation Sheet Crop 1'!$M$6,IF(C118="Crop Development Phase",'Calculation Sheet Crop 1'!$M$7,IF(C118="Mid Season",'Calculation Sheet Crop 1'!$M$8,IF(C118="Late Season Stage",'Calculation Sheet Crop 1'!$M$9,"")))) -> 0.7 | F118: 3.581172 | P118: 0 | Q118: 0 | R118: 0 | S118: 3.581172 | T118: 0 | U118: 0 | V118: 0 | W118: 0 | X118: 0 | Y118: 0 | Z118: 0 | AA118: 0
B119: 2017-04-23 | C119: =IF(AND(B119>='Calculation Sheet Crop 1'!$K$6,B119<='Calculation Sheet Crop 1'!$L$6),"Initial Stage",IF(AND(B119+1>'Calculation Sheet Crop 1'!$K$7,B119<='Calculation Sheet Crop 1'!$L$7),"Crop Development Phase",IF(AND(B119+1>'Calculation Sheet Crop 1'!$K$8,B119<'Calculation Sheet Crop 1'!$L$8+1),"Mid Season",IF(AND(B119+1>'Calculation Sheet Crop 1'!$K$9,B119-1<'Calculation Sheet Crop 1'!$L$9),"Late Season Stage","")))) -> Crop Development Phase | D119: =IF(MONTH(B119)=1,'General Calculation'!$E$22,IF(MONTH(B119)=2,'General Calculation'!$F$22,IF(MONTH(B119)=3,'General Calculation'!$G$22,IF(MONTH(B119)=4,'General Calculation'!$H$22,IF(MONTH(B119)=5,'General Calculation'!$I$22,IF(MONTH(B119)=6,'General Calculation'!$J$22,IF(MONTH(B119)=7,'General Calculation'!$K$22,IF(MONTH(B119)=8,'General Calculation'!$L$22,IF(MONTH(B119)=9,'General Calculation'!$M$22,IF(MONTH(B119)=10,'General Calculation'!$N$22,IF(MONTH(B119)=11,'General Calculation'!$O$22,IF(MONTH(B119)=12,'General Calculation'!$P$22,"")))))))))))) -> 5.11596 | E119: =IF(C119="Initial Stage",'Calculation Sheet Crop 1'!$M$6,IF(C119="Crop Development Phase",'Calculation Sheet Crop 1'!$M$7,IF(C119="Mid Season",'Calculation Sheet Crop 1'!$M$8,IF(C119="Late Season Stage",'Calculation Sheet Crop 1'!$M$9,"")))) -> 0.7 | F119: 3.581172 | P119: 0 | Q119: 0 | R119: 0 | S119: 3.581172 | T119: 0 | U119: 0 | V119: 0 | W119: 0 | X119: 0 | Y119: 0 | Z119: 0 | AA119: 0
B120: 2017-04-24 | C120: =IF(AND(B120>='Calculation Sheet Crop 1'!$K$6,B120<='Calculation Sheet Crop 1'!$L$6),"Initial Stage",IF(AND(B120+1>'Calculation Sheet Crop 1'!$K$7,B120<='Calculation Sheet Crop 1'!$L$7),"Crop Development Phase",IF(AND(B120+1>'Calculation Sheet Crop 1'!$K$8,B120<'Calculation Sheet Crop 1'!$L$8+1),"Mid Season",IF(AND(B120+1>'Calculation Sheet Crop 1'!$K$9,B120-1<'Calculation Sheet Crop 1'!$L$9),"Late Season Stage","")))) -> Crop Development Phase | D120: =IF(MONTH(B120)=1,'General Calculation'!$E$22,IF(MONTH(B120)=2,'General Calculation'!$F$22,IF(MONTH(B120)=3,'General Calculation'!$G$22,IF(MONTH(B120)=4,'General Calculation'!$H$22,IF(MONTH(B120)=5,'General Calculation'!$I$22,IF(MONTH(B120)=6,'General Calculation'!$J$22,IF(MONTH(B120)=7,'General Calculation'!$K$22,IF(MONTH(B120)=8,'General Calculation'!$L$22,IF(MONTH(B120)=9,'General Calculation'!$M$22,IF(MONTH(B120)=10,'General Calculation'!$N$22,IF(MONTH(B120)=11,'General Calculation'!$O$22,IF(MONTH(B120)=12,'General Calculation'!$P$22,"")))))))))))) -> 5.11596 | E120: =IF(C120="Initial Stage",'Calculation Sheet Crop 1'!$M$6,IF(C120="Crop Development Phase",'Calculation Sheet Crop 1'!$M$7,IF(C120="Mid Season",'Calculation Sheet Crop 1'!$M$8,IF(C120="Late Season Stage",'Calculation Sheet Crop 1'!$M$9,"")))) -> 0.7 | F120: 3.581172 | P120: 0 | Q120: 0 | R120: 0 | S120: 3.581172 | T120: 0 | U120: 0 | V120: 0 | W120: 0 | X120: 0 | Y120: 0 | Z120: 0 | AA120: 0
B121: 2017-04-25 | C121: =IF(AND(B121>='Calculation Sheet Crop 1'!$K$6,B121<='Calculation Sheet Crop 1'!$L$6),"Initial Stage",IF(AND(B121+1>'Calculation Sheet Crop 1'!$K$7,B121<='Calculation Sheet Crop 1'!$L$7),"Crop Development Phase",IF(AND(B121+1>'Calculation Sheet Crop 1'!$K$8,B121<'Calculation Sheet Crop 1'!$L$8+1),"Mid Season",IF(AND(B121+1>'Calculation Sheet Crop 1'!$K$9,B121-1<'Calculation Sheet Crop 1'!$L$9),"Late Season Stage","")))) -> Crop Development Phase | D121: =IF(MONTH(B121)=1,'General Calculation'!$E$22,IF(MONTH(B121)=2,'General Calculation'!$F$22,IF(MONTH(B121)=3,'General Calculation'!$G$22,IF(MONTH(B121)=4,'General Calculation'!$H$22,IF(MONTH(B121)=5,'General Calculation'!$I$22,IF(MONTH(B121)=6,'General Calculation'!$J$22,IF(MONTH(B121)=7,'General Calculation'!$K$22,IF(MONTH(B121)=8,'General Calculation'!$L$22,IF(MONTH(B121)=9,'General Calculation'!$M$22,IF(MONTH(B121)=10,'General Calculation'!$N$22,IF(MONTH(B121)=11,'General Calculation'!$O$22,IF(MONTH(B121)=12,'General Calculation'!$P$22,"")))))))))))) -> 5.11596 | E121: =IF(C121="Initial Stage",'Calculation Sheet Crop 1'!$M$6,IF(C121="Crop Development Phase",'Calculation Sheet Crop 1'!$M$7,IF(C121="Mid Season",'Calculation Sheet Crop 1'!$M$8,IF(C121="Late Season Stage",'Calculation Sheet Crop 1'!$M$9,"")))) -> 0.7 | F121: 3.581172 | P121: 0 | Q121: 0 | R121: 0 | S121: 3.581172 | T121: 0 | U121: 0 | V121: 0 | W121: 0 | X121: 0 | Y121: 0 | Z121: 0 | AA121: 0
B122: 2017-04-26 | C122: =IF(AND(B122>='Calculation Sheet Crop 1'!$K$6,B122<='Calculation Sheet Crop 1'!$L$6),"Initial Stage",IF(AND(B122+1>'Calculation Sheet Crop 1'!$K$7,B122<='Calculation Sheet Crop 1'!$L$7),"Crop Development Phase",IF(AND(B122+1>'Calculation Sheet Crop 1'!$K$8,B122<'Calculation Sheet Crop 1'!$L$8+1),"Mid Season",IF(AND(B122+1>'Calculation Sheet Crop 1'!$K$9,B122-1<'Calculation Sheet Crop 1'!$L$9),"Late Season Stage","")))) -> Crop Development Phase | D122: =IF(MONTH(B122)=1,'General Calculation'!$E$22,IF(MONTH(B122)=2,'General Calculation'!$F$22,IF(MONTH(B122)=3,'General Calculation'!$G$22,IF(MONTH(B122)=4,'General Calculation'!$H$22,IF(MONTH(B122)=5,'General Calculation'!$I$22,IF(MONTH(B122)=6,'General Calculation'!$J$22,IF(MONTH(B122)=7,'General Calculation'!$K$22,IF(MONTH(B122)=8,'General Calculation'!$L$22,IF(MONTH(B122)=9,'General Calculation'!$M$22,IF(MONTH(B122)=10,'General Calculation'!$N$22,IF(MONTH(B122)=11,'General Calculation'!$O$22,IF(MONTH(B122)=12,'General Calculation'!$P$22,"")))))))))))) -> 5.11596 | E122: =IF(C122="Initial Stage",'Calculation Sheet Crop 1'!$M$6,IF(C122="Crop Development Phase",'Calculation Sheet Crop 1'!$M$7,IF(C122="Mid Season",'Calculation Sheet Crop 1'!$M$8,IF(C122="Late Season Stage",'Calculation Sheet Crop 1'!$M$9,"")))) -> 0.7 | F122: 3.581172 | P122: 0 | Q122: 0 | R122: 0 | S122: 3.581172 | T122: 0 | U122: 0 | V122: 0 | W122: 0 | X122: 0 | Y122: 0 | Z122: 0 | AA122: 0
B123: 2017-04-27 | C123: =IF(AND(B123>='Calculation Sheet Crop 1'!$K$6,B123<='Calculation Sheet Crop 1'!$L$6),"Initial Stage",IF(AND(B123+1>'Calculation Sheet Crop 1'!$K$7,B123<='Calculation Sheet Crop 1'!$L$7),"Crop Development Phase",IF(AND(B123+1>'Calculation Sheet Crop 1'!$K$8,B123<'Calculation Sheet Crop 1'!$L$8+1),"Mid Season",IF(AND(B123+1>'Calculation Sheet Crop 1'!$K$9,B123-1<'Calculation Sheet Crop 1'!$L$9),"Late Season Stage","")))) -> Crop Development Phase | D123: =IF(MONTH(B123)=1,'General Calculation'!$E$22,IF(MONTH(B123)=2,'General Calculation'!$F$22,IF(MONTH(B123)=3,'General Calculation'!$G$22,IF(MONTH(B123)=4,'General Calculation'!$H$22,IF(MONTH(B123)=5,'General Calculation'!$I$22,IF(MONTH(B123)=6,'General Calculation'!$J$22,IF(MONTH(B123)=7,'General Calculation'!$K$22,IF(MONTH(B123)=8,'General Calculation'!$L$22,IF(MONTH(B123)=9,'General Calculation'!$M$22,IF(MONTH(B123)=10,'General Calculation'!$N$22,IF(MONTH(B123)=11,'General Calculation'!$O$22,IF(MONTH(B123)=12,'General Calculation'!$P$22,"")))))))))))) -> 5.11596 | E123: =IF(C123="Initial Stage",'Calculation Sheet Crop 1'!$M$6,IF(C123="Crop Development Phase",'Calculation Sheet Crop 1'!$M$7,IF(C123="Mid Season",'Calculation Sheet Crop 1'!$M$8,IF(C123="Late Season Stage",'Calculation Sheet Crop 1'!$M$9,"")))) -> 0.7 | F123: 3.581172 | P123: 0 | Q123: 0 | R123: 0 | S123: 3.581172 | T123: 0 | U123: 0 | V123: 0 | W123: 0 | X123: 0 | Y123: 0 | Z123: 0 | AA123: 0
B124: 2017-04-28 | C124: =IF(AND(B124>='Calculation Sheet Crop 1'!$K$6,B124<='Calculation Sheet Crop 1'!$L$6),"Initial Stage",IF(AND(B124+1>'Calculation Sheet Crop 1'!$K$7,B124<='Calculation Sheet Crop 1'!$L$7),"Crop Development Phase",IF(AND(B124+1>'Calculation Sheet Crop 1'!$K$8,B124<'Calculation Sheet Crop 1'!$L$8+1),"Mid Season",IF(AND(B124+1>'Calculation Sheet Crop 1'!$K$9,B124-1<'Calculation Sheet Crop 1'!$L$9),"Late Season Stage","")))) -> Crop Development Phase | D124: =IF(MONTH(B124)=1,'General Calculation'!$E$22,IF(MONTH(B124)=2,'General Calculation'!$F$22,IF(MONTH(B124)=3,'General Calculation'!$G$22,IF(MONTH(B124)=4,'General Calculation'!$H$22,IF(MONTH(B124)=5,'General Calculation'!$I$22,IF(MONTH(B124)=6,'General Calculation'!$J$22,IF(MONTH(B124)=7,'General Calculation'!$K$22,IF(MONTH(B124)=8,'General Calculation'!$L$22,IF(MONTH(B124)=9,'General Calculation'!$M$22,IF(MONTH(B124)=10,'General Calculation'!$N$22,IF(MONTH(B124)=11,'General Calculation'!$O$22,IF(MONTH(B124)=12,'General Calculation'!$P$22,"")))))))))))) -> 5.11596 | E124: =IF(C124="Initial Stage",'Calculation Sheet Crop 1'!$M$6,IF(C124="Crop Development Phase",'Calculation Sheet Crop 1'!$M$7,IF(C124="Mid Season",'Calculation Sheet Crop 1'!$M$8,IF(C124="Late Season Stage",'Calculation Sheet Crop 1'!$M$9,"")))) -> 0.7 | F124: 3.581172 | P124: 0 | Q124: 0 | R124: 0 | S124: 3.581172 | T124: 0 | U124: 0 | V124: 0 | W124: 0 | X124: 0 | Y124: 0 | Z124: 0 | AA124: 0
B125: 2017-04-29 | C125: =IF(AND(B125>='Calculation Sheet Crop 1'!$K$6,B125<='Calculation Sheet Crop 1'!$L$6),"Initial Stage",IF(AND(B125+1>'Calculation Sheet Crop 1'!$K$7,B125<='Calculation Sheet Crop 1'!$L$7),"Crop Development Phase",IF(AND(B125+1>'Calculation Sheet Crop 1'!$K$8,B125<'Calculation Sheet Crop 1'!$L$8+1),"Mid Season",IF(AND(B125+1>'Calculation Sheet Crop 1'!$K$9,B125-1<'Calculation Sheet Crop 1'!$L$9),"Late Season Stage","")))) -> Crop Development Phase | D125: =IF(MONTH(B125)=1,'General Calculation'!$E$22,IF(MONTH(B125)=2,'General Calculation'!$F$22,IF(MONTH(B125)=3,'General Calculation'!$G$22,IF(MONTH(B125)=4,'General Calculation'!$H$22,IF(MONTH(B125)=5,'General Calculation'!$I$22,IF(MONTH(B125)=6,'General Calculation'!$J$22,IF(MONTH(B125)=7,'General Calculation'!$K$22,IF(MONTH(B125)=8,'General Calculation'!$L$22,IF(MONTH(B125)=9,'General Calculation'!$M$22,IF(MONTH(B125)=10,'General Calculation'!$N$22,IF(MONTH(B125)=11,'General Calculation'!$O$22,IF(MONTH(B125)=12,'General Calculation'!$P$22,"")))))))))))) -> 5.11596 | E125: =IF(C125="Initial Stage",'Calculation Sheet Crop 1'!$M$6,IF(C125="Crop Development Phase",'Calculation Sheet Crop 1'!$M$7,IF(C125="Mid Season",'Calculation Sheet Crop 1'!$M$8,IF(C125="Late Season Stage",'Calculation Sheet Crop 1'!$M$9,"")))) -> 0.7 | F125: 3.581172 | P125: 0 | Q125: 0 | R125: 0 | S125: 3.581172 | T125: 0 | U125: 0 | V125: 0 | W125: 0 | X125: 0 | Y125: 0 | Z125: 0 | AA125: 0
B126: 2017-04-30 | C126: =IF(AND(B126>='Calculation Sheet Crop 1'!$K$6,B126<='Calculation Sheet Crop 1'!$L$6),"Initial Stage",IF(AND(B126+1>'Calculation Sheet Crop 1'!$K$7,B126<='Calculation Sheet Crop 1'!$L$7),"Crop Development Phase",IF(AND(B126+1>'Calculation Sheet Crop 1'!$K$8,B126<'Calculation Sheet Crop 1'!$L$8+1),"Mid Season",IF(AND(B126+1>'Calculation Sheet Crop 1'!$K$9,B126-1<'Calculation Sheet Crop 1'!$L$9),"Late Season Stage","")))) -> Crop Development Phase | D126: =IF(MONTH(B126)=1,'General Calculation'!$E$22,IF(MONTH(B126)=2,'General Calculation'!$F$22,IF(MONTH(B126)=3,'General Calculation'!$G$22,IF(MONTH(B126)=4,'General Calculation'!$H$22,IF(MONTH(B126)=5,'General Calculation'!$I$22,IF(MONTH(B126)=6,'General Calculation'!$J$22,IF(MONTH(B126)=7,'General Calculation'!$K$22,IF(MONTH(B126)=8,'General Calculation'!$L$22,IF(MONTH(B126)=9,'General Calculation'!$M$22,IF(MONTH(B126)=10,'General Calculation'!$N$22,IF(MONTH(B126)=11,'General Calculation'!$O$22,IF(MONTH(B126)=12,'General Calculation'!$P$22,"")))))))))))) -> 5.11596 | E126: =IF(C126="Initial Stage",'Calculation Sheet Crop 1'!$M$6,IF(C126="Crop Development Phase",'Calculation Sheet Crop 1'!$M$7,IF(C126="Mid Season",'Calculation Sheet Crop 1'!$M$8,IF(C126="Late Season Stage",'Calculation Sheet Crop 1'!$M$9,"")))) -> 0.7 | F126: 3.581172 | P126: 0 | Q126: 0 | R126: 0 | S126: 3.581172 | T126: 0 | U126: 0 | V126: 0 | W126: 0 | X126: 0 | Y126: 0 | Z126: 0 | AA126: 0
B127: 2017-05-01 | C127: =IF(AND(B127>='Calculation Sheet Crop 1'!$K$6,B127<='Calculation Sheet Crop 1'!$L$6),"Initial Stage",IF(AND(B127+1>'Calculation Sheet Crop 1'!$K$7,B127<='Calculation Sheet Crop 1'!$L$7),"Crop Development Phase",IF(AND(B127+1>'Calculation Sheet Crop 1'!$K$8,B127<'Calculation Sheet Crop 1'!$L$8+1),"Mid Season",IF(AND(B127+1>'Calculation Sheet Crop 1'!$K$9,B127-1<'Calculation Sheet Crop 1'!$L$9),"Late Season Stage","")))) -> Crop Development Phase | D127: =IF(MONTH(B127)=1,'General Calculation'!$E$22,IF(MONTH(B127)=2,'General Calculation'!$F$22,IF(MONTH(B127)=3,'General Calculation'!$G$22,IF(MONTH(B127)=4,'General Calculation'!$H$22,IF(MONTH(B127)=5,'General Calculation'!$I$22,IF(MONTH(B127)=6,'General Calculation'!$J$22,IF(MONTH(B127)=7,'General Calculation'!$K$22,IF(MONTH(B127)=8,'General Calculation'!$L$22,IF(MONTH(B127)=9,'General Calculation'!$M$22,IF(MONTH(B127)=10,'General Calculation'!$N$22,IF(MONTH(B127)=11,'General Calculation'!$O$22,IF(MONTH(B127)=12,'General Calculation'!$P$22,"")))))))))))) -> 5.12838 | E127: =IF(C127="Initial Stage",'Calculation Sheet Crop 1'!$M$6,IF(C127="Crop Development Phase",'Calculation Sheet Crop 1'!$M$7,IF(C127="Mid Season",'Calculation Sheet Crop 1'!$M$8,IF(C127="Late Season Stage",'Calculation Sheet Crop 1'!$M$9,"")))) -> 0.7 | F127: 3.589866 | P127: 0 | Q127: 0 | R127: 0 | S127: 0 | T127: 3.589866 | U127: 0 | V127: 0 | W127: 0 | X127: 0 | Y127: 0 | Z127: 0 | AA127: 0
B128: 2017-05-02 | C128: =IF(AND(B128>='Calculation Sheet Crop 1'!$K$6,B128<='Calculation Sheet Crop 1'!$L$6),"Initial Stage",IF(AND(B128+1>'Calculation Sheet Crop 1'!$K$7,B128<='Calculation Sheet Crop 1'!$L$7),"Crop Development Phase",IF(AND(B128+1>'Calculation Sheet Crop 1'!$K$8,B128<'Calculation Sheet Crop 1'!$L$8+1),"Mid Season",IF(AND(B128+1>'Calculation Sheet Crop 1'!$K$9,B128-1<'Calculation Sheet Crop 1'!$L$9),"Late Season Stage","")))) -> Crop Development Phase | D128: =IF(MONTH(B128)=1,'General Calculation'!$E$22,IF(MONTH(B128)=2,'General Calculation'!$F$22,IF(MONTH(B128)=3,'General Calculation'!$G$22,IF(MONTH(B128)=4,'General Calculation'!$H$22,IF(MONTH(B128)=5,'General Calculation'!$I$22,IF(MONTH(B128)=6,'General Calculation'!$J$22,IF(MONTH(B128)=7,'General Calculation'!$K$22,IF(MONTH(B128)=8,'General Calculation'!$L$22,IF(MONTH(B128)=9,'General Calculation'!$M$22,IF(MONTH(B128)=10,'General Calculation'!$N$22,IF(MONTH(B128)=11,'General Calculation'!$O$22,IF(MONTH(B128)=12,'General Calculation'!$P$22,"")))))))))))) -> 5.12838 | E128: =IF(C128="Initial Stage",'Calculation Sheet Crop 1'!$M$6,IF(C128="Crop Development Phase",'Calculation Sheet Crop 1'!$M$7,IF(C128="Mid Season",'Calculation Sheet Crop 1'!$M$8,IF(C128="Late Season Stage",'Calculation Sheet Crop 1'!$M$9,"")))) -> 0.7 | F128: 3.589866 | P128: 0 | Q128: 0 | R128: 0 | S128: 0 | T128: 3.589866 | U128: 0 | V128: 0 | W128: 0 | X128: 0 | Y128: 0 | Z128: 0 | AA128: 0
B129: 2017-05-03 | C129: =IF(AND(B129>='Calculation Sheet Crop 1'!$K$6,B129<='Calculation Sheet Crop 1'!$L$6),"Initial Stage",IF(AND(B129+1>'Calculation Sheet Crop 1'!$K$7,B129<='Calculation Sheet Crop 1'!$L$7),"Crop Development Phase",IF(AND(B129+1>'Calculation Sheet Crop 1'!$K$8,B129<'Calculation Sheet Crop 1'!$L$8+1),"Mid Season",IF(AND(B129+1>'Calculation Sheet Crop 1'!$K$9,B129-1<'Calculation Sheet Crop 1'!$L$9),"Late Season Stage","")))) -> Crop Development Phase | D129: =IF(MONTH(B129)=1,'General Calculation'!$E$22,IF(MONTH(B129)=2,'General Calculation'!$F$22,IF(MONTH(B129)=3,'General Calculation'!$G$22,IF(MONTH(B129)=4,'General Calculation'!$H$22,IF(MONTH(B129)=5,'General Calculation'!$I$22,IF(MONTH(B129)=6,'General Calculation'!$J$22,IF(MONTH(B129)=7,'General Calculation'!$K$22,IF(MONTH(B129)=8,'General Calculation'!$L$22,IF(MONTH(B129)=9,'General Calculation'!$M$22,IF(MONTH(B129)=10,'General Calculation'!$N$22,IF(MONTH(B129)=11,'General Calculation'!$O$22,IF(MONTH(B129)=12,'General Calculation'!$P$22,"")))))))))))) -> 5.12838 | E129: =IF(C129="Initial Stage",'Calculation Sheet Crop 1'!$M$6,IF(C129="Crop Development Phase",'Calculation Sheet Crop 1'!$M$7,IF(C129="Mid Season",'Calculation Sheet Crop 1'!$M$8,IF(C129="Late Season Stage",'Calculation Sheet Crop 1'!$M$9,"")))) -> 0.7 | F129: 3.589866 | P129: 0 | Q129: 0 | R129: 0 | S129: 0 | T129: 3.589866 | U129: 0 | V129: 0 | W129: 0 | X129: 0 | Y129: 0 | Z129: 0 | AA129: 0
B130: 2017-05-04 | C130: =IF(AND(B130>='Calculation Sheet Crop 1'!$K$6,B130<='Calculation Sheet Crop 1'!$L$6),"Initial Stage",IF(AND(B130+1>'Calculation Sheet Crop 1'!$K$7,B130<='Calculation Sheet Crop 1'!$L$7),"Crop Development Phase",IF(AND(B130+1>'Calculation Sheet Crop 1'!$K$8,B130<'Calculation Sheet Crop 1'!$L$8+1),"Mid Season",IF(AND(B130+1>'Calculation Sheet Crop 1'!$K$9,B130-1<'Calculation Sheet Crop 1'!$L$9),"Late Season Stage","")))) -> Crop Development Phase | D130: =IF(MONTH(B130)=1,'General Calculation'!$E$22,IF(MONTH(B130)=2,'General Calculation'!$F$22,IF(MONTH(B130)=3,'General Calculation'!$G$22,IF(MONTH(B130)=4,'General Calculation'!$H$22,IF(MONTH(B130)=5,'General Calculation'!$I$22,IF(MONTH(B130)=6,'General Calculation'!$J$22,IF(MONTH(B130)=7,'General Calculation'!$K$22,IF(MONTH(B130)=8,'General Calculation'!$L$22,IF(MONTH(B130)=9,'General Calculation'!$M$22,IF(MONTH(B130)=10,'General Calculation'!$N$22,IF(MONTH(B130)=11,'General Calculation'!$O$22,IF(MONTH(B130)=12,'General Calculation'!$P$22,"")))))))))))) -> 5.12838 | E130: =IF(C130="Initial Stage",'Calculation Sheet Crop 1'!$M$6,IF(C130="Crop Development Phase",'Calculation Sheet Crop 1'!$M$7,IF(C130="Mid Season",'Calculation Sheet Crop 1'!$M$8,IF(C130="Late Season Stage",'Calculation Sheet Crop 1'!$M$9,"")))) -> 0.7 | F130: 3.589866 | P130: 0 | Q130: 0 | R130: 0 | S130: 0 | T130: 3.589866 | U130: 0 | V130: 0 | W130: 0 | X130: 0 | Y130: 0 | Z130: 0 | AA130: 0
B131: 2017-05-05 | C131: =IF(AND(B131>='Calculation Sheet Crop 1'!$K$6,B131<='Calculation Sheet Crop 1'!$L$6),"Initial Stage",IF(AND(B131+1>'Calculation Sheet Crop 1'!$K$7,B131<='Calculation Sheet Crop 1'!$L$7),"Crop Development Phase",IF(AND(B131+1>'Calculation Sheet Crop 1'!$K$8,B131<'Calculation Sheet Crop 1'!$L$8+1),"Mid Season",IF(AND(B131+1>'Calculation Sheet Crop 1'!$K$9,B131-1<'Calculation Sheet Crop 1'!$L$9),"Late Season Stage","")))) -> Crop Development Phase | D131: =IF(MONTH(B131)=1,'General Calculation'!$E$22,IF(MONTH(B131)=2,'General Calculation'!$F$22,IF(MONTH(B131)=3,'General Calculation'!$G$22,IF(MONTH(B131)=4,'General Calculation'!$H$22,IF(MONTH(B131)=5,'General Calculation'!$I$22,IF(MONTH(B131)=6,'General Calculation'!$J$22,IF(MONTH(B131)=7,'General Calculation'!$K$22,IF(MONTH(B131)=8,'General Calculation'!$L$22,IF(MONTH(B131)=9,'General Calculation'!$M$22,IF(MONTH(B131)=10,'General Calculation'!$N$22,IF(MONTH(B131)=11,'General Calculation'!$O$22,IF(MONTH(B131)=12,'General Calculation'!$P$22,"")))))))))))) -> 5.12838 | E131: =IF(C131="Initial Stage",'Calculation Sheet Crop 1'!$M$6,IF(C131="Crop Development Phase",'Calculation Sheet Crop 1'!$M$7,IF(C131="Mid Season",'Calculation Sheet Crop 1'!$M$8,IF(C131="Late Season Stage",'Calculation Sheet Crop 1'!$M$9,"")))) -> 0.7 | F131: 3.589866 | P131: 0 | Q131: 0 | R131: 0 | S131: 0 | T131: 3.589866 | U131: 0 | V131: 0 | W131: 0 | X131: 0 | Y131: 0 | Z131: 0 | AA131: 0
B132: 2017-05-06 | C132: =IF(AND(B132>='Calculation Sheet Crop 1'!$K$6,B132<='Calculation Sheet Crop 1'!$L$6),"Initial Stage",IF(AND(B132+1>'Calculation Sheet Crop 1'!$K$7,B132<='Calculation Sheet Crop 1'!$L$7),"Crop Development Phase",IF(AND(B132+1>'Calculation Sheet Crop 1'!$K$8,B132<'Calculation Sheet Crop 1'!$L$8+1),"Mid Season",IF(AND(B132+1>'Calculation Sheet Crop 1'!$K$9,B132-1<'Calculation Sheet Crop 1'!$L$9),"Late Season Stage","")))) -> Crop Development Phase | D132: =IF(MONTH(B132)=1,'General Calculation'!$E$22,IF(MONTH(B132)=2,'General Calculation'!$F$22,IF(MONTH(B132)=3,'General Calculation'!$G$22,IF(MONTH(B132)=4,'General Calculation'!$H$22,IF(MONTH(B132)=5,'General Calculation'!$I$22,IF(MONTH(B132)=6,'General Calculation'!$J$22,IF(MONTH(B132)=7,'General Calculation'!$K$22,IF(MONTH(B132)=8,'General Calculation'!$L$22,IF(MONTH(B132)=9,'General Calculation'!$M$22,IF(MONTH(B132)=10,'General Calculation'!$N$22,IF(MONTH(B132)=11,'General Calculation'!$O$22,IF(MONTH(B132)=12,'General Calculation'!$P$22,"")))))))))))) -> 5.12838 | E132: =IF(C132="Initial Stage",'Calculation Sheet Crop 1'!$M$6,IF(C132="Crop Development Phase",'Calculation Sheet Crop 1'!$M$7,IF(C132="Mid Season",'Calculation Sheet Crop 1'!$M$8,IF(C132="Late Season Stage",'Calculation Sheet Crop 1'!$M$9,"")))) -> 0.7 | F132: 3.589866 | P132: 0 | Q132: 0 | R132: 0 | S132: 0 | T132: 3.589866 | U132: 0 | V132: 0 | W132: 0 | X132: 0 | Y132: 0 | Z132: 0 | AA132: 0
B133: 2017-05-07 | C133: =IF(AND(B133>='Calculation Sheet Crop 1'!$K$6,B133<='Calculation Sheet Crop 1'!$L$6),"Initial Stage",IF(AND(B133+1>'Calculation Sheet Crop 1'!$K$7,B133<='Calculation Sheet Crop 1'!$L$7),"Crop Development Phase",IF(AND(B133+1>'Calculation Sheet Crop 1'!$K$8,B133<'Calculation Sheet Crop 1'!$L$8+1),"Mid Season",IF(AND(B133+1>'Calculation Sheet Crop 1'!$K$9,B133-1<'Calculation Sheet Crop 1'!$L$9),"Late Season Stage","")))) -> Crop Development Phase | D133: =IF(MONTH(B133)=1,'General Calculation'!$E$22,IF(MONTH(B133)=2,'General Calculation'!$F$22,IF(MONTH(B133)=3,'General Calculation'!$G$22,IF(MONTH(B133)=4,'General Calculation'!$H$22,IF(MONTH(B133)=5,'General Calculation'!$I$22,IF(MONTH(B133)=6,'General Calculation'!$J$22,IF(MONTH(B133)=7,'General Calculation'!$K$22,IF(MONTH(B133)=8,'General Calculation'!$L$22,IF(MONTH(B133)=9,'General Calculation'!$M$22,IF(MONTH(B133)=10,'General Calculation'!$N$22,IF(MONTH(B133)=11,'General Calculation'!$O$22,IF(MONTH(B133)=12,'General Calculation'!$P$22,"")))))))))))) -> 5.12838 | E133: =IF(C133="Initial Stage",'Calculation Sheet Crop 1'!$M$6,IF(C133="Crop Development Phase",'Calculation Sheet Crop 1'!$M$7,IF(C133="Mid Season",'Calculation Sheet Crop 1'!$M$8,IF(C133="Late Season Stage",'Calculation Sheet Crop 1'!$M$9,"")))) -> 0.7 | F133: 3.589866 | P133: 0 | Q133: 0 | R133: 0 | S133: 0 | T133: 3.589866 | U133: 0 | V133: 0 | W133: 0 | X133: 0 | Y133: 0 | Z133: 0 | AA133: 0
B134: 2017-05-08 | C134: =IF(AND(B134>='Calculation Sheet Crop 1'!$K$6,B134<='Calculation Sheet Crop 1'!$L$6),"Initial Stage",IF(AND(B134+1>'Calculation Sheet Crop 1'!$K$7,B134<='Calculation Sheet Crop 1'!$L$7),"Crop Development Phase",IF(AND(B134+1>'Calculation Sheet Crop 1'!$K$8,B134<'Calculation Sheet Crop 1'!$L$8+1),"Mid Season",IF(AND(B134+1>'Calculation Sheet Crop 1'!$K$9,B134-1<'Calculation Sheet Crop 1'!$L$9),"Late Season Stage","")))) -> Crop Development Phase | D134: =IF(MONTH(B134)=1,'General Calculation'!$E$22,IF(MONTH(B134)=2,'General Calculation'!$F$22,IF(MONTH(B134)=3,'General Calculation'!$G$22,IF(MONTH(B134)=4,'General Calculation'!$H$22,IF(MONTH(B134)=5,'General Calculation'!$I$22,IF(MONTH(B134)=6,'General Calculation'!$J$22,IF(MONTH(B134)=7,'General Calculation'!$K$22,IF(MONTH(B134)=8,'General Calculation'!$L$22,IF(MONTH(B134)=9,'General Calculation'!$M$22,IF(MONTH(B134)=10,'General Calculation'!$N$22,IF(MONTH(B134)=11,'General Calculation'!$O$22,IF(MONTH(B134)=12,'General Calculation'!$P$22,"")))))))))))) -> 5.12838 | E134: =IF(C134="Initial Stage",'Calculation Sheet Crop 1'!$M$6,IF(C134="Crop Development Phase",'Calculation Sheet Crop 1'!$M$7,IF(C134="Mid Season",'Calculation Sheet Crop 1'!$M$8,IF(C134="Late Season Stage",'Calculation Sheet Crop 1'!$M$9,"")))) -> 0.7 | F134: 3.589866 | P134: 0 | Q134: 0 | R134: 0 | S134: 0 | T134: 3.589866 | U134: 0 | V134: 0 | W134: 0 | X134: 0 | Y134: 0 | Z134: 0 | AA134: 0
B135: 2017-05-09 | C135: =IF(AND(B135>='Calculation Sheet Crop 1'!$K$6,B135<='Calculation Sheet Crop 1'!$L$6),"Initial Stage",IF(AND(B135+1>'Calculation Sheet Crop 1'!$K$7,B135<='Calculation Sheet Crop 1'!$L$7),"Crop Development Phase",IF(AND(B135+1>'Calculation Sheet Crop 1'!$K$8,B135<'Calculation Sheet Crop 1'!$L$8+1),"Mid Season",IF(AND(B135+1>'Calculation Sheet Crop 1'!$K$9,B135-1<'Calculation Sheet Crop 1'!$L$9),"Late Season Stage","")))) -> Crop Development Phase | D135: =IF(MONTH(B135)=1,'General Calculation'!$E$22,IF(MONTH(B135)=2,'General Calculation'!$F$22,IF(MONTH(B135)=3,'General Calculation'!$G$22,IF(MONTH(B135)=4,'General Calculation'!$H$22,IF(MONTH(B135)=5,'General Calculation'!$I$22,IF(MONTH(B135)=6,'General Calculation'!$J$22,IF(MONTH(B135)=7,'General Calculation'!$K$22,IF(MONTH(B135)=8,'General Calculation'!$L$22,IF(MONTH(B135)=9,'General Calculation'!$M$22,IF(MONTH(B135)=10,'General Calculation'!$N$22,IF(MONTH(B135)=11,'General Calculation'!$O$22,IF(MONTH(B135)=12,'General Calculation'!$P$22,"")))))))))))) -> 5.12838 | E135: =IF(C135="Initial Stage",'Calculation Sheet Crop 1'!$M$6,IF(C135="Crop Development Phase",'Calculation Sheet Crop 1'!$M$7,IF(C135="Mid Season",'Calculation Sheet Crop 1'!$M$8,IF(C135="Late Season Stage",'Calculation Sheet Crop 1'!$M$9,"")))) -> 0.7 | F135: 3.589866 | P135: 0 | Q135: 0 | R135: 0 | S135: 0 | T135: 3.589866 | U135: 0 | V135: 0 | W135: 0 | X135: 0 | Y135: 0 | Z135: 0 | AA135: 0
B136: 2017-05-10 | C136: =IF(AND(B136>='Calculation Sheet Crop 1'!$K$6,B136<='Calculation Sheet Crop 1'!$L$6),"Initial Stage",IF(AND(B136+1>'Calculation Sheet Crop 1'!$K$7,B136<='Calculation Sheet Crop 1'!$L$7),"Crop Development Phase",IF(AND(B136+1>'Calculation Sheet Crop 1'!$K$8,B136<'Calculation Sheet Crop 1'!$L$8+1),"Mid Season",IF(AND(B136+1>'Calculation Sheet Crop 1'!$K$9,B136-1<'Calculation Sheet Crop 1'!$L$9),"Late Season Stage","")))) -> Crop Development Phase | D136: =IF(MONTH(B136)=1,'General Calculation'!$E$22,IF(MONTH(B136)=2,'General Calculation'!$F$22,IF(MONTH(B136)=3,'General Calculation'!$G$22,IF(MONTH(B136)=4,'General Calculation'!$H$22,IF(MONTH(B136)=5,'General Calculation'!$I$22,IF(MONTH(B136)=6,'General Calculation'!$J$22,IF(MONTH(B136)=7,'General Calculation'!$K$22,IF(MONTH(B136)=8,'General Calculation'!$L$22,IF(MONTH(B136)=9,'General Calculation'!$M$22,IF(MONTH(B136)=10,'General Calculation'!$N$22,IF(MONTH(B136)=11,'General Calculation'!$O$22,IF(MONTH(B136)=12,'General Calculation'!$P$22,"")))))))))))) -> 5.12838 | E136: =IF(C136="Initial Stage",'Calculation Sheet Crop 1'!$M$6,IF(C136="Crop Development Phase",'Calculation Sheet Crop 1'!$M$7,IF(C136="Mid Season",'Calculation Sheet Crop 1'!$M$8,IF(C136="Late Season Stage",'Calculation Sheet Crop 1'!$M$9,"")))) -> 0.7 | F136: =IFERROR((D136*E136),0) -> 3.589866 | P136: =IF(MONTH($B136)=1,$F136,0) -> 0 | Q136: =IF(MONTH($B136)=2,$F136,0) -> 0 | R136: =IF(MONTH($B136)=3,$F136,0) -> 0 | S136: =IF(MONTH($B136)=4,$F136,0) -> 0 | T136: =IF(MONTH($B136)=5,$F136,0) -> 3.589866 | U136: =IF(MONTH($B136)=6,$F136,0) -> 0 | V136: =IF(MONTH($B136)=7,$F136,0) -> 0 | W136: =IF(MONTH($B136)=8,$F136,0) -> 0 | X136: =IF(MONTH($B136)=9,$F136,0) -> 0 | Y136: =IF(MONTH($B136)=10,$F136,0) -> 0 | Z136: =IF(MONTH($B136)=11,$F136,0) -> 0 | AA136: =IF(MONTH($B136)=12,$F136,0) -> 0
B137: 2017-05-11 | C137: =IF(AND(B137>='Calculation Sheet Crop 1'!$K$6,B137<='Calculation Sheet Crop 1'!$L$6),"Initial Stage",IF(AND(B137+1>'Calculation Sheet Crop 1'!$K$7,B137<='Calculation Sheet Crop 1'!$L$7),"Crop Development Phase",IF(AND(B137+1>'Calculation Sheet Crop 1'!$K$8,B137<'Calculation Sheet Crop 1'!$L$8+1),"Mid Season",IF(AND(B137+1>'Calculation Sheet Crop 1'!$K$9,B137-1<'Calculation Sheet Crop 1'!$L$9),"Late Season Stage","")))) -> Crop Development Phase | D137: =IF(MONTH(B137)=1,'General Calculation'!$E$22,IF(MONTH(B137)=2,'General Calculation'!$F$22,IF(MONTH(B137)=3,'General Calculation'!$G$22,IF(MONTH(B137)=4,'General Calculation'!$H$22,IF(MONTH(B137)=5,'General Calculation'!$I$22,IF(MONTH(B137)=6,'General Calculation'!$J$22,IF(MONTH(B137)=7,'General Calculation'!$K$22,IF(MONTH(B137)=8,'General Calculation'!$L$22,IF(MONTH(B137)=9,'General Calculation'!$M$22,IF(MONTH(B137)=10,'General Calculation'!$N$22,IF(MONTH(B137)=11,'General Calculation'!$O$22,IF(MONTH(B137)=12,'General Calculation'!$P$22,"")))))))))))) -> 5.12838 | E137: =IF(C137="Initial Stage",'Calculation Sheet Crop 1'!$M$6,IF(C137="Crop Development Phase",'Calculation Sheet Crop 1'!$M$7,IF(C137="Mid Season",'Calculation Sheet Crop 1'!$M$8,IF(C137="Late Season Stage",'Calculation Sheet Crop 1'!$M$9,"")))) -> 0.7 | F137: 3.589866 | P137: 0 | Q137: 0 | R137: 0 | S137: 0 | T137: 3.589866 | U137: 0 | V137: 0 | W137: 0 | X137: 0 | Y137: 0 | Z137: 0 | AA137: 0
B138: 2017-05-12 | C138: =IF(AND(B138>='Calculation Sheet Crop 1'!$K$6,B138<='Calculation Sheet Crop 1'!$L$6),"Initial Stage",IF(AND(B138+1>'Calculation Sheet Crop 1'!$K$7,B138<='Calculation Sheet Crop 1'!$L$7),"Crop Development Phase",IF(AND(B138+1>'Calculation Sheet Crop 1'!$K$8,B138<'Calculation Sheet Crop 1'!$L$8+1),"Mid Season",IF(AND(B138+1>'Calculation Sheet Crop 1'!$K$9,B138-1<'Calculation Sheet Crop 1'!$L$9),"Late Season Stage","")))) -> Crop Development Phase | D138: =IF(MONTH(B138)=1,'General Calculation'!$E$22,IF(MONTH(B138)=2,'General Calculation'!$F$22,IF(MONTH(B138)=3,'General Calculation'!$G$22,IF(MONTH(B138)=4,'General Calculation'!$H$22,IF(MONTH(B138)=5,'General Calculation'!$I$22,IF(MONTH(B138)=6,'General Calculation'!$J$22,IF(MONTH(B138)=7,'General Calculation'!$K$22,IF(MONTH(B138)=8,'General Calculation'!$L$22,IF(MONTH(B138)=9,'General Calculation'!$M$22,IF(MONTH(B138)=10,'General Calculation'!$N$22,IF(MONTH(B138)=11,'General Calculation'!$O$22,IF(MONTH(B138)=12,'General Calculation'!$P$22,"")))))))))))) -> 5.12838 | E138: =IF(C138="Initial Stage",'Calculation Sheet Crop 1'!$M$6,IF(C138="Crop Development Phase",'Calculation Sheet Crop 1'!$M$7,IF(C138="Mid Season",'Calculation Sheet Crop 1'!$M$8,IF(C138="Late Season Stage",'Calculation Sheet Crop 1'!$M$9,"")))) -> 0.7 | F138: 3.589866 | P138: 0 | Q138: 0 | R138: 0 | S138: 0 | T138: 3.589866 | U138: 0 | V138: 0 | W138: 0 | X138: 0 | Y138: 0 | Z138: 0 | AA138: 0
B139: 2017-05-13 | C139: =IF(AND(B139>='Calculation Sheet Crop 1'!$K$6,B139<='Calculation Sheet Crop 1'!$L$6),"Initial Stage",IF(AND(B139+1>'Calculation Sheet Crop 1'!$K$7,B139<='Calculation Sheet Crop 1'!$L$7),"Crop Development Phase",IF(AND(B139+1>'Calculation Sheet Crop 1'!$K$8,B139<'Calculation Sheet Crop 1'!$L$8+1),"Mid Season",IF(AND(B139+1>'Calculation Sheet Crop 1'!$K$9,B139-1<'Calculation Sheet Crop 1'!$L$9),"Late Season Stage","")))) -> Mid Season | D139: =IF(MONTH(B139)=1,'General Calculation'!$E$22,IF(MONTH(B139)=2,'General Calculation'!$F$22,IF(MONTH(B139)=3,'General Calculation'!$G$22,IF(MONTH(B139)=4,'General Calculation'!$H$22,IF(MONTH(B139)=5,'General Calculation'!$I$22,IF(MONTH(B139)=6,'General Calculation'!$J$22,IF(MONTH(B139)=7,'General Calculation'!$K$22,IF(MONTH(B139)=8,'General Calculation'!$L$22,IF(MONTH(B139)=9,'General Calculation'!$M$22,IF(MONTH(B139)=10,'General Calculation'!$N$22,IF(MONTH(B139)=11,'General Calculation'!$O$22,IF(MONTH(B139)=12,'General Calculation'!$P$22,"")))))))))))) -> 5.12838 | E139: =IF(C139="Initial Stage",'Calculation Sheet Crop 1'!$M$6,IF(C139="Crop Development Phase",'Calculation Sheet Crop 1'!$M$7,IF(C139="Mid Season",'Calculation Sheet Crop 1'!$M$8,IF(C139="Late Season Stage",'Calculation Sheet Crop 1'!$M$9,"")))) -> 1.1 | F139: 5.641218 | P139: 0 | Q139: 0 | R139: 0 | S139: 0 | T139: 5.641218 | U139: 0 | V139: 0 | W139: 0 | X139: 0 | Y139: 0 | Z139: 0 | AA139: 0
B140: 2017-05-14 | C140: =IF(AND(B140>='Calculation Sheet Crop 1'!$K$6,B140<='Calculation Sheet Crop 1'!$L$6),"Initial Stage",IF(AND(B140+1>'Calculation Sheet Crop 1'!$K$7,B140<='Calculation Sheet Crop 1'!$L$7),"Crop Development Phase",IF(AND(B140+1>'Calculation Sheet Crop 1'!$K$8,B140<'Calculation Sheet Crop 1'!$L$8+1),"Mid Season",IF(AND(B140+1>'Calculation Sheet Crop 1'!$K$9,B140-1<'Calculation Sheet Crop 1'!$L$9),"Late Season Stage","")))) -> Mid Season | D140: =IF(MONTH(B140)=1,'General Calculation'!$E$22,IF(MONTH(B140)=2,'General Calculation'!$F$22,IF(MONTH(B140)=3,'General Calculation'!$G$22,IF(MONTH(B140)=4,'General Calculation'!$H$22,IF(MONTH(B140)=5,'General Calculation'!$I$22,IF(MONTH(B140)=6,'General Calculation'!$J$22,IF(MONTH(B140)=7,'General Calculation'!$K$22,IF(MONTH(B140)=8,'General Calculation'!$L$22,IF(MONTH(B140)=9,'General Calculation'!$M$22,IF(MONTH(B140)=10,'General Calculation'!$N$22,IF(MONTH(B140)=11,'General Calculation'!$O$22,IF(MONTH(B140)=12,'General Calculation'!$P$22,"")))))))))))) -> 5.12838 | E140: =IF(C140="Initial Stage",'Calculation Sheet Crop 1'!$M$6,IF(C140="Crop Development Phase",'Calculation Sheet Crop 1'!$M$7,IF(C140="Mid Season",'Calculation Sheet Crop 1'!$M$8,IF(C140="Late Season Stage",'Calculation Sheet Crop 1'!$M$9,"")))) -> 1.1 | F140: 5.641218 | P140: 0 | Q140: 0 | R140: 0 | S140: 0 | T140: 5.641218 | U140: 0 | V140: 0 | W140: 0 | X140: 0 | Y140: 0 | Z140: 0 | AA140: 0
B141: 2017-05-15 | C141: =IF(AND(B141>='Calculation Sheet Crop 1'!$K$6,B141<='Calculation Sheet Crop 1'!$L$6),"Initial Stage",IF(AND(B141+1>'Calculation Sheet Crop 1'!$K$7,B141<='Calculation Sheet Crop 1'!$L$7),"Crop Development Phase",IF(AND(B141+1>'Calculation Sheet Crop 1'!$K$8,B141<'Calculation Sheet Crop 1'!$L$8+1),"Mid Season",IF(AND(B141+1>'Calculation Sheet Crop 1'!$K$9,B141-1<'Calculation Sheet Crop 1'!$L$9),"Late Season Stage","")))) -> Mid Season | D141: =IF(MONTH(B141)=1,'General Calculation'!$E$22,IF(MONTH(B141)=2,'General Calculation'!$F$22,IF(MONTH(B141)=3,'General Calculation'!$G$22,IF(MONTH(B141)=4,'General Calculation'!$H$22,IF(MONTH(B141)=5,'General Calculation'!$I$22,IF(MONTH(B141)=6,'General Calculation'!$J$22,IF(MONTH(B141)=7,'General Calculation'!$K$22,IF(MONTH(B141)=8,'General Calculation'!$L$22,IF(MONTH(B141)=9,'General Calculation'!$M$22,IF(MONTH(B141)=10,'General Calculation'!$N$22,IF(MONTH(B141)=11,'General Calculation'!$O$22,IF(MONTH(B141)=12,'General Calculation'!$P$22,"")))))))))))) -> 5.12838 | E141: =IF(C141="Initial Stage",'Calculation Sheet Crop 1'!$M$6,IF(C141="Crop Development Phase",'Calculation Sheet Crop 1'!$M$7,IF(C141="Mid Season",'Calculation Sheet Crop 1'!$M$8,IF(C141="Late Season Stage",'Calculation Sheet Crop 1'!$M$9,"")))) -> 1.1 | F141: 5.641218 | P141: 0 | Q141: 0 | R141: 0 | S141: 0 | T141: 5.641218 | U141: 0 | V141: 0 | W141: 0 | X141: 0 | Y141: 0 | Z141: 0 | AA141: 0
B142: 2017-05-16 | C142: =IF(AND(B142>='Calculation Sheet Crop 1'!$K$6,B142<='Calculation Sheet Crop 1'!$L$6),"Initial Stage",IF(AND(B142+1>'Calculation Sheet Crop 1'!$K$7,B142<='Calculation Sheet Crop 1'!$L$7),"Crop Development Phase",IF(AND(B142+1>'Calculation Sheet Crop 1'!$K$8,B142<'Calculation Sheet Crop 1'!$L$8+1),"Mid Season",IF(AND(B142+1>'Calculation Sheet Crop 1'!$K$9,B142-1<'Calculation Sheet Crop 1'!$L$9),"Late Season Stage","")))) -> Mid Season | D142: =IF(MONTH(B142)=1,'General Calculation'!$E$22,IF(MONTH(B142)=2,'General Calculation'!$F$22,IF(MONTH(B142)=3,'General Calculation'!$G$22,IF(MONTH(B142)=4,'General Calculation'!$H$22,IF(MONTH(B142)=5,'General Calculation'!$I$22,IF(MONTH(B142)=6,'General Calculation'!$J$22,IF(MONTH(B142)=7,'General Calculation'!$K$22,IF(MONTH(B142)=8,'General Calculation'!$L$22,IF(MONTH(B142)=9,'General Calculation'!$M$22,IF(MONTH(B142)=10,'General Calculation'!$N$22,IF(MONTH(B142)=11,'General Calculation'!$O$22,IF(MONTH(B142)=12,'General Calculation'!$P$22,"")))))))))))) -> 5.12838 | E142: =IF(C142="Initial Stage",'Calculation Sheet Crop 1'!$M$6,IF(C142="Crop Development Phase",'Calculation Sheet Crop 1'!$M$7,IF(C142="Mid Season",'Calculation Sheet Crop 1'!$M$8,IF(C142="Late Season Stage",'Calculation Sheet Crop 1'!$M$9,"")))) -> 1.1 | F142: 5.641218 | P142: 0 | Q142: 0 | R142: 0 | S142: 0 | T142: 5.641218 | U142: 0 | V142: 0 | W142: 0 | X142: 0 | Y142: 0 | Z142: 0 | AA142: 0
B143: 2017-05-17 | C143: =IF(AND(B143>='Calculation Sheet Crop 1'!$K$6,B143<='Calculation Sheet Crop 1'!$L$6),"Initial Stage",IF(AND(B143+1>'Calculation Sheet Crop 1'!$K$7,B143<='Calculation Sheet Crop 1'!$L$7),"Crop Development Phase",IF(AND(B143+1>'Calculation Sheet Crop 1'!$K$8,B143<'Calculation Sheet Crop 1'!$L$8+1),"Mid Season",IF(AND(B143+1>'Calculation Sheet Crop 1'!$K$9,B143-1<'Calculation Sheet Crop 1'!$L$9),"Late Season Stage","")))) -> Mid Season | D143: =IF(MONTH(B143)=1,'General Calculation'!$E$22,IF(MONTH(B143)=2,'General Calculation'!$F$22,IF(MONTH(B143)=3,'General Calculation'!$G$22,IF(MONTH(B143)=4,'General Calculation'!$H$22,IF(MONTH(B143)=5,'General Calculation'!$I$22,IF(MONTH(B143)=6,'General Calculation'!$J$22,IF(MONTH(B143)=7,'General Calculation'!$K$22,IF(MONTH(B143)=8,'General Calculation'!$L$22,IF(MONTH(B143)=9,'General Calculation'!$M$22,IF(MONTH(B143)=10,'General Calculation'!$N$22,IF(MONTH(B143)=11,'General Calculation'!$O$22,IF(MONTH(B143)=12,'General Calculation'!$P$22,"")))))))))))) -> 5.12838 | E143: =IF(C143="Initial Stage",'Calculation Sheet Crop 1'!$M$6,IF(C143="Crop Development Phase",'Calculation Sheet Crop 1'!$M$7,IF(C143="Mid Season",'Calculation Sheet Crop 1'!$M$8,IF(C143="Late Season Stage",'Calculation Sheet Crop 1'!$M$9,"")))) -> 1.1 | F143: 5.641218 | P143: 0 | Q143: 0 | R143: 0 | S143: 0 | T143: 5.641218 | U143: 0 | V143: 0 | W143: 0 | X143: 0 | Y143: 0 | Z143: 0 | AA143: 0
B144: 2017-05-18 | C144: =IF(AND(B144>='Calculation Sheet Crop 1'!$K$6,B144<='Calculation Sheet Crop 1'!$L$6),"Initial Stage",IF(AND(B144+1>'Calculation Sheet Crop 1'!$K$7,B144<='Calculation Sheet Crop 1'!$L$7),"Crop Development Phase",IF(AND(B144+1>'Calculation Sheet Crop 1'!$K$8,B144<'Calculation Sheet Crop 1'!$L$8+1),"Mid Season",IF(AND(B144+1>'Calculation Sheet Crop 1'!$K$9,B144-1<'Calculation Sheet Crop 1'!$L$9),"Late Season Stage","")))) -> Mid Season | D144: =IF(MONTH(B144)=1,'General Calculation'!$E$22,IF(MONTH(B144)=2,'General Calculation'!$F$22,IF(MONTH(B144)=3,'General Calculation'!$G$22,IF(MONTH(B144)=4,'General Calculation'!$H$22,IF(MONTH(B144)=5,'General Calculation'!$I$22,IF(MONTH(B144)=6,'General Calculation'!$J$22,IF(MONTH(B144)=7,'General Calculation'!$K$22,IF(MONTH(B144)=8,'General Calculation'!$L$22,IF(MONTH(B144)=9,'General Calculation'!$M$22,IF(MONTH(B144)=10,'General Calculation'!$N$22,IF(MONTH(B144)=11,'General Calculation'!$O$22,IF(MONTH(B144)=12,'General Calculation'!$P$22,"")))))))))))) -> 5.12838 | E144: =IF(C144="Initial Stage",'Calculation Sheet Crop 1'!$M$6,IF(C144="Crop Development Phase",'Calculation Sheet Crop 1'!$M$7,IF(C144="Mid Season",'Calculation Sheet Crop 1'!$M$8,IF(C144="Late Season Stage",'Calculation Sheet Crop 1'!$M$9,"")))) -> 1.1 | F144: 5.641218 | P144: 0 | Q144: 0 | R144: 0 | S144: 0 | T144: 5.641218 | U144: 0 | V144: 0 | W144: 0 | X144: 0 | Y144: 0 | Z144: 0 | AA144: 0
B145: 2017-05-19 | C145: =IF(AND(B145>='Calculation Sheet Crop 1'!$K$6,B145<='Calculation Sheet Crop 1'!$L$6),"Initial Stage",IF(AND(B145+1>'Calculation Sheet Crop 1'!$K$7,B145<='Calculation Sheet Crop 1'!$L$7),"Crop Development Phase",IF(AND(B145+1>'Calculation Sheet Crop 1'!$K$8,B145<'Calculation Sheet Crop 1'!$L$8+1),"Mid Season",IF(AND(B145+1>'Calculation Sheet Crop 1'!$K$9,B145-1<'Calculation Sheet Crop 1'!$L$9),"Late Season Stage","")))) -> Mid Season | D145: =IF(MONTH(B145)=1,'General Calculation'!$E$22,IF(MONTH(B145)=2,'General Calculation'!$F$22,IF(MONTH(B145)=3,'General Calculation'!$G$22,IF(MONTH(B145)=4,'General Calculation'!$H$22,IF(MONTH(B145)=5,'General Calculation'!$I$22,IF(MONTH(B145)=6,'General Calculation'!$J$22,IF(MONTH(B145)=7,'General Calculation'!$K$22,IF(MONTH(B145)=8,'General Calculation'!$L$22,IF(MONTH(B145)=9,'General Calculation'!$M$22,IF(MONTH(B145)=10,'General Calculation'!$N$22,IF(MONTH(B145)=11,'General Calculation'!$O$22,IF(MONTH(B145)=12,'General Calculation'!$P$22,"")))))))))))) -> 5.12838 | E145: =IF(C145="Initial Stage",'Calculation Sheet Crop 1'!$M$6,IF(C145="Crop Development Phase",'Calculation Sheet Crop 1'!$M$7,IF(C145="Mid Season",'Calculation Sheet Crop 1'!$M$8,IF(C145="Late Season Stage",'Calculation Sheet Crop 1'!$M$9,"")))) -> 1.1 | F145: 5.641218 | P145: 0 | Q145: 0 | R145: 0 | S145: 0 | T145: 5.641218 | U145: 0 | V145: 0 | W145: 0 | X145: 0 | Y145: 0 | Z145: 0 | AA145: 0
B146: 2017-05-20 | C146: =IF(AND(B146>='Calculation Sheet Crop 1'!$K$6,B146<='Calculation Sheet Crop 1'!$L$6),"Initial Stage",IF(AND(B146+1>'Calculation Sheet Crop 1'!$K$7,B146<='Calculation Sheet Crop 1'!$L$7),"Crop Development Phase",IF(AND(B146+1>'Calculation Sheet Crop 1'!$K$8,B146<'Calculation Sheet Crop 1'!$L$8+1),"Mid Season",IF(AND(B146+1>'Calculation Sheet Crop 1'!$K$9,B146-1<'Calculation Sheet Crop 1'!$L$9),"Late Season Stage","")))) -> Mid Season | D146: =IF(MONTH(B146)=1,'General Calculation'!$E$22,IF(MONTH(B146)=2,'General Calculation'!$F$22,IF(MONTH(B146)=3,'General Calculation'!$G$22,IF(MONTH(B146)=4,'General Calculation'!$H$22,IF(MONTH(B146)=5,'General Calculation'!$I$22,IF(MONTH(B146)=6,'General Calculation'!$J$22,IF(MONTH(B146)=7,'General Calculation'!$K$22,IF(MONTH(B146)=8,'General Calculation'!$L$22,IF(MONTH(B146)=9,'General Calculation'!$M$22,IF(MONTH(B146)=10,'General Calculation'!$N$22,IF(MONTH(B146)=11,'General Calculation'!$O$22,IF(MONTH(B146)=12,'General Calculation'!$P$22,"")))))))))))) -> 5.12838 | E146: =IF(C146="Initial Stage",'Calculation Sheet Crop 1'!$M$6,IF(C146="Crop Development Phase",'Calculation Sheet Crop 1'!$M$7,IF(C146="Mid Season",'Calculation Sheet Crop 1'!$M$8,IF(C146="Late Season Stage",'Calculation Sheet Crop 1'!$M$9,"")))) -> 1.1 | F146: 5.641218 | P146: 0 | Q146: 0 | R146: 0 | S146: 0 | T146: 5.641218 | U146: 0 | V146: 0 | W146: 0 | X146: 0 | Y146: 0 | Z146: 0 | AA146: 0
B147: 2017-05-21 | C147: =IF(AND(B147>='Calculation Sheet Crop 1'!$K$6,B147<='Calculation Sheet Crop 1'!$L$6),"Initial Stage",IF(AND(B147+1>'Calculation Sheet Crop 1'!$K$7,B147<='Calculation Sheet Crop 1'!$L$7),"Crop Development Phase",IF(AND(B147+1>'Calculation Sheet Crop 1'!$K$8,B147<'Calculation Sheet Crop 1'!$L$8+1),"Mid Season",IF(AND(B147+1>'Calculation Sheet Crop 1'!$K$9,B147-1<'Calculation Sheet Crop 1'!$L$9),"Late Season Stage","")))) -> Mid Season | D147: =IF(MONTH(B147)=1,'General Calculation'!$E$22,IF(MONTH(B147)=2,'General Calculation'!$F$22,IF(MONTH(B147)=3,'General Calculation'!$G$22,IF(MONTH(B147)=4,'General Calculation'!$H$22,IF(MONTH(B147)=5,'General Calculation'!$I$22,IF(MONTH(B147)=6,'General Calculation'!$J$22,IF(MONTH(B147)=7,'General Calculation'!$K$22,IF(MONTH(B147)=8,'General Calculation'!$L$22,IF(MONTH(B147)=9,'General Calculation'!$M$22,IF(MONTH(B147)=10,'General Calculation'!$N$22,IF(MONTH(B147)=11,'General Calculation'!$O$22,IF(MONTH(B147)=12,'General Calculation'!$P$22,"")))))))))))) -> 5.12838 | E147: =IF(C147="Initial Stage",'Calculation Sheet Crop 1'!$M$6,IF(C147="Crop Development Phase",'Calculation Sheet Crop 1'!$M$7,IF(C147="Mid Season",'Calculation Sheet Crop 1'!$M$8,IF(C147="Late Season Stage",'Calculation Sheet Crop 1'!$M$9,"")))) -> 1.1 | F147: 5.641218 | P147: 0 | Q147: 0 | R147: 0 | S147: 0 | T147: 5.641218 | U147: 0 | V147: 0 | W147: 0 | X147: 0 | Y147: 0 | Z147: 0 | AA147: 0
B148: 2017-05-22 | C148: =IF(AND(B148>='Calculation Sheet Crop 1'!$K$6,B148<='Calculation Sheet Crop 1'!$L$6),"Initial Stage",IF(AND(B148+1>'Calculation Sheet Crop 1'!$K$7,B148<='Calculation Sheet Crop 1'!$L$7),"Crop Development Phase",IF(AND(B148+1>'Calculation Sheet Crop 1'!$K$8,B148<'Calculation Sheet Crop 1'!$L$8+1),"Mid Season",IF(AND(B148+1>'Calculation Sheet Crop 1'!$K$9,B148-1<'Calculation Sheet Crop 1'!$L$9),"Late Season Stage","")))) -> Mid Season | D148: =IF(MONTH(B148)=1,'General Calculation'!$E$22,IF(MONTH(B148)=2,'General Calculation'!$F$22,IF(MONTH(B148)=3,'General Calculation'!$G$22,IF(MONTH(B148)=4,'General Calculation'!$H$22,IF(MONTH(B148)=5,'General Calculation'!$I$22,IF(MONTH(B148)=6,'General Calculation'!$J$22,IF(MONTH(B148)=7,'General Calculation'!$K$22,IF(MONTH(B148)=8,'General Calculation'!$L$22,IF(MONTH(B148)=9,'General Calculation'!$M$22,IF(MONTH(B148)=10,'General Calculation'!$N$22,IF(MONTH(B148)=11,'General Calculation'!$O$22,IF(MONTH(B148)=12,'General Calculation'!$P$22,"")))))))))))) -> 5.12838 | E148: =IF(C148="Initial Stage",'Calculation Sheet Crop 1'!$M$6,IF(C148="Crop Development Phase",'Calculation Sheet Crop 1'!$M$7,IF(C148="Mid Season",'Calculation Sheet Crop 1'!$M$8,IF(C148="Late Season Stage",'Calculation Sheet Crop 1'!$M$9,"")))) -> 1.1 | F148: 5.641218 | P148: 0 | Q148: 0 | R148: 0 | S148: 0 | T148: 5.641218 | U148: 0 | V148: 0 | W148: 0 | X148: 0 | Y148: 0 | Z148: 0 | AA148: 0
B149: 2017-05-23 | C149: =IF(AND(B149>='Calculation Sheet Crop 1'!$K$6,B149<='Calculation Sheet Crop 1'!$L$6),"Initial Stage",IF(AND(B149+1>'Calculation Sheet Crop 1'!$K$7,B149<='Calculation Sheet Crop 1'!$L$7),"Crop Development Phase",IF(AND(B149+1>'Calculation Sheet Crop 1'!$K$8,B149<'Calculation Sheet Crop 1'!$L$8+1),"Mid Season",IF(AND(B149+1>'Calculation Sheet Crop 1'!$K$9,B149-1<'Calculation Sheet Crop 1'!$L$9),"Late Season Stage","")))) -> Mid Season | D149: =IF(MONTH(B149)=1,'General Calculation'!$E$22,IF(MONTH(B149)=2,'General Calculation'!$F$22,IF(MONTH(B149)=3,'General Calculation'!$G$22,IF(MONTH(B149)=4,'General Calculation'!$H$22,IF(MONTH(B149)=5,'General Calculation'!$I$22,IF(MONTH(B149)=6,'General Calculation'!$J$22,IF(MONTH(B149)=7,'General Calculation'!$K$22,IF(MONTH(B149)=8,'General Calculation'!$L$22,IF(MONTH(B149)=9,'General Calculation'!$M$22,IF(MONTH(B149)=10,'General Calculation'!$N$22,IF(MONTH(B149)=11,'General Calculation'!$O$22,IF(MONTH(B149)=12,'General Calculation'!$P$22,"")))))))))))) -> 5.12838 | E149: =IF(C149="Initial Stage",'Calculation Sheet Crop 1'!$M$6,IF(C149="Crop Development Phase",'Calculation Sheet Crop 1'!$M$7,IF(C149="Mid Season",'Calculation Sheet Crop 1'!$M$8,IF(C149="Late Season Stage",'Calculation Sheet Crop 1'!$M$9,"")))) -> 1.1 | F149: 5.641218 | P149: 0 | Q149: 0 | R149: 0 | S149: 0 | T149: 5.641218 | U149: 0 | V149: 0 | W149: 0 | X149: 0 | Y149: 0 | Z149: 0 | AA149: 0
B150: 2017-05-24 | C150: =IF(AND(B150>='Calculation Sheet Crop 1'!$K$6,B150<='Calculation Sheet Crop 1'!$L$6),"Initial Stage",IF(AND(B150+1>'Calculation Sheet Crop 1'!$K$7,B150<='Calculation Sheet Crop 1'!$L$7),"Crop Development Phase",IF(AND(B150+1>'Calculation Sheet Crop 1'!$K$8,B150<'Calculation Sheet Crop 1'!$L$8+1),"Mid Season",IF(AND(B150+1>'Calculation Sheet Crop 1'!$K$9,B150-1<'Calculation Sheet Crop 1'!$L$9),"Late Season Stage","")))) -> Mid Season | D150: =IF(MONTH(B150)=1,'General Calculation'!$E$22,IF(MONTH(B150)=2,'General Calculation'!$F$22,IF(MONTH(B150)=3,'General Calculation'!$G$22,IF(MONTH(B150)=4,'General Calculation'!$H$22,IF(MONTH(B150)=5,'General Calculation'!$I$22,IF(MONTH(B150)=6,'General Calculation'!$J$22,IF(MONTH(B150)=7,'General Calculation'!$K$22,IF(MONTH(B150)=8,'General Calculation'!$L$22,IF(MONTH(B150)=9,'General Calculation'!$M$22,IF(MONTH(B150)=10,'General Calculation'!$N$22,IF(MONTH(B150)=11,'General Calculation'!$O$22,IF(MONTH(B150)=12,'General Calculation'!$P$22,"")))))))))))) -> 5.12838 | E150: =IF(C150="Initial Stage",'Calculation Sheet Crop 1'!$M$6,IF(C150="Crop Development Phase",'Calculation Sheet Crop 1'!$M$7,IF(C150="Mid Season",'Calculation Sheet Crop 1'!$M$8,IF(C150="Late Season Stage",'Calculation Sheet Crop 1'!$M$9,"")))) -> 1.1 | F150: 5.641218 | P150: 0 | Q150: 0 | R150: 0 | S150: 0 | T150: 5.641218 | U150: 0 | V150: 0 | W150: 0 | X150: 0 | Y150: 0 | Z150: 0 | AA150: 0
B151: 2017-05-25 | C151: =IF(AND(B151>='Calculation Sheet Crop 1'!$K$6,B151<='Calculation Sheet Crop 1'!$L$6),"Initial Stage",IF(AND(B151+1>'Calculation Sheet Crop 1'!$K$7,B151<='Calculation Sheet Crop 1'!$L$7),"Crop Development Phase",IF(AND(B151+1>'Calculation Sheet Crop 1'!$K$8,B151<'Calculation Sheet Crop 1'!$L$8+1),"Mid Season",IF(AND(B151+1>'Calculation Sheet Crop 1'!$K$9,B151-1<'Calculation Sheet Crop 1'!$L$9),"Late Season Stage","")))) -> Mid Season | D151: =IF(MONTH(B151)=1,'General Calculation'!$E$22,IF(MONTH(B151)=2,'General Calculation'!$F$22,IF(MONTH(B151)=3,'General Calculation'!$G$22,IF(MONTH(B151)=4,'General Calculation'!$H$22,IF(MONTH(B151)=5,'General Calculation'!$I$22,IF(MONTH(B151)=6,'General Calculation'!$J$22,IF(MONTH(B151)=7,'General Calculation'!$K$22,IF(MONTH(B151)=8,'General Calculation'!$L$22,IF(MONTH(B151)=9,'General Calculation'!$M$22,IF(MONTH(B151)=10,'General Calculation'!$N$22,IF(MONTH(B151)=11,'General Calculation'!$O$22,IF(MONTH(B151)=12,'General Calculation'!$P$22,"")))))))))))) -> 5.12838 | E151: =IF(C151="Initial Stage",'Calculation Sheet Crop 1'!$M$6,IF(C151="Crop Development Phase",'Calculation Sheet Crop 1'!$M$7,IF(C151="Mid Season",'Calculation Sheet Crop 1'!$M$8,IF(C151="Late Season Stage",'Calculation Sheet Crop 1'!$M$9,"")))) -> 1.1 | F151: 5.641218 | P151: 0 | Q151: 0 | R151: 0 | S151: 0 | T151: 5.641218 | U151: 0 | V151: 0 | W151: 0 | X151: 0 | Y151: 0 | Z151: 0 | AA151: 0
B152: 2017-05-26 | C152: =IF(AND(B152>='Calculation Sheet Crop 1'!$K$6,B152<='Calculation Sheet Crop 1'!$L$6),"Initial Stage",IF(AND(B152+1>'Calculation Sheet Crop 1'!$K$7,B152<='Calculation Sheet Crop 1'!$L$7),"Crop Development Phase",IF(AND(B152+1>'Calculation Sheet Crop 1'!$K$8,B152<'Calculation Sheet Crop 1'!$L$8+1),"Mid Season",IF(AND(B152+1>'Calculation Sheet Crop 1'!$K$9,B152-1<'Calculation Sheet Crop 1'!$L$9),"Late Season Stage","")))) -> Mid Season | D152: =IF(MONTH(B152)=1,'General Calculation'!$E$22,IF(MONTH(B152)=2,'General Calculation'!$F$22,IF(MONTH(B152)=3,'General Calculation'!$G$22,IF(MONTH(B152)=4,'General Calculation'!$H$22,IF(MONTH(B152)=5,'General Calculation'!$I$22,IF(MONTH(B152)=6,'General Calculation'!$J$22,IF(MONTH(B152)=7,'General Calculation'!$K$22,IF(MONTH(B152)=8,'General Calculation'!$L$22,IF(MONTH(B152)=9,'General Calculation'!$M$22,IF(MONTH(B152)=10,'General Calculation'!$N$22,IF(MONTH(B152)=11,'General Calculation'!$O$22,IF(MONTH(B152)=12,'General Calculation'!$P$22,"")))))))))))) -> 5.12838 | E152: =IF(C152="Initial Stage",'Calculation Sheet Crop 1'!$M$6,IF(C152="Crop Development Phase",'Calculation Sheet Crop 1'!$M$7,IF(C152="Mid Season",'Calculation Sheet Crop 1'!$M$8,IF(C152="Late Season Stage",'Calculation Sheet Crop 1'!$M$9,"")))) -> 1.1 | F152: 5.641218 | P152: 0 | Q152: 0 | R152: 0 | S152: 0 | T152: 5.641218 | U152: 0 | V152: 0 | W152: 0 | X152: 0 | Y152: 0 | Z152: 0 | AA152: 0
B153: 2017-05-27 | C153: =IF(AND(B153>='Calculation Sheet Crop 1'!$K$6,B153<='Calculation Sheet Crop 1'!$L$6),"Initial Stage",IF(AND(B153+1>'Calculation Sheet Crop 1'!$K$7,B153<='Calculation Sheet Crop 1'!$L$7),"Crop Development Phase",IF(AND(B153+1>'Calculation Sheet Crop 1'!$K$8,B153<'Calculation Sheet Crop 1'!$L$8+1),"Mid Season",IF(AND(B153+1>'Calculation Sheet Crop 1'!$K$9,B153-1<'Calculation Sheet Crop 1'!$L$9),"Late Season Stage","")))) -> Mid Season | D153: =IF(MONTH(B153)=1,'General Calculation'!$E$22,IF(MONTH(B153)=2,'General Calculation'!$F$22,IF(MONTH(B153)=3,'General Calculation'!$G$22,IF(MONTH(B153)=4,'General Calculation'!$H$22,IF(MONTH(B153)=5,'General Calculation'!$I$22,IF(MONTH(B153)=6,'General Calculation'!$J$22,IF(MONTH(B153)=7,'General Calculation'!$K$22,IF(MONTH(B153)=8,'General Calculation'!$L$22,IF(MONTH(B153)=9,'General Calculation'!$M$22,IF(MONTH(B153)=10,'General Calculation'!$N$22,IF(MONTH(B153)=11,'General Calculation'!$O$22,IF(MONTH(B153)=12,'General Calculation'!$P$22,"")))))))))))) -> 5.12838 | E153: =IF(C153="Initial Stage",'Calculation Sheet Crop 1'!$M$6,IF(C153="Crop Development Phase",'Calculation Sheet Crop 1'!$M$7,IF(C153="Mid Season",'Calculation Sheet Crop 1'!$M$8,IF(C153="Late Season Stage",'Calculation Sheet Crop 1'!$M$9,"")))) -> 1.1 | F153: 5.641218 | P153: 0 | Q153: 0 | R153: 0 | S153: 0 | T153: 5.641218 | U153: 0 | V153: 0 | W153: 0 | X153: 0 | Y153: 0 | Z153: 0 | AA153: 0
B154: 2017-05-28 | C154: =IF(AND(B154>='Calculation Sheet Crop 1'!$K$6,B154<='Calculation Sheet Crop 1'!$L$6),"Initial Stage",IF(AND(B154+1>'Calculation Sheet Crop 1'!$K$7,B154<='Calculation Sheet Crop 1'!$L$7),"Crop Development Phase",IF(AND(B154+1>'Calculation Sheet Crop 1'!$K$8,B154<'Calculation Sheet Crop 1'!$L$8+1),"Mid Season",IF(AND(B154+1>'Calculation Sheet Crop 1'!$K$9,B154-1<'Calculation Sheet Crop 1'!$L$9),"Late Season Stage","")))) -> Mid Season | D154: =IF(MONTH(B154)=1,'General Calculation'!$E$22,IF(MONTH(B154)=2,'General Calculation'!$F$22,IF(MONTH(B154)=3,'General Calculation'!$G$22,IF(MONTH(B154)=4,'General Calculation'!$H$22,IF(MONTH(B154)=5,'General Calculation'!$I$22,IF(MONTH(B154)=6,'General Calculation'!$J$22,IF(MONTH(B154)=7,'General Calculation'!$K$22,IF(MONTH(B154)=8,'General Calculation'!$L$22,IF(MONTH(B154)=9,'General Calculation'!$M$22,IF(MONTH(B154)=10,'General Calculation'!$N$22,IF(MONTH(B154)=11,'General Calculation'!$O$22,IF(MONTH(B154)=12,'General Calculation'!$P$22,"")))))))))))) -> 5.12838 | E154: =IF(C154="Initial Stage",'Calculation Sheet Crop 1'!$M$6,IF(C154="Crop Development Phase",'Calculation Sheet Crop 1'!$M$7,IF(C154="Mid Season",'Calculation Sheet Crop 1'!$M$8,IF(C154="Late Season Stage",'Calculation Sheet Crop 1'!$M$9,"")))) -> 1.1 | F154: 5.641218 | P154: 0 | Q154: 0 | R154: 0 | S154: 0 | T154: 5.641218 | U154: 0 | V154: 0 | W154: 0 | X154: 0 | Y154: 0 | Z154: 0 | AA154: 0
B155: 2017-05-29 | C155: =IF(AND(B155>='Calculation Sheet Crop 1'!$K$6,B155<='Calculation Sheet Crop 1'!$L$6),"Initial Stage",IF(AND(B155+1>'Calculation Sheet Crop 1'!$K$7,B155<='Calculation Sheet Crop 1'!$L$7),"Crop Development Phase",IF(AND(B155+1>'Calculation Sheet Crop 1'!$K$8,B155<'Calculation Sheet Crop 1'!$L$8+1),"Mid Season",IF(AND(B155+1>'Calculation Sheet Crop 1'!$K$9,B155-1<'Calculation Sheet Crop 1'!$L$9),"Late Season Stage","")))) -> Mid Season | D155: =IF(MONTH(B155)=1,'General Calculation'!$E$22,IF(MONTH(B155)=2,'General Calculation'!$F$22,IF(MONTH(B155)=3,'General Calculation'!$G$22,IF(MONTH(B155)=4,'General Calculation'!$H$22,IF(MONTH(B155)=5,'General Calculation'!$I$22,IF(MONTH(B155)=6,'General Calculation'!$J$22,IF(MONTH(B155)=7,'General Calculation'!$K$22,IF(MONTH(B155)=8,'General Calculation'!$L$22,IF(MONTH(B155)=9,'General Calculation'!$M$22,IF(MONTH(B155)=10,'General Calculation'!$N$22,IF(MONTH(B155)=11,'General Calculation'!$O$22,IF(MONTH(B155)=12,'General Calculation'!$P$22,"")))))))))))) -> 5.12838 | E155: =IF(C155="Initial Stage",'Calculation Sheet Crop 1'!$M$6,IF(C155="Crop Development Phase",'Calculation Sheet Crop 1'!$M$7,IF(C155="Mid Season",'Calculation Sheet Crop 1'!$M$8,IF(C155="Late Season Stage",'Calculation Sheet Crop 1'!$M$9,"")))) -> 1.1 | F155: 5.641218 | P155: 0 | Q155: 0 | R155: 0 | S155: 0 | T155: 5.641218 | U155: 0 | V155: 0 | W155: 0 | X155: 0 | Y155: 0 | Z155: 0 | AA155: 0
B156: 2017-05-30 | C156: =IF(AND(B156>='Calculation Sheet Crop 1'!$K$6,B156<='Calculation Sheet Crop 1'!$L$6),"Initial Stage",IF(AND(B156+1>'Calculation Sheet Crop 1'!$K$7,B156<='Calculation Sheet Crop 1'!$L$7),"Crop Development Phase",IF(AND(B156+1>'Calculation Sheet Crop 1'!$K$8,B156<'Calculation Sheet Crop 1'!$L$8+1),"Mid Season",IF(AND(B156+1>'Calculation Sheet Crop 1'!$K$9,B156-1<'Calculation Sheet Crop 1'!$L$9),"Late Season Stage","")))) -> Mid Season | D156: =IF(MONTH(B156)=1,'General Calculation'!$E$22,IF(MONTH(B156)=2,'General Calculation'!$F$22,IF(MONTH(B156)=3,'General Calculation'!$G$22,IF(MONTH(B156)=4,'General Calculation'!$H$22,IF(MONTH(B156)=5,'General Calculation'!$I$22,IF(MONTH(B156)=6,'General Calculation'!$J$22,IF(MONTH(B156)=7,'General Calculation'!$K$22,IF(MONTH(B156)=8,'General Calculation'!$L$22,IF(MONTH(B156)=9,'General Calculation'!$M$22,IF(MONTH(B156)=10,'General Calculation'!$N$22,IF(MONTH(B156)=11,'General Calculation'!$O$22,IF(MONTH(B156)=12,'General Calculation'!$P$22,"")))))))))))) -> 5.12838 | E156: =IF(C156="Initial Stage",'Calculation Sheet Crop 1'!$M$6,IF(C156="Crop Development Phase",'Calculation Sheet Crop 1'!$M$7,IF(C156="Mid Season",'Calculation Sheet Crop 1'!$M$8,IF(C156="Late Season Stage",'Calculation Sheet Crop 1'!$M$9,"")))) -> 1.1 | F156: 5.641218 | P156: 0 | Q156: 0 | R156: 0 | S156: 0 | T156: 5.641218 | U156: 0 | V156: 0 | W156: 0 | X156: 0 | Y156: 0 | Z156: 0 | AA156: 0
B157: 2017-05-31 | C157: =IF(AND(B157>='Calculation Sheet Crop 1'!$K$6,B157<='Calculation Sheet Crop 1'!$L$6),"Initial Stage",IF(AND(B157+1>'Calculation Sheet Crop 1'!$K$7,B157<='Calculation Sheet Crop 1'!$L$7),"Crop Development Phase",IF(AND(B157+1>'Calculation Sheet Crop 1'!$K$8,B157<'Calculation Sheet Crop 1'!$L$8+1),"Mid Season",IF(AND(B157+1>'Calculation Sheet Crop 1'!$K$9,B157-1<'Calculation Sheet Crop 1'!$L$9),"Late Season Stage","")))) -> Mid Season | D157: =IF(MONTH(B157)=1,'General Calculation'!$E$22,IF(MONTH(B157)=2,'General Calculation'!$F$22,IF(MONTH(B157)=3,'General Calculation'!$G$22,IF(MONTH(B157)=4,'General Calculation'!$H$22,IF(MONTH(B157)=5,'General Calculation'!$I$22,IF(MONTH(B157)=6,'General Calculation'!$J$22,IF(MONTH(B157)=7,'General Calculation'!$K$22,IF(MONTH(B157)=8,'General Calculation'!$L$22,IF(MONTH(B157)=9,'General Calculation'!$M$22,IF(MONTH(B157)=10,'General Calculation'!$N$22,IF(MONTH(B157)=11,'General Calculation'!$O$22,IF(MONTH(B157)=12,'General Calculation'!$P$22,"")))))))))))) -> 5.12838 | E157: =IF(C157="Initial Stage",'Calculation Sheet Crop 1'!$M$6,IF(C157="Crop Development Phase",'Calculation Sheet Crop 1'!$M$7,IF(C157="Mid Season",'Calculation Sheet Crop 1'!$M$8,IF(C157="Late Season Stage",'Calculation Sheet Crop 1'!$M$9,"")))) -> 1.1 | F157: 5.641218 | P157: 0 | Q157: 0 | R157: 0 | S157: 0 | T157: 5.641218 | U157: 0 | V157: 0 | W157: 0 | X157: 0 | Y157: 0 | Z157: 0 | AA157: 0
B158: 2017-06-01 | C158: =IF(AND(B158>='Calculation Sheet Crop 1'!$K$6,B158<='Calculation Sheet Crop 1'!$L$6),"Initial Stage",IF(AND(B158+1>'Calculation Sheet Crop 1'!$K$7,B158<='Calculation Sheet Crop 1'!$L$7),"Crop Development Phase",IF(AND(B158+1>'Calculation Sheet Crop 1'!$K$8,B158<'Calculation Sheet Crop 1'!$L$8+1),"Mid Season",IF(AND(B158+1>'Calculation Sheet Crop 1'!$K$9,B158-1<'Calculation Sheet Crop 1'!$L$9),"Late Season Stage","")))) -> Mid Season | D158: =IF(MONTH(B158)=1,'General Calculation'!$E$22,IF(MONTH(B158)=2,'General Calculation'!$F$22,IF(MONTH(B158)=3,'General Calculation'!$G$22,IF(MONTH(B158)=4,'General Calculation'!$H$22,IF(MONTH(B158)=5,'General Calculation'!$I$22,IF(MONTH(B158)=6,'General Calculation'!$J$22,IF(MONTH(B158)=7,'General Calculation'!$K$22,IF(MONTH(B158)=8,'General Calculation'!$L$22,IF(MONTH(B158)=9,'General Calculation'!$M$22,IF(MONTH(B158)=10,'General Calculation'!$N$22,IF(MONTH(B158)=11,'General Calculation'!$O$22,IF(MONTH(B158)=12,'General Calculation'!$P$22,"")))))))))))) -> 5.0787 | E158: =IF(C158="Initial Stage",'Calculation Sheet Crop 1'!$M$6,IF(C158="Crop Development Phase",'Calculation Sheet Crop 1'!$M$7,IF(C158="Mid Season",'Calculation Sheet Crop 1'!$M$8,IF(C158="Late Season Stage",'Calculation Sheet Crop 1'!$M$9,"")))) -> 1.1 | F158: 5.58657 | P158: 0 | Q158: 0 | R158: 0 | S158: 0 | T158: 0 | U158: 5.58657 | V158: 0 | W158: 0 | X158: 0 | Y158: 0 | Z158: 0 | AA158: 0
B159: 2017-06-02 | C159: =IF(AND(B159>='Calculation Sheet Crop 1'!$K$6,B159<='Calculation Sheet Crop 1'!$L$6),"Initial Stage",IF(AND(B159+1>'Calculation Sheet Crop 1'!$K$7,B159<='Calculation Sheet Crop 1'!$L$7),"Crop Development Phase",IF(AND(B159+1>'Calculation Sheet Crop 1'!$K$8,B159<'Calculation Sheet Crop 1'!$L$8+1),"Mid Season",IF(AND(B159+1>'Calculation Sheet Crop 1'!$K$9,B159-1<'Calculation Sheet Crop 1'!$L$9),"Late Season Stage","")))) -> Mid Season | D159: =IF(MONTH(B159)=1,'General Calculation'!$E$22,IF(MONTH(B159)=2,'General Calculation'!$F$22,IF(MONTH(B159)=3,'General Calculation'!$G$22,IF(MONTH(B159)=4,'General Calculation'!$H$22,IF(MONTH(B159)=5,'General Calculation'!$I$22,IF(MONTH(B159)=6,'General Calculation'!$J$22,IF(MONTH(B159)=7,'General Calculation'!$K$22,IF(MONTH(B159)=8,'General Calculation'!$L$22,IF(MONTH(B159)=9,'General Calculation'!$M$22,IF(MONTH(B159)=10,'General Calculation'!$N$22,IF(MONTH(B159)=11,'General Calculation'!$O$22,IF(MONTH(B159)=12,'General Calculation'!$P$22,"")))))))))))) -> 5.0787 | E159: =IF(C159="Initial Stage",'Calculation Sheet Crop 1'!$M$6,IF(C159="Crop Development Phase",'Calculation Sheet Crop 1'!$M$7,IF(C159="Mid Season",'Calculation Sheet Crop 1'!$M$8,IF(C159="Late Season Stage",'Calculation Sheet Crop 1'!$M$9,"")))) -> 1.1 | F159: 5.58657 | P159: 0 | Q159: 0 | R159: 0 | S159: 0 | T159: 0 | U159: 5.58657 | V159: 0 | W159: 0 | X159: 0 | Y159: 0 | Z159: 0 | AA159: 0
B160: 2017-06-03 | C160: =IF(AND(B160>='Calculation Sheet Crop 1'!$K$6,B160<='Calculation Sheet Crop 1'!$L$6),"Initial Stage",IF(AND(B160+1>'Calculation Sheet Crop 1'!$K$7,B160<='Calculation Sheet Crop 1'!$L$7),"Crop Development Phase",IF(AND(B160+1>'Calculation Sheet Crop 1'!$K$8,B160<'Calculation Sheet Crop 1'!$L$8+1),"Mid Season",IF(AND(B160+1>'Calculation Sheet Crop 1'!$K$9,B160-1<'Calculation Sheet Crop 1'!$L$9),"Late Season Stage","")))) -> Mid Season | D160: =IF(MONTH(B160)=1,'General Calculation'!$E$22,IF(MONTH(B160)=2,'General Calculation'!$F$22,IF(MONTH(B160)=3,'General Calculation'!$G$22,IF(MONTH(B160)=4,'General Calculation'!$H$22,IF(MONTH(B160)=5,'General Calculation'!$I$22,IF(MONTH(B160)=6,'General Calculation'!$J$22,IF(MONTH(B160)=7,'General Calculation'!$K$22,IF(MONTH(B160)=8,'General Calculation'!$L$22,IF(MONTH(B160)=9,'General Calculation'!$M$22,IF(MONTH(B160)=10,'General Calculation'!$N$22,IF(MONTH(B160)=11,'General Calculation'!$O$22,IF(MONTH(B160)=12,'General Calculation'!$P$22,"")))))))))))) -> 5.0787 | E160: =IF(C160="Initial Stage",'Calculation Sheet Crop 1'!$M$6,IF(C160="Crop Development Phase",'Calculation Sheet Crop 1'!$M$7,IF(C160="Mid Season",'Calculation Sheet Crop 1'!$M$8,IF(C160="Late Season Stage",'Calculation Sheet Crop 1'!$M$9,"")))) -> 1.1 | F160: 5.58657 | P160: 0 | Q160: 0 | R160: 0 | S160: 0 | T160: 0 | U160: 5.58657 | V160: 0 | W160: 0 | X160: 0 | Y160: 0 | Z160: 0 | AA160: 0
B161: 2017-06-04 | C161: =IF(AND(B161>='Calculation Sheet Crop 1'!$K$6,B161<='Calculation Sheet Crop 1'!$L$6),"Initial Stage",IF(AND(B161+1>'Calculation Sheet Crop 1'!$K$7,B161<='Calculation Sheet Crop 1'!$L$7),"Crop Development Phase",IF(AND(B161+1>'Calculation Sheet Crop 1'!$K$8,B161<'Calculation Sheet Crop 1'!$L$8+1),"Mid Season",IF(AND(B161+1>'Calculation Sheet Crop 1'!$K$9,B161-1<'Calculation Sheet Crop 1'!$L$9),"Late Season Stage","")))) -> Mid Season | D161: =IF(MONTH(B161)=1,'General Calculation'!$E$22,IF(MONTH(B161)=2,'General Calculation'!$F$22,IF(MONTH(B161)=3,'General Calculation'!$G$22,IF(MONTH(B161)=4,'General Calculation'!$H$22,IF(MONTH(B161)=5,'General Calculation'!$I$22,IF(MONTH(B161)=6,'General Calculation'!$J$22,IF(MONTH(B161)=7,'General Calculation'!$K$22,IF(MONTH(B161)=8,'General Calculation'!$L$22,IF(MONTH(B161)=9,'General Calculation'!$M$22,IF(MONTH(B161)=10,'General Calculation'!$N$22,IF(MONTH(B161)=11,'General Calculation'!$O$22,IF(MONTH(B161)=12,'General Calculation'!$P$22,"")))))))))))) -> 5.0787 | E161: =IF(C161="Initial Stage",'Calculation Sheet Crop 1'!$M$6,IF(C161="Crop Development Phase",'Calculation Sheet Crop 1'!$M$7,IF(C161="Mid Season",'Calculation Sheet Crop 1'!$M$8,IF(C161="Late Season Stage",'Calculation Sheet Crop 1'!$M$9,"")))) -> 1.1 | F161: 5.58657 | P161: 0 | Q161: 0 | R161: 0 | S161: 0 | T161: 0 | U161: 5.58657 | V161: 0 | W161: 0 | X161: 0 | Y161: 0 | Z161: 0 | AA161: 0
B162: 2017-06-05 | C162: =IF(AND(B162>='Calculation Sheet Crop 1'!$K$6,B162<='Calculation Sheet Crop 1'!$L$6),"Initial Stage",IF(AND(B162+1>'Calculation Sheet Crop 1'!$K$7,B162<='Calculation Sheet Crop 1'!$L$7),"Crop Development Phase",IF(AND(B162+1>'Calculation Sheet Crop 1'!$K$8,B162<'Calculation Sheet Crop 1'!$L$8+1),"Mid Season",IF(AND(B162+1>'Calculation Sheet Crop 1'!$K$9,B162-1<'Calculation Sheet Crop 1'!$L$9),"Late Season Stage","")))) -> Mid Season | D162: =IF(MONTH(B162)=1,'General Calculation'!$E$22,IF(MONTH(B162)=2,'General Calculation'!$F$22,IF(MONTH(B162)=3,'General Calculation'!$G$22,IF(MONTH(B162)=4,'General Calculation'!$H$22,IF(MONTH(B162)=5,'General Calculation'!$I$22,IF(MONTH(B162)=6,'General Calculation'!$J$22,IF(MONTH(B162)=7,'General Calculation'!$K$22,IF(MONTH(B162)=8,'General Calculation'!$L$22,IF(MONTH(B162)=9,'General Calculation'!$M$22,IF(MONTH(B162)=10,'General Calculation'!$N$22,IF(MONTH(B162)=11,'General Calculation'!$O$22,IF(MONTH(B162)=12,'General Calculation'!$P$22,"")))))))))))) -> 5.0787 | E162: =IF(C162="Initial Stage",'Calculation Sheet Crop 1'!$M$6,IF(C162="Crop Development Phase",'Calculation Sheet Crop 1'!$M$7,IF(C162="Mid Season",'Calculation Sheet Crop 1'!$M$8,IF(C162="Late Season Stage",'Calculation Sheet Crop 1'!$M$9,"")))) -> 1.1 | F162: 5.58657 | P162: 0 | Q162: 0 | R162: 0 | S162: 0 | T162: 0 | U162: 5.58657 | V162: 0 | W162: 0 | X162: 0 | Y162: 0 | Z162: 0 | AA162: 0
B163: 2017-06-06 | C163: =IF(AND(B163>='Calculation Sheet Crop 1'!$K$6,B163<='Calculation Sheet Crop 1'!$L$6),"Initial Stage",IF(AND(B163+1>'Calculation Sheet Crop 1'!$K$7,B163<='Calculation Sheet Crop 1'!$L$7),"Crop Development Phase",IF(AND(B163+1>'Calculation Sheet Crop 1'!$K$8,B163<'Calculation Sheet Crop 1'!$L$8+1),"Mid Season",IF(AND(B163+1>'Calculation Sheet Crop 1'!$K$9,B163-1<'Calculation Sheet Crop 1'!$L$9),"Late Season Stage","")))) -> Mid Season | D163: =IF(MONTH(B163)=1,'General Calculation'!$E$22,IF(MONTH(B163)=2,'General Calculation'!$F$22,IF(MONTH(B163)=3,'General Calculation'!$G$22,IF(MONTH(B163)=4,'General Calculation'!$H$22,IF(MONTH(B163)=5,'General Calculation'!$I$22,IF(MONTH(B163)=6,'General Calculation'!$J$22,IF(MONTH(B163)=7,'General Calculation'!$K$22,IF(MONTH(B163)=8,'General Calculation'!$L$22,IF(MONTH(B163)=9,'General Calculation'!$M$22,IF(MONTH(B163)=10,'General Calculation'!$N$22,IF(MONTH(B163)=11,'General Calculation'!$O$22,IF(MONTH(B163)=12,'General Calculation'!$P$22,"")))))))))))) -> 5.0787 | E163: =IF(C163="Initial Stage",'Calculation Sheet Crop 1'!$M$6,IF(C163="Crop Development Phase",'Calculation Sheet Crop 1'!$M$7,IF(C163="Mid Season",'Calculation Sheet Crop 1'!$M$8,IF(C163="Late Season Stage",'Calculation Sheet Crop 1'!$M$9,"")))) -> 1.1 | F163: 5.58657 | P163: 0 | Q163: 0 | R163: 0 | S163: 0 | T163: 0 | U163: 5.58657 | V163: 0 | W163: 0 | X163: 0 | Y163: 0 | Z163: 0 | AA163: 0
B164: 2017-06-07 | C164: =IF(AND(B164>='Calculation Sheet Crop 1'!$K$6,B164<='Calculation Sheet Crop 1'!$L$6),"Initial Stage",IF(AND(B164+1>'Calculation Sheet Crop 1'!$K$7,B164<='Calculation Sheet Crop 1'!$L$7),"Crop Development Phase",IF(AND(B164+1>'Calculation Sheet Crop 1'!$K$8,B164<'Calculation Sheet Crop 1'!$L$8+1),"Mid Season",IF(AND(B164+1>'Calculation Sheet Crop 1'!$K$9,B164-1<'Calculation Sheet Crop 1'!$L$9),"Late Season Stage","")))) -> Mid Season | D164: =IF(MONTH(B164)=1,'General Calculation'!$E$22,IF(MONTH(B164)=2,'General Calculation'!$F$22,IF(MONTH(B164)=3,'General Calculation'!$G$22,IF(MONTH(B164)=4,'General Calculation'!$H$22,IF(MONTH(B164)=5,'General Calculation'!$I$22,IF(MONTH(B164)=6,'General Calculation'!$J$22,IF(MONTH(B164)=7,'General Calculation'!$K$22,IF(MONTH(B164)=8,'General Calculation'!$L$22,IF(MONTH(B164)=9,'General Calculation'!$M$22,IF(MONTH(B164)=10,'General Calculation'!$N$22,IF(MONTH(B164)=11,'General Calculation'!$O$22,IF(MONTH(B164)=12,'General Calculation'!$P$22,"")))))))))))) -> 5.0787 | E164: =IF(C164="Initial Stage",'Calculation Sheet Crop 1'!$M$6,IF(C164="Crop Development Phase",'Calculation Sheet Crop 1'!$M$7,IF(C164="Mid Season",'Calculation Sheet Crop 1'!$M$8,IF(C164="Late Season Stage",'Calculation Sheet Crop 1'!$M$9,"")))) -> 1.1 | F164: 5.58657 | P164: 0 | Q164: 0 | R164: 0 | S164: 0 | T164: 0 | U164: 5.58657 | V164: 0 | W164: 0 | X164: 0 | Y164: 0 | Z164: 0 | AA164: 0
B165: 2017-06-08 | C165: =IF(AND(B165>='Calculation Sheet Crop 1'!$K$6,B165<='Calculation Sheet Crop 1'!$L$6),"Initial Stage",IF(AND(B165+1>'Calculation Sheet Crop 1'!$K$7,B165<='Calculation Sheet Crop 1'!$L$7),"Crop Development Phase",IF(AND(B165+1>'Calculation Sheet Crop 1'!$K$8,B165<'Calculation Sheet Crop 1'!$L$8+1),"Mid Season",IF(AND(B165+1>'Calculation Sheet Crop 1'!$K$9,B165-1<'Calculation Sheet Crop 1'!$L$9),"Late Season Stage","")))) -> Mid Season | D165: =IF(MONTH(B165)=1,'General Calculation'!$E$22,IF(MONTH(B165)=2,'General Calculation'!$F$22,IF(MONTH(B165)=3,'General Calculation'!$G$22,IF(MONTH(B165)=4,'General Calculation'!$H$22,IF(MONTH(B165)=5,'General Calculation'!$I$22,IF(MONTH(B165)=6,'General Calculation'!$J$22,IF(MONTH(B165)=7,'General Calculation'!$K$22,IF(MONTH(B165)=8,'General Calculation'!$L$22,IF(MONTH(B165)=9,'General Calculation'!$M$22,IF(MONTH(B165)=10,'General Calculation'!$N$22,IF(MONTH(B165)=11,'General Calculation'!$O$22,IF(MONTH(B165)=12,'General Calculation'!$P$22,"")))))))))))) -> 5.0787 | E165: =IF(C165="Initial Stage",'Calculation Sheet Crop 1'!$M$6,IF(C165="Crop Development Phase",'Calculation Sheet Crop 1'!$M$7,IF(C165="Mid Season",'Calculation Sheet Crop 1'!$M$8,IF(C165="Late Season Stage",'Calculation Sheet Crop 1'!$M$9,"")))) -> 1.1 | F165: 5.58657 | P165: 0 | Q165: 0 | R165: 0 | S165: 0 | T165: 0 | U165: 5.58657 | V165: 0 | W165: 0 | X165: 0 | Y165: 0 | Z165: 0 | AA165: 0
B166: 2017-06-09 | C166: =IF(AND(B166>='Calculation Sheet Crop 1'!$K$6,B166<='Calculation Sheet Crop 1'!$L$6),"Initial Stage",IF(AND(B166+1>'Calculation Sheet Crop 1'!$K$7,B166<='Calculation Sheet Crop 1'!$L$7),"Crop Development Phase",IF(AND(B166+1>'Calculation Sheet Crop 1'!$K$8,B166<'Calculation Sheet Crop 1'!$L$8+1),"Mid Season",IF(AND(B166+1>'Calculation Sheet Crop 1'!$K$9,B166-1<'Calculation Sheet Crop 1'!$L$9),"Late Season Stage","")))) -> Mid Season | D166: =IF(MONTH(B166)=1,'General Calculation'!$E$22,IF(MONTH(B166)=2,'General Calculation'!$F$22,IF(MONTH(B166)=3,'General Calculation'!$G$22,IF(MONTH(B166)=4,'General Calculation'!$H$22,IF(MONTH(B166)=5,'General Calculation'!$I$22,IF(MONTH(B166)=6,'General Calculation'!$J$22,IF(MONTH(B166)=7,'General Calculation'!$K$22,IF(MONTH(B166)=8,'General Calculation'!$L$22,IF(MONTH(B166)=9,'General Calculation'!$M$22,IF(MONTH(B166)=10,'General Calculation'!$N$22,IF(MONTH(B166)=11,'General Calculation'!$O$22,IF(MONTH(B166)=12,'General Calculation'!$P$22,"")))))))))))) -> 5.0787 | E166: =IF(C166="Initial Stage",'Calculation Sheet Crop 1'!$M$6,IF(C166="Crop Development Phase",'Calculation Sheet Crop 1'!$M$7,IF(C166="Mid Season",'Calculation Sheet Crop 1'!$M$8,IF(C166="Late Season Stage",'Calculation Sheet Crop 1'!$M$9,"")))) -> 1.1 | F166: 5.58657 | P166: 0 | Q166: 0 | R166: 0 | S166: 0 | T166: 0 | U166: 5.58657 | V166: 0 | W166: 0 | X166: 0 | Y166: 0 | Z166: 0 | AA166: 0
B167: 2017-06-10 | C167: =IF(AND(B167>='Calculation Sheet Crop 1'!$K$6,B167<='Calculation Sheet Crop 1'!$L$6),"Initial Stage",IF(AND(B167+1>'Calculation Sheet Crop 1'!$K$7,B167<='Calculation Sheet Crop 1'!$L$7),"Crop Development Phase",IF(AND(B167+1>'Calculation Sheet Crop 1'!$K$8,B167<'Calculation Sheet Crop 1'!$L$8+1),"Mid Season",IF(AND(B167+1>'Calculation Sheet Crop 1'!$K$9,B167-1<'Calculation Sheet Crop 1'!$L$9),"Late Season Stage","")))) -> Mid Season | D167: =IF(MONTH(B167)=1,'General Calculation'!$E$22,IF(MONTH(B167)=2,'General Calculation'!$F$22,IF(MONTH(B167)=3,'General Calculation'!$G$22,IF(MONTH(B167)=4,'General Calculation'!$H$22,IF(MONTH(B167)=5,'General Calculation'!$I$22,IF(MONTH(B167)=6,'General Calculation'!$J$22,IF(MONTH(B167)=7,'General Calculation'!$K$22,IF(MONTH(B167)=8,'General Calculation'!$L$22,IF(MONTH(B167)=9,'General Calculation'!$M$22,IF(MONTH(B167)=10,'General Calculation'!$N$22,IF(MONTH(B167)=11,'General Calculation'!$O$22,IF(MONTH(B167)=12,'General Calculation'!$P$22,"")))))))))))) -> 5.0787 | E167: =IF(C167="Initial Stage",'Calculation Sheet Crop 1'!$M$6,IF(C167="Crop Development Phase",'Calculation Sheet Crop 1'!$M$7,IF(C167="Mid Season",'Calculation Sheet Crop 1'!$M$8,IF(C167="Late Season Stage",'Calculation Sheet Crop 1'!$M$9,"")))) -> 1.1 | F167: 5.58657 | P167: 0 | Q167: 0 | R167: 0 | S167: 0 | T167: 0 | U167: 5.58657 | V167: 0 | W167: 0 | X167: 0 | Y167: 0 | Z167: 0 | AA167: 0
B168: 2017-06-11 | C168: =IF(AND(B168>='Calculation Sheet Crop 1'!$K$6,B168<='Calculation Sheet Crop 1'!$L$6),"Initial Stage",IF(AND(B168+1>'Calculation Sheet Crop 1'!$K$7,B168<='Calculation Sheet Crop 1'!$L$7),"Crop Development Phase",IF(AND(B168+1>'Calculation Sheet Crop 1'!$K$8,B168<'Calculation Sheet Crop 1'!$L$8+1),"Mid Season",IF(AND(B168+1>'Calculation Sheet Crop 1'!$K$9,B168-1<'Calculation Sheet Crop 1'!$L$9),"Late Season Stage","")))) -> Mid Season | D168: =IF(MONTH(B168)=1,'General Calculation'!$E$22,IF(MONTH(B168)=2,'General Calculation'!$F$22,IF(MONTH(B168)=3,'General Calculation'!$G$22,IF(MONTH(B168)=4,'General Calculation'!$H$22,IF(MONTH(B168)=5,'General Calculation'!$I$22,IF(MONTH(B168)=6,'General Calculation'!$J$22,IF(MONTH(B168)=7,'General Calculation'!$K$22,IF(MONTH(B168)=8,'General Calculation'!$L$22,IF(MONTH(B168)=9,'General Calculation'!$M$22,IF(MONTH(B168)=10,'General Calculation'!$N$22,IF(MONTH(B168)=11,'General Calculation'!$O$22,IF(MONTH(B168)=12,'General Calculation'!$P$22,"")))))))))))) -> 5.0787 | E168: =IF(C168="Initial Stage",'Calculation Sheet Crop 1'!$M$6,IF(C168="Crop Development Phase",'Calculation Sheet Crop 1'!$M$7,IF(C168="Mid Season",'Calculation Sheet Crop 1'!$M$8,IF(C168="Late Season Stage",'Calculation Sheet Crop 1'!$M$9,"")))) -> 1.1 | F168: 5.58657 | P168: 0 | Q168: 0 | R168: 0 | S168: 0 | T168: 0 | U168: 5.58657 | V168: 0 | W168: 0 | X168: 0 | Y168: 0 | Z168: 0 | AA168: 0
B169: 2017-06-12 | C169: =IF(AND(B169>='Calculation Sheet Crop 1'!$K$6,B169<='Calculation Sheet Crop 1'!$L$6),"Initial Stage",IF(AND(B169+1>'Calculation Sheet Crop 1'!$K$7,B169<='Calculation Sheet Crop 1'!$L$7),"Crop Development Phase",IF(AND(B169+1>'Calculation Sheet Crop 1'!$K$8,B169<'Calculation Sheet Crop 1'!$L$8+1),"Mid Season",IF(AND(B169+1>'Calculation Sheet Crop 1'!$K$9,B169-1<'Calculation Sheet Crop 1'!$L$9),"Late Season Stage","")))) -> Mid Season | D169: =IF(MONTH(B169)=1,'General Calculation'!$E$22,IF(MONTH(B169)=2,'General Calculation'!$F$22,IF(MONTH(B169)=3,'General Calculation'!$G$22,IF(MONTH(B169)=4,'General Calculation'!$H$22,IF(MONTH(B169)=5,'General Calculation'!$I$22,IF(MONTH(B169)=6,'General Calculation'!$J$22,IF(MONTH(B169)=7,'General Calculation'!$K$22,IF(MONTH(B169)=8,'General Calculation'!$L$22,IF(MONTH(B169)=9,'General Calculation'!$M$22,IF(MONTH(B169)=10,'General Calculation'!$N$22,IF(MONTH(B169)=11,'General Calculation'!$O$22,IF(MONTH(B169)=12,'General Calculation'!$P$22,"")))))))))))) -> 5.0787 | E169: =IF(C169="Initial Stage",'Calculation Sheet Crop 1'!$M$6,IF(C169="Crop Development Phase",'Calculation Sheet Crop 1'!$M$7,IF(C169="Mid Season",'Calculation Sheet Crop 1'!$M$8,IF(C169="Late Season Stage",'Calculation Sheet Crop 1'!$M$9,"")))) -> 1.1 | F169: 5.58657 | P169: 0 | Q169: 0 | R169: 0 | S169: 0 | T169: 0 | U169: 5.58657 | V169: 0 | W169: 0 | X169: 0 | Y169: 0 | Z169: 0 | AA169: 0
B170: 2017-06-13 | C170: =IF(AND(B170>='Calculation Sheet Crop 1'!$K$6,B170<='Calculation Sheet Crop 1'!$L$6),"Initial Stage",IF(AND(B170+1>'Calculation Sheet Crop 1'!$K$7,B170<='Calculation Sheet Crop 1'!$L$7),"Crop Development Phase",IF(AND(B170+1>'Calculation Sheet Crop 1'!$K$8,B170<'Calculation Sheet Crop 1'!$L$8+1),"Mid Season",IF(AND(B170+1>'Calculation Sheet Crop 1'!$K$9,B170-1<'Calculation Sheet Crop 1'!$L$9),"Late Season Stage","")))) -> Mid Season | D170: =IF(MONTH(B170)=1,'General Calculation'!$E$22,IF(MONTH(B170)=2,'General Calculation'!$F$22,IF(MONTH(B170)=3,'General Calculation'!$G$22,IF(MONTH(B170)=4,'General Calculation'!$H$22,IF(MONTH(B170)=5,'General Calculation'!$I$22,IF(MONTH(B170)=6,'General Calculation'!$J$22,IF(MONTH(B170)=7,'General Calculation'!$K$22,IF(MONTH(B170)=8,'General Calculation'!$L$22,IF(MONTH(B170)=9,'General Calculation'!$M$22,IF(MONTH(B170)=10,'General Calculation'!$N$22,IF(MONTH(B170)=11,'General Calculation'!$O$22,IF(MONTH(B170)=12,'General Calculation'!$P$22,"")))))))))))) -> 5.0787 | E170: =IF(C170="Initial Stage",'Calculation Sheet Crop 1'!$M$6,IF(C170="Crop Development Phase",'Calculation Sheet Crop 1'!$M$7,IF(C170="Mid Season",'Calculation Sheet Crop 1'!$M$8,IF(C170="Late Season Stage",'Calculation Sheet Crop 1'!$M$9,"")))) -> 1.1 | F170: 5.58657 | P170: 0 | Q170: 0 | R170: 0 | S170: 0 | T170: 0 | U170: 5.58657 | V170: 0 | W170: 0 | X170: 0 | Y170: 0 | Z170: 0 | AA170: 0
B171: 2017-06-14 | C171: =IF(AND(B171>='Calculation Sheet Crop 1'!$K$6,B171<='Calculation Sheet Crop 1'!$L$6),"Initial Stage",IF(AND(B171+1>'Calculation Sheet Crop 1'!$K$7,B171<='Calculation Sheet Crop 1'!$L$7),"Crop Development Phase",IF(AND(B171+1>'Calculation Sheet Crop 1'!$K$8,B171<'Calculation Sheet Crop 1'!$L$8+1),"Mid Season",IF(AND(B171+1>'Calculation Sheet Crop 1'!$K$9,B171-1<'Calculation Sheet Crop 1'!$L$9),"Late Season Stage","")))) -> Mid Season | D171: =IF(MONTH(B171)=1,'General Calculation'!$E$22,IF(MONTH(B171)=2,'General Calculation'!$F$22,IF(MONTH(B171)=3,'General Calculation'!$G$22,IF(MONTH(B171)=4,'General Calculation'!$H$22,IF(MONTH(B171)=5,'General Calculation'!$I$22,IF(MONTH(B171)=6,'General Calculation'!$J$22,IF(MONTH(B171)=7,'General Calculation'!$K$22,IF(MONTH(B171)=8,'General Calculation'!$L$22,IF(MONTH(B171)=9,'General Calculation'!$M$22,IF(MONTH(B171)=10,'General Calculation'!$N$22,IF(MONTH(B171)=11,'General Calculation'!$O$22,IF(MONTH(B171)=12,'General Calculation'!$P$22,"")))))))))))) -> 5.0787 | E171: =IF(C171="Initial Stage",'Calculation Sheet Crop 1'!$M$6,IF(C171="Crop Development Phase",'Calculation Sheet Crop 1'!$M$7,IF(C171="Mid Season",'Calculation Sheet Crop 1'!$M$8,IF(C171="Late Season Stage",'Calculation Sheet Crop 1'!$M$9,"")))) -> 1.1 | F171: 5.58657 | P171: 0 | Q171: 0 | R171: 0 | S171: 0 | T171: 0 | U171: 5.58657 | V171: 0 | W171: 0 | X171: 0 | Y171: 0 | Z171: 0 | AA171: 0
B172: 2017-06-15 | C172: =IF(AND(B172>='Calculation Sheet Crop 1'!$K$6,B172<='Calculation Sheet Crop 1'!$L$6),"Initial Stage",IF(AND(B172+1>'Calculation Sheet Crop 1'!$K$7,B172<='Calculation Sheet Crop 1'!$L$7),"Crop Development Phase",IF(AND(B172+1>'Calculation Sheet Crop 1'!$K$8,B172<'Calculation Sheet Crop 1'!$L$8+1),"Mid Season",IF(AND(B172+1>'Calculation Sheet Crop 1'!$K$9,B172-1<'Calculation Sheet Crop 1'!$L$9),"Late Season Stage","")))) -> Mid Season | D172: =IF(MONTH(B172)=1,'General Calculation'!$E$22,IF(MONTH(B172)=2,'General Calculation'!$F$22,IF(MONTH(B172)=3,'General Calculation'!$G$22,IF(MONTH(B172)=4,'General Calculation'!$H$22,IF(MONTH(B172)=5,'General Calculation'!$I$22,IF(MONTH(B172)=6,'General Calculation'!$J$22,IF(MONTH(B172)=7,'General Calculation'!$K$22,IF(MONTH(B172)=8,'General Calculation'!$L$22,IF(MONTH(B172)=9,'General Calculation'!$M$22,IF(MONTH(B172)=10,'General Calculation'!$N$22,IF(MONTH(B172)=11,'General Calculation'!$O$22,IF(MONTH(B172)=12,'General Calculation'!$P$22,"")))))))))))) -> 5.0787 | E172: =IF(C172="Initial Stage",'Calculation Sheet Crop 1'!$M$6,IF(C172="Crop Development Phase",'Calculation Sheet Crop 1'!$M$7,IF(C172="Mid Season",'Calculation Sheet Crop 1'!$M$8,IF(C172="Late Season Stage",'Calculation Sheet Crop 1'!$M$9,"")))) -> 1.1 | F172: 5.58657 | P172: 0 | Q172: 0 | R172: 0 | S172: 0 | T172: 0 | U172: 5.58657 | V172: 0 | W172: 0 | X172: 0 | Y172: 0 | Z172: 0 | AA172: 0
B173: 2017-06-16 | C173: =IF(AND(B173>='Calculation Sheet Crop 1'!$K$6,B173<='Calculation Sheet Crop 1'!$L$6),"Initial Stage",IF(AND(B173+1>'Calculation Sheet Crop 1'!$K$7,B173<='Calculation Sheet Crop 1'!$L$7),"Crop Development Phase",IF(AND(B173+1>'Calculation Sheet Crop 1'!$K$8,B173<'Calculation Sheet Crop 1'!$L$8+1),"Mid Season",IF(AND(B173+1>'Calculation Sheet Crop 1'!$K$9,B173-1<'Calculation Sheet Crop 1'!$L$9),"Late Season Stage","")))) -> Mid Season | D173: =IF(MONTH(B173)=1,'General Calculation'!$E$22,IF(MONTH(B173)=2,'General Calculation'!$F$22,IF(MONTH(B173)=3,'General Calculation'!$G$22,IF(MONTH(B173)=4,'General Calculation'!$H$22,IF(MONTH(B173)=5,'General Calculation'!$I$22,IF(MONTH(B173)=6,'General Calculation'!$J$22,IF(MONTH(B173)=7,'General Calculation'!$K$22,IF(MONTH(B173)=8,'General Calculation'!$L$22,IF(MONTH(B173)=9,'General Calculation'!$M$22,IF(MONTH(B173)=10,'General Calculation'!$N$22,IF(MONTH(B173)=11,'General Calculation'!$O$22,IF(MONTH(B173)=12,'General Calculation'!$P$22,"")))))))))))) -> 5.0787 | E173: =IF(C173="Initial Stage",'Calculation Sheet Crop 1'!$M$6,IF(C173="Crop Development Phase",'Calculation Sheet Crop 1'!$M$7,IF(C173="Mid Season",'Calculation Sheet Crop 1'!$M$8,IF(C173="Late Season Stage",'Calculation Sheet Crop 1'!$M$9,"")))) -> 1.1 | F173: 5.58657 | P173: 0 | Q173: 0 | R173: 0 | S173: 0 | T173: 0 | U173: 5.58657 | V173: 0 | W173: 0 | X173: 0 | Y173: 0 | Z173: 0 | AA173: 0
B174: 2017-06-17 | C174: =IF(AND(B174>='Calculation Sheet Crop 1'!$K$6,B174<='Calculation Sheet Crop 1'!$L$6),"Initial Stage",IF(AND(B174+1>'Calculation Sheet Crop 1'!$K$7,B174<='Calculation Sheet Crop 1'!$L$7),"Crop Development Phase",IF(AND(B174+1>'Calculation Sheet Crop 1'!$K$8,B174<'Calculation Sheet Crop 1'!$L$8+1),"Mid Season",IF(AND(B174+1>'Calculation Sheet Crop 1'!$K$9,B174-1<'Calculation Sheet Crop 1'!$L$9),"Late Season Stage","")))) -> Mid Season | D174: =IF(MONTH(B174)=1,'General Calculation'!$E$22,IF(MONTH(B174)=2,'General Calculation'!$F$22,IF(MONTH(B174)=3,'General Calculation'!$G$22,IF(MONTH(B174)=4,'General Calculation'!$H$22,IF(MONTH(B174)=5,'General Calculation'!$I$22,IF(MONTH(B174)=6,'General Calculation'!$J$22,IF(MONTH(B174)=7,'General Calculation'!$K$22,IF(MONTH(B174)=8,'General Calculation'!$L$22,IF(MONTH(B174)=9,'General Calculation'!$M$22,IF(MONTH(B174)=10,'General Calculation'!$N$22,IF(MONTH(B174)=11,'General Calculation'!$O$22,IF(MONTH(B174)=12,'General Calculation'!$P$22,"")))))))))))) -> 5.0787 | E174: =IF(C174="Initial Stage",'Calculation Sheet Crop 1'!$M$6,IF(C174="Crop Development Phase",'Calculation Sheet Crop 1'!$M$7,IF(C174="Mid Season",'Calculation Sheet Crop 1'!$M$8,IF(C174="Late Season Stage",'Calculation Sheet Crop 1'!$M$9,"")))) -> 1.1 | F174: 5.58657 | P174: 0 | Q174: 0 | R174: 0 | S174: 0 | T174: 0 | U174: 5.58657 | V174: 0 | W174: 0 | X174: 0 | Y174: 0 | Z174: 0 | AA174: 0
B175: 2017-06-18 | C175: =IF(AND(B175>='Calculation Sheet Crop 1'!$K$6,B175<='Calculation Sheet Crop 1'!$L$6),"Initial Stage",IF(AND(B175+1>'Calculation Sheet Crop 1'!$K$7,B175<='Calculation Sheet Crop 1'!$L$7),"Crop Development Phase",IF(AND(B175+1>'Calculation Sheet Crop 1'!$K$8,B175<'Calculation Sheet Crop 1'!$L$8+1),"Mid Season",IF(AND(B175+1>'Calculation Sheet Crop 1'!$K$9,B175-1<'Calculation Sheet Crop 1'!$L$9),"Late Season Stage","")))) -> Mid Season | D175: =IF(MONTH(B175)=1,'General Calculation'!$E$22,IF(MONTH(B175)=2,'General Calculation'!$F$22,IF(MONTH(B175)=3,'General Calculation'!$G$22,IF(MONTH(B175)=4,'General Calculation'!$H$22,IF(MONTH(B175)=5,'General Calculation'!$I$22,IF(MONTH(B175)=6,'General Calculation'!$J$22,IF(MONTH(B175)=7,'General Calculation'!$K$22,IF(MONTH(B175)=8,'General Calculation'!$L$22,IF(MONTH(B175)=9,'General Calculation'!$M$22,IF(MONTH(B175)=10,'General Calculation'!$N$22,IF(MONTH(B175)=11,'General Calculation'!$O$22,IF(MONTH(B175)=12,'General Calculation'!$P$22,"")))))))))))) -> 5.0787 | E175: =IF(C175="Initial Stage",'Calculation Sheet Crop 1'!$M$6,IF(C175="Crop Development Phase",'Calculation Sheet Crop 1'!$M$7,IF(C175="Mid Season",'Calculation Sheet Crop 1'!$M$8,IF(C175="Late Season Stage",'Calculation Sheet Crop 1'!$M$9,"")))) -> 1.1 | F175: 5.58657 | P175: 0 | Q175: 0 | R175: 0 | S175: 0 | T175: 0 | U175: 5.58657 | V175: 0 | W175: 0 | X175: 0 | Y175: 0 | Z175: 0 | AA175: 0
B176: 2017-06-19 | C176: =IF(AND(B176>='Calculation Sheet Crop 1'!$K$6,B176<='Calculation Sheet Crop 1'!$L$6),"Initial Stage",IF(AND(B176+1>'Calculation Sheet Crop 1'!$K$7,B176<='Calculation Sheet Crop 1'!$L$7),"Crop Development Phase",IF(AND(B176+1>'Calculation Sheet Crop 1'!$K$8,B176<'Calculation Sheet Crop 1'!$L$8+1),"Mid Season",IF(AND(B176+1>'Calculation Sheet Crop 1'!$K$9,B176-1<'Calculation Sheet Crop 1'!$L$9),"Late Season Stage","")))) -> Mid Season | D176: =IF(MONTH(B176)=1,'General Calculation'!$E$22,IF(MONTH(B176)=2,'General Calculation'!$F$22,IF(MONTH(B176)=3,'General Calculation'!$G$22,IF(MONTH(B176)=4,'General Calculation'!$H$22,IF(MONTH(B176)=5,'General Calculation'!$I$22,IF(MONTH(B176)=6,'General Calculation'!$J$22,IF(MONTH(B176)=7,'General Calculation'!$K$22,IF(MONTH(B176)=8,'General Calculation'!$L$22,IF(MONTH(B176)=9,'General Calculation'!$M$22,IF(MONTH(B176)=10,'General Calculation'!$N$22,IF(MONTH(B176)=11,'General Calculation'!$O$22,IF(MONTH(B176)=12,'General Calculation'!$P$22,"")))))))))))) -> 5.0787 | E176: =IF(C176="Initial Stage",'Calculation Sheet Crop 1'!$M$6,IF(C176="Crop Development Phase",'Calculation Sheet Crop 1'!$M$7,IF(C176="Mid Season",'Calculation Sheet Crop 1'!$M$8,IF(C176="Late Season Stage",'Calculation Sheet Crop 1'!$M$9,"")))) -> 1.1 | F176: 5.58657 | P176: 0 | Q176: 0 | R176: 0 | S176: 0 | T176: 0 | U176: 5.58657 | V176: 0 | W176: 0 | X176: 0 | Y176: 0 | Z176: 0 | AA176: 0
B177: 2017-06-20 | C177: =IF(AND(B177>='Calculation Sheet Crop 1'!$K$6,B177<='Calculation Sheet Crop 1'!$L$6),"Initial Stage",IF(AND(B177+1>'Calculation Sheet Crop 1'!$K$7,B177<='Calculation Sheet Crop 1'!$L$7),"Crop Development Phase",IF(AND(B177+1>'Calculation Sheet Crop 1'!$K$8,B177<'Calculation Sheet Crop 1'!$L$8+1),"Mid Season",IF(AND(B177+1>'Calculation Sheet Crop 1'!$K$9,B177-1<'Calculation Sheet Crop 1'!$L$9),"Late Season Stage","")))) -> Mid Season | D177: =IF(MONTH(B177)=1,'General Calculation'!$E$22,IF(MONTH(B177)=2,'General Calculation'!$F$22,IF(MONTH(B177)=3,'General Calculation'!$G$22,IF(MONTH(B177)=4,'General Calculation'!$H$22,IF(MONTH(B177)=5,'General Calculation'!$I$22,IF(MONTH(B177)=6,'General Calculation'!$J$22,IF(MONTH(B177)=7,'General Calculation'!$K$22,IF(MONTH(B177)=8,'General Calculation'!$L$22,IF(MONTH(B177)=9,'General Calculation'!$M$22,IF(MONTH(B177)=10,'General Calculation'!$N$22,IF(MONTH(B177)=11,'General Calculation'!$O$22,IF(MONTH(B177)=12,'General Calculation'!$P$22,"")))))))))))) -> 5.0787 | E177: =IF(C177="Initial Stage",'Calculation Sheet Crop 1'!$M$6,IF(C177="Crop Development Phase",'Calculation Sheet Crop 1'!$M$7,IF(C177="Mid Season",'Calculation Sheet Crop 1'!$M$8,IF(C177="Late Season Stage",'Calculation Sheet Crop 1'!$M$9,"")))) -> 1.1 | F177: 5.58657 | P177: 0 | Q177: 0 | R177: 0 | S177: 0 | T177: 0 | U177: 5.58657 | V177: 0 | W177: 0 | X177: 0 | Y177: 0 | Z177: 0 | AA177: 0
B178: 2017-06-21 | C178: =IF(AND(B178>='Calculation Sheet Crop 1'!$K$6,B178<='Calculation Sheet Crop 1'!$L$6),"Initial Stage",IF(AND(B178+1>'Calculation Sheet Crop 1'!$K$7,B178<='Calculation Sheet Crop 1'!$L$7),"Crop Development Phase",IF(AND(B178+1>'Calculation Sheet Crop 1'!$K$8,B178<'Calculation Sheet Crop 1'!$L$8+1),"Mid Season",IF(AND(B178+1>'Calculation Sheet Crop 1'!$K$9,B178-1<'Calculation Sheet Crop 1'!$L$9),"Late Season Stage","")))) -> Late Season Stage | D178: =IF(MONTH(B178)=1,'General Calculation'!$E$22,IF(MONTH(B178)=2,'General Calculation'!$F$22,IF(MONTH(B178)=3,'General Calculation'!$G$22,IF(MONTH(B178)=4,'General Calculation'!$H$22,IF(MONTH(B178)=5,'General Calculation'!$I$22,IF(MONTH(B178)=6,'General Calculation'!$J$22,IF(MONTH(B178)=7,'General Calculation'!$K$22,IF(MONTH(B178)=8,'General Calculation'!$L$22,IF(MONTH(B178)=9,'General Calculation'!$M$22,IF(MONTH(B178)=10,'General Calculation'!$N$22,IF(MONTH(B178)=11,'General Calculation'!$O$22,IF(MONTH(B178)=12,'General Calculation'!$P$22,"")))))))))))) -> 5.0787 | E178: =IF(C178="Initial Stage",'Calculation Sheet Crop 1'!$M$6,IF(C178="Crop Development Phase",'Calculation Sheet Crop 1'!$M$7,IF(C178="Mid Season",'Calculation Sheet Crop 1'!$M$8,IF(C178="Late Season Stage",'Calculation Sheet Crop 1'!$M$9,"")))) -> 0.3 | F178: 1.52361 | P178: 0 | Q178: 0 | R178: 0 | S178: 0 | T178: 0 | U178: 1.52361 | V178: 0 | W178: 0 | X178: 0 | Y178: 0 | Z178: 0 | AA178: 0
B179: 2017-06-22 | C179: =IF(AND(B179>='Calculation Sheet Crop 1'!$K$6,B179<='Calculation Sheet Crop 1'!$L$6),"Initial Stage",IF(AND(B179+1>'Calculation Sheet Crop 1'!$K$7,B179<='Calculation Sheet Crop 1'!$L$7),"Crop Development Phase",IF(AND(B179+1>'Calculation Sheet Crop 1'!$K$8,B179<'Calculation Sheet Crop 1'!$L$8+1),"Mid Season",IF(AND(B179+1>'Calculation Sheet Crop 1'!$K$9,B179-1<'Calculation Sheet Crop 1'!$L$9),"Late Season Stage","")))) -> Late Season Stage | D179: =IF(MONTH(B179)=1,'General Calculation'!$E$22,IF(MONTH(B179)=2,'General Calculation'!$F$22,IF(MONTH(B179)=3,'General Calculation'!$G$22,IF(MONTH(B179)=4,'General Calculation'!$H$22,IF(MONTH(B179)=5,'General Calculation'!$I$22,IF(MONTH(B179)=6,'General Calculation'!$J$22,IF(MONTH(B179)=7,'General Calculation'!$K$22,IF(MONTH(B179)=8,'General Calculation'!$L$22,IF(MONTH(B179)=9,'General Calculation'!$M$22,IF(MONTH(B179)=10,'General Calculation'!$N$22,IF(MONTH(B179)=11,'General Calculation'!$O$22,IF(MONTH(B179)=12,'General Calculation'!$P$22,"")))))))))))) -> 5.0787 | E179: =IF(C179="Initial Stage",'Calculation Sheet Crop 1'!$M$6,IF(C179="Crop Development Phase",'Calculation Sheet Crop 1'!$M$7,IF(C179="Mid Season",'Calculation Sheet Crop 1'!$M$8,IF(C179="Late Season Stage",'Calculation Sheet Crop 1'!$M$9,"")))) -> 0.3 | F179: 1.52361 | P179: 0 | Q179: 0 | R179: 0 | S179: 0 | T179: 0 | U179: 1.52361 | V179: 0 | W179: 0 | X179: 0 | Y179: 0 | Z179: 0 | AA179: 0
B180: 2017-06-23 | C180: =IF(AND(B180>='Calculation Sheet Crop 1'!$K$6,B180<='Calculation Sheet Crop 1'!$L$6),"Initial Stage",IF(AND(B180+1>'Calculation Sheet Crop 1'!$K$7,B180<='Calculation Sheet Crop 1'!$L$7),"Crop Development Phase",IF(AND(B180+1>'Calculation Sheet Crop 1'!$K$8,B180<'Calculation Sheet Crop 1'!$L$8+1),"Mid Season",IF(AND(B180+1>'Calculation Sheet Crop 1'!$K$9,B180-1<'Calculation Sheet Crop 1'!$L$9),"Late Season Stage","")))) -> Late Season Stage | D180: =IF(MONTH(B180)=1,'General Calculation'!$E$22,IF(MONTH(B180)=2,'General Calculation'!$F$22,IF(MONTH(B180)=3,'General Calculation'!$G$22,IF(MONTH(B180)=4,'General Calculation'!$H$22,IF(MONTH(B180)=5,'General Calculation'!$I$22,IF(MONTH(B180)=6,'General Calculation'!$J$22,IF(MONTH(B180)=7,'General Calculation'!$K$22,IF(MONTH(B180)=8,'General Calculation'!$L$22,IF(MONTH(B180)=9,'General Calculation'!$M$22,IF(MONTH(B180)=10,'General Calculation'!$N$22,IF(MONTH(B180)=11,'General Calculation'!$O$22,IF(MONTH(B180)=12,'General Calculation'!$P$22,"")))))))))))) -> 5.0787 | E180: =IF(C180="Initial Stage",'Calculation Sheet Crop 1'!$M$6,IF(C180="Crop Development Phase",'Calculation Sheet Crop 1'!$M$7,IF(C180="Mid Season",'Calculation Sheet Crop 1'!$M$8,IF(C180="Late Season Stage",'Calculation Sheet Crop 1'!$M$9,"")))) -> 0.3 | F180: 1.52361 | P180: 0 | Q180: 0 | R180: 0 | S180: 0 | T180: 0 | U180: 1.52361 | V180: 0 | W180: 0 | X180: 0 | Y180: 0 | Z180: 0 | AA180: 0
B181: 2017-06-24 | C181: =IF(AND(B181>='Calculation Sheet Crop 1'!$K$6,B181<='Calculation Sheet Crop 1'!$L$6),"Initial Stage",IF(AND(B181+1>'Calculation Sheet Crop 1'!$K$7,B181<='Calculation Sheet Crop 1'!$L$7),"Crop Development Phase",IF(AND(B181+1>'Calculation Sheet Crop 1'!$K$8,B181<'Calculation Sheet Crop 1'!$L$8+1),"Mid Season",IF(AND(B181+1>'Calculation Sheet Crop 1'!$K$9,B181-1<'Calculation Sheet Crop 1'!$L$9),"Late Season Stage","")))) -> Late Season Stage | D181: =IF(MONTH(B181)=1,'General Calculation'!$E$22,IF(MONTH(B181)=2,'General Calculation'!$F$22,IF(MONTH(B181)=3,'General Calculation'!$G$22,IF(MONTH(B181)=4,'General Calculation'!$H$22,IF(MONTH(B181)=5,'General Calculation'!$I$22,IF(MONTH(B181)=6,'General Calculation'!$J$22,IF(MONTH(B181)=7,'General Calculation'!$K$22,IF(MONTH(B181)=8,'General Calculation'!$L$22,IF(MONTH(B181)=9,'General Calculation'!$M$22,IF(MONTH(B181)=10,'General Calculation'!$N$22,IF(MONTH(B181)=11,'General Calculation'!$O$22,IF(MONTH(B181)=12,'General Calculation'!$P$22,"")))))))))))) -> 5.0787 | E181: =IF(C181="Initial Stage",'Calculation Sheet Crop 1'!$M$6,IF(C181="Crop Development Phase",'Calculation Sheet Crop 1'!$M$7,IF(C181="Mid Season",'Calculation Sheet Crop 1'!$M$8,IF(C181="Late Season Stage",'Calculation Sheet Crop 1'!$M$9,"")))) -> 0.3 | F181: 1.52361 | P181: 0 | Q181: 0 | R181: 0 | S181: 0 | T181: 0 | U181: 1.52361 | V181: 0 | W181: 0 | X181: 0 | Y181: 0 | Z181: 0 | AA181: 0
B182: 2017-06-25 | C182: =IF(AND(B182>='Calculation Sheet Crop 1'!$K$6,B182<='Calculation Sheet Crop 1'!$L$6),"Initial Stage",IF(AND(B182+1>'Calculation Sheet Crop 1'!$K$7,B182<='Calculation Sheet Crop 1'!$L$7),"Crop Development Phase",IF(AND(B182+1>'Calculation Sheet Crop 1'!$K$8,B182<'Calculation Sheet Crop 1'!$L$8+1),"Mid Season",IF(AND(B182+1>'Calculation Sheet Crop 1'!$K$9,B182-1<'Calculation Sheet Crop 1'!$L$9),"Late Season Stage","")))) -> Late Season Stage | D182: =IF(MONTH(B182)=1,'General Calculation'!$E$22,IF(MONTH(B182)=2,'General Calculation'!$F$22,IF(MONTH(B182)=3,'General Calculation'!$G$22,IF(MONTH(B182)=4,'General Calculation'!$H$22,IF(MONTH(B182)=5,'General Calculation'!$I$22,IF(MONTH(B182)=6,'General Calculation'!$J$22,IF(MONTH(B182)=7,'General Calculation'!$K$22,IF(MONTH(B182)=8,'General Calculation'!$L$22,IF(MONTH(B182)=9,'General Calculation'!$M$22,IF(MONTH(B182)=10,'General Calculation'!$N$22,IF(MONTH(B182)=11,'General Calculation'!$O$22,IF(MONTH(B182)=12,'General Calculation'!$P$22,"")))))))))))) -> 5.0787 | E182: =IF(C182="Initial Stage",'Calculation Sheet Crop 1'!$M$6,IF(C182="Crop Development Phase",'Calculation Sheet Crop 1'!$M$7,IF(C182="Mid Season",'Calculation Sheet Crop 1'!$M$8,IF(C182="Late Season Stage",'Calculation Sheet Crop 1'!$M$9,"")))) -> 0.3 | F182: 1.52361 | P182: 0 | Q182: 0 | R182: 0 | S182: 0 | T182: 0 | U182: 1.52361 | V182: 0 | W182: 0 | X182: 0 | Y182: 0 | Z182: 0 | AA182: 0
B183: 2017-06-26 | C183: =IF(AND(B183>='Calculation Sheet Crop 1'!$K$6,B183<='Calculation Sheet Crop 1'!$L$6),"Initial Stage",IF(AND(B183+1>'Calculation Sheet Crop 1'!$K$7,B183<='Calculation Sheet Crop 1'!$L$7),"Crop Development Phase",IF(AND(B183+1>'Calculation Sheet Crop 1'!$K$8,B183<'Calculation Sheet Crop 1'!$L$8+1),"Mid Season",IF(AND(B183+1>'Calculation Sheet Crop 1'!$K$9,B183-1<'Calculation Sheet Crop 1'!$L$9),"Late Season Stage","")))) -> Late Season Stage | D183: =IF(MONTH(B183)=1,'General Calculation'!$E$22,IF(MONTH(B183)=2,'General Calculation'!$F$22,IF(MONTH(B183)=3,'General Calculation'!$G$22,IF(MONTH(B183)=4,'General Calculation'!$H$22,IF(MONTH(B183)=5,'General Calculation'!$I$22,IF(MONTH(B183)=6,'General Calculation'!$J$22,IF(MONTH(B183)=7,'General Calculation'!$K$22,IF(MONTH(B183)=8,'General Calculation'!$L$22,IF(MONTH(B183)=9,'General Calculation'!$M$22,IF(MONTH(B183)=10,'General Calculation'!$N$22,IF(MONTH(B183)=11,'General Calculation'!$O$22,IF(MONTH(B183)=12,'General Calculation'!$P$22,"")))))))))))) -> 5.0787 | E183: =IF(C183="Initial Stage",'Calculation Sheet Crop 1'!$M$6,IF(C183="Crop Development Phase",'Calculation Sheet Crop 1'!$M$7,IF(C183="Mid Season",'Calculation Sheet Crop 1'!$M$8,IF(C183="Late Season Stage",'Calculation Sheet Crop 1'!$M$9,"")))) -> 0.3 | F183: 1.52361 | P183: 0 | Q183: 0 | R183: 0 | S183: 0 | T183: 0 | U183: 1.52361 | V183: 0 | W183: 0 | X183: 0 | Y183: 0 | Z183: 0 | AA183: 0
B184: 2017-06-27 | C184: =IF(AND(B184>='Calculation Sheet Crop 1'!$K$6,B184<='Calculation Sheet Crop 1'!$L$6),"Initial Stage",IF(AND(B184+1>'Calculation Sheet Crop 1'!$K$7,B184<='Calculation Sheet Crop 1'!$L$7),"Crop Development Phase",IF(AND(B184+1>'Calculation Sheet Crop 1'!$K$8,B184<'Calculation Sheet Crop 1'!$L$8+1),"Mid Season",IF(AND(B184+1>'Calculation Sheet Crop 1'!$K$9,B184-1<'Calculation Sheet Crop 1'!$L$9),"Late Season Stage","")))) -> Late Season Stage | D184: =IF(MONTH(B184)=1,'General Calculation'!$E$22,IF(MONTH(B184)=2,'General Calculation'!$F$22,IF(MONTH(B184)=3,'General Calculation'!$G$22,IF(MONTH(B184)=4,'General Calculation'!$H$22,IF(MONTH(B184)=5,'General Calculation'!$I$22,IF(MONTH(B184)=6,'General Calculation'!$J$22,IF(MONTH(B184)=7,'General Calculation'!$K$22,IF(MONTH(B184)=8,'General Calculation'!$L$22,IF(MONTH(B184)=9,'General Calculation'!$M$22,IF(MONTH(B184)=10,'General Calculation'!$N$22,IF(MONTH(B184)=11,'General Calculation'!$O$22,IF(MONTH(B184)=12,'General Calculation'!$P$22,"")))))))))))) -> 5.0787 | E184: =IF(C184="Initial Stage",'Calculation Sheet Crop 1'!$M$6,IF(C184="Crop Development Phase",'Calculation Sheet Crop 1'!$M$7,IF(C184="Mid Season",'Calculation Sheet Crop 1'!$M$8,IF(C184="Late Season Stage",'Calculation Sheet Crop 1'!$M$9,"")))) -> 0.3 | F184: 1.52361 | P184: 0 | Q184: 0 | R184: 0 | S184: 0 | T184: 0 | U184: 1.52361 | V184: 0 | W184: 0 | X184: 0 | Y184: 0 | Z184: 0 | AA184: 0
B185: 2017-06-28 | C185: =IF(AND(B185>='Calculation Sheet Crop 1'!$K$6,B185<='Calculation Sheet Crop 1'!$L$6),"Initial Stage",IF(AND(B185+1>'Calculation Sheet Crop 1'!$K$7,B185<='Calculation Sheet Crop 1'!$L$7),"Crop Development Phase",IF(AND(B185+1>'Calculation Sheet Crop 1'!$K$8,B185<'Calculation Sheet Crop 1'!$L$8+1),"Mid Season",IF(AND(B185+1>'Calculation Sheet Crop 1'!$K$9,B185-1<'Calculation Sheet Crop 1'!$L$9),"Late Season Stage","")))) -> Late Season Stage | D185: =IF(MONTH(B185)=1,'General Calculation'!$E$22,IF(MONTH(B185)=2,'General Calculation'!$F$22,IF(MONTH(B185)=3,'General Calculation'!$G$22,IF(MONTH(B185)=4,'General Calculation'!$H$22,IF(MONTH(B185)=5,'General Calculation'!$I$22,IF(MONTH(B185)=6,'General Calculation'!$J$22,IF(MONTH(B185)=7,'General Calculation'!$K$22,IF(MONTH(B185)=8,'General Calculation'!$L$22,IF(MONTH(B185)=9,'General Calculation'!$M$22,IF(MONTH(B185)=10,'General Calculation'!$N$22,IF(MONTH(B185)=11,'General Calculation'!$O$22,IF(MONTH(B185)=12,'General Calculation'!$P$22,"")))))))))))) -> 5.0787 | E185: =IF(C185="Initial Stage",'Calculation Sheet Crop 1'!$M$6,IF(C185="Crop Development Phase",'Calculation Sheet Crop 1'!$M$7,IF(C185="Mid Season",'Calculation Sheet Crop 1'!$M$8,IF(C185="Late Season Stage",'Calculation Sheet Crop 1'!$M$9,"")))) -> 0.3 | F185: 1.52361 | P185: 0 | Q185: 0 | R185: 0 | S185: 0 | T185: 0 | U185: 1.52361 | V185: 0 | W185: 0 | X185: 0 | Y185: 0 | Z185: 0 | AA185: 0
B186: 2017-06-29 | C186: =IF(AND(B186>='Calculation Sheet Crop 1'!$K$6,B186<='Calculation Sheet Crop 1'!$L$6),"Initial Stage",IF(AND(B186+1>'Calculation Sheet Crop 1'!$K$7,B186<='Calculation Sheet Crop 1'!$L$7),"Crop Development Phase",IF(AND(B186+1>'Calculation Sheet Crop 1'!$K$8,B186<'Calculation Sheet Crop 1'!$L$8+1),"Mid Season",IF(AND(B186+1>'Calculation Sheet Crop 1'!$K$9,B186-1<'Calculation Sheet Crop 1'!$L$9),"Late Season Stage","")))) -> Late Season Stage | D186: =IF(MONTH(B186)=1,'General Calculation'!$E$22,IF(MONTH(B186)=2,'General Calculation'!$F$22,IF(MONTH(B186)=3,'General Calculation'!$G$22,IF(MONTH(B186)=4,'General Calculation'!$H$22,IF(MONTH(B186)=5,'General Calculation'!$I$22,IF(MONTH(B186)=6,'General Calculation'!$J$22,IF(MONTH(B186)=7,'General Calculation'!$K$22,IF(MONTH(B186)=8,'General Calculation'!$L$22,IF(MONTH(B186)=9,'General Calculation'!$M$22,IF(MONTH(B186)=10,'General Calculation'!$N$22,IF(MONTH(B186)=11,'General Calculation'!$O$22,IF(MONTH(B186)=12,'General Calculation'!$P$22,"")))))))))))) -> 5.0787 | E186: =IF(C186="Initial Stage",'Calculation Sheet Crop 1'!$M$6,IF(C186="Crop Development Phase",'Calculation Sheet Crop 1'!$M$7,IF(C186="Mid Season",'Calculation Sheet Crop 1'!$M$8,IF(C186="Late Season Stage",'Calculation Sheet Crop 1'!$M$9,"")))) -> 0.3 | F186: 1.52361 | P186: 0 | Q186: 0 | R186: 0 | S186: 0 | T186: 0 | U186: 1.52361 | V186: 0 | W186: 0 | X186: 0 | Y186: 0 | Z186: 0 | AA186: 0
B187: 2017-06-30 | C187: =IF(AND(B187>='Calculation Sheet Crop 1'!$K$6,B187<='Calculation Sheet Crop 1'!$L$6),"Initial Stage",IF(AND(B187+1>'Calculation Sheet Crop 1'!$K$7,B187<='Calculation Sheet Crop 1'!$L$7),"Crop Development Phase",IF(AND(B187+1>'Calculation Sheet Crop 1'!$K$8,B187<'Calculation Sheet Crop 1'!$L$8+1),"Mid Season",IF(AND(B187+1>'Calculation Sheet Crop 1'!$K$9,B187-1<'Calculation Sheet Crop 1'!$L$9),"Late Season Stage","")))) -> Late Season Stage | D187: =IF(MONTH(B187)=1,'General Calculation'!$E$22,IF(MONTH(B187)=2,'General Calculation'!$F$22,IF(MONTH(B187)=3,'General Calculation'!$G$22,IF(MONTH(B187)=4,'General Calculation'!$H$22,IF(MONTH(B187)=5,'General Calculation'!$I$22,IF(MONTH(B187)=6,'General Calculation'!$J$22,IF(MONTH(B187)=7,'General Calculation'!$K$22,IF(MONTH(B187)=8,'General Calculation'!$L$22,IF(MONTH(B187)=9,'General Calculation'!$M$22,IF(MONTH(B187)=10,'General Calculation'!$N$22,IF(MONTH(B187)=11,'General Calculation'!$O$22,IF(MONTH(B187)=12,'General Calculation'!$P$22,"")))))))))))) -> 5.0787 | E187: =IF(C187="Initial Stage",'Calculation Sheet Crop 1'!$M$6,IF(C187="Crop Development Phase",'Calculation Sheet Crop 1'!$M$7,IF(C187="Mid Season",'Calculation Sheet Crop 1'!$M$8,IF(C187="Late Season Stage",'Calculation Sheet Crop 1'!$M$9,"")))) -> 0.3 | F187: 1.52361 | P187: 0 | Q187: 0 | R187: 0 | S187: 0 | T187: 0 | U187: 1.52361 | V187: 0 | W187: 0 | X187: 0 | Y187: 0 | Z187: 0 | AA187: 0
